Workbook

Sheet Terms
A1: =RIGHT( CELL("filename",$A$1), LEN( CELL("filename",$A$1)) - SEARCH("]", CELL("filename",$A$1))) -> Terms | C1: =Inputs!$E$75 -> Simplified Petroleum FARI model: April 2022
B8: =Translate!E$816 -> FARI TERMS OF USE
B10: =Translate!E$906 -> The Fiscal Analysis of Resource Industries (FARI or the “Methodology”) is made available to User by the International Monetary Fund (IMF) and subject to the following terms and conditions of use (“Terms”). By proceeding to use of the Methodology, User agrees and accepts the Terms.
B12: =Translate!E$907 -> TERMS
B13: =Translate!E$908 -> 1. The Methodology is intended as a tool to perform economic and fiscal analysis of extractive industries projects and to support general capacity building for government officials and civil society. User may adapt, modify or alter the Methodology to the extent necessary to fit the purpose of User’s internal use, provided that such adaptations, modifications or alterations shall not affect the integrity of the Methodology.
B14: =Translate!E$909 -> 2. The Methodology has not been configured as a formal forecasting tool and is not designed or intended for such use. The Methodology is made available “as is” and the IMF makes no warranty or representation of the accuracy, adequacy or fitness for a particular purpose of the Methodology.
B15: =Translate!E$910 -> 3. All proprietary rights in the Methodology, including intellectual property rights, belong to the IMF. All other rights, whether now existing or which may hereafter come into existence which are not expressly authorized by these Terms, are hereby reserved to and by the IMF.
B16: =Translate!E$911 -> 4. User shall give appropriate credit to the IMF in all applications and outputs derived from the use of the Methodology, in a way which does not suggest that the IMF endorses User or any User's use of the Methodology and the outputs deriving thereof.
B17: =Translate!E$912 -> 5. Access to and use of the Methodology are at the User's own risk and responsibility. The IMF bears no responsibility or liability for damage of any kind, also for indirect or consequential damages resulting from access to or use of this Methodology.
B19: =Translate!E$913 -> Accept terms of use to continue.

Sheet ReadMe
A1: =RIGHT( CELL("filename",$A$1), LEN( CELL("filename",$A$1)) - SEARCH("]", CELL("filename",$A$1))) -> ReadMe | D1: =Inputs!$E$75 -> Simplified Petroleum FARI model: April 2022
C3: =Translate!E3 -> Authors | E3: =Translate!E$800 -> IMF Fiscal Affairs Department, Tax Policy Division | J3: =Translate!E$804 -> Sheets | K3: =Translate!E$7 -> Checks | N3: =Translate!E$606 -> Translation of options | O3: =Translate!E$7 -> Checks
C4: =Translate!E4 -> Contact in IMF FAD | E4: Thomas Benninger (tbenninger@imf.org) | J4: =Translate!E$805 -> top row | N4: =Translate!E$805 -> top row
C5: =Translate!E5 -> Owner | E5: =Translate!E$801 -> © IMF Fiscal Affairs Department. All rights reserved | J5: =Dashboard!F56 -> Check: Dashboard | K5: =Dashboard!K56 -> 0 | L5: =Dashboard!L56 -> Check | N5: =Inputs!E41 -> Check: ELT applies | O5: =Inputs!F41 -> 0 | P5: =Inputs!G41 -> Check
J6: =Inputs!E$108 -> Check: Inputs | K6: =Inputs!F$108 -> 0 | L6: =Inputs!G$108 -> Check | N6: =Dashboard!B152 -> Check: Select metric | O6: =Dashboard!C152 -> 0 | P6: =Dashboard!D152 -> Check
C7: =Translate!E6 -> Overall checks | D7: =SUM(ReadMe!K4:K13) -> 0 | E7: =Translate!E7 -> Checks | J7: =FiscalModel!E1186 -> Check: FiscalModel | K7: =FiscalModel!F1186 -> 0 | L7: =FiscalModel!G1186 -> Check | N7: =FiscalModel!E7 -> Check: Translation of options | O7: =FiscalModel!F7 -> 0 | P7: =FiscalModel!G7 -> Check
C8: =Track!G$1 -> Track changes | D8: =Track!F$1 -> 0 | E8: =Translate!E8 -> Changes | J8: =Analysis!E329 -> Check: Analysis | K8: =Analysis!F329 -> 0 | L8: =Analysis!G329 -> Check | N8: =Translate!E$806 -> bottow row
J9: =Charts!E153 -> Check: Charts | K9: =Charts!F153 -> 0 | L9: =Charts!G153 -> Check
J10: =ProjectCashflows!E$291 -> Check: ProjectCashflows | K10: =ProjectCashflows!F$291 -> 0 | L10: =ProjectCashflows!G$291 -> Check
J11: ='800MMbbl_A'!E$81 -> Check: 800MMbbl_A | K11: ='800MMbbl_A'!F$81 -> 0 | L11: ='800MMbbl_A'!G$81 -> Check
J12: ='800MMbbl_B'!E$81 -> Check: 800MMbbl_B | K12: ='800MMbbl_B'!F$81 -> 0 | L12: ='800MMbbl_B'!G$81 -> Check
J13: =Translate!E$806 -> bottow row
B15: =Translate!E$803 -> This model is accompanied by an IMF Technical Note and Manual, which should also be read before using the model.
A17: =Translate!E$802 -> USER GUIDE
C18: =Translate!E$833 -> Model structure | D18: =Translate!E$834 -> The model applies user-configured fiscal regimes to user-configured oil project examples. This simplified model is currently configured only to handle oil projects but could readily be refined to include gas. The model structure is set out in the MODELMAP sheet.
C19: =Translate!E$7 -> Checks | D19: =Translate!E$835 -> The model has a number of checks to test its internal consistency. These checks will remain green. If the master check cell is red, there is a problem in the model. Either an error needs to be corrected, or the check itself refined. In either case, red checks must be addressed.
C20: =Translate!E$925 -> Change model language | D20: =Translate!E$926 -> Select language on DASHBOARD
D21: =Translate!E$924 -> All checks related to the translation of options need to be green before using the model. After changing the language of the model, all drop-down options need to be re-selected for the model to function properly. Please click on each check to verify that the correct options are selected. All checks should be green.
C22: =Translate!E$836 -> FAST modeling standard | D22: =Translate!E$837 -> This model has been structured broadly in line with the FAST modeling standard (www.fast-standard.org/). Color coding: is set out in the KEY sheet cells. The user should only need to change cells with yellow background. See KEY sheet
B23: =Translate!E$33 -> Inputs
C24: =Translate!E$838 -> Fiscal regime assumptions | D24: =Translate!E$839 -> Fiscal regime inputs, including tax parameters and rates, are entered in the yellow cells in INPUTS sheet. Either amend an existing set of parameters or use a blank column to create a new regime. Give the regime a name, as this becomes the label used to select the regime from the DASHBOARD.
C25: =Translate!E$840 -> Financing and economic assumptions | D25: =Translate!E$841 -> Debt financing can have a significant impact on government revenues. Financing inputs are included in each fiscal regime, making it straight-forward to compare the incremental effect of financing by having the duplicate fiscal regimes with and without financing.
D26: =Translate!E$842 -> LIBOR real terms interest rates and inflation rates are entered in the INPUT sheet. Proportion of costs financed, interest rate and repayment period are included in fiscal regime parameters.
D27: =Translate!E$843 -> The model is currently set up assuming joint financing for the International Oil Company (IOC) and State-Owned Contractor (SOC), as if the debt finance was provided in the first instance by the IOC parent company. Results are presented for the IOC and SOC equity, plus the lender, plus the aggregate of the IOC equity plus lender. The latter is the parent company perspective and is used in the model as the primary investor evaluation metric for breakeven price analysis.
C28: =Translate!E$726 -> Project data | D28: =Translate!E$844 -> Projects are defined in separate project sheets. New projects can be created simply by (1) copying an existing project sheet (2) renaming the sheet tab (3) modifying production and cost profiles; then (4) add the new project sheet tab name to the project list in the INPUT sheet. This last step makes the new project available for selection using the parameter on the DASHBOARD
D29: =Translate!E$845 -> In each project example:
E30: =Translate!E$846 -> 1. Annual costs are entered in constant terms of the model start year.
E31: =Translate!E$847 -> 2. Oil production is entered as a daily rate of production.
E32: =Translate!E$848 -> 3. Costs are broken down into Exploration; Development; Sustaining capital; Operating costs and Decommissioning, to enable different fiscal treatment for each. For example, in the petroleum model, exploration costs are expensed for income tax while development costs are depreciated.
B33: =Translate!E$849 -> Workings/calculations
D34: =Translate!E$850 -> The logic flow in the model is as set out in the MODELMAP:
D35: =Translate!E$851 -> 1. Select project example
D36: =Translate!E$852 -> 2. Select applicable fiscal regime
D37: =Translate!E$853 -> 3. Set oil price
D38: =Translate!E$854 -> 4. The PROJECTCASHFLOWS sheet imports project data from the selected project example sheet
D39: =Translate!E$855 -> 5. Most calculations are done in the FISCALMODEL sheet
E40: =Translate!E$856 -> a. Import project data
E41: =Translate!E$857 -> b. Build real terms project cashflows (before fiscal regime)
E42: =Translate!E$858 -> c. Add inflation to revenues and costs (Annual Inflation is entered in INPUTS)
E43: =Translate!E$859 -> d. Decommissioning fund calculations. Assuming an annual annuity cash contribution to a fund which earns interest
E44: =Translate!E$860 -> e. Royalty: simple ad-valorem royalty
E45: =Translate!E$861 -> f. Bonus: production bonus
E46: =Translate!E$862 -> g. Debt financing, jointly taken out by IOC and SOC as described above
E47: =Translate!E$863 -> h. Production Sharing cost recovery
E48: =Translate!E$864 -> i. Production sharing profit sharing under Daily Rate of Production (DROP) method
E49: =Translate!E$865 -> j. Production sharing under R-Factor method
E50: =Translate!E$866 -> k. Profit oil sharing using method determined for the selected fiscal regime
E51: =Translate!E$867 -> l. IOC income tax depreciation
E52: =Translate!E$868 -> m. IOC income tax calculation
E53: =Translate!E$869 -> n. IOC Resource Rent Tax
E54: =Translate!E$870 -> o. IOC cashflows and dividends
E55: =Translate!E$871 -> p. SOC cashflows. Note it is assumed the SOC is not subject to income tax and that 100 percent of SOC are included in government revenues. In practice this may not be the case.
E56: =Translate!E$872 -> q. Government revenues summarized
E57: =Translate!E$873 -> r. Overall reconciliation: Project cashflow = sum of (IOC + SOC + Government + Lender)
D58: =Translate!E$874 -> 6. The ANALYSIS sheet compiles results from the model and derives outcomes for each participant on a (1) Full-cycle basis (from the start of exploration) and (2) from the Final Investment Decision (in practice when development costs are first incurred). Comprehensive IRR and NPNV calculations are undertaken for each project participant from both perspectives.
B59: =Translate!E$23 -> Dashboard
D60: =Translate!E$875 -> The DASHBOARD is where the user will spend most time driving the model.
D61: =Translate!E$876 -> 1. Select fiscal regime: drop-down list on top left
E62: =Translate!E$877 -> a. Fiscal regime parameters are entered in INPUTS
D63: =Translate!E$878 -> 2. Select project: drop-down list on top left
E64: =Translate!E$879 -> a. Project data is entered in individual project example sheets
D65: =Translate!E$880 -> 3. Change oil price: entered top left
C66: =Translate!E$881 -> Dashboard results
D67: =Translate!E$882 -> 1. Participant cashflows (Table top-centre)
E68: =Translate!E$883 -> a. IRR; undiscounted and NPV cashflows for (1) Project; (2) IOC; (3) Lender; IOC + Lender (parent company perspective assuming parent provides the debt financing; (4) Government excluding state participation; (5) SOC (pre-tax net cashflows)
E69: =Translate!E$884 -> b. Average Effective Tax Rates and Government Share of Project Benefits (see technical note and manual)
D70: =Translate!E$885 -> 2. Project cashflows (Table top-right). Breakdown of revenues and costs on undiscounted real dollars and US$ / Bbl.
D71: =Translate!E$886 -> 3. Government revenues. Table Centre-right. Summary of government revenues by category.
D72: =Translate!E$887 -> 4. Project statistics: (Table and chart Lower-Left)
D73: =Translate!E$888 -> 5. Production profile and unit operating costs (Chart lower-right)
D74: =Translate!E$889 -> 6. Government revenue profile: Chart in centre. Annual revenues by category, plus pie chart showing breakdown over project life.
B75: =Translate!E$614 -> Dashboard analytical routines
C76: =Translate!E$615 -> Results from selected fiscal regimes
D77: =Translate!E$890 -> 1. Compares key results for regimes selected by user. User chooses regimes to compare from drop-down lists in yellow cells at the top of the table. Then press F9 to update.
D78: =Translate!E$891 -> 2. If cells are left blank results are zero or #NA, enabling only two regimes to be compared side by side
D79: =Translate!E$892 -> 3. Press F9 to ensure table updates
C80: =Translate!E$616 -> Government revenue profiles under alternative regimes
D81: =Translate!E$893 -> 1. Compares annual revenue profile for regimes selected by user. Select regimes using drop-down list at left of the table
D82: =Translate!E$894 -> 2. Press F9 to ensure table updates
C83: =Translate!E$617 -> Government share of profit oil
D84: =Translate!E$895 -> 1. Compares profit oil shares for selected regimes. This is useful for understanding differences in results between regimes using different profit sharing mechanisms or parameters.
D85: =Translate!E$894 -> 2. Press F9 to ensure table updates
C86: =Translate!E$618 -> Progressivity analysis across a range of oil prices
D87: =Translate!E$896 -> 1. Sensitivity analysis showing results for user-selected metric across a user-defined range of oil prices
D88: =Translate!E$897 -> 2. Select metric from drop-down list. Either AETR or Share of Project Benefits, undiscounted or NPV.
D89: =Translate!E$898 -> 3. Enter start oil price and increment to create range for analysis.
D90: =Translate!E$899 -> 4. Press F9 to ensure table updates
C91: =Translate!E$619 -> Breakeven oil price and marginal effective tax rate
D92: =Translate!E$900 -> 1. Determines the oil price necessary under each regime to achieve a user-specified after-tax IRR
D93: =Translate!E$901 -> 2. Pressing the button marked “breakeven” initiates a macro that determines the breakeven price for each selected regime using Excel’s GOAL-SEEK mechanism.
D94: =Translate!E$902 -> 3. METR is the proportion of pre-tax IRR taken by the fiscal regime, at the breakeven point, as described in the FAD Technical Note
C95: =Dashboard!A$189 -> Net present value table: full-cycle, real
D96: =Translate!E$903 -> 1. Sharing of project post-tax net present value and average effective tax rate between government, investors, and SOC at different discount rates.
D97: =Translate!E$894 -> 2. Press F9 to ensure table updates
C98: =Translate!E$627 -> Expected monetary value
D99: =Translate!E$904 -> 1. Enter minimum exploration spend and chance of success
D100: =Translate!E$905 -> 2. EMV calculated based on NPV of success case, chance of success and minimum exploration cost

Sheet ModelMap
A1: =RIGHT( CELL("filename",$A$1), LEN( CELL("filename",$A$1)) - SEARCH("]", CELL("filename",$A$1))) -> ModelMap | E1: =ReadMe!D$7 -> 0 | F1: =ReadMe!E$7 -> Checks
C3: =Terms!A1 -> Terms | E3: =Dashboard -> Dashboard | G3: =Dashboard!A58 -> Dashboard analytical routines | I3: =FiscalModel!A1 -> FiscalModel | K3: =ProjectCashflows!A1 -> ProjectCashflows | M3: =Translate!E$799 -> Project examples
G4: =Dashboard!A60 -> Results from selected fiscal regimes | I4: =FiscalModel!A4 -> Fiscal regime parameters | K4: =ProjectCashflows!A4 -> Data for selected project | M4: ='800MMbbl_A'!A1 -> 800MMbbl_A
C5: =ReadMe!A1 -> ReadMe | G5: =Dashboard!A93 -> Government revenue profiles under alternative regimes | I5: =FiscalModel!A97 -> Decommissioning fund | K5: =ProjectCashflows!A29 -> Model timeline | M5: ='800MMbbl_B'!A1 -> 800MMbbl_B
G6: =Dashboard!A118 -> Government share of profit oil | I6: =FiscalModel!A159 -> Bonus | K6: =ProjectCashflows!A37 -> Project data with sensitivity factors applied | M6: ='200MMbbl'!A$1 -> 200MMbbl
C7: =$A$1 -> ModelMap | G7: =Dashboard!A143 -> Progressivity analysis across a range of oil prices | I7: =FiscalModel!A174 -> Royalty | K7: =ProjectCashflows!A59 -> Project cashflows: real
G8: =Dashboard!A167 -> Breakeven oil price and marginal effective tax rate | I8: =FiscalModel!A225 -> Carbon tax | K8: =ProjectCashflows!A$88 -> Economic Limit Test (ELT)
C9: =Key!A1 -> Key | G9: =Dashboard!A$189 -> Net present value table: full-cycle, real | I9: =FiscalModel!A301 -> Cashflows after decommissioning, royalty, carbon tax and bonus | K9: =ProjectCashflows!A$125 -> Project cashflows: real after ELT
G10: =Dashboard!A$212 -> Expected monetary value (EMV) | I10: =FiscalModel!A319 -> Debt financing (Assumed joint financing by IOC and SOC) | K10: =ProjectCashflows!A169 -> Flags
C11: =Translate!A1 -> Translate | I11: =FiscalModel!A455 -> Production sharing: JV cost recovery | K11: =ProjectCashflows!A195 -> Inflation indices
G12: =Inputs!A1 -> Inputs | I12: =FiscalModel!A547 -> Production sharing: Daily rate of production profit oil sharing | K12: =ProjectCashflows!A214 -> Project cashflows: nominal
C13: =Track!A1 -> Track | G13: =Inputs!A5 -> Model timeline | I13: =FiscalModel!A583 -> Production sharing: R-factor profit oil sharing | K13: =ProjectCashflows!A269 -> GHG emissions
G14: =Inputs!A9 -> Project selection and sensitivities | I14: =FiscalModel!A630 -> Production sharing: Apply selected profit oil sharing method | K14: =ProjectCashflows!A286 -> ProjectCashflows: Sheet checks
G15: =Inputs!A43 -> Economic assumptions | I15: =FiscalModel!A$673 -> PSC reconciliation
G16: =Inputs!A71 -> Model name and version | I16: =FiscalModel!A689 -> Summary revenues | K16: =Analysis!A1 -> Analysis
G17: =Inputs!A77 -> Technical parameters | I17: =FiscalModel!A712 -> JV sharing of project costs | K17: =Analysis!A15 -> Analysis: full-cycle, nominal
I18: =FiscalModel!A755 -> IOC income tax depreciation | K18: =Analysis!A78 -> Analysis: full-cycle, real
I19: =FiscalModel!A846 -> IOC corporate income tax | K19: =Analysis!A214 -> Analysis: FID forward, real
I20: =FiscalModel!A886 -> Resource rent tax | K20: =Analysis!A315 -> Analysis: Sheet checks
I21: =FiscalModel!A1001 -> IOC cashflows and dividends
I22: =FiscalModel!A$1024 -> IOC economic limit | K22: =Charts!A1 -> Charts
I23: =FiscalModel!A1038 -> SOC cashflows | K23: =Charts!A4 -> Government revenues
I24: =FiscalModel!A1100 -> Government revenues | K24: =Charts!A74 -> Project revenues and costs
I25: =FiscalModel!A1149 -> Cashflow reconilication | K25: =Charts!A115 -> Production rate versus unit operating costs
I26: =FiscalModel!A1164 -> FiscalModel: Sheet checks | K26: =Charts!A149 -> Charts: Sheet checks
B30: =Translate!E$807 -> To: | G30: =Translate!E$808 -> Go to sheet:
B31: =Translate!E$9 -> Enter fiscal regime assumptions | G31: =Inputs!A1 -> Inputs
B32: =Translate!E$10 -> Enter project data | G32: ='800MMbbl_A'!A$1 -> 800MMbbl_A
G33: ='800MMbbl_B'!A$1 -> 800MMbbl_B
G34: ='200MMbbl'!A$1 -> 200MMbbl
B35: =Translate!E$11 -> Select fiscal regime | G35: =Dashboard!A$1 -> Dashboard
B36: =Translate!E$12 -> Select project | G36: =Dashboard!A$1 -> Dashboard
B37: =Translate!E$13 -> Change oil price | G37: =Dashboard!A$1 -> Dashboard
B38: =Translate!E$14 -> Review results | G38: =Dashboard!A$1 -> Dashboard
B39: =Translate!E$15 -> Review detailed results | G39: =Analysis!A1 -> Analysis
B40: =Translate!E$16 -> Analytical routines | G40: =Dashboard!A58 -> Dashboard analytical routines

Sheet Key
A1: =RIGHT( CELL("filename",$A$1), LEN( CELL("filename",$A$1)) - SEARCH("]", CELL("filename",$A$1))) -> Key
A8: =RIGHT( CELL("filename",$A$1), LEN( CELL("filename",$A$1)) - SEARCH("]", CELL("filename",$A$1))) -> Key
B9: =Translate!E19 -> Sheet tabs
D10: =Translate!$E$23 -> Dashboard | H10: =Translate!$E$61 -> White
D12: =Translate!$E$24 -> Input sheets | H12: =Translate!$E$62 -> Light yellow
D14: =Translate!$E$25 -> Calculation sheets | H14: =Translate!$E$63 -> Transparent/light gray
D16: =Translate!$E$26 -> Key output sheets | H16: =Translate!$E$64 -> Pale blue
D18: =Translate!$E$27 -> Documentation sheets | H18: =Translate!$E$65 -> Dark gray
D20: =Translate!$E$28 -> Quality control sheets | H20: =Translate!$E$66 -> Turquoise
B22: =Translate!E20 -> Font colour only
D23: =Translate!$E$29 -> Imported from another sheet | H23: =Translate!$E$67 -> Blue font
D24: =Translate!$E$30 -> Exported to another sheet (except from Input sheets) | H24: =Translate!$E$68 -> Red font
D25: =Translate!$E$31 -> Within sheet link or calculation | H25: =Translate!$E$69 -> Black font
D26: =Translate!$E$32 -> Calling fiscal parameter from fiscal regime inputs | H26: =Translate!$E$70 -> Green font
B28: =Translate!E21 -> Font + shade combinations
D29: =Translate!$E$33 -> Inputs | H29: =Translate!$E$71 -> Black font + Light Yellow shade
D31: =Translate!$E$34 -> Calculations | H31: =Translate!$E$72 -> Transparent
D33: =Translate!$E$35 -> Blocks of data linked by arrays OR Indirect formula | H33: =Translate!$E$73 -> Blue font and blue shade
D35: =Translate!$E$36 -> Within-worksheet counter-flow | H35: =Translate!$E$74 -> Black font + light gray shade on entire row
D37: =Translate!$E$37 -> Empty cells being deliberately referenced | H37: =Translate!$E$75 -> Empty cell with light gray shade
D39: =Translate!$E$38 -> Section separator | H39: =Translate!$E$76 -> White font + pale blue shade on entire row
B41: =Translate!E22 -> Error checks & alerts
D42: =Translate!$E$39 -> OK | H42: =Translate!$E$77 -> Green shade
D44: =Translate!$E$40 -> Error | H44: =Translate!$E$78 -> Red shade
D46: =Translate!$E$41 -> Alert | H46: =Translate!$E$79 -> Gold shade
A48: =Translate!E17 -> Abbreviations
D49: =Translate!$E$42 -> Average effective tax rate | H49: =Translate!$E$120 -> AETR
D50: =Translate!$E$43 -> Barrel | H50: =Translate!$E$80 -> bbl
D51: =Translate!$E$44 -> Barrels of oil equivalent | H51: =Translate!$E$81 -> BOE
D52: =Translate!E$335 -> Beginning | H52: =Translate!E$334 -> BEG
D53: =Translate!$E$45 -> Carbon dioxide equivalent | H53: =Translate!$E$82 -> CO2 eq
D54: =Translate!E$161 -> Corporate income tax | H54: =Translate!E$732 -> CIT
D55: =Translate!E$212 -> Daily rate of production | H55: =Translate!E$730 -> DROP
D56: =Translate!$E$46 -> Economic limit | H56: =Translate!$E$83 -> EL
D57: =Translate!$E$47 -> Economic limit test | H57: =Translate!$E$84 -> ELT
D58: =Translate!E$627 -> Expected monetary value | H58: =Translate!E$628 -> EMV
D59: =Translate!$E$48 -> Final investment decision (start of development) | H59: =Translate!$E$85 -> FID
D60: =Translate!$E$49 -> Final investment decision forward | H60: =Inputs!F$90 -> FID forward
D61: =Translate!E$735 -> Greenhouse gas | H61: =Translate!E$734 -> GHG
D62: =Translate!$E$50 -> Grams | H62: =Translate!$E$86 -> g
D63: =Translate!$E$51 -> Internal rate of return | H63: =Translate!E$624 -> IRR
D64: =Translate!E$736 -> International oil company | H64: =Translate!E$113 -> IOC
D65: =Translate!E$323 -> Joint Venture | H65: =Translate!E$324 -> JV
D66: =Translate!$E$52 -> Megajoules | H66: =Translate!$E$87 -> MJ
D67: =Translate!$E$53 -> Millions of barrels | H67: =Translate!$E$88 -> Mn Bbl
D68: =Translate!$E$54 -> Million | H68: =Translate!$E$89 -> mn
D69: =Translate!$E$55 -> Net present value | H69: =Translate!E$653 -> NPV
D70: =Translate!$E$56 -> Percent per year | H70: =Translate!E$408 -> % p.a.
D71: =Translate!E$281 -> Production Sharing Contract regime | H71: =Translate!E$733 -> PSC
D72: =Translate!E$166 -> Resource rent tax | H72: =Translate!E$731 -> RRT
D73: =Translate!E$174 -> State-owned contractor | H73: =Translate!E$539 -> SOC
D74: =Translate!E$280 -> Tax & royalty regime | H74: =Translate!E$542 -> T&R
D75: =Translate!$E$57 -> Thousands of barrels per day | H75: =Translate!E$611 -> KBOPD
D76: =Translate!$E$58 -> Tonnes | H76: =Translate!$E$90 -> t
D77: =Translate!$E$91 -> United States Dollars | H77: =Translate!$E$60 -> US$
D78: =Translate!E$186 -> Value added tax | H78: =Translate!E$729 -> VAT
A81: =Translate!E18 -> Name ranges used in the model
D82: Breakeven1 | E82: =Dashboard!$U$176
D83: BreakevenMacroDifference | E83: =Dashboard!$T$181
D84: BreakevenRegimeCount | E84: =Dashboard!$S$175
D85: BreakevenResults | E85: =Dashboard!$T$177:$T$184
D86: BreakevenResultsTable | E86: =Dashboard!$U$177:$Y$184
D87: CHK_TOL | E87: =Inputs!$F$82
D88: Dashboard | E88: =Dashboard!$A$1
D89: OilPrice | E89: =Dashboard!$C$9
D90: RegimeSelected | E90: =Dashboard!$C$6

Sheet Track
A1: =RIGHT( CELL("filename",$A$1), LEN( CELL("filename",$A$1)) - SEARCH("]", CELL("filename",$A$1))) -> Track | F1: =SUM(I5:I107) -> 0 | G1: =Translate!E$757 -> Track changes
E2: Baseline | F2: ="<= " & Translate!E$766 -> <= Compare live results to
I4: =MATCH(E2, L4:N4, 0) -> 2 | J4: =Translate!E$400 -> Difference | M4: Baseline
E5: =Translate!E$792 -> Top of track results
A7: =Translate!$E$761 -> Dashboard parameters and results
B9: =Translate!$E$765 -> Dashboard parameters | P9: =Translate!E914 -> Purpose of this sheet is to save a set of baseline results so that the model can be confirmed to be / brought back to baseline, or changes in results over time can be documented. Process for creating a new saved case:
E10: =Dashboard!B$6 -> Fiscal regime selected | F10: =Dashboard!C$6 -> Royalty + CIT | G10: =Dashboard!D$6 -> Option | I10: =IF(ABS(J10) > CHK_TOL, 1, 0) -> 0 | J10: =IF(F10=INDEX(L10:M10, $I$4), 0, 1) -> 0 | M10: Royalty + CIT
E11: =Dashboard!B$7 -> Selected project | F11: =Dashboard!C$7 -> 800MMbbl_A | G11: =Dashboard!D$7 -> Option | I11: =IF(ABS(J11) > CHK_TOL, 1, 0) -> 0 | J11: =IF(F11=INDEX(L11:M11, $I$4), 0, 1) -> 0 | M11: 800MMbbl_A
E12: =Dashboard!B$9 -> Oil price (constant real terms) | F12: =Dashboard!C$9 -> 55 | G12: =Dashboard!D$9 -> US$ 2021 / bbl | I12: 0 | J12: =IF(OR(ISTEXT(F12), ISTEXT(INDEX(L12:M12, $I$4))), 0, F12 - INDEX(L12:M12, $I$4)) -> 0 | M12: 55
E13: =Dashboard!B$11 -> Price sensitivity | F13: =Dashboard!C$11 -> 1 | G13: =Dashboard!D$11 -> factor | I13: =IF(ABS(J13) > CHK_TOL, 1, 0) -> 0 | J13: 0 | M13: 1 | P13: =Translate!E915 -> 1. Select column M
E14: =Dashboard!B$12 -> Production sensitivity | F14: =Dashboard!C$12 -> 1 | G14: =Dashboard!D$12 -> factor | I14: 0 | J14: 0 | M14: 1 | P14: =Translate!E916 -> 2. Copy column M and immediately Right click insert copied cells. This duplicates the existing saved results set
E15: =Dashboard!B$13 -> Exploration cost sensitivity | F15: =Dashboard!C$13 -> 1 | G15: =Dashboard!D$13 -> factor | I15: 0 | J15: 0 | M15: 1 | P15: =Translate!E917 -> 3. Now copy the live results from column F between Row 5 and 109 (i.e. each gray row)
E16: =Dashboard!B$14 -> Capex sensitivity (Dev; Replace; Decomm.) | F16: =Dashboard!C$14 -> 1 | G16: =Dashboard!D$14 -> factor | I16: 0 | J16: 0 | M16: 1 | P16: =Translate!E918 -> 4. Paste as values over the newly created duplicate saved results
E17: =Dashboard!B$15 -> Operating cost sensitivity | F17: =Dashboard!C$15 -> 1 | G17: =Dashboard!D$15 -> factor | I17: 0 | J17: 0 | M17: 1 | P17: =Translate!E919 -> 5. Rename the new saved results case in row 4
P18: =Translate!E920 -> 6. Track sheet will show differences between live results and saved case selected at E2
B19: =Analysis!$C$129 -> Project participants: full-cycle, real | P19: =Translate!E921 -> 7. Additional results and/or parameters can be added to results set. For example, fiscal parameters for baseline mission country regime could be captured to ensure no inadvertent changes
E20: =Dashboard!F$6 -> Project | F20: =Dashboard!I$6 -> 29282.02386 | G20: =Dashboard!$I$3 -> US$ mn 2021 | I20: =IF(ABS(J20) > CHK_TOL, 1, 0) -> 0 | J20: =IF(OR(ISTEXT(F20), ISTEXT(INDEX(L20:M20, $I$4))), 0, F20 - INDEX(L20:M20, $I$4)) -> 0 | M20: 29282.02386
E21: =Dashboard!F$7 -> IOC | F21: =Dashboard!I$7 -> 8704.133029 | G21: =Dashboard!$I$3 -> US$ mn 2021 | I21: =IF(ABS(J21) > CHK_TOL, 1, 0) -> 0 | J21: 0 | M21: 8704.133029
E22: =Dashboard!F$8 -> Lender | F22: =Dashboard!I$8 -> 523.4019381 | G22: =Dashboard!$I$3 -> US$ mn 2021 | I22: 0 | J22: 0 | M22: 523.4019381
E23: =Dashboard!F$9 -> IOC + Lender | F23: =Dashboard!I$9 -> 9227.534967 | G23: =Dashboard!$I$3 -> US$ mn 2021 | I23: 0 | J23: 0 | M23: 9227.534967
E24: =Dashboard!F$10 -> Government excl. participation | F24: =Dashboard!I$10 -> 16056.40423 | G24: =Dashboard!$I$3 -> US$ mn 2021 | I24: 0 | J24: 0 | M24: 16056.40423
E25: =Dashboard!F$11 -> State participation | F25: =Dashboard!I$11 -> 3982.984663 | G25: =Dashboard!$I$3 -> US$ mn 2021 | I25: 0 | J25: 0 | M25: 3982.984663
E26: =Dashboard!F$12 -> Government including participation | F26: =Dashboard!I$12 -> 20039.3889 | G26: =Dashboard!$I$3 -> US$ mn 2021 | I26: 0 | J26: 0 | M26: 20039.3889
E27: =Dashboard!F$15 -> Net decommissioning fund | F27: =Dashboard!I$15 -> -15.1 | G27: =Dashboard!$I$3 -> US$ mn 2021 | I27: 0 | J27: 0 | M27: -15.1
E28: =Dashboard!F$13 -> Government share (AETR) | F28: =Dashboard!I$13 -> 0.684358055 | G28: =Dashboard!$I$3 -> US$ mn 2021 | I28: 0 | J28: 0 | M28: 0.684358055
E29: =Dashboard!F$14 -> Government share of project benefits | F29: =Dashboard!I$14 -> 0.5171185115 | G29: =Dashboard!$I$3 -> US$ mn 2021 | I29: 0 | J29: 0 | M29: 0.5171185115
B31: =Analysis!B$180 -> Project participants: full-cycle, real, NPV8
E32: =Dashboard!F$6 -> Project | F32: =Dashboard!K$6 -> 9993.779476 | G32: =Dashboard!$K$3 -> US$ mn NPV 8.0 real | I32: =IF(ABS(J32) > CHK_TOL, 1, 0) -> 0 | J32: =IF(OR(ISTEXT(F32), ISTEXT(INDEX(L32:M32, $I$4))), 0, F32 - INDEX(L32:M32, $I$4)) -> 0 | M32: 9993.779476
E33: =Dashboard!F$7 -> IOC | F33: =Dashboard!K$7 -> 2826.919873 | G33: =Dashboard!$K$3 -> US$ mn NPV 8.0 real | I33: =IF(ABS(J33) > CHK_TOL, 1, 0) -> 0 | J33: 0 | M33: 2826.919873
E34: =Dashboard!F$8 -> Lender | F34: =Dashboard!K$8 -> -466.1424144 | G34: =Dashboard!$K$3 -> US$ mn NPV 8.0 real | I34: 0 | J34: 0 | M34: -466.1424144
E35: =Dashboard!F$9 -> IOC + Lender | F35: =Dashboard!K$9 -> 2360.777459 | G35: =Dashboard!$K$3 -> US$ mn NPV 8.0 real | I35: 0 | J35: 0 | M35: 2360.777459
E36: =Dashboard!F$10 -> Government excl. participation | F36: =Dashboard!K$10 -> 6243.032169 | G36: =Dashboard!$K$3 -> US$ mn NPV 8.0 real | I36: 0 | J36: 0 | M36: 6243.032169
E37: =Dashboard!F$11 -> State participation | F37: =Dashboard!K$11 -> 1287.74476 | G37: =Dashboard!$K$3 -> US$ mn NPV 8.0 real | I37: 0 | J37: 0 | M37: 1287.74476
E38: =Dashboard!F$12 -> Government including participation | F38: =Dashboard!K$12 -> 7530.776929 | G38: =Dashboard!$K$3 -> US$ mn NPV 8.0 real | I38: 0 | J38: 0 | M38: 7530.776929
E39: =Dashboard!F$15 -> Net decommissioning fund | F39: =Dashboard!K$15 -> -102.2250874 | G39: =Dashboard!$K$3 -> US$ mn NPV 8.0 real | I39: 0 | J39: 0 | M39: -102.2250874
E40: =Dashboard!F$13 -> Government share (AETR) | F40: =Dashboard!K$13 -> 0.7535464383 | G40: =Dashboard!$K$3 -> US$ mn NPV 8.0 real | I40: 0 | J40: 0 | M40: 0.7535464383
E41: =Dashboard!F$14 -> Government share of project benefits | F41: =Dashboard!K$14 -> 0.4725224279 | G41: =Dashboard!$K$3 -> US$ mn NPV 8.0 real | I41: 0 | J41: 0 | M41: 0.4725224279
B43: =Translate!$E$701 -> Project cashflows
E44: =Dashboard!N$6 -> Oil revenues gross, after ELT | F44: =Dashboard!O$6 -> 44103.02386 | G44: =Dashboard!$O$3 -> US$ mn 2021 | I44: =IF(ABS(J44) > CHK_TOL, 1, 0) -> 0 | J44: =IF(OR(ISTEXT(F44), ISTEXT(INDEX(L44:M44, $I$4))), 0, F44 - INDEX(L44:M44, $I$4)) -> 0 | M44: 44103.02386
E45: =Dashboard!N$7 -> Transport costs post-fiscal point, after ELT | F45: =Dashboard!O$7 -> 0 | G45: =Dashboard!$O$3 -> US$ mn 2021 | I45: =IF(ABS(J45) > CHK_TOL, 1, 0) -> 0 | J45: 0 | M45: 0
E46: =Dashboard!N$8 -> Net revenues after ELT | F46: =Dashboard!O$8 -> 44103.02386 | G46: =Dashboard!$O$3 -> US$ mn 2021 | I46: 0 | J46: 0 | M46: 44103.02386
E47: =Dashboard!N$10 -> Exploration costs, after ELT | F47: =Dashboard!O$10 -> 420 | G47: =Dashboard!$O$3 -> US$ mn 2021 | I47: 0 | J47: 0 | M47: 420
E48: =Dashboard!N$11 -> Development costs, after ELT | F48: =Dashboard!O$11 -> 9050 | G48: =Dashboard!$O$3 -> US$ mn 2021 | I48: 0 | J48: 0 | M48: 9050
E49: =Dashboard!N$12 -> Replacement capital costs, after ELT | F49: =Dashboard!O$12 -> 0 | G49: =Dashboard!$O$3 -> US$ mn 2021 | I49: 0 | J49: 0 | M49: 0
E50: =Dashboard!N$13 -> Operating costs, after ELT | F50: =Dashboard!O$13 -> 4601 | G50: =Dashboard!$O$3 -> US$ mn 2021 | I50: 0 | J50: 0 | M50: 4601
E51: =Dashboard!N$14 -> Decommissioning costs, after ELT | F51: =Dashboard!O$14 -> 750 | G51: =Dashboard!$O$3 -> US$ mn 2021 | I51: 0 | J51: 0 | M51: 750
E52: =Dashboard!N$15 -> Project costs | F52: =Dashboard!O$15 -> 14821 | G52: =Dashboard!$O$3 -> US$ mn 2021 | I52: 0 | J52: 0 | M52: 14821
E54: =Dashboard!N$17 -> Cashflow before decommissioning fund | F54: =Dashboard!O$17 -> 29282.02386 | G54: =Dashboard!$O$3 -> US$ mn 2021 | I54: =IF(ABS(J54) > CHK_TOL, 1, 0) -> 0 | J54: =IF(OR(ISTEXT(F54), ISTEXT(INDEX(L54:M54, $I$4))), 0, F54 - INDEX(L54:M54, $I$4)) -> 0 | M54: 29282.02386
A56: =Translate!$E$762 -> Primary fiscal regime results
E58: =Dashboard!B$6 -> Fiscal regime selected | F58: =Dashboard!C$6 -> Royalty + CIT | G58: =Dashboard!D$6 -> Option | I58: =IF(ABS(J58) > CHK_TOL, 1, 0) -> 0 | J58: =IF(F58=INDEX(L58:M58, $I$4), 0, 1) -> 0 | M58: Royalty + CIT
E60: =Dashboard!N$20 -> Bonuses | F60: =Dashboard!O$20 -> 56.1922713 | G60: =Dashboard!$O$19 -> US$ mn 2021 | I60: =IF(ABS(J60) > CHK_TOL, 1, 0) -> 0 | J60: =IF(OR(ISTEXT(F60), ISTEXT(INDEX(L60:M60, $I$4))), 0, F60 - INDEX(L60:M60, $I$4)) -> 0 | M60: 56.1922713
E61: =Dashboard!N$21 -> Royalty | F61: =Dashboard!O$21 -> 8820.604773 | G61: =Dashboard!$O$19 -> US$ mn 2021 | I61: =IF(ABS(J61) > CHK_TOL, 1, 0) -> 0 | J61: 0 | M61: 8820.604773
E62: =Dashboard!N$22 -> Carbon tax | F62: =Dashboard!O$22 -> 788.4739103 | G62: =Dashboard!$O$19 -> US$ mn 2021 | I62: =IF(ABS(J62) > CHK_TOL, 1, 0) -> 0 | J62: 0 | M62: 788.4739103
E63: =Dashboard!N$23 -> PSC: Government profit oil | F63: =Dashboard!O$23 -> 0 | G63: =Dashboard!$O$19 -> US$ mn 2021 | I63: 0 | J63: 0 | M63: 0
E64: =Dashboard!N$24 -> CIT paid: IOC | F64: =Dashboard!O$24 -> 5284.909906 | G64: =Dashboard!$O$19 -> US$ mn 2021 | I64: 0 | J64: 0 | M64: 5284.909906
E65: =Dashboard!N$25 -> Resource rent tax: IOC | F65: =Dashboard!O$25 -> 0 | G65: =Dashboard!$O$19 -> US$ mn 2021 | I65: 0 | J65: 0 | M65: 0
E66: =Dashboard!N$26 -> Dividend withholding tax | F66: =Dashboard!O$26 -> 1013.97806 | G66: =Dashboard!$O$19 -> US$ mn 2021 | I66: 0 | J66: 0 | M66: 1013.97806
E67: =Dashboard!N$27 -> Interest withholding tax | F67: =Dashboard!O$27 -> 92.24531381 | G67: =Dashboard!$O$19 -> US$ mn 2021 | I67: 0 | J67: 0 | M67: 92.24531381
E68: =Dashboard!N$28 -> VAT cashflow: government | F68: =Dashboard!O$28 -> 0 | G68: =Dashboard!$O$19 -> US$ mn 2021 | I68: =IF(ABS(J68) > CHK_TOL, 1, 0) -> 0 | J68: 0 | M68: 0
E69: =Dashboard!N$29 -> Government revenues excluding participation | F69: =Dashboard!O$29 -> 16056.40423 | G69: =Dashboard!$O$19 -> US$ mn 2021 | I69: 0 | J69: 0 | M69: 16056.40423
E70: =Dashboard!N$30 -> SOC net cash flow before tax, after carried interest, including share of lender cashflows | F70: =Dashboard!O$30 -> 3982.984663 | G70: =Dashboard!$O$19 -> US$ mn 2021 | I70: 0 | J70: 0 | M70: 3982.984663
E71: =Dashboard!N$31 -> Government revenues including participation | F71: =Dashboard!O$31 -> 20039.3889 | G71: =Dashboard!$O$19 -> US$ mn 2021 | I71: 0 | J71: 0 | M71: 20039.3889
E72: =Dashboard!N$32 -> Government share (AETR): undiscounted | F72: =Dashboard!O$32 -> 0.684358055 | G72: =Dashboard!$O$19 -> US$ mn 2021 | I72: 0 | J72: 0 | M72: 0.684358055
A74: =Translate!$E$615 -> Results from selected fiscal regimes
B76: =Translate!$E$398 -> Government revenues including participation
E77: =TRANSPOSE(Dashboard!U63:Y63) -> Royalty + CIT | F77: =TRANSPOSE(Dashboard!U77:Y77) -> 20039.3889 | G77: =Dashboard!$S$77 -> US$ mn 2021 | I77: =IF(ABS(J77) > CHK_TOL, 1, 0) -> 0 | J77: =IF(OR(ISTEXT(F77), ISTEXT(INDEX(L77:N77, $I$4))), 0, F77 - INDEX(L77:N77, $I$4)) -> 0 | M77: 20039.3889
E78: RRT | F78: 20575.47654 | G78: =Dashboard!$S$77 -> US$ mn 2021 | I78: 0 | J78: 0 | M78: 20575.47654
E79: Royalty + CIT, no debt | F79: 20132.79965 | G79: =Dashboard!$S$77 -> US$ mn 2021 | I79: 0 | J79: 0 | M79: 20132.79965
E80: DROP PSC | F80: 19841.45205 | G80: =Dashboard!$S$77 -> US$ mn 2021 | I80: 0 | J80: 0 | M80: 19841.45205
E81: R-factor PSC | F81: 20695.28852 | G81: =Dashboard!$S$77 -> US$ mn 2021 | I81: 0 | J81: 0 | M81: 20695.28852
I82: 0 | J82: 0
B83: =Translate!$E$120 & ": " & Inputs!F$89 & ", " & Inputs!F$93 -> AETR: full-cycle, undiscounted | I83: 0 | J83: 0
E84: =TRANSPOSE(Dashboard!U63:Y63) -> Royalty + CIT | F84: =TRANSPOSE(Dashboard!U87:Y87) -> 0.684358055 | G84: =Dashboard!$S$87 -> % US$ mn 2021 | I84: =IF(ABS(J84) > CHK_TOL, 1, 0) -> 0 | J84: 0 | M84: 0.684358055
E85: RRT | F85: 0.7026657938 | G85: =Dashboard!$S$87 -> % US$ mn 2021 | I85: =IF(ABS(J85) > CHK_TOL, 1, 0) -> 0 | J85: 0 | M85: 0.7026657938
E86: Royalty + CIT, no debt | F86: 0.6875480923 | G86: =Dashboard!$S$87 -> % US$ mn 2021 | I86: =IF(ABS(J86) > CHK_TOL, 1, 0) -> 0 | J86: 0 | M86: 0.6875480923
E87: DROP PSC | F87: 0.677598384 | G87: =Dashboard!$S$87 -> % US$ mn 2021 | I87: =IF(ABS(J87) > CHK_TOL, 1, 0) -> 0 | J87: 0 | M87: 0.677598384
E88: R-factor PSC | F88: 0.7067574502 | G88: =Dashboard!$S$87 -> % US$ mn 2021 | I88: =IF(ABS(J88) > CHK_TOL, 1, 0) -> 0 | J88: 0 | M88: 0.7067574502
A90: =Translate!E7 -> Checks
E92: =ReadMe!J$5 -> Check: Dashboard | F92: =ReadMe!K$5 -> 0 | G92: =ReadMe!L$5 -> Check | I92: =IF(ABS(J92) > CHK_TOL, 1, 0) -> 0 | J92: =IF(OR(ISTEXT(F92), ISTEXT(INDEX(L92:N92, $I$4))), 0, F92 - INDEX(L92:N92, $I$4)) -> 0 | M92: 0
E93: =ReadMe!J$6 -> Check: Inputs | F93: =ReadMe!K$6 -> 0 | G93: =ReadMe!L$6 -> Check | I93: =IF(ABS(J93) > CHK_TOL, 1, 0) -> 0 | J93: 0 | M93: 0
E94: =ReadMe!J$7 -> Check: FiscalModel | F94: =ReadMe!K$7 -> 0 | G94: =ReadMe!L$7 -> Check | I94: 0 | J94: 0 | M94: 0
E95: =ReadMe!J$8 -> Check: Analysis | F95: =ReadMe!K$8 -> 0 | G95: =ReadMe!L$8 -> Check | I95: 0 | J95: 0 | M95: 0
E96: =ReadMe!J$9 -> Check: Charts | F96: =ReadMe!K$9 -> 0 | G96: =ReadMe!L$9 -> Check | I96: 0 | J96: 0 | M96: 0
E97: =ReadMe!J$10 -> Check: ProjectCashflows | F97: =ReadMe!K$10 -> 0 | G97: =ReadMe!L$10 -> Check | I97: 0 | J97: 0 | M97: 0
E98: =ReadMe!J$11 -> Check: 800MMbbl_A | F98: =ReadMe!K$11 -> 0 | G98: =ReadMe!L$11 -> Check | I98: 0 | J98: 0 | M98: 0
E99: =ReadMe!J$12 -> Check: 800MMbbl_B | F99: =ReadMe!K$12 -> 0 | G99: =ReadMe!L$12 -> Check | I99: 0 | J99: 0 | M99: 0
A101: =Translate!$E$763 -> Model info
E103: =Translate!E$781 -> Date | F103: =TODAY() -> 2023-02-22 | M103: 2022-07-05
E104: =Translate!E$790 -> Time | F104: =NOW() -> 44979.4252 | M104: 44747.50223
E105: =Translate!E$791 -> File | F105: =MID(CELL("filename",$A$1), SEARCH("[", CELL("filename",$A$1)) + 1, SEARCH("]", CELL("filename",$A$1)) - SEARCH("[", CELL("filename",$A$1)) - 1) -> Petroleum FARI model (2022).xlsm | M105: FARI Simplified Petroleum 5b.xlsm
E107: =Translate!E$793 -> Bottom of track results
A108: =Translate!$E$764 -> Comments and version changes
E109: =Translate!E$789 -> Describe changes

Sheet Dashboard
A1: =RIGHT( CELL("filename",$A$1), LEN( CELL("filename",$A$1)) - SEARCH("]", CELL("filename",$A$1))) -> Dashboard | C1: =ReadMe!D7 -> 0 | D1: =ReadMe!E7 -> Checks | F1: =Inputs!E75 -> Simplified Petroleum FARI model: April 2022 | J1: =Track!$F$1 -> 0 | K1: =Track!G1 -> Track changes
B3: =Translate!E$98 -> Project, Fiscal Regime & Prices | F3: =Translate!E122 -> Participant cashflows | G3: =Translate!E$624 & " " & Inputs!F$91 -> IRR real | I3: =Inputs!F$52 -> US$ mn 2021 | K3: =Inputs!$F$62 -> US$ mn NPV 8.0 real | N3: =Translate!E$622 -> Project cashflows and government revenues | O3: =Analysis!$F$81 -> US$ mn 2021 | P3: =Inputs!F$56 -> US$ 2021 / bbl
G4: =Inputs!F$89 -> full-cycle | H4: =Inputs!F$90 -> FID forward | I4: =Inputs!F$89 -> full-cycle | J4: =Inputs!F$90 -> FID forward | K4: =Inputs!F$89 -> full-cycle | L4: =Inputs!F$90 -> FID forward
B5: =Translate!E$99 -> Language | C5: English | D5: =Translate!E$103 -> Option
B6: =Translate!E$100 -> Fiscal regime selected | C6: Royalty + CIT | D6: =Translate!E$103 -> Option | F6: =Translate!E112 -> Project | G6: =Analysis!F160 -> 0.3208025708 | H6: =Analysis!F260 -> 0.3914898599 | I6: =Analysis!F142 -> 29282.02386 | J6: =Analysis!F242 -> 29702.02386 | K6: =Analysis!F197 -> 9993.779476 | L6: =Analysis!F297 -> 11246.88183 | N6: =Analysis!E84 -> Oil revenues gross, after ELT | O6: =Analysis!F97 -> 44103.02386 | P6: =Analysis!F116 -> 55
B7: =Translate!E$101 -> Selected project | C7: 800MMbbl_A | D7: =Translate!E$103 -> Option | F7: =Translate!E113 -> IOC | G7: =Analysis!F161 -> 0.2657782298 | H7: =Analysis!F261 -> 0.4755504699 | I7: =IFERROR(Analysis!F147, 0) -> 8704.133029 | J7: =IFERROR( Analysis!F247, 0) -> 9134.133029 | K7: =Analysis!F202 -> 2826.919873 | L7: =Analysis!F302 -> 3517.473463 | N7: =Analysis!E85 -> Transport costs post-fiscal point, after ELT | O7: =Analysis!F98 -> 0 | P7: =Analysis!F117 -> 0
F8: =Translate!E114 -> Lender | G8: =Analysis!F162 -> 0.03030357045 | H8: =Analysis!F262 -> 0.03030357045 | I8: =IFERROR(Analysis!F148, 0) -> 523.4019381 | J8: =IFERROR( Analysis!F248, 0) -> 523.4019381 | K8: =Analysis!F203 -> -466.1424144 | L8: =Analysis!F303 -> -503.4338076 | N8: =Analysis!E86 -> Net revenues after ELT | O8: =Analysis!F99 -> 44103.02386 | P8: =Analysis!F118 -> 55
B9: =Translate!E$102 -> Oil price (constant real terms) | C9: 55 | D9: =Inputs!F$56 -> US$ 2021 / bbl | F9: =F7 & " + " & F8 -> IOC + Lender | G9: =Analysis!F163 -> 0.1725730329 | H9: =Analysis!F263 -> 0.2154625176 | I9: =IFERROR( Analysis!F149, 0) -> 9227.534967 | J9: =IFERROR( Analysis!F249, 0) -> 9657.534967 | K9: =Analysis!F204 -> 2360.777459 | L9: =Analysis!F304 -> 3014.039656
F10: =Translate!E115 -> Government excl. participation | I10: =IFERROR( Analysis!F144, 0) -> 16056.40423 | J10: =IFERROR( Analysis!F244, 0) -> 16046.40423 | K10: =Analysis!F199 -> 6243.032169 | L10: =Analysis!F299 -> 6731.674743 | N10: =Analysis!E88 -> Exploration costs, after ELT | O10: =Analysis!F101 -> 420 | P10: =Analysis!F120 -> 0.5237736095
B11: =Translate!E$104 -> Price sensitivity | C11: 1 | D11: =Translate!E$110 -> factor | F11: =Translate!E$173 -> State participation | G11: =Analysis!F164 -> 0.3092100902 | H11: =Analysis!F264 -> 0.3092100902 | I11: =IFERROR( Analysis!F145, 0) -> 3982.984663 | J11: =IFERROR(Analysis!F245, 0) -> 3982.984663 | K11: =Analysis!F200 -> 1287.74476 | L11: =Analysis!F300 -> 1390.764341 | N11: =Analysis!E89 -> Development costs, after ELT | O11: =Analysis!F102 -> 9050 | P11: =Analysis!F121 -> 11.28607421
B12: =Translate!E$105 -> Production sensitivity | C12: 1 | D12: =Translate!E$110 -> factor | F12: =Translate!E116 -> Government including participation | I12: =IFERROR( Analysis!F146, 0) -> 20039.3889 | J12: =IFERROR(Analysis!F246, 0) -> 20029.3889 | K12: =Analysis!F201 -> 7530.776929 | L12: =Analysis!F301 -> 8122.439084 | N12: =Analysis!E90 -> Replacement capital costs, after ELT | O12: =Analysis!F103 -> 0 | P12: =Analysis!F122 -> 0
B13: =Translate!E$106 -> Exploration cost sensitivity | C13: 1 | D13: =Translate!E$110 -> factor | F13: =Translate!E$118 -> Government share (AETR) | I13: =IFERROR( Analysis!F156, 0) -> 0.684358055 | J13: =IFERROR(Analysis!F256, 0) -> 0.6743442463 | K13: =Analysis!F211 -> 0.7535464383 | L13: =Analysis!F311 -> 0.7221947562 | N13: =Analysis!E91 -> Operating costs, after ELT | O13: =Analysis!F104 -> 4601 | P13: =Analysis!F123 -> 5.737815184
B14: =Translate!E$107 -> Capex sensitivity (Dev; Replace; Decomm.) | C14: 1 | D14: =Translate!E$110 -> factor | F14: =Translate!E119 -> Government share of project benefits | I14: =IFERROR( Analysis!F157, 0) -> 0.5171185115 | J14: =IFERROR( Analysis!F257, 0) -> 0.5168604604 | K14: =Analysis!F212 -> 0.4725224279 | L14: =Analysis!F312 -> 0.4718949728 | N14: =Analysis!E92 -> Decommissioning costs, after ELT | O14: =Analysis!F105 -> 750 | P14: =Analysis!F124 -> 0.935310017
B15: =Translate!E$108 -> Operating cost sensitivity | C15: 1 | D15: =Translate!E$110 -> factor | F15: =Translate!E121 -> Net decommissioning fund | I15: =IFERROR( Analysis!F143, 0) -> -15.1 | J15: =IFERROR(Analysis!F243, 0) -> -15.1 | K15: =Analysis!F198 -> -102.2250874 | L15: =Analysis!F298 -> -110.4030944 | N15: =Analysis!E93 -> Project costs | O15: =Analysis!F106 -> 14821 | P15: =Analysis!F125 -> 18.48297302
F16: =Translate!E$755 & " " & Translate!E$701 -> Check: Project cashflows | I16: =IF( ABS( I6 - I9 - I12 + I15) > CHK_TOL, 1, 0) -> 0 | J16: =IF( ABS( J6 - J9 - J12 + J15) > CHK_TOL, 1, 0) -> 0 | K16: =IF( ABS( K6 - K9 - K12 + K15) > CHK_TOL, 1, 0) -> 0 | L16: =IF( ABS( L6 - L9 - L12 + L15) > CHK_TOL, 1, 0) -> 0
B17: =Translate!E$109 -> Discount rate | C17: 0.08 | D17: ="% " & Inputs!F$91 -> % real | F17: =Translate!E$755 & " " & Translate!E$120 -> Check: AETR | I17: =IF( ABS( I12 / I6 - I13) > CHK_TOL, 1, 0) -> 0 | J17: =IF( ABS( J12 / J6 - J13) > CHK_TOL, 1, 0) -> 0 | K17: =IF( ABS( K12 / K6 - K13) > CHK_TOL, 1, 0) -> 0 | L17: =IF( ABS( L12 / L6 - L13) > CHK_TOL, 1, 0) -> 0 | N17: =Analysis!E95 -> Cashflow before decommissioning fund | O17: =Analysis!F108 -> 29282.02386 | P17: =Analysis!F127 -> 36.51702698
B19: =Translate!E$612 -> Project statistics and economic limit (EL) | N19: =Translate!E$623 -> Government revenues | O19: =Analysis!$F$81 -> US$ mn 2021 | P19: %
B20: =ProjectCashflows!E$133 -> Total: Oil production Volume after ELT | C20: =ProjectCashflows!F$133 -> 801.8731611 | D20: =ProjectCashflows!G$133 -> Mn Bbl | N20: =FiscalModel!E1120 -> Bonuses | O20: =FiscalModel!F1134 -> 56.1922713 | P20: =O20 / $O$31 -> 0.002804091062
B21: =ProjectCashflows!E183 -> Production years, after ELT | C21: =ProjectCashflows!F183 -> 27 | D21: =ProjectCashflows!G183 -> Year | N21: =FiscalModel!E1121 -> Royalty | O21: =FiscalModel!F1135 -> 8820.604773 | P21: 0.4401633612
B22: =ProjectCashflows!E$120 -> EL reached before project end | C22: =ProjectCashflows!F$120 -> 0 | D22: =ProjectCashflows!G$120 -> Year | N22: =FiscalModel!E1122 -> Carbon tax | O22: =FiscalModel!F1136 -> 788.4739103 | P22: 0.03934620533
B23: =FiscalModel!E$1036 -> IOC EL after tax reached before project EL | C23: =FiscalModel!F$1036 -> 0 | D23: =FiscalModel!G$1036 -> Year | N23: =FiscalModel!E1123 -> PSC: Government profit oil | O23: =FiscalModel!F1137 -> 0 | P23: 0
N24: =FiscalModel!E1124 -> CIT paid: IOC | O24: =FiscalModel!F1138 -> 5284.909906 | P24: 0.2637261013
N25: =FiscalModel!E1125 -> Resource rent tax: IOC | O25: =FiscalModel!F1139 -> 0 | P25: 0
N26: =FiscalModel!E1126 -> Dividend withholding tax | O26: =FiscalModel!F1140 -> 1013.97806 | P26: 0.05059925056
N27: =FiscalModel!E1127 -> Interest withholding tax | O27: =FiscalModel!F1141 -> 92.24531381 | P27: 0.004603199942
N28: =FiscalModel!E1128 -> VAT cashflow: government | O28: =FiscalModel!F1142 -> 0 | P28: 0
N29: =FiscalModel!E1129 -> Government revenues excluding participation | O29: =FiscalModel!F1143 -> 16056.40423 | P29: 0.8012422094
N30: =FiscalModel!E1130 -> SOC net cash flow before tax, after carried interest, including share of lender cashflows | O30: =FiscalModel!F1144 -> 3982.984663 | P30: 0.1987577906
N31: =FiscalModel!E1131 -> Government revenues including participation | O31: =FiscalModel!F1145 -> 20039.3889 | P31: 1
N32: =Translate!E$118 & ": " & Inputs!F$93 -> Government share (AETR): undiscounted | O32: =O31 / I6 -> 0.684358055
B48: =Translate!E$613 -> Links to analytical routines | F48: =A$1 & ": " & Translate!E$626 -> Dashboard: Sheet checks
B49: =A60 -> Results from selected fiscal regimes | K49: =Translate!E$651 -> do not delete row
B50: =A93 -> Government revenue profiles under alternative regimes | F50: =F16 -> Check: Project cashflows | K50: =IF( ABS( SUM(I16:L16) ) > 0, 1, 0) -> 0 | L50: =Translate!E$604 -> Check
B51: =A118 -> Government share of profit oil | F51: =F17 -> Check: AETR | K51: =IF( ABS( SUM(I17:L17) ) > 0, 1, 0) -> 0 | L51: =Translate!E$604 -> Check
B52: =A143 -> Progressivity analysis across a range of oil prices | F52: =Translate!E$755 & " " & Translate!E$623 -> Check: Government revenues | K52: =IF( ABS(SUM(O20:O28) + O30 - O31) >CHK_TOL, 1, 0) -> 0 | L52: =Translate!E$604 -> Check
B53: =A167 -> Breakeven oil price and marginal effective tax rate | F53: =R91 -> Check: Government revenues data table | K53: =IF( ABS(T91) > CHK_TOL, 1, 0) -> 0 | L53: =Translate!E$604 -> Check
B54: =A189 -> Net present value table: full-cycle, real | F54: =R210 -> Check: Project totals | K54: =V210 -> 0 | L54: =Translate!E$604 -> Check
B55: =A$212 -> Expected monetary value (EMV) | K55: =Translate!E$651 -> do not delete row
F56: =Translate!E$604 & ": " & A$1 -> Check: Dashboard | K56: =SUM(K49:K55) -> 0 | L56: =Translate!E$604 -> Check
A58: =Translate!E$614 -> Dashboard analytical routines
A60: =Translate!E$615 -> Results from selected fiscal regimes | F60: =Translate!E$621 -> Return to | G60: =$A$1 -> Dashboard
T62: =Translate!E$645 -> Live results | U62: =Translate!E$646 -> Select from drop down list | AA62: =V63 -> RRT | AB62: <= | AC62: =Translate!E$647 -> Difference between two selected regimes
R63: =Translate!E$95 -> Fiscal regime selection | S63: =Translate!E$103 -> Option | T63: =C6 -> Royalty + CIT | U63: =FiscalModel!K11 -> Royalty + CIT | V63: =FiscalModel!L11 -> RRT | W63: =FiscalModel!M11 -> Royalty + CIT, no debt | X63: =FiscalModel!N11 -> DROP PSC | Y63: R-factor PSC | AA63: =U63 -> Royalty + CIT
B64: =Translate!E$639 -> Chart details | R64: =Analysis!E$13 -> Effective royalty rate (calculated) | T64: =Analysis!F$13 -> 0.2176834579 | U64: 0.2176834579 | V64: 0.06768345789 | W64: 0.1676834579 | X64: 0.1344834579 | Y64: 0.1344834579 | AA64: =INDEX(U64:Y64, , MATCH(AA$62, U$63:Y$63, 0)) - INDEX(U64:Y64, , MATCH(AA$63, U$63:Y$63, 0)) -> -0.15
B65: =Translate!E$649 -> Government revenues under alternative regimes | C65: =Translate!E$640 -> Chart title | R65: =Translate!E$623 -> Government revenues | T65: -------------- | U65: -------------- | V65: -------------- | W65: -------------- | X65: -------------- | Y65: -------------- | AA65: --------------
B66: =Dashboard!$S$67 -> US$ mn 2021 | C66: =Translate!E$641 -> Vertical axis 1 | R66: =N20 -> Bonuses | S66: =$O$19 -> US$ mn 2021 | T66: =IFERROR(O20, 0) -> 56.1922713 | U66: 56.1922713 | V66: 56.1922713 | W66: 56.1922713 | X66: 56.1922713 | Y66: 56.1922713 | AA66: =INDEX(U66:Y66, , MATCH(AA$62, U$63:Y$63, 0)) - INDEX(U66:Y66, , MATCH(AA$63, U$63:Y$63, 0)) -> 0
B67: =Dashboard!$R$88 -> AETR: full-cycle, NPV8 | C67: =Translate!E$642 -> Vertical axis 2 | R67: Royalty | S67: US$ mn 2021 | T67: 8820.604773 | U67: 8820.604773 | V67: 2205.151193 | W67: 6615.453579 | X67: 3528.241909 | Y67: 3528.241909 | AA67: =INDEX(U67:Y67, , MATCH(AA$62, U$63:Y$63, 0)) - INDEX(U67:Y67, , MATCH(AA$63, U$63:Y$63, 0)) -> -6615.453579
B68: =Translate!E$648 -> Fiscal regimes | C68: =Translate!E$643 -> Horizontal axis | R68: Carbon tax | S68: US$ mn 2021 | T68: 788.4739103 | U68: 788.4739103 | V68: 788.4739103 | W68: 788.4739103 | X68: 788.4739103 | Y68: 788.4739103 | AA68: =INDEX(U68:Y68, , MATCH(AA$62, U$63:Y$63, 0)) - INDEX(U68:Y68, , MATCH(AA$63, U$63:Y$63, 0)) -> 0
B69: =Translate!E$112 & ": " & C$7 -> Project: 800MMbbl_A | C69: =Translate!E$644 -> Text box | R69: PSC: Government profit oil | S69: US$ mn 2021 | T69: 0 | U69: 0 | V69: 0 | W69: 0 | X69: 8401.912675 | Y69: 9911.695323 | AA69: =INDEX(U69:Y69, , MATCH(AA$62, U$63:Y$63, 0)) - INDEX(U69:Y69, , MATCH(AA$63, U$63:Y$63, 0)) -> 0
R70: CIT paid: IOC | S70: US$ mn 2021 | T70: 5284.909906 | U70: 5284.909906 | V70: 6888.940021 | W70: 7165.551747 | X70: 4264.20164 | Y70: 3856.4104 | AA70: =INDEX(U70:Y70, , MATCH(AA$62, U$63:Y$63, 0)) - INDEX(U70:Y70, , MATCH(AA$63, U$63:Y$63, 0)) -> 1604.030114
B71: =Translate!E$639 -> Chart details | R71: Resource rent tax: IOC | S71: US$ mn 2021 | T71: 0 | U71: 0 | V71: 6944.685123 | W71: 0 | X71: 0 | Y71: 0 | AA71: =INDEX(U71:Y71, , MATCH(AA$62, U$63:Y$63, 0)) - INDEX(U71:Y71, , MATCH(AA$63, U$63:Y$63, 0)) -> 6944.685123
B72: =Translate!E$650 -> Investor NPV and IRR under alternative regimes | C72: =Translate!E$640 -> Chart title | R72: Dividend withholding tax | S72: US$ mn 2021 | T72: 1013.97806 | U72: 1013.97806 | V72: 945.8390139 | W72: 1143.845807 | X72: 1029.206305 | Y72: 931.9644509 | AA72: =INDEX(U72:Y72, , MATCH(AA$62, U$63:Y$63, 0)) - INDEX(U72:Y72, , MATCH(AA$63, U$63:Y$63, 0)) -> -68.13904591
B73: =Dashboard!$S$82 -> US$ mn NPV 8.0 real | C73: =Translate!E$641 -> Vertical axis 1 | R73: Interest withholding tax | S73: US$ mn 2021 | T73: 92.24531381 | U73: 92.24531381 | V73: 92.24531381 | W73: 0 | X73: 92.24531381 | Y73: 92.24531381 | AA73: =INDEX(U73:Y73, , MATCH(AA$62, U$63:Y$63, 0)) - INDEX(U73:Y73, , MATCH(AA$63, U$63:Y$63, 0)) -> 0
B74: =G$3 -> IRR real | C74: =Translate!E$642 -> Vertical axis 2 | R74: =N28 -> VAT cashflow: government | S74: US$ mn 2021 | T74: =IFERROR(O28, 0) -> 0 | U74: 0 | V74: 0 | W74: 0 | X74: 0 | Y74: 0 | AA74: =INDEX(U74:Y74, , MATCH(AA$62, U$63:Y$63, 0)) - INDEX(U74:Y74, , MATCH(AA$63, U$63:Y$63, 0)) -> 0
B75: =Translate!E$648 -> Fiscal regimes | C75: =Translate!E$643 -> Horizontal axis | R75: =N29 -> Government revenues excluding participation | S75: =$O$19 -> US$ mn 2021 | T75: =IFERROR(O29, 0) -> 16056.40423 | U75: 16056.40423 | V75: 17921.52685 | W75: 15769.51732 | X75: 18160.47402 | Y75: 19165.22358 | AA75: =INDEX(U75:Y75, , MATCH(AA$62, U$63:Y$63, 0)) - INDEX(U75:Y75, , MATCH(AA$63, U$63:Y$63, 0)) -> 1865.122612
B76: =Translate!E$112 & ": " & C$7 -> Project: 800MMbbl_A | C76: =Translate!E$644 -> Text box | R76: =N30 -> SOC net cash flow before tax, after carried interest, including share of lender cashflows | S76: =$O$19 -> US$ mn 2021 | T76: =IFERROR(O30, 0) -> 3982.984663 | U76: 3982.984663 | V76: 2653.949695 | W76: 4363.282331 | X76: 1680.978024 | Y76: 1530.064944 | AA76: =INDEX(U76:Y76, , MATCH(AA$62, U$63:Y$63, 0)) - INDEX(U76:Y76, , MATCH(AA$63, U$63:Y$63, 0)) -> -1329.034968
R77: =N31 -> Government revenues including participation | S77: =$O$19 -> US$ mn 2021 | T77: =IFERROR(O31, 0) -> 20039.3889 | U77: 20039.3889 | V77: 20575.47654 | W77: 20132.79965 | X77: 19841.45205 | Y77: 20695.28852 | AA77: =INDEX(U77:Y77, , MATCH(AA$62, U$63:Y$63, 0)) - INDEX(U77:Y77, , MATCH(AA$63, U$63:Y$63, 0)) -> 536.0876442
R78: =Translate!E$624 & ": " & Inputs!F$90 -> IRR: FID forward | T78: -------------- | U78: -------------- | V78: -------------- | W78: -------------- | X78: -------------- | Y78: -------------- | AA78: --------------
R79: =Translate!E$624 & ": " & F$6 -> IRR: Project | S79: =G$3 -> IRR real | T79: =IFERROR( IF( T62 = 0, NA(), H6), 0) -> 0.3914898599 | U79: 0.3914898599 | V79: 0.3914898599 | W79: 0.3914898599 | X79: 0.3914898599 | Y79: 0.3914898599 | AA79: =INDEX(U79:Y79, , MATCH(AA$62, U$63:Y$63, 0)) - INDEX(U79:Y79, , MATCH(AA$63, U$63:Y$63, 0)) -> 0
R80: =Translate!E$624 & ": " & F9 & " (rhs)" -> IRR: IOC + Lender (rhs) | S80: =G$3 -> IRR real | T80: =IFERROR( IF( T63 = 0, NA(), H9), 0) -> 0.2154625176 | U80: 0.2154625176 | V80: 0.2273282829 | W80: 0.1944392404 | X80: 0.2154921261 | Y80: 0.2203188675 | AA80: =INDEX(U80:Y80, , MATCH(AA$62, U$63:Y$63, 0)) - INDEX(U80:Y80, , MATCH(AA$63, U$63:Y$63, 0)) -> 0.01186576529
R81: =Translate!E$652 & ": " & Inputs!F$90 -> Participant NPV: FID forward | T81: -------------- | U81: -------------- | V81: -------------- | W81: -------------- | X81: -------------- | Y81: -------------- | AA81: --------------
R82: =F6 & ": " & Inputs!F$63 -> Project: NPV8 | S82: =Inputs!$F$62 -> US$ mn NPV 8.0 real | T82: =IFERROR( IF(T63 = 0, NA(), IFERROR(L6, NA())), 0) -> 11246.88183 | U82: 11246.88183 | V82: 11246.88183 | W82: 11246.88183 | X82: 11246.88183 | Y82: 11246.88183 | AA82: =INDEX(U82:Y82, , MATCH(AA$62, U$63:Y$63, 0)) - INDEX(U82:Y82, , MATCH(AA$63, U$63:Y$63, 0)) -> 0
R83: =F7 & ": " & Inputs!F$63 -> IOC: NPV8 | S83: =Inputs!$F$62 -> US$ mn NPV 8.0 real | T83: =IFERROR(L7, 0) -> 3517.473463 | U83: 3517.473463 | V83: 3592.975351 | W83: 2803.221247 | X83: 3642.318376 | Y83: 3533.268334 | AA83: =INDEX(U83:Y83, , MATCH(AA$62, U$63:Y$63, 0)) - INDEX(U83:Y83, , MATCH(AA$63, U$63:Y$63, 0)) -> 75.50188791
R84: =F$9 & ": " & Inputs!F$63 -> IOC + Lender: NPV8 | S84: =Inputs!$F$62 -> US$ mn NPV 8.0 real | T84: =IFERROR(L9, 0) -> 3014.039656 | U84: 3014.039656 | V84: 3026.612318 | W84: 2803.221247 | X84: 3075.955343 | Y84: 2966.9053 | AA84: =INDEX(U84:Y84, , MATCH(AA$62, U$63:Y$63, 0)) - INDEX(U84:Y84, , MATCH(AA$63, U$63:Y$63, 0)) -> 12.57266196
R85: =F12 & ": " & Inputs!F$63 -> Government including participation: NPV8 | S85: =Inputs!$F$62 -> US$ mn NPV 8.0 real | T85: =IFERROR(L12, 0) -> 8122.439084 | U85: 8122.439084 | V85: 8109.866422 | W85: 8333.257492 | X85: 8060.523397 | Y85: 8169.573439 | AA85: =INDEX(U85:Y85, , MATCH(AA$62, U$63:Y$63, 0)) - INDEX(U85:Y85, , MATCH(AA$63, U$63:Y$63, 0)) -> -12.57266196
R86: =Translate!E$117 & " (" & Inputs!F$89 & ")" -> Government share (full-cycle) | T86: -------------- | U86: -------------- | V86: -------------- | W86: -------------- | X86: -------------- | Y86: -------------- | AA86: --------------
R87: =Translate!E$120 & ": " & Inputs!F$89 & ", " & Translate!E$59 -> AETR: full-cycle, undiscounted | S87: ="% " & Inputs!F$52 -> % US$ mn 2021 | T87: =IFERROR(I13, NA()) -> 0.684358055 | U87: 0.684358055 | V87: 0.7026657938 | W87: 0.6875480923 | X87: 0.677598384 | Y87: 0.7067574502 | AA87: =INDEX(U87:Y87, , MATCH(AA$62, U$63:Y$63, 0)) - INDEX(U87:Y87, , MATCH(AA$63, U$63:Y$63, 0)) -> 0.01830773879
R88: =Translate!E$120 & ": " & Inputs!F$89 & ", " & Inputs!$F$63 -> AETR: full-cycle, NPV8 | S88: ="% " & Inputs!$F$63 -> % NPV8 | T88: =IFERROR( IF( T63 = 0, NA(), K13), 0) -> 0.7535464383 | U88: 0.7535464383 | V88: 0.7523815784 | W88: 0.7730788115 | X88: 0.7478099359 | Y88: 0.757913447 | AA88: =INDEX(U88:Y88, , MATCH(AA$62, U$63:Y$63, 0)) - INDEX(U88:Y88, , MATCH(AA$63, U$63:Y$63, 0)) -> -0.001164859971
R89: =Translate!E$119 & ": " & Inputs!F$89 & ", " & Translate!E$59 -> Government share of project benefits: full-cycle, undiscounted | S89: ="% " & Inputs!F$52 -> % US$ mn 2021 | T89: =I14 -> 0.5171185115 | U89: 0.5171185115 | V89: 0.5309523088 | W89: 0.5195289856 | X89: 0.5120107306 | Y89: 0.5340440694 | AA89: =INDEX(U89:Y89, , MATCH(AA$62, U$63:Y$63, 0)) - INDEX(U89:Y89, , MATCH(AA$63, U$63:Y$63, 0)) -> 0.01383379733
R90: =Translate!E$119 & ": " & Inputs!F$89 & ", " & Inputs!$F$63 -> Government share of project benefits: full-cycle, NPV8 | S90: ="% " & Inputs!$F$63 -> % NPV8 | T90: =K14 -> 0.4725224279 | U90: 0.4725224279 | V90: 0.4717919852 | W90: 0.4847704911 | X90: 0.4689252693 | Y90: 0.4752608252 | AA90: =INDEX(U90:Y90, , MATCH(AA$62, U$63:Y$63, 0)) - INDEX(U90:Y90, , MATCH(AA$63, U$63:Y$63, 0)) -> -0.0007304426557
R91: =Translate!E$755 & " " & Translate!E$654 -> Check: Government revenues data table | T91: =SUM(T66:T74) + T76 - I12 -> 0 | U91: 0 | V91: 0 | W91: 0 | X91: 0 | Y91: 0 | AA91: =INDEX(U91:Y91, , MATCH(AA$62, U$63:Y$63, 0)) - INDEX(U91:Y91, , MATCH(AA$63, U$63:Y$63, 0)) -> 0
A93: =Translate!E$616 -> Government revenue profiles under alternative regimes | F93: =Translate!E$621 -> Return to | G93: =$A$1 -> Dashboard
R94: =Translate!E$645 -> Live results
B95: =Translate!E$639 -> Chart details | R95: =ProjectCashflows!E$34 -> Model calendar years | S95: =ProjectCashflows!G$34 -> Year | T95: =ProjectCashflows!K$34 -> 2021 | U95: =ProjectCashflows!L$34 -> 2022 | V95: =ProjectCashflows!M$34 -> 2023 | W95: =ProjectCashflows!N$34 -> 2024 | X95: =ProjectCashflows!O$34 -> 2025 | Y95: =ProjectCashflows!P$34 -> 2026 | Z95: =ProjectCashflows!Q$34 -> 2027 | AA95: =ProjectCashflows!R$34 -> 2028 | AB95: =ProjectCashflows!S$34 -> 2029 | AC95: =ProjectCashflows!T$34 -> 2030 | AD95: =ProjectCashflows!U$34 -> 2031 | AE95: =ProjectCashflows!V$34 -> 2032 | AF95: =ProjectCashflows!W$34 -> 2033 | AG95: =ProjectCashflows!X$34 -> 2034 | AH95: =ProjectCashflows!Y$34 -> 2035 | AI95: =ProjectCashflows!Z$34 -> 2036 | AJ95: =ProjectCashflows!AA$34 -> 2037 | AK95: =ProjectCashflows!AB$34 -> 2038 | AL95: =ProjectCashflows!AC$34 -> 2039 | AM95: =ProjectCashflows!AD$34 -> 2040 | AN95: =ProjectCashflows!AE$34 -> 2041 | AO95: =ProjectCashflows!AF$34 -> 2042 | AP95: =ProjectCashflows!AG$34 -> 2043 | AQ95: =ProjectCashflows!AH$34 -> 2044 | AR95: =ProjectCashflows!AI$34 -> 2045 | AS95: =ProjectCashflows!AJ$34 -> 2046 | AT95: =ProjectCashflows!AK$34 -> 2047 | AU95: =ProjectCashflows!AL$34 -> 2048 | AV95: =ProjectCashflows!AM$34 -> 2049 | AW95: =ProjectCashflows!AN$34 -> 2050 | AX95: =ProjectCashflows!AO$34 -> 2051 | AY95: =ProjectCashflows!AP$34 -> 2052 | AZ95: =ProjectCashflows!AQ$34 -> 2053 | BA95: =ProjectCashflows!AR$34 -> 2054 | BB95: =ProjectCashflows!AS$34 -> 2055 | BC95: =ProjectCashflows!AT$34 -> 2056 | BD95: =ProjectCashflows!AU$34 -> 2057 | BE95: =ProjectCashflows!AV$34 -> 2058 | BF95: =ProjectCashflows!AW$34 -> 2059 | BG95: =ProjectCashflows!AX$34 -> 2060
B96: =Translate!E$616 -> Government revenue profiles under alternative regimes | C96: =Translate!E$640 -> Chart title | R96: =FiscalModel!E$1131 -> Government revenues including participation | S96: =FiscalModel!G$1131 -> US$ mn 2021 | T96: =FiscalModel!K$1131 -> 10 | U96: =FiscalModel!L$1131 -> -7 | V96: =FiscalModel!M$1131 -> -42 | W96: =FiscalModel!N$1131 -> -168 | X96: =FiscalModel!O$1131 -> -79.41739372 | Y96: =FiscalModel!P$1131 -> 74.70789472 | Z96: =FiscalModel!Q$1131 -> 834.0228531 | AA96: =FiscalModel!R$1131 -> 1196.74264 | AB96: =FiscalModel!S$1131 -> 1325.596548 | AC96: =FiscalModel!T$1131 -> 1449.736623 | AD96: =FiscalModel!U$1131 -> 1541.565071 | AE96: =FiscalModel!V$1131 -> 1585.862975 | AF96: =FiscalModel!W$1131 -> 1572.801982 | AG96: =FiscalModel!X$1131 -> 1577.528326 | AH96: =FiscalModel!Y$1131 -> 1582.085524 | AI96: =FiscalModel!Z$1131 -> 1586.478393 | AJ96: =FiscalModel!AA$1131 -> 1251.369039 | AK96: =FiscalModel!AB$1131 -> 1040.606548 | AL96: =FiscalModel!AC$1131 -> 874.0007287 | AM96: =FiscalModel!AD$1131 -> 633.1240673 | AN96: =FiscalModel!AE$1131 -> 490.1694227 | AO96: =FiscalModel!AF$1131 -> 436.4400178 | AP96: =FiscalModel!AG$1131 -> 318.5053194 | AQ96: =FiscalModel!AH$1131 -> 244.1800725 | AR96: =FiscalModel!AI$1131 -> 194.7315254 | AS96: =FiscalModel!AJ$1131 -> 157.011141 | AT96: =FiscalModel!AK$1131 -> 118.6070115 | AU96: =FiscalModel!AL$1131 -> 88.02667305 | AV96: =FiscalModel!AM$1131 -> 70.0923726 | AW96: =FiscalModel!AN$1131 -> 48.45066182 | AX96: =FiscalModel!AO$1131 -> 33.36285916 | AY96: =FiscalModel!AP$1131 -> 0 | AZ96: =FiscalModel!AQ$1131 -> 0 | BA96: =FiscalModel!AR$1131 -> 0 | BB96: =FiscalModel!AS$1131 -> 0 | BC96: =FiscalModel!AT$1131 -> 0 | BD96: =FiscalModel!AU$1131 -> 0 | BE96: =FiscalModel!AV$1131 -> 0 | BF96: =FiscalModel!AW$1131 -> 0 | BG96: =FiscalModel!AX$1131 -> 0
B97: =S95 -> Year | C97: =Translate!E$641 -> Vertical axis 1
B98: =D143 & " " & E143 ->  | C98: =Translate!E$642 -> Vertical axis 2 | R98: =Translate!E$95 -> Fiscal regime selection
B99: =S96 -> US$ mn 2021 | C99: =Translate!E$643 -> Horizontal axis | R99: =$C$6 -> Royalty + CIT | S99: =IFERROR( IF( $R99 = 0, NA(), S96), "") -> US$ mn 2021 | T99: 10 | U99: -7 | V99: -42 | W99: -168 | X99: -79.41739372 | Y99: 74.70789472 | Z99: 834.0228531 | AA99: 1196.74264 | AB99: 1325.596548 | AC99: 1449.736623 | AD99: 1541.565071 | AE99: 1585.862975 | AF99: 1572.801982 | AG99: 1577.528326 | AH99: 1582.085524 | AI99: 1586.478393 | AJ99: 1251.369039 | AK99: 1040.606548 | AL99: 874.0007287 | AM99: 633.1240673 | AN99: 490.1694227 | AO99: 436.4400178 | AP99: 318.5053194 | AQ99: 244.1800725 | AR99: 194.7315254 | AS99: 157.011141 | AT99: 118.6070115 | AU99: 88.02667305 | AV99: 70.0923726 | AW99: 48.45066182 | AX99: 33.36285916 | AY99: 0 | AZ99: 0 | BA99: 0 | BB99: 0 | BC99: 0 | BD99: 0 | BE99: 0 | BF99: 0 | BG99: 0
B100: =Translate!E$112 & ": " & C$7 -> Project: 800MMbbl_A | C100: =Translate!E$644 -> Text box | R100: =TRANSPOSE( U63:Y63) -> Royalty + CIT | S100: US$ mn 2021 | T100: 10 | U100: -7 | V100: -42 | W100: -168 | X100: -79.41739372 | Y100: 74.70789472 | Z100: 834.0228531 | AA100: 1196.74264 | AB100: 1325.596548 | AC100: 1449.736623 | AD100: 1541.565071 | AE100: 1585.862975 | AF100: 1572.801982 | AG100: 1577.528326 | AH100: 1582.085524 | AI100: 1586.478393 | AJ100: 1251.369039 | AK100: 1040.606548 | AL100: 874.0007287 | AM100: 633.1240673 | AN100: 490.1694227 | AO100: 436.4400178 | AP100: 318.5053194 | AQ100: 244.1800725 | AR100: 194.7315254 | AS100: 157.011141 | AT100: 118.6070115 | AU100: 88.02667305 | AV100: 70.0923726 | AW100: 48.45066182 | AX100: 33.36285916 | AY100: 0 | AZ100: 0 | BA100: 0 | BB100: 0 | BC100: 0 | BD100: 0 | BE100: 0 | BF100: 0 | BG100: 0
R101: RRT | S101: US$ mn 2021 | T101: 10 | U101: -3.5 | V101: -21 | W101: -84 | X101: -24.16614744 | Y101: 18.44851972 | Z101: 544.376847 | AA101: 857.6697926 | AB101: 894.211055 | AC101: 1525.658039 | AD101: 1718.720585 | AE101: 1742.446396 | AF101: 1715.340869 | AG101: 1718.470726 | AH101: 1721.498656 | AI101: 1724.427453 | AJ101: 1347.582946 | AK101: 1164.765758 | AL101: 981.3810191 | AM101: 663.414678 | AN101: 504.1922421 | AO101: 477.3609065 | AP101: 362.0536306 | AQ101: 277.5404419 | AR101: 215.2249974 | AS101: 166.4215131 | AT101: 123.1603518 | AU101: 88.83026305 | AV101: 70.32471119 | AW101: 45.64472448 | AX101: 28.97556585 | AY101: 0 | AZ101: 0 | BA101: 0 | BB101: 0 | BC101: 0 | BD101: 0 | BE101: 0 | BF101: 0 | BG101: 0
R102: Royalty + CIT, no debt | S102: US$ mn 2021 | T102: 10 | U102: 0 | V102: 0 | W102: 0 | X102: 78.99968837 | Y102: 257.1025219 | Z102: 754.5114935 | AA102: 994.3645158 | AB102: 1140.371827 | AC102: 1487.904801 | AD102: 1586.982278 | AE102: 1631.946965 | AF102: 1613.571015 | AG102: 1613.669773 | AH102: 1613.766596 | AI102: 1613.861519 | AJ102: 1241.486962 | AK102: 965.3317694 | AL102: 813.2614164 | AM102: 598.9551002 | AN102: 464.5122242 | AO102: 405.2082994 | AP102: 314.9129239 | AQ102: 239.9167543 | AR102: 191.4262788 | AS102: 154.7811766 | AT102: 116.0931758 | AU102: 85.32542507 | AV102: 67.80786161 | AW102: 45.90991822 | AX102: 30.81736772 | AY102: 0 | AZ102: 0 | BA102: 0 | BB102: 0 | BC102: 0 | BD102: 0 | BE102: 0 | BF102: 0 | BG102: 0
R103: DROP PSC | S103: US$ mn 2021 | T103: 10 | U103: -3.5 | V103: -21 | W103: -84 | X103: -11.36336912 | Y103: 128.9132147 | Z103: 664.0467991 | AA103: 1021.987924 | AB103: 1058.529186 | AC103: 1497.092102 | AD103: 1603.416205 | AE103: 1646.312023 | AF103: 1627.655515 | AG103: 1632.508377 | AH103: 1637.192343 | AI103: 1641.712171 | AJ103: 1256.752113 | AK103: 1043.750897 | AL103: 865.2570357 | AM103: 601.9355281 | AN103: 459.5343346 | AO103: 417.3420675 | AP103: 312.2006301 | AQ103: 222.5591423 | AR103: 173.3419437 | AS103: 137.4921042 | AT103: 102.5135658 | AU103: 74.72496567 | AV103: 59.27938957 | AW103: 39.41602969 | AX103: 25.84981149 | AY103: 0 | AZ103: 0 | BA103: 0 | BB103: 0 | BC103: 0 | BD103: 0 | BE103: 0 | BF103: 0 | BG103: 0
R104: R-factor PSC | S104: US$ mn 2021 | T104: 10 | U104: -3.5 | V104: -21 | W104: -84 | X104: -11.36336912 | Y104: 108.9666947 | Z104: 621.085515 | AA104: 971.7226931 | AB104: 1008.263956 | AC104: 1425.091816 | AD104: 1528.445448 | AE104: 1571.303495 | AF104: 1676.545962 | AG104: 1681.445378 | AH104: 1686.174986 | AI104: 1690.739561 | AJ104: 1418.140726 | AK104: 1204.381717 | AL104: 1016.387343 | AM104: 705.185379 | AN104: 538.8094477 | AO104: 483.4315274 | AP104: 375.1566715 | AQ104: 285.9204174 | AR104: 224.2452616 | AS104: 176.7740976 | AT104: 140.4804624 | AU104: 101.288393 | AV104: 80.18781492 | AW104: 52.00302905 | AX104: 32.97409951 | AY104: 0 | AZ104: 0 | BA104: 0 | BB104: 0 | BC104: 0 | BD104: 0 | BE104: 0 | BF104: 0 | BG104: 0
R106: =Translate!E$809 -> Difference between first two regimes | T106: =T100 - T101 -> 0 | U106: -3.5 | V106: -21 | W106: -84 | X106: -55.25124628 | Y106: 56.259375 | Z106: 289.6460061 | AA106: 339.0728477 | AB106: 431.385493 | AC106: -75.92141633 | AD106: -177.1555143 | AE106: -156.5834204 | AF106: -142.538887 | AG106: -140.9424003 | AH106: -139.413132 | AI106: -137.9490599 | AJ106: -96.2139068 | AK106: -124.1592106 | AL106: -107.3802904 | AM106: -30.29061076 | AN106: -14.0228194 | AO106: -40.92088872 | AP106: -43.5483112 | AQ106: -33.36036938 | AR106: -20.49347197 | AS106: -9.410372097 | AT106: -4.553340399 | AU106: -0.8035900017 | AV106: -0.2323385986 | AW106: 2.805937347 | AX106: 4.387293312 | AY106: 0 | AZ106: 0 | BA106: 0 | BB106: 0 | BC106: 0 | BD106: 0 | BE106: 0 | BF106: 0 | BG106: 0
R107: =Translate!E$810 -> Difference cumulative | T107: =S107 + T106 -> 0 | U107: -3.5 | V107: -24.5 | W107: -108.5 | X107: -163.7512463 | Y107: -107.4918713 | Z107: 182.1541348 | AA107: 521.2269825 | AB107: 952.6124755 | AC107: 876.6910592 | AD107: 699.5355449 | AE107: 542.9521246 | AF107: 400.4132376 | AG107: 259.4708373 | AH107: 120.0577054 | AI107: -17.89135449 | AJ107: -114.1052613 | AK107: -238.2644719 | AL107: -345.6447623 | AM107: -375.9353731 | AN107: -389.9581924 | AO107: -430.8790812 | AP107: -474.4273924 | AQ107: -507.7877618 | AR107: -528.2812337 | AS107: -537.6916058 | AT107: -542.2449462 | AU107: -543.0485362 | AV107: -543.2808748 | AW107: -540.4749375 | AX107: -536.0876442 | AY107: -536.0876442 | AZ107: -536.0876442 | BA107: -536.0876442 | BB107: -536.0876442 | BC107: -536.0876442 | BD107: -536.0876442 | BE107: -536.0876442 | BF107: -536.0876442 | BG107: -536.0876442
A118: =Translate!E$617 -> Government share of profit oil | F118: =Translate!E$621 -> Return to | G118: =$A$1 -> Dashboard
R119: =Translate!E$645 -> Live results
B120: =Translate!E$639 -> Chart details | R120: =ProjectCashflows!E$34 -> Model calendar years | S120: =ProjectCashflows!G$34 -> Year | T120: =ProjectCashflows!K$34 -> 2021 | U120: =ProjectCashflows!L$34 -> 2022 | V120: =ProjectCashflows!M$34 -> 2023 | W120: =ProjectCashflows!N$34 -> 2024 | X120: =ProjectCashflows!O$34 -> 2025 | Y120: =ProjectCashflows!P$34 -> 2026 | Z120: =ProjectCashflows!Q$34 -> 2027 | AA120: =ProjectCashflows!R$34 -> 2028 | AB120: =ProjectCashflows!S$34 -> 2029 | AC120: =ProjectCashflows!T$34 -> 2030 | AD120: =ProjectCashflows!U$34 -> 2031 | AE120: =ProjectCashflows!V$34 -> 2032 | AF120: =ProjectCashflows!W$34 -> 2033 | AG120: =ProjectCashflows!X$34 -> 2034 | AH120: =ProjectCashflows!Y$34 -> 2035 | AI120: =ProjectCashflows!Z$34 -> 2036 | AJ120: =ProjectCashflows!AA$34 -> 2037 | AK120: =ProjectCashflows!AB$34 -> 2038 | AL120: =ProjectCashflows!AC$34 -> 2039 | AM120: =ProjectCashflows!AD$34 -> 2040 | AN120: =ProjectCashflows!AE$34 -> 2041 | AO120: =ProjectCashflows!AF$34 -> 2042 | AP120: =ProjectCashflows!AG$34 -> 2043 | AQ120: =ProjectCashflows!AH$34 -> 2044 | AR120: =ProjectCashflows!AI$34 -> 2045 | AS120: =ProjectCashflows!AJ$34 -> 2046 | AT120: =ProjectCashflows!AK$34 -> 2047 | AU120: =ProjectCashflows!AL$34 -> 2048 | AV120: =ProjectCashflows!AM$34 -> 2049 | AW120: =ProjectCashflows!AN$34 -> 2050 | AX120: =ProjectCashflows!AO$34 -> 2051 | AY120: =ProjectCashflows!AP$34 -> 2052 | AZ120: =ProjectCashflows!AQ$34 -> 2053 | BA120: =ProjectCashflows!AR$34 -> 2054 | BB120: =ProjectCashflows!AS$34 -> 2055 | BC120: =ProjectCashflows!AT$34 -> 2056 | BD120: =ProjectCashflows!AU$34 -> 2057 | BE120: =ProjectCashflows!AV$34 -> 2058 | BF120: =ProjectCashflows!AW$34 -> 2059 | BG120: =ProjectCashflows!AX$34 -> 2060
B121: =A$118 -> Government share of profit oil | C121: =Translate!E$640 -> Chart title | R121: =FiscalModel!E$651 -> Government share of profit oil: 0 | S121: =FiscalModel!G$651 -> % | T121: =FiscalModel!K$651 -> 0 | U121: =FiscalModel!L$651 -> 0 | V121: =FiscalModel!M$651 -> 0 | W121: =FiscalModel!N$651 -> 0 | X121: =FiscalModel!O$651 -> 0 | Y121: =FiscalModel!P$651 -> 0 | Z121: =FiscalModel!Q$651 -> 0 | AA121: =FiscalModel!R$651 -> 0 | AB121: =FiscalModel!S$651 -> 0 | AC121: =FiscalModel!T$651 -> 0 | AD121: =FiscalModel!U$651 -> 0 | AE121: =FiscalModel!V$651 -> 0 | AF121: =FiscalModel!W$651 -> 0 | AG121: =FiscalModel!X$651 -> 0 | AH121: =FiscalModel!Y$651 -> 0 | AI121: =FiscalModel!Z$651 -> 0 | AJ121: =FiscalModel!AA$651 -> 0 | AK121: =FiscalModel!AB$651 -> 0 | AL121: =FiscalModel!AC$651 -> 0 | AM121: =FiscalModel!AD$651 -> 0 | AN121: =FiscalModel!AE$651 -> 0 | AO121: =FiscalModel!AF$651 -> 0 | AP121: =FiscalModel!AG$651 -> 0 | AQ121: =FiscalModel!AH$651 -> 0 | AR121: =FiscalModel!AI$651 -> 0 | AS121: =FiscalModel!AJ$651 -> 0 | AT121: =FiscalModel!AK$651 -> 0 | AU121: =FiscalModel!AL$651 -> 0 | AV121: =FiscalModel!AM$651 -> 0 | AW121: =FiscalModel!AN$651 -> 0 | AX121: =FiscalModel!AO$651 -> 0 | AY121: =FiscalModel!AP$651 -> 0 | AZ121: =FiscalModel!AQ$651 -> 0 | BA121: =FiscalModel!AR$651 -> 0 | BB121: =FiscalModel!AS$651 -> 0 | BC121: =FiscalModel!AT$651 -> 0 | BD121: =FiscalModel!AU$651 -> 0 | BE121: =FiscalModel!AV$651 -> 0 | BF121: =FiscalModel!AW$651 -> 0 | BG121: =FiscalModel!AX$651 -> 0
C122: =Translate!E$641 -> Vertical axis 1
B123: =R132 & " " & S132 -> Oil production RATE after ELT KBOPD | C123: =Translate!E$642 -> Vertical axis 2 | R123: =Translate!E$815 -> Select regimes to compare
B124: Government profit petroleum share % | C124: =Translate!E$643 -> Horizontal axis | R124: =$C$6 -> Royalty + CIT | S124: =IFERROR( IF( $R124 = 0, NA(), S121), 0) -> % | T124: 0 | U124: 0 | V124: 0 | W124: 0 | X124: 0 | Y124: 0 | Z124: 0 | AA124: 0 | AB124: 0 | AC124: 0 | AD124: 0 | AE124: 0 | AF124: 0 | AG124: 0 | AH124: 0 | AI124: 0 | AJ124: 0 | AK124: 0 | AL124: 0 | AM124: 0 | AN124: 0 | AO124: 0 | AP124: 0 | AQ124: 0 | AR124: 0 | AS124: 0 | AT124: 0 | AU124: 0 | AV124: 0 | AW124: 0 | AX124: 0 | AY124: 0 | AZ124: 0 | BA124: 0 | BB124: 0 | BC124: 0 | BD124: 0 | BE124: 0 | BF124: 0 | BG124: 0
B125: =Translate!E$112 & ": " & C$7 -> Project: 800MMbbl_A | C125: =Translate!E$644 -> Text box | R125: =TRANSPOSE( U63:Y63) -> Royalty + CIT | S125: % | T125: 0 | U125: 0 | V125: 0 | W125: 0 | X125: 0 | Y125: 0 | Z125: 0 | AA125: 0 | AB125: 0 | AC125: 0 | AD125: 0 | AE125: 0 | AF125: 0 | AG125: 0 | AH125: 0 | AI125: 0 | AJ125: 0 | AK125: 0 | AL125: 0 | AM125: 0 | AN125: 0 | AO125: 0 | AP125: 0 | AQ125: 0 | AR125: 0 | AS125: 0 | AT125: 0 | AU125: 0 | AV125: 0 | AW125: 0 | AX125: 0 | AY125: 0 | AZ125: 0 | BA125: 0 | BB125: 0 | BC125: 0 | BD125: 0 | BE125: 0 | BF125: 0 | BG125: 0
R126: RRT | S126: % | T126: 0 | U126: 0 | V126: 0 | W126: 0 | X126: 0 | Y126: 0 | Z126: 0 | AA126: 0 | AB126: 0 | AC126: 0 | AD126: 0 | AE126: 0 | AF126: 0 | AG126: 0 | AH126: 0 | AI126: 0 | AJ126: 0 | AK126: 0 | AL126: 0 | AM126: 0 | AN126: 0 | AO126: 0 | AP126: 0 | AQ126: 0 | AR126: 0 | AS126: 0 | AT126: 0 | AU126: 0 | AV126: 0 | AW126: 0 | AX126: 0 | AY126: 0 | AZ126: 0 | BA126: 0 | BB126: 0 | BC126: 0 | BD126: 0 | BE126: 0 | BF126: 0 | BG126: 0
R127: Royalty + CIT, no debt | S127: % | T127: 0 | U127: 0 | V127: 0 | W127: 0 | X127: 0 | Y127: 0 | Z127: 0 | AA127: 0 | AB127: 0 | AC127: 0 | AD127: 0 | AE127: 0 | AF127: 0 | AG127: 0 | AH127: 0 | AI127: 0 | AJ127: 0 | AK127: 0 | AL127: 0 | AM127: 0 | AN127: 0 | AO127: 0 | AP127: 0 | AQ127: 0 | AR127: 0 | AS127: 0 | AT127: 0 | AU127: 0 | AV127: 0 | AW127: 0 | AX127: 0 | AY127: 0 | AZ127: 0 | BA127: 0 | BB127: 0 | BC127: 0 | BD127: 0 | BE127: 0 | BF127: 0 | BG127: 0
R128: DROP PSC | S128: % | T128: 0.2 | U128: 0.2 | V128: 0.2 | W128: 0.2 | X128: 0.2 | Y128: 0.28 | Z128: 0.36 | AA128: 0.36 | AB128: 0.36 | AC128: 0.36 | AD128: 0.36 | AE128: 0.36 | AF128: 0.36 | AG128: 0.36 | AH128: 0.36 | AI128: 0.36 | AJ128: 0.3271604938 | AK128: 0.3085505258 | AL128: 0.2870994146 | AM128: 0.2690259025 | AN128: 0.2617603735 | AO128: 0.2527905845 | AP128: 0.241716771 | AQ128: 0.2280453963 | AR128: 0.2111671559 | AS128: 0.2 | AT128: 0.2 | AU128: 0.2 | AV128: 0.2 | AW128: 0.2 | AX128: 0.2 | AY128: 0.2 | AZ128: 0.2 | BA128: 0 | BB128: 0 | BC128: 0 | BD128: 0 | BE128: 0 | BF128: 0 | BG128: 0
R129: R-factor PSC | S129: % | T129: 0.2 | U129: 0.2 | V129: 0.2 | W129: 0.2 | X129: 0.2 | Y129: 0.2 | Z129: 0.2 | AA129: 0.2 | AB129: 0.2 | AC129: 0.3 | AD129: 0.3 | AE129: 0.3 | AF129: 0.4 | AG129: 0.4 | AH129: 0.4 | AI129: 0.4 | AJ129: 0.5 | AK129: 0.5 | AL129: 0.5 | AM129: 0.5 | AN129: 0.5 | AO129: 0.5 | AP129: 0.5 | AQ129: 0.5 | AR129: 0.5 | AS129: 0.5 | AT129: 0.6 | AU129: 0.6 | AV129: 0.6 | AW129: 0.6 | AX129: 0.6 | AY129: 0.6 | AZ129: 0.6 | BA129: 0 | BB129: 0 | BC129: 0 | BD129: 0 | BE129: 0 | BF129: 0 | BG129: 0
R131: =Translate!E$814 -> For information
R132: =ProjectCashflows!E$131 -> Oil production RATE after ELT | S132: =ProjectCashflows!G$131 -> KBOPD | T132: =ProjectCashflows!K$131 -> 0 | U132: =ProjectCashflows!L$131 -> 0 | V132: =ProjectCashflows!M$131 -> 0 | W132: =ProjectCashflows!N$131 -> 0 | X132: =ProjectCashflows!O$131 -> 9.547116222 | Y132: =ProjectCashflows!P$131 -> 75 | Z132: =ProjectCashflows!Q$131 -> 150 | AA132: =ProjectCashflows!R$131 -> 150 | AB132: =ProjectCashflows!S$131 -> 150 | AC132: =ProjectCashflows!T$131 -> 150 | AD132: =ProjectCashflows!U$131 -> 150 | AE132: =ProjectCashflows!V$131 -> 150 | AF132: =ProjectCashflows!W$131 -> 150 | AG132: =ProjectCashflows!X$131 -> 150 | AH132: =ProjectCashflows!Y$131 -> 150 | AI132: =ProjectCashflows!Z$131 -> 150 | AJ132: =ProjectCashflows!AA$131 -> 121.5 | AK132: =ProjectCashflows!AB$131 -> 98.415 | AL132: =ProjectCashflows!AC$131 -> 79.71615 | AM132: =ProjectCashflows!AD$131 -> 64.5700815 | AN132: =ProjectCashflows!AE$131 -> 52.30176602 | AO132: =ProjectCashflows!AF$131 -> 42.36443047 | AP132: =ProjectCashflows!AG$131 -> 34.31518868 | AQ132: =ProjectCashflows!AH$131 -> 27.79530283 | AR132: =ProjectCashflows!AI$131 -> 22.51419529 | AS132: =ProjectCashflows!AJ$131 -> 18.23649819 | AT132: =ProjectCashflows!AK$131 -> 14.77156353 | AU132: =ProjectCashflows!AL$131 -> 11.96496646 | AV132: =ProjectCashflows!AM$131 -> 9.691622834 | AW132: =ProjectCashflows!AN$131 -> 7.850214495 | AX132: =ProjectCashflows!AO$131 -> 6.358673741 | AY132: =ProjectCashflows!AP$131 -> 0 | AZ132: =ProjectCashflows!AQ$131 -> 0 | BA132: =ProjectCashflows!AR$131 -> 0 | BB132: =ProjectCashflows!AS$131 -> 0 | BC132: =ProjectCashflows!AT$131 -> 0 | BD132: =ProjectCashflows!AU$131 -> 0 | BE132: =ProjectCashflows!AV$131 -> 0 | BF132: =ProjectCashflows!AW$131 -> 0 | BG132: =ProjectCashflows!AX$131 -> 0
R133: =FiscalModel!E$603 -> R-Factor (previous period) | S133: =FiscalModel!G$603 -> ratio | T133: =FiscalModel!K$603 -> 0 | U133: =FiscalModel!L$603 -> 0 | V133: =FiscalModel!M$603 -> 0 | W133: =FiscalModel!N$603 -> 0 | X133: =FiscalModel!O$603 -> 0 | Y133: =FiscalModel!P$603 -> -0.01743854616 | Z133: =FiscalModel!Q$603 -> -0.05142027039 | AA133: =FiscalModel!R$603 -> -0.09454704094 | AB133: =FiscalModel!S$603 -> -0.1374570622 | AC133: =FiscalModel!T$603 -> -0.1806277634 | AD133: =FiscalModel!U$603 -> -0.2212416737 | AE133: =FiscalModel!V$603 -> -0.2594992917 | AF133: =FiscalModel!W$603 -> -0.2955809335 | AG133: =FiscalModel!X$603 -> -0.3367681355 | AH133: =FiscalModel!Y$603 -> -0.3755926824 | AI133: =FiscalModel!Z$603 -> -0.412224581 | AJ133: =FiscalModel!AA$603 -> -0.4468182798 | AK133: =FiscalModel!AB$603 -> -0.4782395352 | AL133: =FiscalModel!AC$603 -> -0.5242288632 | AM133: =FiscalModel!AD$603 -> -0.5548171968 | AN133: =FiscalModel!AE$603 -> -0.5676506338 | AO133: =FiscalModel!AF$603 -> -0.5766087547 | AP133: =FiscalModel!AG$603 -> -0.5997318571 | AQ133: =FiscalModel!AH$603 -> -0.6212601048 | AR133: =FiscalModel!AI$603 -> -0.6420718158 | AS133: =FiscalModel!AJ$603 -> -0.662196092 | AT133: =FiscalModel!AK$603 -> -0.6816513202 | AU133: =FiscalModel!AL$603 -> -0.7004470434 | AV133: =FiscalModel!AM$603 -> -0.718585472 | AW133: =FiscalModel!AN$603 -> -0.7339576491 | AX133: =FiscalModel!AO$603 -> -0.7494760333 | AY133: =FiscalModel!AP$603 -> -0.7643271444 | AZ133: =FiscalModel!AQ$603 -> -0.7643271444 | BA133: =FiscalModel!AR$603 -> -0.7643271444 | BB133: =FiscalModel!AS$603 -> -0.7643271444 | BC133: =FiscalModel!AT$603 -> -0.7643271444 | BD133: =FiscalModel!AU$603 -> -0.7643271444 | BE133: =FiscalModel!AV$603 -> -0.7643271444 | BF133: =FiscalModel!AW$603 -> -0.7643271444 | BG133: =FiscalModel!AX$603 -> -0.7643271444
A143: =Translate!E$618 -> Progressivity analysis across a range of oil prices | F143: =Translate!E$621 -> Return to | G143: =$A$1 -> Dashboard
B145: =Translate!E$703 -> Government share metrics
B146: =R87 -> AETR: full-cycle, undiscounted | C146: % US$ mn 2021 | D146: 0.684358055 | R146: =Translate!E$821 -> Data table to perform sensitivity analysis
B147: AETR: full-cycle, NPV8 | C147: % NPV8 | D147: 0.7535464383 | T147: =Translate!E$822 -> Range of oil prices
B148: Government share of project benefits: full-cycle, undiscounted | C148: % US$ mn 2021 | D148: 0.5171185115 | S148: =D151 -> 0.684358055 | T148: =$D$155 -> 30 | U148: =T148 + $D$156 -> 35 | V148: 40 | W148: 45 | X148: 50 | Y148: 55 | Z148: 60 | AA148: 65 | AB148: 70 | AC148: 75 | AD148: 80 | AE148: 85 | AF148: 90 | AG148: 95 | AH148: 100 | AI148: 105 | AJ148: 110 | AK148: 115 | AL148: 120 | AM148: 125
B149: Government share of project benefits: full-cycle, NPV8 | C149: % NPV8 | D149: 0.4725224279 | S149: =$U$63 -> Royalty + CIT | T149: 0.8096149381 | U149: 0.7591048947 | V149: 0.7267061029 | W149: 0.7069026947 | X149: 0.6937380367 | Y149: 0.684358055 | Z149: 0.6772343958 | AA149: 0.6716816588 | AB149: 0.6672027422 | AC149: 0.6635116657 | AD149: 0.660418107 | AE149: 0.6577868674 | AF149: 0.6555235458 | AG149: 0.6535560173 | AH149: 0.6518304951 | AI149: 0.6503107334 | AJ149: 0.6508415739 | AK149: 0.6495067969 | AL149: 0.6483024888 | AM149: 0.6472070027
B150: =Translate!E$817 -> Select metric | S150: =$V$63 -> RRT | T150: 0.6240841386 | U150: 0.6730833878 | V150: 0.6895237744 | W150: 0.6968138399 | X150: 0.7005733722 | Y150: 0.7026657938 | Z150: 0.7039447805 | AA150: 0.704655794 | AB150: 0.7052279568 | AC150: 0.7056956391 | AD150: 0.7058691896 | AE150: 0.7059354901 | AF150: 0.7072645334 | AG150: 0.7071900514 | AH150: 0.7071217882 | AI150: 0.7070569665 | AJ150: 0.7070046191 | AK150: 0.7069876797 | AL150: 0.7069009168 | AM150: 0.7067884538
B151: AETR: full-cycle, undiscounted | C151: =INDEX( C146:C149, MATCH(B151, B146:B149, 0), ) -> % US$ mn 2021 | D151: =INDEX( D146:D149, MATCH(B151, B146:B149, 0), ) -> 0.684358055 | S151: =$W$63 -> Royalty + CIT, no debt | T151: 0.8067958309 | U151: 0.7535402168 | V151: 0.7252983012 | W151: 0.7079118937 | X151: 0.6961309634 | Y151: 0.6875480923 | Z151: 0.6810018627 | AA151: 0.6758529556 | AB151: 0.6716631784 | AC151: 0.6682114759 | AD151: 0.6653097589 | AE151: 0.6628578231 | AF151: 0.6607572964 | AG151: 0.6589242685 | AH151: 0.6573052995 | AI151: 0.6558695524 | AJ151: 0.6545927055 | AK151: 0.6534690123 | AL151: 0.6524560091 | AM151: 0.6515381085
B152: =Translate!E$755 & " " & Translate!E$817 -> Check: Select metric | C152: =IFERROR(MIN( 0, MATCH(B151,$B$146:$B$149,0) ), 1 ) -> 0 | D152: =Translate!E$604 -> Check | S152: =$X$63 -> DROP PSC | T152: 0.7458085599 | U152: 0.7132410591 | V152: 0.6970133021 | W152: 0.6876862847 | X152: 0.6817985094 | Y152: 0.677598384 | Z152: 0.6745423187 | AA152: 0.6721476325 | AB152: 0.6702144332 | AC152: 0.6686421739 | AD152: 0.6673448498 | AE152: 0.6662425621 | AF152: 0.6652937968 | AG152: 0.6667080952 | AH152: 0.6658233788 | AI152: 0.6650374834 | AJ152: 0.6643457359 | AK152: 0.6637292794 | AL152: 0.6631777185 | AM152: 0.6627062597
S153: =$Y$63 -> R-factor PSC | T153: 0.7222054704 | U153: 0.7016754428 | V153: 0.6977142952 | W153: 0.6966024814 | X153: 0.7006257147 | Y153: 0.7067574502 | Z153: 0.7187735556 | AA153: 0.7220408081 | AB153: 0.7333288245 | AC153: 0.7386794602 | AD153: 0.7401224895 | AE153: 0.7458797338 | AF153: 0.7505262008 | AG153: 0.7514075332 | AH153: 0.7578007211 | AI153: 0.756596652 | AJ153: 0.7630923417 | AK153: 0.7618870213 | AL153: 0.7646319862 | AM153: 0.7636645454
B154: =Translate!E$818 -> Create range of oil prices
B155: =Translate!E$819 -> Starting oil price | C155: =Inputs!F$56 -> US$ 2021 / bbl | D155: 30 | R155: =Translate!E$823 -> Data table to generate pre-tax IRR | S155: =Inputs!F$56 -> US$ 2021 / bbl | T155: =T148 -> 30 | U155: 35 | V155: 40 | W155: 45 | X155: 50 | Y155: 55 | Z155: 60 | AA155: 65 | AB155: 70 | AC155: 75 | AD155: 80 | AE155: 85 | AF155: 90 | AG155: 95 | AH155: 100 | AI155: 105 | AJ155: 110 | AK155: 115 | AL155: 120 | AM155: 125
B156: =Translate!E$820 -> Increment | C156: =Translate!E$60 -> US$ | D156: 5 | R156: =R79 & " " & Inputs!F$91 -> IRR: Project real | S156: =T79 -> 0.3914898599 | T156: 0.1659278914 | U156: 0.2166412589 | V156: 0.2637699277 | W156: 0.3082959569 | X156: 0.3507582841 | Y156: 0.3914898599 | Z156: 0.4307150454 | AA156: 0.4685958606 | AB156: 0.5052561353 | AC156: 0.5407949883 | AD156: 0.5752947379 | AE156: 0.608825738 | AF156: 0.6414494449 | AG156: 0.6732204303 | AH156: 0.7041877499 | AI156: 0.7343959063 | AJ156: 0.7638855512 | AK156: 0.7926940149 | AL156: 0.8208557191 | AM156: 0.8484025078
B159: =Translate!E$639 -> Chart details
B160: =A$143 -> Progressivity analysis across a range of oil prices | C160: =Translate!E$640 -> Chart title
B161: =B151 -> AETR: full-cycle, undiscounted | C161: =Translate!E$641 -> Vertical axis 1
C162: =Translate!E$642 -> Vertical axis 2
B163: =R156 & " / " & Translate!E$682 & ": " & C155 -> IRR: Project real / Oil price: US$ 2021 / bbl | C163: =Translate!E$643 -> Horizontal axis
B164: =Translate!E$112 & ": " & C$7 -> Project: 800MMbbl_A | C164: =Translate!E$644 -> Text box
A167: =Translate!E$619 -> Breakeven oil price and marginal effective tax rate | F167: =Translate!E$621 -> Return to | G167: =$A$1 -> Dashboard
R169: =Translate!E$824 & ": " & Inputs!F$91 -> Investor hurdle rate: real | S169: 0.1
U170: =Translate!E$826 -> Regimes (from above)
B171: =Translate!E$639 -> Chart details | R171: =Translate!E$825 -> Regime count | S171: =SUM(U171:Y171) -> 5 | U171: =ISTEXT(U172) * 1 -> 1 | V171: =ISTEXT(V172) * 1 -> 1 | W171: =ISTEXT(W172) * 1 -> 1 | X171: =ISTEXT(X172) * 1 -> 1 | Y171: =ISTEXT(Y172) * 1 -> 1
B172: =A$167 -> Breakeven oil price and marginal effective tax rate | C172: =Translate!E$640 -> Chart title | T172: =Translate!E$645 -> Live results | U172: =U63:Y63 -> Royalty + CIT | V172: RRT | W172: Royalty + CIT, no debt | X172: DROP PSC | Y172: R-factor PSC
B173: =R174 & " " & S174 -> Breakeven oil price US$ 2021 / bbl | C173: =Translate!E$641 -> Vertical axis 1 | R173: =Translate!E$93 -> Regime name | T173: =C6 -> Royalty + CIT | U173: Royalty + CIT | V173: RRT | W173: Royalty + CIT, no debt | X173: DROP PSC | Y173: R-factor PSC
B174: =R180 -> Marginal Effective Tax Rate (METR) | C174: =Translate!E$642 -> Vertical axis 2 | R174: =Translate!E$827 -> Breakeven oil price | S174: =D9 -> US$ 2021 / bbl | T174: =OilPrice -> 55 | U174: 37.25435055 | V174: 31.35124762 | W174: 37.04016579 | X174: 35.23588558 | Y174: 34.17686658
B175: =Translate!E$648 -> Fiscal regimes | C175: =Translate!E$643 -> Horizontal axis | R175: =F$6 & " " & Translate!E$624 -> Project IRR | S175: =S79 -> IRR real | T175: =T79 -> 0.3914898599 | U175: 0.2382602481 | V175: 0.1800741564 | W175: 0.2362339858 | X175: 0.2189348667 | Y175: 0.2085756217
B176: =Translate!E$112 & ": " & C$7 -> Project: 800MMbbl_A | C176: =Translate!E$644 -> Text box | R176: =Translate!E$624 & ": " & F$9 -> IRR: IOC + Lender | S176: =S80 -> IRR real | T176: =T80 -> 0.2154625176 | U176: 0.1000000003 | V176: 0.09999998949 | W176: 0.1000000007 | X176: 0.1000000096 | Y176: 0.1000001855
R177: =Translate!E$828 -> Difference from hurdle rate (used by macro) | T177: =(S169 - T176) * 10^3 -> -115.4625176 | U177: -3.450340846e-07 | V177: 1.051306922e-05 | W177: -7.016155157e-07 | X177: -9.607934531e-06 | Y177: -0.0001854552281
B178: =Translate!E$831 -> Named ranges used in macro | R178: =R87 -> AETR: full-cycle, undiscounted | S178: =S87 -> % US$ mn 2021 | T178: =T87 -> 0.684358055 | U178: 0.7328751898 | V178: 0.6377497237 | W178: 0.7350741509 | X178: 0.706981206 | Y178: 0.6969143777
B179: RegimeSelected | R179: =R88 -> AETR: full-cycle, NPV8 | S179: =S88 -> % NPV8 | T179: =T88 -> 0.7535464383 | U179: 0.9761198822 | V179: 0.9634602191 | W179: 0.9780157608 | X179: 0.9740603204 | Y179: 0.9730390123
B180: OilPrice | R180: =Translate!E$829 -> Marginal Effective Tax Rate (METR) | S180: % | T180: =(T175 - T176) / T175 -> 0.449634487 | U180: 0.5802908747 | V180: 0.4446732863 | W180: 0.5766908798 | X180: 0.5432431064 | Y180: 0.5205566948
B181: BreakevenRegimeCount
B182: BreakevenResultsTable
B183: Breakeven1
B184: BreakevenMacroDifference
B185: BreakevenResults
A189: =Translate!E$620 & ": " & Inputs!F$89 & ", " & Inputs!F$91 -> Net present value table: full-cycle, real | F189: =Translate!E$621 -> Return to | G189: =$A$1 -> Dashboard
B191: =Translate!E$639 -> Chart details | U191: =Translate!E$645 -> Live results | V191: =Translate!E$830 -> Choose alternative discount rates
B192: =A$189 -> Net present value table: full-cycle, real | C192: =Translate!E$640 -> Chart title | R192: =Translate!E$109 -> Discount rate | S192: ="% " & Inputs!F$91 -> % real | U192: =C17 -> 0.08 | V192: 0 | W192: 0.08 | X192: 0.1 | Y192: 0.125
B193: =Inputs!F$52 -> US$ mn 2021 | C193: =Translate!E$641 -> Vertical axis 1 | R193: =Analysis!E$185 -> Cashflow before decommissioning fund | S193: =Analysis!G197 -> US$ mn 2021 NPV8 | U193: =Analysis!F197 -> 9993.779476 | V193: 29282.02386 | W193: 9993.779476 | X193: 7718.138729 | Y193: 5590.127288
B194: =S204 -> % real | C194: =Translate!E$642 -> Vertical axis 2 | R194: =Analysis!E$186 -> Net decommissioning cashflows | S194: =Analysis!G198 -> US$ mn 2021 NPV8 | U194: =Analysis!F198 -> -102.2250874 | V194: -15.1 | W194: -102.2250874 | X194: -84.36942553 | Y194: -64.24139958
B195: =R192 -> Discount rate | C195: =Translate!E$643 -> Horizontal axis | R195: =Analysis!E$187 -> Government revenues excluding participation | S195: =Analysis!G199 -> US$ mn 2021 NPV8 | U195: =Analysis!F199 -> 6243.032169 | V195: 16056.40423 | W195: 6243.032169 | X195: 5075.809508 | Y195: 3972.761676
B196: =Translate!E$112 & ": " & C$7 -> Project: 800MMbbl_A | C196: =Translate!E$644 -> Text box | R196: =Analysis!E$188 -> SOC net cash flow before tax, after carried interest, including share of lender cashflows | S196: =Analysis!G200 -> US$ mn 2021 NPV8 | U196: =Analysis!F200 -> 1287.74476 | V196: 3982.984663 | W196: 1287.74476 | X196: 979.7664771 | Y196: 695.2781341
B197: =Translate!E$832 & ": " & C$6 -> Regime: Royalty + CIT | R197: =Analysis!E$189 -> Government revenues including participation | S197: =Analysis!G201 -> US$ mn 2021 NPV8 | U197: =Analysis!F201 -> 7530.776929 | V197: 20039.3889 | W197: 7530.776929 | X197: 6055.575985 | Y197: 4668.03981
R198: =Analysis!E$190 -> Net cashflow after fiscal regime: IOC | S198: =Analysis!G202 -> US$ mn 2021 NPV8 | U198: =Analysis!F202 -> 2826.919873 | V198: 8704.133029 | W198: 2826.919873 | X198: 2146.839678 | Y198: 1511.135285
R199: =Analysis!E$191 -> Lender cashflows after interest withholding tax: IOC parent | S199: =Analysis!G203 -> US$ mn 2021 NPV8 | U199: =Analysis!F203 -> -466.1424144 | V199: 523.4019381 | W199: -466.1424144 | X199: -568.6463599 | Y199: -653.2892063
R200: =Analysis!E$192 -> Investors (IOC + Lender) | S200: =Analysis!G204 -> US$ mn 2021 NPV8 | U200: =Analysis!F204 -> 2360.777459 | V200: 9227.534967 | W200: 2360.777459 | X200: 1578.193318 | Y200: 857.8460785
R201: =Analysis!E$193 -> Project benefits | S201: =Analysis!G205 -> US$ mn 2021 NPV8 | U201: =Analysis!F205 -> 15937.39574 | V201: 38752.02386 | W201: 15937.39574 | X201: 13109.7511 | Y201: 10402.24387
R202: -------------- | S202: -------------- | U202: -------------- | V202: -------------- | W202: -------------- | X202: -------------- | Y202: --------------
R203: =Translate!E$708 -> Average effective tax rate (incl. participation) | S203: ="% " & Inputs!F$91 -> % real | U203: =U197 / U193 -> 0.7535464383 | V203: =V197 / V193 -> 0.684358055 | W203: =W197 / W193 -> 0.7535464383 | X203: =X197 / X193 -> 0.784590197 | Y203: =Y197 / Y193 -> 0.8350507188
R204: =Translate!E707 -> Average effective tax rate (excl. participation) | S204: ="% " & Inputs!F$91 -> % real | U204: =U195 / U193 -> 0.624691808 | V204: =V195 / V193 -> 0.54833656 | W204: =W195 / W193 -> 0.624691808 | X204: =X195 / X193 -> 0.6576468352 | Y204: =Y195 / Y193 -> 0.7106746361
R205: =Translate!E$119 -> Government share of project benefits | S205: ="% " & Inputs!F$91 -> % real | U205: =U197 / U201 -> 0.4725224279 | V205: =V197 / V201 -> 0.5171185115 | W205: =W197 / W201 -> 0.4725224279 | X205: =X197 / X201 -> 0.4619138791 | Y205: =Y197 / Y201 -> 0.4487531602
S207: =Translate!E$604 -> Check | U207: =IF( ABS(U193 + U194 - SUM(U197:U199)) > CHK_TOL, 1, 0) -> 0 | V207: =IF( ABS(V193 + V194 - SUM(V197:V199)) > CHK_TOL, 1, 0) -> 0 | W207: =IF( ABS(W193 + W194 - SUM(W197:W199)) > CHK_TOL, 1, 0) -> 0 | X207: =IF( ABS(X193 + X194 - SUM(X197:X199)) > CHK_TOL, 1, 0) -> 0 | Y207: =IF( ABS(Y193 + Y194 - SUM(Y197:Y199)) > CHK_TOL, 1, 0) -> 0
R210: =Translate!E755 & Translate!E$690 -> Check: Project totals | V210: =IF( SUM(U207:Y207)<CHK_TOL, 0, 1) -> 0 | W210: =Translate!E$604 -> Check
A212: =Translate!E$627 & " (" & Translate!E$628 & ")" -> Expected monetary value (EMV) | F212: =Translate!E$621 -> Return to | G212: =$A$1 -> Dashboard
B214: =Translate!E$629 -> Minimum exploration spend | C214: 150 | D214: =Translate!E$603 -> US$ mn
B215: =Translate!E$630 -> Chance of success | C215: 0.13 | D215: % | I215: =Translate!E$630 -> Chance of success | K215: =Translate!E$637 -> Discovery NPV
B216: =Translate!E$631 -> NPV of success case: Full-cycle | C216: =K9 -> 2360.777459 | D216: =K3 -> US$ mn NPV 8.0 real | I216: =C215 -> 0.13 | K216: =K9 -> 2360.777459
B217: =Translate!E$627 -> Expected monetary value | C217: =C215 * C216 - ( 1 - C215) * C214 -> 176.4010697
M218: =Translate!E$632 -> EMV parameters
M219: 1 | N219: =Translate!E$633 -> Expected discovery size and pre-tax NPV
F220: =Translate!E$627 -> Expected monetary value | G220: =I216 * K216 + I225 * K225 -> 176.4010697 | M220: 2 | N220: =Translate!E$634 -> AETR in success case
M221: 3 | N221: =Translate!E$635 -> Minimum exploration cost
M222: 4 | N222: =Translate!E$636 -> Chance of (commercial) Success
I224: =Translate!E$630 -> Chance of success | K224: =Translate!E$638 -> dry hole
I225: =1 - I216 -> 0.87 | K225: =C214 * -1 -> -150

Sheet Inputs
A1: =RIGHT( CELL("filename",$A$1), LEN( CELL("filename",$A$1)) - SEARCH("]", CELL("filename",$A$1))) -> Inputs | K1: =ProjectCashflows!K$34 -> 2021 | L1: =ProjectCashflows!L$34 -> 2022 | M1: =ProjectCashflows!M$34 -> 2023 | N1: =ProjectCashflows!N$34 -> 2024 | O1: =ProjectCashflows!O$34 -> 2025 | P1: =ProjectCashflows!P$34 -> 2026 | Q1: =ProjectCashflows!Q$34 -> 2027 | R1: =ProjectCashflows!R$34 -> 2028 | S1: =ProjectCashflows!S$34 -> 2029 | T1: =ProjectCashflows!T$34 -> 2030 | U1: =ProjectCashflows!U$34 -> 2031 | V1: =ProjectCashflows!V$34 -> 2032 | W1: =ProjectCashflows!W$34 -> 2033 | X1: =ProjectCashflows!X$34 -> 2034 | Y1: =ProjectCashflows!Y$34 -> 2035 | Z1: =ProjectCashflows!Z$34 -> 2036 | AA1: =ProjectCashflows!AA$34 -> 2037 | AB1: =ProjectCashflows!AB$34 -> 2038 | AC1: =ProjectCashflows!AC$34 -> 2039 | AD1: =ProjectCashflows!AD$34 -> 2040 | AE1: =ProjectCashflows!AE$34 -> 2041 | AF1: =ProjectCashflows!AF$34 -> 2042 | AG1: =ProjectCashflows!AG$34 -> 2043 | AH1: =ProjectCashflows!AH$34 -> 2044 | AI1: =ProjectCashflows!AI$34 -> 2045 | AJ1: =ProjectCashflows!AJ$34 -> 2046 | AK1: =ProjectCashflows!AK$34 -> 2047 | AL1: =ProjectCashflows!AL$34 -> 2048 | AM1: =ProjectCashflows!AM$34 -> 2049 | AN1: =ProjectCashflows!AN$34 -> 2050 | AO1: =ProjectCashflows!AO$34 -> 2051 | AP1: =ProjectCashflows!AP$34 -> 2052 | AQ1: =ProjectCashflows!AQ$34 -> 2053 | AR1: =ProjectCashflows!AR$34 -> 2054 | AS1: =ProjectCashflows!AS$34 -> 2055 | AT1: =ProjectCashflows!AT$34 -> 2056 | AU1: =ProjectCashflows!AU$34 -> 2057 | AV1: =ProjectCashflows!AV$34 -> 2058 | AW1: =ProjectCashflows!AW$34 -> 2059 | AX1: =ProjectCashflows!AX$34 -> 2060
E2: =Translate!E$597 -> Row description | F2: =Translate!E$598 -> Constant | G2: =Translate!E$599 -> Units | H2: =Translate!E$600 -> Comments | I2: =Translate!E$601 -> Total
F3: =ReadMe!$D$7 -> 0 | G3: =ReadMe!$E$7 -> Checks | K3: =Track!F$1 -> 0 | L3: =Track!G$1 -> Track changes
A5: =Translate!E$571 -> Model timeline
E7: =Translate!E550 -> Model first calendar year | F7: 2021 | G7: =Translate!E$609 -> Calendar year
A9: =Translate!E$749 -> Project selection and sensitivities
B11: =Dashboard!B$7 -> Selected project
E12: =Dashboard!B$7 -> Selected project | F12: =Dashboard!C$7 -> 800MMbbl_A | G12: =Dashboard!D$7 -> Option
B14: =Translate!E$760 -> Project data location
E15: =Translate!E$722 -> First row of project data | F15: 9 | G15: =Translate!E$775 -> row
B17: =Translate!$E$776 -> Project list
E18: =Translate!E$112 & " 1" -> Project 1 | F18: ='800MMbbl_A'!A1 -> 800MMbbl_A | G18: =Translate!E$774 -> Name
E19: =Translate!E$112 & " 2" -> Project 2 | F19: ='800MMbbl_B'!A1 -> 800MMbbl_B | G19: =Translate!E$774 -> Name
E20: =Translate!E$112 & " 3" -> Project 3 | F20: ='200MMbbl'!A1 -> 200MMbbl | G20: =Translate!E$774 -> Name
E21: =Translate!E$112 & " 4" -> Project 4 | G21: =Translate!E$774 -> Name
E22: =Translate!E$112 & " 5" -> Project 5 | G22: =Translate!E$774 -> Name
E23: =Translate!E$112 & " 6" -> Project 6 | G23: =Translate!E$774 -> Name
E24: =Translate!E$112 & " 7" -> Project 7 | G24: =Translate!E$774 -> Name
E25: =Translate!E$112 & " 8" -> Project 8 | G25: =Translate!E$774 -> Name
E26: =Translate!E$112 & " 9" -> Project 9 | G26: =Translate!E$774 -> Name
E27: =Translate!E$112 & " 10" -> Project 10 | G27: =Translate!E$774 -> Name
B29: =Translate!$E$682 -> Oil price
E30: =Dashboard!B$9 -> Oil price (constant real terms) | F30: =Dashboard!C$9 -> 55 | G30: =Dashboard!D$9 -> US$ 2021 / bbl
B32: =Translate!$E$777 -> Sensitivity parameters
E33: =Dashboard!B$11 -> Price sensitivity | F33: =Dashboard!C$11 -> 1 | G33: =Dashboard!D$11 -> factor
E34: =Dashboard!B$12 -> Production sensitivity | F34: =Dashboard!C$12 -> 1 | G34: =Dashboard!D$12 -> factor
E35: =Dashboard!B$13 -> Exploration cost sensitivity | F35: =Dashboard!C$13 -> 1 | G35: =Dashboard!D$13 -> factor
E36: =Dashboard!B$14 -> Capex sensitivity (Dev; Replace; Decomm.) | F36: =Dashboard!C$14 -> 1 | G36: =Dashboard!D$14 -> factor
E37: =Dashboard!B$15 -> Operating cost sensitivity | F37: =Dashboard!C$15 -> 1 | G37: =Dashboard!D$15 -> factor
B39: =Translate!$E$47 -> Economic limit test
E40: =Translate!E551 -> ELT applies | F40: yes | G40: =Translate!E$103 -> Option
E41: =Translate!E$755 & " " & Translate!E551 -> Check: ELT applies | F41: =IFERROR(MIN( 0, MATCH(F40,$F$87:$F$88,0) ), 1 ) -> 0 | G41: =Translate!E$604 -> Check
A43: =Translate!E$750 -> Economic assumptions
E45: =Translate!E552 -> Inflation rate | F45: 0.02 | G45: %
E46: =Translate!E$553 & ": " & Inputs!F$91 -> LIBOR: real | F46: 0 | G46: ="% " & Inputs!F$91 -> % real
E47: =Translate!E$553 & ": " & Inputs!F$92 -> LIBOR: nominal | F47: =( 1 + F45 ) * ( 1 + F46 ) - 1 -> 0.02 | G47: %
A49: =Translate!E$751 -> Evaluation parameters
E51: =E$7 -> Model first calendar year | F51: =F$7 -> 2021 | G51: =G$7 -> Calendar year
E52: =Translate!E668 -> Label for real terms cashflows | F52: =Translate!E$603 & " " & F51 -> US$ mn 2021 | G52: =Translate!E$528 -> Label
E54: =Translate!E$43 -> Barrel | F54: =Translate!E$80 -> bbl | G54: =Translate!E$528 -> Label
E55: =Translate!E$748 & ": " & F$92 -> Label for unit cost: nominal | F55: =Translate!E$60 & " / " &F$54 -> US$ / bbl | G55: =Translate!E$528 -> Label
E56: =Translate!E$748 & ": " & F$91 -> Label for unit cost: real | F56: =Translate!E$60 & " " & F$51 & " / " &F$54 -> US$ 2021 / bbl | G56: =Translate!E$528 -> Label
E58: =Dashboard!B$17 -> Discount rate | F58: =Dashboard!C$17 -> 0.08 | G58: =Dashboard!D$17 -> % real
E60: =E$82 -> one hundred | F60: =F$82 -> 100 | G60: =G$82 -> Constant
E61: =Translate!E554 -> Net present value label | F61: =Translate!E$653 -> NPV | G61: =Translate!E$528 -> Label
E62: =Translate!E555 -> NPV label using discount rate | F62: =Translate!E$603 & " " & $F61 & " " & TEXT(F58 * F60, "#.0") & " " & Inputs!F$91 -> US$ mn NPV 8.0 real | G62: =Translate!E$528 -> Label
E63: =Translate!E556 -> Short NPV label | F63: =F61 & F58 * F60 -> NPV8 | G63: =Translate!E$528 -> Label
A65: =Translate!$E$678 -> GHG emissions
E67: =Translate!E557 -> Scope 1: Upstream carbon intensity | F67: 10.3 | G67: =Translate!E$782 -> g CO2 eq/MJ
E68: =Translate!E558 -> Scope 3: Emissions per barrel of oil consumed | F68: 0.43 | G68: =Translate!E$783 -> t CO2/barrel
E69: =Translate!E559 -> BoE energy content | F69: 6120 | G69: =Translate!E$784 -> MJ/BoE
A71: =Translate!E$752 -> Model name and version
E73: Simplified Petroleum FARI model | F73: =Translate!E$774 -> Name
E74: April 2022 | F74: =Translate!E$781 -> Date
E75: =E73 & ": " & E74 -> Simplified Petroleum FARI model: April 2022 | F75: =Translate!E$528 -> Label
A77: =Translate!E$753 -> Technical parameters
E79: =Translate!E560 -> Production days per year | F79: 365 | G79: =Translate!E$778 -> Days
E80: =Translate!E561 -> one million | F80: 1000000 | G80: =Translate!E$598 -> Constant
E81: =Translate!E562 -> one thousand | F81: =10^3 -> 1000 | G81: =Translate!E$598 -> Constant
E82: =Translate!E563 -> one hundred | F82: 100 | G82: =Translate!E$598 -> Constant
E83: =Translate!E564 -> Model check tolerance level | F83: 1e-06 | G83: =Translate!E$779 -> Tolerance
A85: =Translate!E$754 -> Global labels
E87: =Translate!E$528 & ": " & F87 -> Label: yes | F87: =Translate!E$746 -> yes | G87: =Translate!E$528 -> Label
E88: =Translate!E$528 & ": " & F88 -> Label: no | F88: =Translate!E$747 -> no | G88: =Translate!E$528 -> Label
E89: =Translate!E$528 & ": " & F89 -> Label: full-cycle | F89: =Translate!E$812 -> full-cycle | G89: =Translate!E$528 -> Label
E90: =Translate!E$528 & ": " & F90 -> Label: FID forward | F90: =Translate!E$111 -> FID forward | G90: =Translate!E$528 -> Label
E91: =Translate!E$528 & ": " & F91 -> Label: real | F91: =Translate!E$625 -> real | G91: =Translate!E$528 -> Label
E92: =Translate!E$528 & ": " & F92 -> Label: nominal | F92: =Translate!E$739 -> nominal | G92: =Translate!E$528 -> Label
E93: =Translate!E$528 & ": " & F93 -> Label: undiscounted | F93: =Translate!E$59 -> undiscounted | G93: =Translate!E$528 -> Label
E95: =Dashboard!B$5 -> Language | F95: =Dashboard!C$5 -> English | G95: =Dashboard!D$5 -> Option
E96: =Translate!E565 -> English | F96: English | G96: =Translate!E$528 -> Label
E97: =Translate!E566 -> French | F97: French | G97: =Translate!E$528 -> Label
E98: =Translate!E567 -> Spanish | F98: Spanish | G98: =Translate!E$528 -> Label
E99: =F99 -> Other1 | F99: Other1 | G99: =Translate!E$528 -> Label
E100: =F100 -> Other2 | F100: Other2 | G100: =Translate!E$528 -> Label
E101: =Translate!E568 -> Language selected | F101: =MATCH(F95, F96:F100) -> 1 | G101: =Translate!E$780 -> Option selected
A103: =A$1 & ": " & Translate!E$626 -> Inputs: Sheet checks
F105: =Translate!E$651 -> do not delete row
B106: =FiscalModel!F59 -> 0 | E106: =Translate!E$755 & " " & Translate!E$606 -> Check: Translation of options | F106: =F41 -> 0 | G106: =Translate!E$604 -> Check
F107: =Translate!E$651 -> do not delete row
E108: =Translate!E$604 & ": " & A$1 -> Check: Inputs | F108: =SUM(F105:F107) -> 0 | G108: =Translate!E$604 -> Check

Sheet FiscalModel
A1: =RIGHT( CELL("filename",$A$1), LEN( CELL("filename",$A$1)) - SEARCH("]", CELL("filename",$A$1))) -> FiscalModel | K1: =ProjectCashflows!K$34 -> 2021 | L1: =ProjectCashflows!L$34 -> 2022 | M1: =ProjectCashflows!M$34 -> 2023 | N1: =ProjectCashflows!N$34 -> 2024 | O1: =ProjectCashflows!O$34 -> 2025 | P1: =ProjectCashflows!P$34 -> 2026 | Q1: =ProjectCashflows!Q$34 -> 2027 | R1: =ProjectCashflows!R$34 -> 2028 | S1: =ProjectCashflows!S$34 -> 2029 | T1: =ProjectCashflows!T$34 -> 2030 | U1: =ProjectCashflows!U$34 -> 2031 | V1: =ProjectCashflows!V$34 -> 2032 | W1: =ProjectCashflows!W$34 -> 2033 | X1: =ProjectCashflows!X$34 -> 2034 | Y1: =ProjectCashflows!Y$34 -> 2035 | Z1: =ProjectCashflows!Z$34 -> 2036 | AA1: =ProjectCashflows!AA$34 -> 2037 | AB1: =ProjectCashflows!AB$34 -> 2038 | AC1: =ProjectCashflows!AC$34 -> 2039 | AD1: =ProjectCashflows!AD$34 -> 2040 | AE1: =ProjectCashflows!AE$34 -> 2041 | AF1: =ProjectCashflows!AF$34 -> 2042 | AG1: =ProjectCashflows!AG$34 -> 2043 | AH1: =ProjectCashflows!AH$34 -> 2044 | AI1: =ProjectCashflows!AI$34 -> 2045 | AJ1: =ProjectCashflows!AJ$34 -> 2046 | AK1: =ProjectCashflows!AK$34 -> 2047 | AL1: =ProjectCashflows!AL$34 -> 2048 | AM1: =ProjectCashflows!AM$34 -> 2049 | AN1: =ProjectCashflows!AN$34 -> 2050 | AO1: =ProjectCashflows!AO$34 -> 2051 | AP1: =ProjectCashflows!AP$34 -> 2052 | AQ1: =ProjectCashflows!AQ$34 -> 2053 | AR1: =ProjectCashflows!AR$34 -> 2054 | AS1: =ProjectCashflows!AS$34 -> 2055 | AT1: =ProjectCashflows!AT$34 -> 2056 | AU1: =ProjectCashflows!AU$34 -> 2057 | AV1: =ProjectCashflows!AV$34 -> 2058 | AW1: =ProjectCashflows!AW$34 -> 2059 | AX1: =ProjectCashflows!AX$34 -> 2060
E2: =Translate!E$597 -> Row description | F2: =Translate!E$598 -> Constant | G2: =Translate!E$599 -> Units | H2: =Translate!E$600 -> Comments | I2: =Translate!E$601 -> Total
F3: =ReadMe!$D$7 -> 0 | G3: =ReadMe!$E$7 -> Checks | K3: =Track!F$1 -> 0 | L3: =Track!G$1 -> Track changes
A4: =Translate!E$96 -> Fiscal regime parameters
B6: =Translate!E$606 -> Translation of options
E7: =Translate!E$755 & " " & Translate!E$606 -> Check: Translation of options | F7: =MIN( 1, SUM(I16:I94)) -> 0 | G7: =Translate!E$604 -> Check
B9: =Translate!E$95 -> Fiscal regime selection | K9: =Translate!E$602 -> alternative sets of fiscal paramemters
E10: =Translate!E$92 -> Regime number | G10: =Translate!E$94 -> number | K10: =J10 + 1 -> 1 | L10: 2 | M10: 3 | N10: 4 | O10: 5 | P10: 6 | Q10: 7 | R10: 8 | S10: 9 | T10: 10 | U10: 11 | V10: 12 | W10: 13 | X10: 14 | Y10: 15 | Z10: 16 | AA10: 17 | AB10: 18 | AC10: 19 | AD10: 20 | AE10: 21 | AF10: 22 | AG10: 23 | AH10: 24 | AI10: 25 | AJ10: 26 | AK10: 27 | AL10: 28 | AM10: 29 | AN10: 30 | AO10: 31 | AP10: 32 | AQ10: 33 | AR10: 34 | AS10: 35 | AT10: 36 | AU10: 37 | AV10: 38 | AW10: 39 | AX10: 40
E11: =Translate!E$93 -> Regime name | G11: =Translate!E$93 -> Regime name | K11: Royalty + CIT | L11: RRT | M11: Royalty + CIT, no debt | N11: DROP PSC | O11: R-factor PSC
E12: =Dashboard!B$6 -> Fiscal regime selected | F12: =Dashboard!C$6 -> Royalty + CIT | G12: =Dashboard!D$6 -> Option
E13: =Translate!E$97 -> Selected regime number | F13: =MATCH( $F12, K11:AX11, 0) -> 1 | G13: =Translate!E$92 -> Regime number
A14: =Translate!E$596 -> TOP OF FISCAL REGIME PARAMETERS
B15: =Translate!E123 -> Bonus
E16: =Translate!E124 -> Signature bonus (first period of activity) | F16: =INDEX(K16:AX16,$F$13) -> 10 | G16: =Translate!E$603 -> US$ mn | H16: =Translate!E192 -> incurred in period of first project activity | K16: 10 | L16: 10 | M16: 10 | N16: 10 | O16: 10
E17: =Translate!E125 -> Production bonus (start of production) | F17: =INDEX(K17:AX17,$F$13) -> 50 | G17: =Translate!E$603 -> US$ mn | H17: =Translate!E193 -> start of production | K17: 50 | L17: 50 | M17: 50 | N17: 50 | O17: 50
E18: =Translate!E126 -> Bonuses cost recoverable and CIT and RRT deductible | F18: =INDEX(K18:AX18,$F$13) -> no | G18: =Translate!E$103 -> Option | H18: =Translate!E194 -> expensed for cost if recoverable, depreciated for CIT if deductible, expensed for RRT if deductible | I18: =MAX(0,IFERROR(MIN( 0, IF(K18:AX18<>"",MATCH(K18:AX18,$F$770:$F$771,0),0) ),1)) -> 0 | K18: no | L18: no | M18: no | N18: no | O18: no
B19: =Translate!E127 -> Royalty
E20: =Translate!E128 -> Royalty rate | F20: =INDEX(K20:AX20,$F$13) -> 0.2 | G20: % | K20: 0.2 | L20: 0.05 | M20: 0.15 | N20: 0.08 | O20: 0.08
E21: =Translate!E129 -> Additional royalty rate above price threshold | F21: =INDEX(K21:AX21,$F$13) -> 0 | G21: % | H21: =Translate!E195 -> Applies in addition to any flat royalty
E22: =Translate!E130 -> Threshold for price royalty (0 = no price royalty) | F22: =INDEX(K22:AX22,$F$13) -> 0 | G22: =Inputs!F$55 -> US$ / bbl
E23: =Translate!E131 -> Price threshold inflation indexed | F23: =INDEX(K23:AX23,$F$13) -> 0 | G23: =Translate!E$103 -> Option | H23: =Translate!E196 -> yes or no | I23: =MAX(0,IFERROR(MIN( 0, IF(K23:AX23<>"",MATCH(K23:AX23,$F$194:$F$195,0),0) ),1)) -> 0 | O23: yes
E24: =Translate!E132 -> Royalty base (net/gross) | F24: =INDEX(K24:AX24,$F$13) -> net | G24: =Translate!E$607 -> Switch | H24: =Translate!E197 -> net = revenues less downstream/post-fiscal costs | I24: =MAX(0,IFERROR(MIN( 0, IF(K24:AX24<>"",MATCH(K24:AX24,$F$181:$F$182,0),0) ),1)) -> 0 | K24: net | L24: net | M24: net | N24: net | O24: net
E25: =Translate!E135 -> Royalty, CIT and RRT deductible | F25: =INDEX(K25:AX25,$F$13) -> yes | G25: =Translate!E$103 -> Option | H25: =Translate!E198 -> only relevant for tax/royalty regimes | I25: =MAX(0,IFERROR(MIN( 0, IF(K25:AX25<>"",MATCH(K25:AX25,$F$855:$F$856,0),0) ),1)) -> 0 | K25: yes | L25: yes | M25: yes | N25: yes | O25: yes
B26: =Translate!E136 -> Carbon tax
E27: =Translate!E137 -> Tax per ton of CO2 eq emitted in start year | F27: =INDEX(K27:AX27,$F$13) -> 20 | G27: =Translate!E$610 -> US$ / t CO2 eq | K27: 20 | L27: 20 | M27: 20 | N27: 20 | O27: 20
E28: =Translate!E138 -> Start year of carbon tax (0=from beginning) | F28: =INDEX(K28:AX28,$F$13) -> 0 | G28: =Translate!E$609 -> Calendar year | K28: 0 | L28: 0 | M28: 0 | N28: 0 | O28: 0
E29: =Translate!E139 -> Carbon tax in real or nominal terms | F29: =INDEX(K29:AX29,$F$13) -> nominal | G29: =Translate!E$103 -> Option | H29: =Translate!E199 -> Real, Nominal; assumed nominal if empty | I29: =MAX(0,IFERROR(MIN( 0, IF(K29:AX29<>"",MATCH(K29:AX29,$F$244:$F$245,0),0) ),1)) -> 0 | K29: nominal | L29: nominal | M29: nominal | N29: nominal | O29: nominal
E30: =Translate!E140 -> Method to change carbon tax over time | F30: =INDEX(K30:AX30,$F$13) -> Percentage | G30: =Translate!E$103 -> Option | H30: =Translate!E200 -> Percentage, TargetYear; assumed percentage if empty | I30: =MAX(0,IFERROR(MIN( 0, IF(K30:AX30<>"",MATCH(K30:AX30,$F$283:$F$284,0),0) ),1)) -> 0 | K30: Percentage | L30: Percentage | M30: Percentage | N30: Percentage | O30: Percentage
E31: =Translate!E141 -> Percentage - Annual increase above inflation | F31: =INDEX(K31:AX31,$F$13) -> 0 | G31: % | H31: =Translate!E201 -> 0 if a constant tax level; percentage relative to carbon price in the first year
E32: =Translate!E142 -> TargetYear - Tax per CO2 eq emitted in future year | F32: =INDEX(K32:AX32,$F$13) -> 0 | G32: =Translate!E$610 -> US$ / t CO2 eq
E33: =Translate!E143 -> TargetYear - Year in which Tax reaches target level | F33: =INDEX(K33:AX33,$F$13) -> 0 | G33: =Translate!E$609 -> Calendar year
E34: =Translate!E144 -> Carbon tax imposed on scope 3 emissions levied on investor | F34: =INDEX(K34:AX34,$F$13) -> no | G34: =Translate!E$103 -> Option | H34: =Translate!E202 -> no entry means not directly levied on investor | I34: =MAX(0,IFERROR(MIN( 0, IF(K34:AX34<>"",MATCH(K34:AX34,$F$229:$F$230,0),0) ),1)) -> 0 | K34: no | L34: no | M34: no | N34: no | O34: no
E35: =Translate!E145 -> Carbon tax cost recoverable and CIT and RRT deductible | F35: =INDEX(K35:AX35,$F$13) -> yes | G35: =Translate!E$103 -> Option | H35: =Translate!E203 -> no entry means not cost recoverable or CIT and RRT deductible | I35: =MAX(0,IFERROR(MIN( 0, IF(K35:AX35<>"",MATCH(K35:AX35,$F$862:$F$863,0),0) ),1)) -> 0 | K35: yes | L35: yes | M35: yes | N35: yes | O35: yes
B36: =Translate!E$146 -> Decommissioning
E37: =Translate!E147 -> Decommissioning fund | F37: =INDEX(K37:AX37,$F$13) -> yes | G37: =Translate!E$607 -> Switch | H37: =Translate!E204 -> no entry means no decommissioning fund | I37: =MAX(0,IFERROR(MIN( 0, IF(K37:AX37<>"",MATCH(K37:AX37,$F$118:$F$119,0),0) ),1)) -> 0 | K37: yes | L37: yes | M37: yes | N37: yes | O37: yes
E38: =Translate!E148 -> Commencement of decommissioning provision | F38: =INDEX(K38:AX38,$F$13) -> 0.5 | G38: =Translate!E401 -> % depletion | H38: =Translate!E205 -> 0 = from start of production | K38: 0.5 | L38: 0.5 | M38: 0.5 | N38: 0.5 | O38: 0.5
B39: =Translate!E149 -> Regime type
E40: =Translate!E149 -> Regime type | F40: =INDEX(K40:AX40,$F$13) -> T&R | G40: =Translate!E$607 -> Switch | H40: =Translate!E206 -> Overall regime configuration | I40: =MAX(0,IFERROR(MIN( 0, IF(K40:AX40<>"",MATCH(K40:AX40,$F$422:$F$423,0),0) ),1)) -> 0 | K40: T&R | L40: T&R | M40: T&R | N40: PSC | O40: PSC
B41: =Translate!E150 -> Production sharing: Cost recovery
E42: =Translate!E151 -> Cost recovery limit | F42: =INDEX(K42:AX42,$F$13) -> 0 | G42: % | H42: =Translate!E207 -> % of revenues after royalty | N42: 0.8 | O42: 0.8
E43: =Translate!E152 -> Interest cost recoverable | F43: =INDEX(K43:AX43,$F$13) -> no | G43: =Translate!E$607 -> Switch | H43: =Translate!E208 -> no entry means not recoverable | I43: =MAX(0,IFERROR(MIN( 0, IF(K43:AX43<>"",MATCH(K43:AX43,$F$462:$F$463,0),0) ),1)) -> 0 | K43: no | L43: no | M43: no | N43: no | O43: no
E44: =Translate!E$295 -> Uplift on unrecovered costs | F44: =INDEX(K44:AX44,$F$13) -> 0 | G44: % | H44: =Translate!E209 -> % added to unrecovered cost balance
E45: =Translate!E153 -> Uplift limit (production years) | F45: =INDEX(K45:AX45,$F$13) -> 0 | G45: =Translate!E$608 -> Year | H45: =Translate!E210 -> time limit on uplift | I45: =MAX(0,IFERROR(MIN( 0, IF(K45:AX45<>"",MATCH(K45:AX45,$F$509:$F$510,0),0) ),1)) -> 0
B46: =Translate!E154 -> Production sharing: Profit oil
E47: =Translate!E155 -> Selected profit oil sharing method | F47: =INDEX(K47:AX47,$F$13) -> 0 | G47: =Translate!E$607 -> Switch | H47: =Translate!E211 -> must enter value if PSC | I47: =MAX(0,IFERROR(MIN( 0, IF(K47:AX47<>"",MATCH(K47:AX47,$F$642:$F$645,0),0) ),1)) -> 0 | N47: DROP | O47: R-Factor
C48: =Translate!$E$156 -> DROP tiers | H48: =Translate!E212 -> Daily rate of production
E49: =Translate!E$157 & " 1" -> DROP tier 1 | F49: =INDEX(K49:AX49,$F$13) -> 0 | G49: =Translate!E$611 -> KBOPD | N49: 20
E50: =Translate!E$157 & " 2" -> DROP tier 2 | F50: =INDEX(K50:AX50,$F$13) -> 0 | G50: =Translate!E$611 -> KBOPD | N50: =N49+50 -> 70
E51: =Translate!E$157 & " 3" -> DROP tier 3 | F51: =INDEX(K51:AX51,$F$13) -> 0 | G51: =Translate!E$611 -> KBOPD | N51: =N50+50 -> 120
E52: =Translate!E$157 & " 4" -> DROP tier 4 | F52: =INDEX(K52:AX52,$F$13) -> 0 | G52: =Translate!E$611 -> KBOPD | N52: =N51+50 -> 170
C53: =Translate!E$158 -> R-Factor tiers | H53: =Translate!E213 -> Ratio of cumulative revenues to cumulative costs
E54: =Translate!E$159 & " 1" -> R-Factor tier 1 | F54: =INDEX(K54:AX54,$F$13) -> 0 | G54: =Translate!$E$402 -> R-Factor ratio | O54: 1
E55: =Translate!E$159 & " 2" -> R-Factor tier 2 | F55: =INDEX(K55:AX55,$F$13) -> 0 | G55: =Translate!$E$402 -> R-Factor ratio | O55: 2
E56: =Translate!E$159 & " 3" -> R-Factor tier 3 | F56: =INDEX(K56:AX56,$F$13) -> 0 | G56: =Translate!$E$402 -> R-Factor ratio | O56: 3
E57: =Translate!E$159 & " 4" -> R-Factor tier 4 | F57: =INDEX(K57:AX57,$F$13) -> 0 | G57: =Translate!$E$402 -> R-Factor ratio | O57: 4
C58: =Translate!$E$617 -> Government share of profit oil
E59: =Translate!E$160 & " 1" -> Government profit oil share tier 1 | F59: =INDEX(K59:AX59,$F$13) -> 0 | G59: % | N59: 0.2 | O59: 0.2
E60: =Translate!E$160 & " 2" -> Government profit oil share tier 2 | F60: =INDEX(K60:AX60,$F$13) -> 0 | G60: % | N60: =N59 + 10% -> 0.3 | O60: =O59 + 10% -> 0.3
E61: =Translate!E$160 & " 3" -> Government profit oil share tier 3 | F61: =INDEX(K61:AX61,$F$13) -> 0 | G61: % | N61: =N60 + 10% -> 0.4 | O61: 0.4
E62: =Translate!E$160 & " 4" -> Government profit oil share tier 4 | F62: =INDEX(K62:AX62,$F$13) -> 0 | G62: % | N62: 0.5 | O62: 0.5
E63: =Translate!E$160 & " 5" -> Government profit oil share tier 5 | F63: =INDEX(K63:AX63,$F$13) -> 0 | G63: % | N63: 0.6 | O63: 0.6
B64: =Translate!E161 & " (" & Translate!E732 & ")" -> Corporate income tax (CIT)
E65: =Translate!E162 -> CIT rate | F65: =INDEX(K65:AX65,$F$13) -> 0.35 | G65: % | K65: 0.35 | L65: 0.3 | M65: 0.4 | N65: 0.3 | O65: 0.3
E66: =Translate!E163 -> Exploration costs depreciated or deducted immediately | F66: =INDEX(K66:AX66,$F$13) -> expensed | G66: =Translate!E$103 -> Option | H66: =Translate!E$214 -> must enter value | I66: =MAX(0,IFERROR(MIN( 0, IF(K66:AX66<>"",MATCH(K66:AX66,$F$761:$F$762,0),0) ),1)) -> 0 | K66: expensed | L66: expensed | M66: expensed | N66: expensed | O66: expensed
E67: =Translate!E164 -> Depreciation starts from | F67: =INDEX(K67:AX67,$F$13) -> Production | G67: =Translate!E$103 -> Option | H67: =Translate!E$214 -> must enter value | I67: =MAX(0,IFERROR(MIN( 0, IF(K67:AX67<>"",MATCH(K67:AX67,$F$795:$F$796,0),0) ),1)) -> 0 | K67: Production | L67: Production | M67: Production | N67: Production | O67: Production
E68: =Translate!E165 -> Development costs and replacement capital depreciation | F68: =INDEX(K68:AX68,$F$13) -> 5 | G68: =Translate!E$608 -> Year | K68: 5 | L68: 5 | M68: 5 | N68: 5 | O68: 5
B69: =Translate!E166 & " (" & Translate!E$731 & ")" -> Resource rent tax (RRT) | H69: =Translate!E215 -> Cashflow RRT
E70: =Translate!E167 -> Uplift on negative cashflows | F70: =INDEX(K70:AX70,$F$13) -> 0 | G70: % | L70: 0.1
E71: =Translate!E168 -> CIT deductible for RRT | F71: =INDEX(K71:AX71,$F$13) -> 0 | G71: =Translate!E$103 -> Option | H71: =Translate!E216 -> no entry means before CIT; CIT non-deductible means RRT deducted for CIT | I71: =MAX(0,IFERROR(MIN( 0, IF(K71:AX71<>"",MATCH(K71:AX71,$F$936:$F$937,0),0) ),1)) -> 0 | L71: yes
E72: =Translate!E169 -> RRT tax rate | F72: =INDEX(K72:AX72,$F$13) -> 0 | G72: % | L72: 0.45
B73: =Translate!E170 -> Withholding tax on dividends and interest
E74: =Translate!E$375 -> Dividend withholding tax | F74: =INDEX(K74:AX74,$F$13) -> 0.1 | G74: % | H74: =Translate!E217 -> paid when cumulative equity cashflow positive | K74: 0.1 | L74: 0.1 | M74: 0.1 | N74: 0.1 | O74: 0.1
E75: =Translate!E171 -> Interest withholding tax | F75: =INDEX(K75:AX75,$F$13) -> 0.1 | G75: % | K75: 0.1 | L75: 0.1 | M75: 0.1 | N75: 0.1 | O75: 0.1
B76: =Translate!E172 -> SOC participation in JV
E77: =Translate!E173 -> State participation | F77: =INDEX(K77:AX77,$F$13) -> 0.2 | G77: % | H77: =Translate!E218 -> % share in JV | K77: 0.2 | L77: 0.1 | M77: 0.2 | N77: 0.1 | O77: 0.1
E78: =Translate!E175 -> SOC in PSC shares profit oil only | F78: =INDEX(K78:AX78,$F$13) -> 0 | G78: =Translate!E$103 -> Option | H78: =Translate!E219 -> State takes no share of costs; PSC only | I78: =MAX(0,IFERROR(MIN( 0, IF(K78:AX78<>"",MATCH(K78:AX78,$F$718:$F$719,0),0) ),1)) -> 0
E79: =Translate!E176 -> SOC meets exploration costs | F79: no | G79: =Translate!E$103 -> Option | H79: =Translate!E220 -> no entry means state does not pay for exploration | I79: =MAX(0,IFERROR(MIN( 0, IF(K79:AX79<>"",MATCH(K79:AX79,$F$718:$F$719,0),0) ),1)) -> 0 | K79: no | L79: no | M79: no | N79: no | O79: no
E80: =Translate!E177 -> SOC meets development costs | F80: yes | G80: =Translate!E$103 -> Option | H80: =Translate!E221 -> no entry means state does not pay for development | I80: =MAX(0,IFERROR(MIN( 0, IF(K80:AX80<>"",MATCH(K80:AX80,$F$718:$F$719,0),0) ),1)) -> 0 | K80: yes | L80: yes | M80: yes | N80: yes | O80: yes
E81: =Translate!E178 -> Carried interest: Proportion of SOC negative cashflows financed by IOC | F81: 1 | G81: % | K81: 1 | L81: 1 | M81: 1 | N81: 1 | O81: 1
E82: =Translate!E179 -> Carried interest: financing by IOC till prod. year | F82: 2 | G82: =Translate!E$608 -> Year | K82: 2 | L82: 2 | M82: 2 | N82: 2 | O82: 2
E83: =Translate!E180 -> Carried interest: Interest rate margin above LIBOR | F83: 0.03 | G83: % | K83: 0.03 | L83: 0.03 | M83: 0.03 | N83: 0.03 | O83: 0.03
E84: =Translate!E181 -> Carried interest: Proportion SOC cashflows used to repay | F84: 1 | G84: % | K84: 1 | L84: 1 | M84: 1 | N84: 1 | O84: 1
B85: =Translate!E182 -> Financing assumptions (assumes joint or equivalent financing by SOC and IOC)
E86: =Translate!E183 -> Proportion development costs borrowed | F86: =INDEX(K86:AX86,$F$13) -> 0.7 | G86: % | K86: 0.7 | L86: 0.7 | M86: 0 | N86: 0.7 | O86: 0.7
E87: =Translate!E184 -> Repayment period (yrs after financing period) | F87: =INDEX(K87:AX87,$F$13) -> 10 | G87: =Translate!E$608 -> Year | K87: 10 | L87: 10 | M87: 10 | N87: 10 | O87: 10
E88: =Translate!E185 -> Loan real interest rate | F88: =INDEX(K88:AX88,$F$13) -> 0.03 | G88: % | K88: 0.03 | L88: 0.03 | M88: 0.03 | N88: 0.03 | O88: 0.03
B89: =Translate!E$186 & " (" & Translate!E$729 & ")" -> Value added tax (VAT)
E90: =Translate!E187 -> VAT rate | F90: =INDEX(K90:AX90,$F$13) -> 0 | G90: %
E91: =Translate!E188 -> % Exploration & capex subject to VAT | F91: =INDEX(K91:AX91,$F$13) -> 0 | G91: %
E92: =Translate!E189 -> % opex subject to VAT | F92: =INDEX(K92:AX92,$F$13) -> 0 | G92: %
E93: =Translate!E190 -> VAT refund delay | F93: =INDEX(K93:AX93,$F$13) -> 0 | G93: =Translate!E404 -> Months
E94: =Translate!E191 -> VAT applicable from | F94: =INDEX(K94:AX94,$F$13) -> 0 | G94: =Translate!E$103 -> Option | I94: =MAX(0,IFERROR(MIN( 0, IF(K94:AX94<>"",MATCH(K94:AX94,$F$952:$F$954,0),0) ),1)) -> 0
A95: =Translate!E$605 -> Bottom of fiscal regime parameters
A97: =Translate!$E$147 -> Decommissioning fund
B99: =Translate!$E$410 -> Determine start of contributions
E100: =ProjectCashflows!E$132 -> Oil production Volume after ELT | F100: =ProjectCashflows!F$132 -> 0 | G100: =ProjectCashflows!G$132 -> Mn Bbl | H100: =ProjectCashflows!H$132 -> 0 | I100: =ProjectCashflows!I$132 -> 801.8731611 | J100: =ProjectCashflows!J$132 -> 0 | K100: =ProjectCashflows!K$132 -> 0 | L100: =ProjectCashflows!L$132 -> 0 | M100: =ProjectCashflows!M$132 -> 0 | N100: =ProjectCashflows!N$132 -> 0 | O100: =ProjectCashflows!O$132 -> 3.484697421 | P100: =ProjectCashflows!P$132 -> 27.375 | Q100: =ProjectCashflows!Q$132 -> 54.75 | R100: =ProjectCashflows!R$132 -> 54.75 | S100: =ProjectCashflows!S$132 -> 54.75 | T100: =ProjectCashflows!T$132 -> 54.75 | U100: =ProjectCashflows!U$132 -> 54.75 | V100: =ProjectCashflows!V$132 -> 54.75 | W100: =ProjectCashflows!W$132 -> 54.75 | X100: =ProjectCashflows!X$132 -> 54.75 | Y100: =ProjectCashflows!Y$132 -> 54.75 | Z100: =ProjectCashflows!Z$132 -> 54.75 | AA100: =ProjectCashflows!AA$132 -> 44.3475 | AB100: =ProjectCashflows!AB$132 -> 35.921475 | AC100: =ProjectCashflows!AC$132 -> 29.09639475 | AD100: =ProjectCashflows!AD$132 -> 23.56807975 | AE100: =ProjectCashflows!AE$132 -> 19.0901446 | AF100: =ProjectCashflows!AF$132 -> 15.46301712 | AG100: =ProjectCashflows!AG$132 -> 12.52504387 | AH100: =ProjectCashflows!AH$132 -> 10.14528553 | AI100: =ProjectCashflows!AI$132 -> 8.217681283 | AJ100: =ProjectCashflows!AJ$132 -> 6.656321839 | AK100: =ProjectCashflows!AK$132 -> 5.391620689 | AL100: =ProjectCashflows!AL$132 -> 4.367212758 | AM100: =ProjectCashflows!AM$132 -> 3.537442334 | AN100: =ProjectCashflows!AN$132 -> 2.865328291 | AO100: =ProjectCashflows!AO$132 -> 2.320915916 | AP100: =ProjectCashflows!AP$132 -> 0 | AQ100: =ProjectCashflows!AQ$132 -> 0 | AR100: =ProjectCashflows!AR$132 -> 0 | AS100: =ProjectCashflows!AS$132 -> 0 | AT100: =ProjectCashflows!AT$132 -> 0 | AU100: =ProjectCashflows!AU$132 -> 0 | AV100: =ProjectCashflows!AV$132 -> 0 | AW100: =ProjectCashflows!AW$132 -> 0 | AX100: =ProjectCashflows!AX$132 -> 0
E101: =Translate!E$601 & ": " & E100 -> Total: Oil production Volume after ELT | F101: =SUM(K100:AX100) -> 801.8731611 | G101: =G100 -> Mn Bbl
E102: =Translate!E222 -> Proportion reserves produced | G102: % | K102: =SUM($J100:K100) / $F101 -> 0 | L102: =SUM($J100:L100) / $F101 -> 0 | M102: =SUM($J100:M100) / $F101 -> 0 | N102: =SUM($J100:N100) / $F101 -> 0 | O102: =SUM($J100:O100) / $F101 -> 0.004345696539 | P102: =SUM($J100:P100) / $F101 -> 0.03848451216 | Q102: =SUM($J100:Q100) / $F101 -> 0.1067621434 | R102: =SUM($J100:R100) / $F101 -> 0.1750397746 | S102: =SUM($J100:S100) / $F101 -> 0.2433174059 | T102: =SUM($J100:T100) / $F101 -> 0.3115950371 | U102: =SUM($J100:U100) / $F101 -> 0.3798726684 | V102: =SUM($J100:V100) / $F101 -> 0.4481502996 | W102: =SUM($J100:W100) / $F101 -> 0.5164279309 | X102: =SUM($J100:X100) / $F101 -> 0.5847055621 | Y102: =SUM($J100:Y100) / $F101 -> 0.6529831933 | Z102: =SUM($J100:Z100) / $F101 -> 0.7212608246 | AA102: =SUM($J100:AA100) / $F101 -> 0.7765657059 | AB102: =SUM($J100:AB100) / $F101 -> 0.8213626597 | AC102: =SUM($J100:AC100) / $F101 -> 0.8576481924 | AD102: =SUM($J100:AD100) / $F101 -> 0.8870394738 | AE102: =SUM($J100:AE100) / $F101 -> 0.9108464118 | AF102: =SUM($J100:AF100) / $F101 -> 0.9301300315 | AG102: =SUM($J100:AG100) / $F101 -> 0.9457497635 | AH102: =SUM($J100:AH100) / $F101 -> 0.9584017464 | AI102: =SUM($J100:AI100) / $F101 -> 0.9686498526 | AJ102: =SUM($J100:AJ100) / $F101 -> 0.9769508186 | AK102: =SUM($J100:AK100) / $F101 -> 0.983674601 | AL102: =SUM($J100:AL100) / $F101 -> 0.9891208648 | AM102: =SUM($J100:AM100) / $F101 -> 0.9935323385 | AN102: =SUM($J100:AN100) / $F101 -> 0.9971056321 | AO102: =SUM($J100:AO100) / $F101 -> 1 | AP102: =SUM($J100:AP100) / $F101 -> 1 | AQ102: =SUM($J100:AQ100) / $F101 -> 1 | AR102: =SUM($J100:AR100) / $F101 -> 1 | AS102: =SUM($J100:AS100) / $F101 -> 1 | AT102: =SUM($J100:AT100) / $F101 -> 1 | AU102: =SUM($J100:AU100) / $F101 -> 1 | AV102: =SUM($J100:AV100) / $F101 -> 1 | AW102: =SUM($J100:AW100) / $F101 -> 1 | AX102: =SUM($J100:AX100) / $F101 -> 1
E104: =ProjectCashflows!E$242 -> Decommissioning costs, after ELT | F104: =ProjectCashflows!F$242 -> 0 | G104: =ProjectCashflows!G$242 -> US$ mn | H104: =ProjectCashflows!H$242 -> 0 | I104: =ProjectCashflows!I$242 -> 1359.753971 | J104: =ProjectCashflows!J$242 -> 0 | K104: =ProjectCashflows!K$242 -> 0 | L104: =ProjectCashflows!L$242 -> 0 | M104: =ProjectCashflows!M$242 -> 0 | N104: =ProjectCashflows!N$242 -> 0 | O104: =ProjectCashflows!O$242 -> 0 | P104: =ProjectCashflows!P$242 -> 0 | Q104: =ProjectCashflows!Q$242 -> 0 | R104: =ProjectCashflows!R$242 -> 0 | S104: =ProjectCashflows!S$242 -> 0 | T104: =ProjectCashflows!T$242 -> 0 | U104: =ProjectCashflows!U$242 -> 0 | V104: =ProjectCashflows!V$242 -> 0 | W104: =ProjectCashflows!W$242 -> 0 | X104: =ProjectCashflows!X$242 -> 0 | Y104: =ProjectCashflows!Y$242 -> 0 | Z104: =ProjectCashflows!Z$242 -> 0 | AA104: =ProjectCashflows!AA$242 -> 0 | AB104: =ProjectCashflows!AB$242 -> 0 | AC104: =ProjectCashflows!AC$242 -> 0 | AD104: =ProjectCashflows!AD$242 -> 0 | AE104: =ProjectCashflows!AE$242 -> 0 | AF104: =ProjectCashflows!AF$242 -> 0 | AG104: =ProjectCashflows!AG$242 -> 0 | AH104: =ProjectCashflows!AH$242 -> 0 | AI104: =ProjectCashflows!AI$242 -> 0 | AJ104: =ProjectCashflows!AJ$242 -> 0 | AK104: =ProjectCashflows!AK$242 -> 0 | AL104: =ProjectCashflows!AL$242 -> 426.7216192 | AM104: =ProjectCashflows!AM$242 -> 0 | AN104: =ProjectCashflows!AN$242 -> 0 | AO104: =ProjectCashflows!AO$242 -> 0 | AP104: =ProjectCashflows!AP$242 -> 461.8972039 | AQ104: =ProjectCashflows!AQ$242 -> 471.135148 | AR104: =ProjectCashflows!AR$242 -> 0 | AS104: =ProjectCashflows!AS$242 -> 0 | AT104: =ProjectCashflows!AT$242 -> 0 | AU104: =ProjectCashflows!AU$242 -> 0 | AV104: =ProjectCashflows!AV$242 -> 0 | AW104: =ProjectCashflows!AW$242 -> 0 | AX104: =ProjectCashflows!AX$242 -> 0
E105: =Translate!E$601 & ": " & E104 -> Total: Decommissioning costs, after ELT | F105: =SUM(K104:AX104) -> 1359.753971 | G105: =G104 -> US$ mn
E107: =FiscalModel!E$38 -> Commencement of decommissioning provision | F107: =FiscalModel!F$38 -> 0.5 | G107: =FiscalModel!G$38 -> % depletion
E108: =ProjectCashflows!E$180 -> Production years, after ELT | F108: =ProjectCashflows!F$180 -> 0 | G108: =ProjectCashflows!G$180 -> Year | H108: =ProjectCashflows!H$180 -> 0 | I108: =ProjectCashflows!I$180 -> 0 | J108: =ProjectCashflows!J$180 -> 0 | K108: =ProjectCashflows!K$180 -> 0 | L108: =ProjectCashflows!L$180 -> 0 | M108: =ProjectCashflows!M$180 -> 0 | N108: =ProjectCashflows!N$180 -> 0 | O108: =ProjectCashflows!O$180 -> 1 | P108: =ProjectCashflows!P$180 -> 1 | Q108: =ProjectCashflows!Q$180 -> 1 | R108: =ProjectCashflows!R$180 -> 1 | S108: =ProjectCashflows!S$180 -> 1 | T108: =ProjectCashflows!T$180 -> 1 | U108: =ProjectCashflows!U$180 -> 1 | V108: =ProjectCashflows!V$180 -> 1 | W108: =ProjectCashflows!W$180 -> 1 | X108: =ProjectCashflows!X$180 -> 1 | Y108: =ProjectCashflows!Y$180 -> 1 | Z108: =ProjectCashflows!Z$180 -> 1 | AA108: =ProjectCashflows!AA$180 -> 1 | AB108: =ProjectCashflows!AB$180 -> 1 | AC108: =ProjectCashflows!AC$180 -> 1 | AD108: =ProjectCashflows!AD$180 -> 1 | AE108: =ProjectCashflows!AE$180 -> 1 | AF108: =ProjectCashflows!AF$180 -> 1 | AG108: =ProjectCashflows!AG$180 -> 1 | AH108: =ProjectCashflows!AH$180 -> 1 | AI108: =ProjectCashflows!AI$180 -> 1 | AJ108: =ProjectCashflows!AJ$180 -> 1 | AK108: =ProjectCashflows!AK$180 -> 1 | AL108: =ProjectCashflows!AL$180 -> 1 | AM108: =ProjectCashflows!AM$180 -> 1 | AN108: =ProjectCashflows!AN$180 -> 1 | AO108: =ProjectCashflows!AO$180 -> 1 | AP108: =ProjectCashflows!AP$180 -> 0 | AQ108: =ProjectCashflows!AQ$180 -> 0 | AR108: =ProjectCashflows!AR$180 -> 0 | AS108: =ProjectCashflows!AS$180 -> 0 | AT108: =ProjectCashflows!AT$180 -> 0 | AU108: =ProjectCashflows!AU$180 -> 0 | AV108: =ProjectCashflows!AV$180 -> 0 | AW108: =ProjectCashflows!AW$180 -> 0 | AX108: =ProjectCashflows!AX$180 -> 0
E109: =Translate!E223 -> Decommissioning period | G109: =Translate!$E$405 -> Flag | I109: =SUM(K109:AX109) -> 19 | K109: =AND( K102 >= $F107, K108 = 1) * 1 * (SUM(L104:$AX104) > 0) -> 0 | L109: =AND( L102 >= $F107, L108 = 1) * 1 * (SUM(M104:$AX104) > 0) -> 0 | M109: =AND( M102 >= $F107, M108 = 1) * 1 * (SUM(N104:$AX104) > 0) -> 0 | N109: =AND( N102 >= $F107, N108 = 1) * 1 * (SUM(O104:$AX104) > 0) -> 0 | O109: =AND( O102 >= $F107, O108 = 1) * 1 * (SUM(P104:$AX104) > 0) -> 0 | P109: =AND( P102 >= $F107, P108 = 1) * 1 * (SUM(Q104:$AX104) > 0) -> 0 | Q109: =AND( Q102 >= $F107, Q108 = 1) * 1 * (SUM(R104:$AX104) > 0) -> 0 | R109: =AND( R102 >= $F107, R108 = 1) * 1 * (SUM(S104:$AX104) > 0) -> 0 | S109: =AND( S102 >= $F107, S108 = 1) * 1 * (SUM(T104:$AX104) > 0) -> 0 | T109: =AND( T102 >= $F107, T108 = 1) * 1 * (SUM(U104:$AX104) > 0) -> 0 | U109: =AND( U102 >= $F107, U108 = 1) * 1 * (SUM(V104:$AX104) > 0) -> 0 | V109: =AND( V102 >= $F107, V108 = 1) * 1 * (SUM(W104:$AX104) > 0) -> 0 | W109: =AND( W102 >= $F107, W108 = 1) * 1 * (SUM(X104:$AX104) > 0) -> 1 | X109: =AND( X102 >= $F107, X108 = 1) * 1 * (SUM(Y104:$AX104) > 0) -> 1 | Y109: =AND( Y102 >= $F107, Y108 = 1) * 1 * (SUM(Z104:$AX104) > 0) -> 1 | Z109: =AND( Z102 >= $F107, Z108 = 1) * 1 * (SUM(AA104:$AX104) > 0) -> 1 | AA109: =AND( AA102 >= $F107, AA108 = 1) * 1 * (SUM(AB104:$AX104) > 0) -> 1 | AB109: =AND( AB102 >= $F107, AB108 = 1) * 1 * (SUM(AC104:$AX104) > 0) -> 1 | AC109: =AND( AC102 >= $F107, AC108 = 1) * 1 * (SUM(AD104:$AX104) > 0) -> 1 | AD109: =AND( AD102 >= $F107, AD108 = 1) * 1 * (SUM(AE104:$AX104) > 0) -> 1 | AE109: =AND( AE102 >= $F107, AE108 = 1) * 1 * (SUM(AF104:$AX104) > 0) -> 1 | AF109: =AND( AF102 >= $F107, AF108 = 1) * 1 * (SUM(AG104:$AX104) > 0) -> 1 | AG109: =AND( AG102 >= $F107, AG108 = 1) * 1 * (SUM(AH104:$AX104) > 0) -> 1 | AH109: =AND( AH102 >= $F107, AH108 = 1) * 1 * (SUM(AI104:$AX104) > 0) -> 1 | AI109: =AND( AI102 >= $F107, AI108 = 1) * 1 * (SUM(AJ104:$AX104) > 0) -> 1 | AJ109: =AND( AJ102 >= $F107, AJ108 = 1) * 1 * (SUM(AK104:$AX104) > 0) -> 1 | AK109: =AND( AK102 >= $F107, AK108 = 1) * 1 * (SUM(AL104:$AX104) > 0) -> 1 | AL109: =AND( AL102 >= $F107, AL108 = 1) * 1 * (SUM(AM104:$AX104) > 0) -> 1 | AM109: =AND( AM102 >= $F107, AM108 = 1) * 1 * (SUM(AN104:$AX104) > 0) -> 1 | AN109: =AND( AN102 >= $F107, AN108 = 1) * 1 * (SUM(AO104:$AX104) > 0) -> 1 | AO109: =AND( AO102 >= $F107, AO108 = 1) * 1 * (SUM(AP104:$AX104) > 0) -> 1 | AP109: =AND( AP102 >= $F107, AP108 = 1) * 1 * (SUM(AQ104:$AX104) > 0) -> 0 | AQ109: =AND( AQ102 >= $F107, AQ108 = 1) * 1 * (SUM(AR104:$AX104) > 0) -> 0 | AR109: =AND( AR102 >= $F107, AR108 = 1) * 1 * (SUM(AS104:$AX104) > 0) -> 0 | AS109: =AND( AS102 >= $F107, AS108 = 1) * 1 * (SUM(AT104:$AX104) > 0) -> 0 | AT109: =AND( AT102 >= $F107, AT108 = 1) * 1 * (SUM(AU104:$AX104) > 0) -> 0 | AU109: =AND( AU102 >= $F107, AU108 = 1) * 1 * (SUM(AV104:$AX104) > 0) -> 0 | AV109: =AND( AV102 >= $F107, AV108 = 1) * 1 * (SUM(AW104:$AX104) > 0) -> 0 | AW109: =AND( AW102 >= $F107, AW108 = 1) * 1 * (SUM(AX104:$AX104) > 0) -> 0 | AX109: =AND( AX102 >= $F107, AX108 = 1) * 1 * (SUM($AX104:AX104) > 0) -> 0
E111: =E109 & ": " & Translate!E$811 -> Decommissioning period: cumulative | G111: =Translate!E$608 -> Year | K111: =J111 + K109 -> 0 | L111: 0 | M111: 0 | N111: 0 | O111: 0 | P111: 0 | Q111: 0 | R111: 0 | S111: 0 | T111: 0 | U111: 0 | V111: 0 | W111: 1 | X111: 2 | Y111: 3 | Z111: 4 | AA111: 5 | AB111: 6 | AC111: 7 | AD111: 8 | AE111: 9 | AF111: 10 | AG111: 11 | AH111: 12 | AI111: 13 | AJ111: 14 | AK111: 15 | AL111: 16 | AM111: 17 | AN111: 18 | AO111: 19 | AP111: 19 | AQ111: 19 | AR111: 19 | AS111: 19 | AT111: 19 | AU111: 19 | AV111: 19 | AW111: 19 | AX111: 19
E112: =Translate!E$224 -> Number of decommissioning periods | F112: =SUM(K109:AX109) -> 19 | G112: =Translate!E$608 -> Year
B114: =Translate!$E$411 -> Decommissioning provision required
E115: =Inputs!E$47 -> LIBOR: nominal | F115: =Inputs!F$47 -> 0.02 | G115: =Inputs!G$47 -> %
E116: =Translate!E$225 -> Decommissioning provision required (annuity basis) | G116: =Translate!E$603 -> US$ mn | K116: =IF( K104 > 0, PMT($F115, K111, 0, K104, 0) * -1, 0) -> 0 | L116: 0 | M116: 0 | N116: 0 | O116: 0 | P116: 0 | Q116: 0 | R116: 0 | S116: 0 | T116: 0 | U116: 0 | V116: 0 | W116: 0 | X116: 0 | Y116: 0 | Z116: 0 | AA116: 0 | AB116: 0 | AC116: 0 | AD116: 0 | AE116: 0 | AF116: 0 | AG116: 0 | AH116: 0 | AI116: 0 | AJ116: 0 | AK116: 0 | AL116: 22.89366858 | AM116: 0 | AN116: 0 | AO116: 0 | AP116: 20.22267544 | AQ116: 20.62712895 | AR116: 0 | AS116: 0 | AT116: 0 | AU116: 0 | AV116: 0 | AW116: 0 | AX116: 0
E117: =FiscalModel!E$37 -> Decommissioning fund | F117: =$F37 -> yes | G117: =FiscalModel!G$37 -> Switch
E118: =Inputs!E$87 -> Label: yes | F118: =Inputs!F$87 -> yes | G118: =Inputs!G$87 -> Label
E119: =Inputs!E$88 -> Label: no | F119: =Inputs!F$88 -> no | G119: =Inputs!G$88 -> Label
E120: =Translate!E$226 -> Decommissioning provision for future costs (end of period) | G120: =Translate!E$603 -> US$ mn | I120: =SUM(K120:AX120) -> 1142.444981 | K120: =SUM(K116:$AX116) * K109 * ($F117 = $F118) -> 0 | L120: =SUM(L116:$AX116) * L109 * ($F117 = $F118) -> 0 | M120: =SUM(M116:$AX116) * M109 * ($F117 = $F118) -> 0 | N120: =SUM(N116:$AX116) * N109 * ($F117 = $F118) -> 0 | O120: =SUM(O116:$AX116) * O109 * ($F117 = $F118) -> 0 | P120: =SUM(P116:$AX116) * P109 * ($F117 = $F118) -> 0 | Q120: =SUM(Q116:$AX116) * Q109 * ($F117 = $F118) -> 0 | R120: =SUM(R116:$AX116) * R109 * ($F117 = $F118) -> 0 | S120: =SUM(S116:$AX116) * S109 * ($F117 = $F118) -> 0 | T120: =SUM(T116:$AX116) * T109 * ($F117 = $F118) -> 0 | U120: =SUM(U116:$AX116) * U109 * ($F117 = $F118) -> 0 | V120: =SUM(V116:$AX116) * V109 * ($F117 = $F118) -> 0 | W120: =SUM(W116:$AX116) * W109 * ($F117 = $F118) -> 63.74347297 | X120: =SUM(X116:$AX116) * X109 * ($F117 = $F118) -> 63.74347297 | Y120: =SUM(Y116:$AX116) * Y109 * ($F117 = $F118) -> 63.74347297 | Z120: =SUM(Z116:$AX116) * Z109 * ($F117 = $F118) -> 63.74347297 | AA120: =SUM(AA116:$AX116) * AA109 * ($F117 = $F118) -> 63.74347297 | AB120: =SUM(AB116:$AX116) * AB109 * ($F117 = $F118) -> 63.74347297 | AC120: =SUM(AC116:$AX116) * AC109 * ($F117 = $F118) -> 63.74347297 | AD120: =SUM(AD116:$AX116) * AD109 * ($F117 = $F118) -> 63.74347297 | AE120: =SUM(AE116:$AX116) * AE109 * ($F117 = $F118) -> 63.74347297 | AF120: =SUM(AF116:$AX116) * AF109 * ($F117 = $F118) -> 63.74347297 | AG120: =SUM(AG116:$AX116) * AG109 * ($F117 = $F118) -> 63.74347297 | AH120: =SUM(AH116:$AX116) * AH109 * ($F117 = $F118) -> 63.74347297 | AI120: =SUM(AI116:$AX116) * AI109 * ($F117 = $F118) -> 63.74347297 | AJ120: =SUM(AJ116:$AX116) * AJ109 * ($F117 = $F118) -> 63.74347297 | AK120: =SUM(AK116:$AX116) * AK109 * ($F117 = $F118) -> 63.74347297 | AL120: =SUM(AL116:$AX116) * AL109 * ($F117 = $F118) -> 63.74347297 | AM120: =SUM(AM116:$AX116) * AM109 * ($F117 = $F118) -> 40.84980439 | AN120: =SUM(AN116:$AX116) * AN109 * ($F117 = $F118) -> 40.84980439 | AO120: =SUM(AO116:$AX116) * AO109 * ($F117 = $F118) -> 40.84980439 | AP120: =SUM(AP116:$AX116) * AP109 * ($F117 = $F118) -> 0 | AQ120: =SUM(AQ116:$AX116) * AQ109 * ($F117 = $F118) -> 0 | AR120: =SUM(AR116:$AX116) * AR109 * ($F117 = $F118) -> 0 | AS120: =SUM(AS116:$AX116) * AS109 * ($F117 = $F118) -> 0 | AT120: =SUM(AT116:$AX116) * AT109 * ($F117 = $F118) -> 0 | AU120: =SUM(AU116:$AX116) * AU109 * ($F117 = $F118) -> 0 | AV120: =SUM(AV116:$AX116) * AV109 * ($F117 = $F118) -> 0 | AW120: =SUM(AW116:$AX116) * AW109 * ($F117 = $F118) -> 0 | AX120: =SUM(AX116:$AX116) * AX109 * ($F117 = $F118) -> 0
B122: =Translate!$E$412 -> Decommissioning fund transactions
C123: =Translate!$E$482 -> Withdrawals
E124: =E$133 -> Decommissioning fund opening balance: BEG | F124: =F$133 -> 0 | G124: US$ mn | H124: 0 | I124: 0 | J124: 0 | K124: 0 | L124: 0 | M124: 0 | N124: 0 | O124: 0 | P124: 0 | Q124: 0 | R124: 0 | S124: 0 | T124: 0 | U124: 0 | V124: 0 | W124: 0 | X124: 63.74347297 | Y124: 128.7618154 | Z124: 195.0805247 | AA124: 262.7256081 | AB124: 331.7235932 | AC124: 402.1015381 | AD124: 473.8870418 | AE124: 547.1082556 | AF124: 621.7938937 | AG124: 697.9732445 | AH124: 775.6761824 | AI124: 854.933179 | AJ124: 935.7753155 | AK124: 1018.234295 | AL124: 1102.342454 | AM124: 761.4111566 | AN124: 817.4891841 | AO124: 874.6887721 | AP124: 933.032352 | AQ124: 471.135148 | AR124: 0 | AS124: 0 | AT124: 0 | AU124: 0 | AV124: 0 | AW124: 0 | AX124: 0
E125: =Translate!E$227 -> Withdrawals to meet decommissioning costs (end of period) | G125: =G124 -> US$ mn | I125: =SUM(K125:AX125) -> 1359.753971 | K125: =MIN(K124, K104) -> 0 | L125: 0 | M125: 0 | N125: 0 | O125: 0 | P125: 0 | Q125: 0 | R125: 0 | S125: 0 | T125: 0 | U125: 0 | V125: 0 | W125: 0 | X125: 0 | Y125: 0 | Z125: 0 | AA125: 0 | AB125: 0 | AC125: 0 | AD125: 0 | AE125: 0 | AF125: 0 | AG125: 0 | AH125: 0 | AI125: 0 | AJ125: 0 | AK125: 0 | AL125: 426.7216192 | AM125: 0 | AN125: 0 | AO125: 0 | AP125: 461.8972039 | AQ125: 471.135148 | AR125: 0 | AS125: 0 | AT125: 0 | AU125: 0 | AV125: 0 | AW125: 0 | AX125: 0
C127: =Translate!$E$483 -> Interest earned on fund
E128: =E$133 -> Decommissioning fund opening balance: BEG | F128: =F$133 -> 0 | G128: US$ mn | H128: 0 | I128: 0 | J128: 0 | K128: 0 | L128: 0 | M128: 0 | N128: 0 | O128: 0 | P128: 0 | Q128: 0 | R128: 0 | S128: 0 | T128: 0 | U128: 0 | V128: 0 | W128: 0 | X128: 63.74347297 | Y128: 128.7618154 | Z128: 195.0805247 | AA128: 262.7256081 | AB128: 331.7235932 | AC128: 402.1015381 | AD128: 473.8870418 | AE128: 547.1082556 | AF128: 621.7938937 | AG128: 697.9732445 | AH128: 775.6761824 | AI128: 854.933179 | AJ128: 935.7753155 | AK128: 1018.234295 | AL128: 1102.342454 | AM128: 761.4111566 | AN128: 817.4891841 | AO128: 874.6887721 | AP128: 933.032352 | AQ128: 471.135148 | AR128: 0 | AS128: 0 | AT128: 0 | AU128: 0 | AV128: 0 | AW128: 0 | AX128: 0
E129: =Inputs!E$47 -> LIBOR: nominal | F129: =Inputs!F$47 -> 0.02 | G129: =Inputs!G$47 -> %
E130: =E$109 -> Decommissioning period | F130: =F$109 -> 0 | G130: Flag | H130: 0 | I130: 19 | J130: 0 | K130: 0 | L130: 0 | M130: 0 | N130: 0 | O130: 0 | P130: 0 | Q130: 0 | R130: 0 | S130: 0 | T130: 0 | U130: 0 | V130: 0 | W130: 1 | X130: 1 | Y130: 1 | Z130: 1 | AA130: 1 | AB130: 1 | AC130: 1 | AD130: 1 | AE130: 1 | AF130: 1 | AG130: 1 | AH130: 1 | AI130: 1 | AJ130: 1 | AK130: 1 | AL130: 1 | AM130: 1 | AN130: 1 | AO130: 1 | AP130: 0 | AQ130: 0 | AR130: 0 | AS130: 0 | AT130: 0 | AU130: 0 | AV130: 0 | AW130: 0 | AX130: 0
E131: =Translate!E$228 -> Interest | G131: =Translate!E$603 -> US$ mn | I131: =SUM(K131:AX131) -> 217.3089905 | K131: =K128 * $F129 * K130 -> 0 | L131: =L128 * $F129 * L130 -> 0 | M131: 0 | N131: 0 | O131: 0 | P131: 0 | Q131: 0 | R131: 0 | S131: 0 | T131: 0 | U131: 0 | V131: 0 | W131: 0 | X131: 1.274869459 | Y131: 2.575236308 | Z131: 3.901610493 | AA131: 5.254512162 | AB131: 6.634471865 | AC131: 8.042030762 | AD131: 9.477740836 | AE131: 10.94216511 | AF131: 12.43587787 | AG131: 13.95946489 | AH131: 15.51352365 | AI131: 17.09866358 | AJ131: 18.71550631 | AK131: 20.3646859 | AL131: 22.04684907 | AM131: 15.22822313 | AN131: 16.34978368 | AO131: 17.49377544 | AP131: 0 | AQ131: 0 | AR131: 0 | AS131: 0 | AT131: 0 | AU131: 0 | AV131: 0 | AW131: 0 | AX131: 0
D133: =Translate!E529 -> add | E133: =Translate!E$229 -> Decommissioning fund opening balance: BEG | G133: =Translate!E$603 -> US$ mn | K133: =J137 -> 0 | L133: 0 | M133: 0 | N133: 0 | O133: 0 | P133: 0 | Q133: 0 | R133: 0 | S133: 0 | T133: 0 | U133: 0 | V133: 0 | W133: 0 | X133: 63.74347297 | Y133: 128.7618154 | Z133: 195.0805247 | AA133: 262.7256081 | AB133: 331.7235932 | AC133: 402.1015381 | AD133: 473.8870418 | AE133: 547.1082556 | AF133: 621.7938937 | AG133: 697.9732445 | AH133: 775.6761824 | AI133: 854.933179 | AJ133: 935.7753155 | AK133: 1018.234295 | AL133: 1102.342454 | AM133: 761.4111566 | AN133: 817.4891841 | AO133: 874.6887721 | AP133: 933.032352 | AQ133: 471.135148 | AR133: 0 | AS133: 0 | AT133: 0 | AU133: 0 | AV133: 0 | AW133: 0 | AX133: 0
D134: =Translate!E529 -> add | E134: =E$131 -> Interest | F134: =F$131 -> 0 | G134: US$ mn | H134: 0 | I134: 217.3089905 | J134: 0 | K134: 0 | L134: 0 | M134: 0 | N134: 0 | O134: 0 | P134: 0 | Q134: 0 | R134: 0 | S134: 0 | T134: 0 | U134: 0 | V134: 0 | W134: 0 | X134: 1.274869459 | Y134: 2.575236308 | Z134: 3.901610493 | AA134: 5.254512162 | AB134: 6.634471865 | AC134: 8.042030762 | AD134: 9.477740836 | AE134: 10.94216511 | AF134: 12.43587787 | AG134: 13.95946489 | AH134: 15.51352365 | AI134: 17.09866358 | AJ134: 18.71550631 | AK134: 20.3646859 | AL134: 22.04684907 | AM134: 15.22822313 | AN134: 16.34978368 | AO134: 17.49377544 | AP134: 0 | AQ134: 0 | AR134: 0 | AS134: 0 | AT134: 0 | AU134: 0 | AV134: 0 | AW134: 0 | AX134: 0
D135: =Translate!E530 -> less | E135: =E$125 -> Withdrawals to meet decommissioning costs (end of period) | F135: =F$125 -> 0 | G135: US$ mn | H135: 0 | I135: 1359.753971 | J135: 0 | K135: 0 | L135: 0 | M135: 0 | N135: 0 | O135: 0 | P135: 0 | Q135: 0 | R135: 0 | S135: 0 | T135: 0 | U135: 0 | V135: 0 | W135: 0 | X135: 0 | Y135: 0 | Z135: 0 | AA135: 0 | AB135: 0 | AC135: 0 | AD135: 0 | AE135: 0 | AF135: 0 | AG135: 0 | AH135: 0 | AI135: 0 | AJ135: 0 | AK135: 0 | AL135: 426.7216192 | AM135: 0 | AN135: 0 | AO135: 0 | AP135: 461.8972039 | AQ135: 471.135148 | AR135: 0 | AS135: 0 | AT135: 0 | AU135: 0 | AV135: 0 | AW135: 0 | AX135: 0
D136: =Translate!E529 -> add | E136: =E$120 -> Decommissioning provision for future costs (end of period) | F136: 0 | G136: US$ mn | H136: 0 | I136: 1142.444981 | J136: 0 | K136: 0 | L136: 0 | M136: 0 | N136: 0 | O136: 0 | P136: 0 | Q136: 0 | R136: 0 | S136: 0 | T136: 0 | U136: 0 | V136: 0 | W136: 63.74347297 | X136: 63.74347297 | Y136: 63.74347297 | Z136: 63.74347297 | AA136: 63.74347297 | AB136: 63.74347297 | AC136: 63.74347297 | AD136: 63.74347297 | AE136: 63.74347297 | AF136: 63.74347297 | AG136: 63.74347297 | AH136: 63.74347297 | AI136: 63.74347297 | AJ136: 63.74347297 | AK136: 63.74347297 | AL136: 63.74347297 | AM136: 40.84980439 | AN136: 40.84980439 | AO136: 40.84980439 | AP136: 0 | AQ136: 0 | AR136: 0 | AS136: 0 | AT136: 0 | AU136: 0 | AV136: 0 | AW136: 0 | AX136: 0
E137: =Translate!E$230 -> Decommissioning fund closing balance: END | G137: =Translate!E$603 -> US$ mn | K137: =K133 + K134 + K136 - K135 -> 0 | L137: 0 | M137: 0 | N137: 0 | O137: 0 | P137: 0 | Q137: 0 | R137: 0 | S137: 0 | T137: 0 | U137: 0 | V137: 0 | W137: 63.74347297 | X137: 128.7618154 | Y137: 195.0805247 | Z137: 262.7256081 | AA137: 331.7235932 | AB137: 402.1015381 | AC137: 473.8870418 | AD137: 547.1082556 | AE137: 621.7938937 | AF137: 697.9732445 | AG137: 775.6761824 | AH137: 854.933179 | AI137: 935.7753155 | AJ137: 1018.234295 | AK137: 1102.342454 | AL137: 761.4111566 | AM137: 817.4891841 | AN137: 874.6887721 | AO137: 933.032352 | AP137: 471.135148 | AQ137: 0 | AR137: 0 | AS137: 0 | AT137: 0 | AU137: 0 | AV137: 0 | AW137: 0 | AX137: 0
E139: =Translate!E$601 & ": " & E134 -> Total: Interest | F139: =SUM(K134:AX134) -> 217.3089905 | G139: =G134 -> US$ mn
E140: =Translate!E$601 & ": " & E135 -> Total: Withdrawals to meet decommissioning costs (end of period) | F140: =SUM(K135:AX135) -> 1359.753971 | G140: =G135 -> US$ mn
E141: =Translate!E$601 & ": " & E136 -> Total: Decommissioning provision for future costs (end of period) | F141: =SUM(K136:AX136) -> 1142.444981 | G141: =G136 -> US$ mn
E142: =Translate!E$755 & " " & Translate!E$231 -> Check: Decommissioning cashflows | F142: =IF( ABS( F139 - F140 + F141) > CHK_TOL, 1, 0) -> 0 | G142: =Translate!E$604 -> Check
B144: =Translate!$E$233 -> Net decommissioning cashflows
D145: =Translate!E529 -> add | E145: =ProjectCashflows!E$242 -> Decommissioning costs, after ELT | F145: =ProjectCashflows!F$242 -> 0 | G145: =ProjectCashflows!G$242 -> US$ mn | H145: =ProjectCashflows!H$242 -> 0 | I145: =ProjectCashflows!I$242 -> 1359.753971 | J145: =ProjectCashflows!J$242 -> 0 | K145: =ProjectCashflows!K$242 -> 0 | L145: =ProjectCashflows!L$242 -> 0 | M145: =ProjectCashflows!M$242 -> 0 | N145: =ProjectCashflows!N$242 -> 0 | O145: =ProjectCashflows!O$242 -> 0 | P145: =ProjectCashflows!P$242 -> 0 | Q145: =ProjectCashflows!Q$242 -> 0 | R145: =ProjectCashflows!R$242 -> 0 | S145: =ProjectCashflows!S$242 -> 0 | T145: =ProjectCashflows!T$242 -> 0 | U145: =ProjectCashflows!U$242 -> 0 | V145: =ProjectCashflows!V$242 -> 0 | W145: =ProjectCashflows!W$242 -> 0 | X145: =ProjectCashflows!X$242 -> 0 | Y145: =ProjectCashflows!Y$242 -> 0 | Z145: =ProjectCashflows!Z$242 -> 0 | AA145: =ProjectCashflows!AA$242 -> 0 | AB145: =ProjectCashflows!AB$242 -> 0 | AC145: =ProjectCashflows!AC$242 -> 0 | AD145: =ProjectCashflows!AD$242 -> 0 | AE145: =ProjectCashflows!AE$242 -> 0 | AF145: =ProjectCashflows!AF$242 -> 0 | AG145: =ProjectCashflows!AG$242 -> 0 | AH145: =ProjectCashflows!AH$242 -> 0 | AI145: =ProjectCashflows!AI$242 -> 0 | AJ145: =ProjectCashflows!AJ$242 -> 0 | AK145: =ProjectCashflows!AK$242 -> 0 | AL145: =ProjectCashflows!AL$242 -> 426.7216192 | AM145: =ProjectCashflows!AM$242 -> 0 | AN145: =ProjectCashflows!AN$242 -> 0 | AO145: =ProjectCashflows!AO$242 -> 0 | AP145: =ProjectCashflows!AP$242 -> 461.8972039 | AQ145: =ProjectCashflows!AQ$242 -> 471.135148 | AR145: =ProjectCashflows!AR$242 -> 0 | AS145: =ProjectCashflows!AS$242 -> 0 | AT145: =ProjectCashflows!AT$242 -> 0 | AU145: =ProjectCashflows!AU$242 -> 0 | AV145: =ProjectCashflows!AV$242 -> 0 | AW145: =ProjectCashflows!AW$242 -> 0 | AX145: =ProjectCashflows!AX$242 -> 0
D146: =Translate!E530 -> less | E146: =E$135 -> Withdrawals to meet decommissioning costs (end of period) | F146: =F$135 -> 0 | G146: US$ mn | H146: 0 | I146: 1359.753971 | J146: 0 | K146: 0 | L146: 0 | M146: 0 | N146: 0 | O146: 0 | P146: 0 | Q146: 0 | R146: 0 | S146: 0 | T146: 0 | U146: 0 | V146: 0 | W146: 0 | X146: 0 | Y146: 0 | Z146: 0 | AA146: 0 | AB146: 0 | AC146: 0 | AD146: 0 | AE146: 0 | AF146: 0 | AG146: 0 | AH146: 0 | AI146: 0 | AJ146: 0 | AK146: 0 | AL146: 426.7216192 | AM146: 0 | AN146: 0 | AO146: 0 | AP146: 461.8972039 | AQ146: 471.135148 | AR146: 0 | AS146: 0 | AT146: 0 | AU146: 0 | AV146: 0 | AW146: 0 | AX146: 0
D147: =Translate!E529 -> add | E147: =E$136 -> Decommissioning provision for future costs (end of period) | F147: =F$136 -> 0 | G147: US$ mn | H147: 0 | I147: 1142.444981 | J147: 0 | K147: 0 | L147: 0 | M147: 0 | N147: 0 | O147: 0 | P147: 0 | Q147: 0 | R147: 0 | S147: 0 | T147: 0 | U147: 0 | V147: 0 | W147: 63.74347297 | X147: 63.74347297 | Y147: 63.74347297 | Z147: 63.74347297 | AA147: 63.74347297 | AB147: 63.74347297 | AC147: 63.74347297 | AD147: 63.74347297 | AE147: 63.74347297 | AF147: 63.74347297 | AG147: 63.74347297 | AH147: 63.74347297 | AI147: 63.74347297 | AJ147: 63.74347297 | AK147: 63.74347297 | AL147: 63.74347297 | AM147: 40.84980439 | AN147: 40.84980439 | AO147: 40.84980439 | AP147: 0 | AQ147: 0 | AR147: 0 | AS147: 0 | AT147: 0 | AU147: 0 | AV147: 0 | AW147: 0 | AX147: 0
E148: =Translate!E$232 -> Net decommissioning cashflows including fund | G148: =Translate!E$603 -> US$ mn | I148: =SUM(K148:AX148) -> 1142.444981 | K148: =K145 + K147 - K146 -> 0 | L148: =L145 + L147 - L146 -> 0 | M148: 0 | N148: 0 | O148: 0 | P148: 0 | Q148: 0 | R148: 0 | S148: 0 | T148: 0 | U148: 0 | V148: 0 | W148: 63.74347297 | X148: 63.74347297 | Y148: 63.74347297 | Z148: 63.74347297 | AA148: 63.74347297 | AB148: 63.74347297 | AC148: 63.74347297 | AD148: 63.74347297 | AE148: 63.74347297 | AF148: 63.74347297 | AG148: 63.74347297 | AH148: 63.74347297 | AI148: 63.74347297 | AJ148: 63.74347297 | AK148: 63.74347297 | AL148: 63.74347297 | AM148: 40.84980439 | AN148: 40.84980439 | AO148: 40.84980439 | AP148: 0 | AQ148: 0 | AR148: 0 | AS148: 0 | AT148: 0 | AU148: 0 | AV148: 0 | AW148: 0 | AX148: 0
D150: =Translate!E529 -> add | E150: =E$135 -> Withdrawals to meet decommissioning costs (end of period) | F150: =F$135 -> 0 | G150: US$ mn | H150: 0 | I150: 1359.753971 | J150: 0 | K150: 0 | L150: 0 | M150: 0 | N150: 0 | O150: 0 | P150: 0 | Q150: 0 | R150: 0 | S150: 0 | T150: 0 | U150: 0 | V150: 0 | W150: 0 | X150: 0 | Y150: 0 | Z150: 0 | AA150: 0 | AB150: 0 | AC150: 0 | AD150: 0 | AE150: 0 | AF150: 0 | AG150: 0 | AH150: 0 | AI150: 0 | AJ150: 0 | AK150: 0 | AL150: 426.7216192 | AM150: 0 | AN150: 0 | AO150: 0 | AP150: 461.8972039 | AQ150: 471.135148 | AR150: 0 | AS150: 0 | AT150: 0 | AU150: 0 | AV150: 0 | AW150: 0 | AX150: 0
D151: =Translate!E530 -> less | E151: =E$136 -> Decommissioning provision for future costs (end of period) | F151: =F$136 -> 0 | G151: US$ mn | H151: 0 | I151: 1142.444981 | J151: 0 | K151: 0 | L151: 0 | M151: 0 | N151: 0 | O151: 0 | P151: 0 | Q151: 0 | R151: 0 | S151: 0 | T151: 0 | U151: 0 | V151: 0 | W151: 63.74347297 | X151: 63.74347297 | Y151: 63.74347297 | Z151: 63.74347297 | AA151: 63.74347297 | AB151: 63.74347297 | AC151: 63.74347297 | AD151: 63.74347297 | AE151: 63.74347297 | AF151: 63.74347297 | AG151: 63.74347297 | AH151: 63.74347297 | AI151: 63.74347297 | AJ151: 63.74347297 | AK151: 63.74347297 | AL151: 63.74347297 | AM151: 40.84980439 | AN151: 40.84980439 | AO151: 40.84980439 | AP151: 0 | AQ151: 0 | AR151: 0 | AS151: 0 | AT151: 0 | AU151: 0 | AV151: 0 | AW151: 0 | AX151: 0
E152: =Translate!E$233 -> Net decommissioning cashflows | G152: =Translate!E$603 -> US$ mn | I152: =SUM(K152:AX152) -> 217.3089905 | K152: =K150 - K151 -> 0 | L152: 0 | M152: 0 | N152: 0 | O152: 0 | P152: 0 | Q152: 0 | R152: 0 | S152: 0 | T152: 0 | U152: 0 | V152: 0 | W152: -63.74347297 | X152: -63.74347297 | Y152: -63.74347297 | Z152: -63.74347297 | AA152: -63.74347297 | AB152: -63.74347297 | AC152: -63.74347297 | AD152: -63.74347297 | AE152: -63.74347297 | AF152: -63.74347297 | AG152: -63.74347297 | AH152: -63.74347297 | AI152: -63.74347297 | AJ152: -63.74347297 | AK152: -63.74347297 | AL152: 362.9781462 | AM152: -40.84980439 | AN152: -40.84980439 | AO152: -40.84980439 | AP152: 461.8972039 | AQ152: 471.135148 | AR152: 0 | AS152: 0 | AT152: 0 | AU152: 0 | AV152: 0 | AW152: 0 | AX152: 0
E154: =E152 -> Net decommissioning cashflows | F154: 0 | G154: US$ mn | H154: 0 | I154: 217.3089905 | J154: 0 | K154: 0 | L154: 0 | M154: 0 | N154: 0 | O154: 0 | P154: 0 | Q154: 0 | R154: 0 | S154: 0 | T154: 0 | U154: 0 | V154: 0 | W154: -63.74347297 | X154: -63.74347297 | Y154: -63.74347297 | Z154: -63.74347297 | AA154: -63.74347297 | AB154: -63.74347297 | AC154: -63.74347297 | AD154: -63.74347297 | AE154: -63.74347297 | AF154: -63.74347297 | AG154: -63.74347297 | AH154: -63.74347297 | AI154: -63.74347297 | AJ154: -63.74347297 | AK154: -63.74347297 | AL154: 362.9781462 | AM154: -40.84980439 | AN154: -40.84980439 | AO154: -40.84980439 | AP154: 461.8972039 | AQ154: 471.135148 | AR154: 0 | AS154: 0 | AT154: 0 | AU154: 0 | AV154: 0 | AW154: 0 | AX154: 0
E155: =ProjectCashflows!E$245 -> Cashflow before decommissioning fund | F155: =ProjectCashflows!F$245 -> 0 | G155: =ProjectCashflows!G$245 -> US$ mn | H155: =ProjectCashflows!H$245 -> 0 | I155: =ProjectCashflows!I$245 -> 38774.10467 | J155: =ProjectCashflows!J$245 -> 0 | K155: =ProjectCashflows!K$245 -> -420 | L155: =ProjectCashflows!L$245 -> -51 | M155: =ProjectCashflows!M$245 -> -312.12 | N155: =ProjectCashflows!N$245 -> -1273.4496 | O155: =ProjectCashflows!O$245 -> -1145.583029 | P155: =ProjectCashflows!P$245 -> -854.972572 | Q155: =ProjectCashflows!Q$245 -> 1859.575695 | R155: =ProjectCashflows!R$245 -> 2643.412893 | S155: =ProjectCashflows!S$245 -> 2930.613027 | T155: =ProjectCashflows!T$245 -> 2989.225287 | U155: =ProjectCashflows!U$245 -> 3049.009793 | V155: =ProjectCashflows!V$245 -> 3109.989989 | W155: =ProjectCashflows!W$245 -> 3172.189789 | X155: =ProjectCashflows!X$245 -> 3235.633584 | Y155: =ProjectCashflows!Y$245 -> 3300.346256 | Z155: =ProjectCashflows!Z$245 -> 3366.353181 | AA155: =ProjectCashflows!AA$245 -> 2648.258064 | AB155: =ProjectCashflows!AB$245 -> 2402.367773 | AC155: =ProjectCashflows!AC$245 -> 2071.387977 | AD155: =ProjectCashflows!AD$245 -> 1393.067505 | AE155: =ProjectCashflows!AE$245 -> 1084.679119 | AF155: =ProjectCashflows!AF$245 -> 1120.78364 | AG155: =ProjectCashflows!AG$245 -> 910.3925088 | AH155: =ProjectCashflows!AH$245 -> 730.089701 | AI155: =ProjectCashflows!AI$245 -> 582.2100049 | AJ155: =ProjectCashflows!AJ$245 -> 461.1705735 | AK155: =ProjectCashflows!AK$245 -> 362.3605159 | AL155: =ProjectCashflows!AL$245 -> -144.749603 | AM155: =ProjectCashflows!AM$245 -> 216.8608058 | AN155: =ProjectCashflows!AN$245 -> 155.5516634 | AO155: =ProjectCashflows!AO$245 -> 113.4824831 | AP155: =ProjectCashflows!AP$245 -> -461.8972039 | AQ155: =ProjectCashflows!AQ$245 -> -471.135148 | AR155: =ProjectCashflows!AR$245 -> 0 | AS155: =ProjectCashflows!AS$245 -> 0 | AT155: =ProjectCashflows!AT$245 -> 0 | AU155: =ProjectCashflows!AU$245 -> 0 | AV155: =ProjectCashflows!AV$245 -> 0 | AW155: =ProjectCashflows!AW$245 -> 0 | AX155: =ProjectCashflows!AX$245 -> 0
E156: =Translate!E$234 -> Cashflows before fiscal regime after decommissioning | G156: =Translate!E$603 -> US$ mn | I156: =SUM(K156:AX156) -> 38991.41366 | K156: =K155 + K154 -> -420 | L156: =L155 + L154 -> -51 | M156: -312.12 | N156: -1273.4496 | O156: -1145.583029 | P156: -854.972572 | Q156: 1859.575695 | R156: 2643.412893 | S156: 2930.613027 | T156: 2989.225287 | U156: 3049.009793 | V156: 3109.989989 | W156: 3108.446316 | X156: 3171.890111 | Y156: 3236.602783 | Z156: 3302.609708 | AA156: 2584.514591 | AB156: 2338.6243 | AC156: 2007.644504 | AD156: 1329.324032 | AE156: 1020.935646 | AF156: 1057.040167 | AG156: 846.6490358 | AH156: 666.3462281 | AI156: 518.4665319 | AJ156: 397.4271005 | AK156: 298.6170429 | AL156: 218.2285432 | AM156: 176.0110014 | AN156: 114.701859 | AO156: 72.63267876 | AP156: 0 | AQ156: 0 | AR156: 0 | AS156: 0 | AT156: 0 | AU156: 0 | AV156: 0 | AW156: 0 | AX156: 0
A159: =Translate!E$123 -> Bonus
B161: =Translate!E$235 -> Signature bonus
E162: =FiscalModel!E$16 -> Signature bonus (first period of activity) | F162: =FiscalModel!F$16 -> 10 | G162: =FiscalModel!G$16 -> US$ mn
E163: =ProjectCashflows!E$174 -> Cumulative project years | F163: =ProjectCashflows!F$174 -> 0 | G163: =ProjectCashflows!G$174 -> Year | H163: =ProjectCashflows!H$174 -> 0 | I163: =ProjectCashflows!I$174 -> 0 | J163: =ProjectCashflows!J$174 -> 0 | K163: =ProjectCashflows!K$174 -> 1 | L163: =ProjectCashflows!L$174 -> 2 | M163: =ProjectCashflows!M$174 -> 3 | N163: =ProjectCashflows!N$174 -> 4 | O163: =ProjectCashflows!O$174 -> 5 | P163: =ProjectCashflows!P$174 -> 6 | Q163: =ProjectCashflows!Q$174 -> 7 | R163: =ProjectCashflows!R$174 -> 8 | S163: =ProjectCashflows!S$174 -> 9 | T163: =ProjectCashflows!T$174 -> 10 | U163: =ProjectCashflows!U$174 -> 11 | V163: =ProjectCashflows!V$174 -> 12 | W163: =ProjectCashflows!W$174 -> 13 | X163: =ProjectCashflows!X$174 -> 14 | Y163: =ProjectCashflows!Y$174 -> 15 | Z163: =ProjectCashflows!Z$174 -> 16 | AA163: =ProjectCashflows!AA$174 -> 17 | AB163: =ProjectCashflows!AB$174 -> 18 | AC163: =ProjectCashflows!AC$174 -> 19 | AD163: =ProjectCashflows!AD$174 -> 20 | AE163: =ProjectCashflows!AE$174 -> 21 | AF163: =ProjectCashflows!AF$174 -> 22 | AG163: =ProjectCashflows!AG$174 -> 23 | AH163: =ProjectCashflows!AH$174 -> 24 | AI163: =ProjectCashflows!AI$174 -> 25 | AJ163: =ProjectCashflows!AJ$174 -> 26 | AK163: =ProjectCashflows!AK$174 -> 27 | AL163: =ProjectCashflows!AL$174 -> 28 | AM163: =ProjectCashflows!AM$174 -> 29 | AN163: =ProjectCashflows!AN$174 -> 30 | AO163: =ProjectCashflows!AO$174 -> 31 | AP163: =ProjectCashflows!AP$174 -> 32 | AQ163: =ProjectCashflows!AQ$174 -> 33 | AR163: =ProjectCashflows!AR$174 -> 0 | AS163: =ProjectCashflows!AS$174 -> 0 | AT163: =ProjectCashflows!AT$174 -> 0 | AU163: =ProjectCashflows!AU$174 -> 0 | AV163: =ProjectCashflows!AV$174 -> 0 | AW163: =ProjectCashflows!AW$174 -> 0 | AX163: =ProjectCashflows!AX$174 -> 0
E164: =Translate!E$235 -> Signature bonus | G164: =Translate!E$603 -> US$ mn | I164: =SUM(K164:AX164) -> 10 | K164: =$F162 * ( K163 = 1) -> 10 | L164: 0 | M164: 0 | N164: 0 | O164: 0 | P164: 0 | Q164: 0 | R164: 0 | S164: 0 | T164: 0 | U164: 0 | V164: 0 | W164: 0 | X164: 0 | Y164: 0 | Z164: 0 | AA164: 0 | AB164: 0 | AC164: 0 | AD164: 0 | AE164: 0 | AF164: 0 | AG164: 0 | AH164: 0 | AI164: 0 | AJ164: 0 | AK164: 0 | AL164: 0 | AM164: 0 | AN164: 0 | AO164: 0 | AP164: 0 | AQ164: 0 | AR164: 0 | AS164: 0 | AT164: 0 | AU164: 0 | AV164: 0 | AW164: 0 | AX164: 0
B166: =Translate!E$236 -> Production bonus
E167: =FiscalModel!E$17 -> Production bonus (start of production) | F167: =FiscalModel!F$17 -> 50 | G167: =FiscalModel!G$17 -> US$ mn
E168: =ProjectCashflows!E$181 -> Cumulative production years | F168: =ProjectCashflows!F$181 -> 0 | G168: =ProjectCashflows!G$181 -> Year | H168: =ProjectCashflows!H$181 -> 0 | I168: =ProjectCashflows!I$181 -> 0 | J168: =ProjectCashflows!J$181 -> 0 | K168: =ProjectCashflows!K$181 -> 0 | L168: =ProjectCashflows!L$181 -> 0 | M168: =ProjectCashflows!M$181 -> 0 | N168: =ProjectCashflows!N$181 -> 0 | O168: =ProjectCashflows!O$181 -> 1 | P168: =ProjectCashflows!P$181 -> 2 | Q168: =ProjectCashflows!Q$181 -> 3 | R168: =ProjectCashflows!R$181 -> 4 | S168: =ProjectCashflows!S$181 -> 5 | T168: =ProjectCashflows!T$181 -> 6 | U168: =ProjectCashflows!U$181 -> 7 | V168: =ProjectCashflows!V$181 -> 8 | W168: =ProjectCashflows!W$181 -> 9 | X168: =ProjectCashflows!X$181 -> 10 | Y168: =ProjectCashflows!Y$181 -> 11 | Z168: =ProjectCashflows!Z$181 -> 12 | AA168: =ProjectCashflows!AA$181 -> 13 | AB168: =ProjectCashflows!AB$181 -> 14 | AC168: =ProjectCashflows!AC$181 -> 15 | AD168: =ProjectCashflows!AD$181 -> 16 | AE168: =ProjectCashflows!AE$181 -> 17 | AF168: =ProjectCashflows!AF$181 -> 18 | AG168: =ProjectCashflows!AG$181 -> 19 | AH168: =ProjectCashflows!AH$181 -> 20 | AI168: =ProjectCashflows!AI$181 -> 21 | AJ168: =ProjectCashflows!AJ$181 -> 22 | AK168: =ProjectCashflows!AK$181 -> 23 | AL168: =ProjectCashflows!AL$181 -> 24 | AM168: =ProjectCashflows!AM$181 -> 25 | AN168: =ProjectCashflows!AN$181 -> 26 | AO168: =ProjectCashflows!AO$181 -> 27 | AP168: =ProjectCashflows!AP$181 -> 0 | AQ168: =ProjectCashflows!AQ$181 -> 0 | AR168: =ProjectCashflows!AR$181 -> 0 | AS168: =ProjectCashflows!AS$181 -> 0 | AT168: =ProjectCashflows!AT$181 -> 0 | AU168: =ProjectCashflows!AU$181 -> 0 | AV168: =ProjectCashflows!AV$181 -> 0 | AW168: =ProjectCashflows!AW$181 -> 0 | AX168: =ProjectCashflows!AX$181 -> 0
E169: =Translate!E$236 -> Production bonus | G169: =Translate!E$603 -> US$ mn | I169: =SUM(K169:AX169) -> 50 | K169: =( K168 = 1 ) * $F167 -> 0 | L169: 0 | M169: 0 | N169: 0 | O169: 50 | P169: 0 | Q169: 0 | R169: 0 | S169: 0 | T169: 0 | U169: 0 | V169: 0 | W169: 0 | X169: 0 | Y169: 0 | Z169: 0 | AA169: 0 | AB169: 0 | AC169: 0 | AD169: 0 | AE169: 0 | AF169: 0 | AG169: 0 | AH169: 0 | AI169: 0 | AJ169: 0 | AK169: 0 | AL169: 0 | AM169: 0 | AN169: 0 | AO169: 0 | AP169: 0 | AQ169: 0 | AR169: 0 | AS169: 0 | AT169: 0 | AU169: 0 | AV169: 0 | AW169: 0 | AX169: 0
B171: =Translate!$E$413 -> Sum of bonuses
E172: =Translate!E$237 -> Bonuses | G172: =Translate!E$603 -> US$ mn | I172: =SUM(K172:AX172) -> 60 | K172: =K164 + K169 -> 10 | L172: 0 | M172: 0 | N172: 0 | O172: 50 | P172: 0 | Q172: 0 | R172: 0 | S172: 0 | T172: 0 | U172: 0 | V172: 0 | W172: 0 | X172: 0 | Y172: 0 | Z172: 0 | AA172: 0 | AB172: 0 | AC172: 0 | AD172: 0 | AE172: 0 | AF172: 0 | AG172: 0 | AH172: 0 | AI172: 0 | AJ172: 0 | AK172: 0 | AL172: 0 | AM172: 0 | AN172: 0 | AO172: 0 | AP172: 0 | AQ172: 0 | AR172: 0 | AS172: 0 | AT172: 0 | AU172: 0 | AV172: 0 | AW172: 0 | AX172: 0
A174: =Translate!E$127 -> Royalty
B176: =Translate!E414 -> Royalty base
E177: =ProjectCashflows!E$234 -> Oil revenues gross, after ELT | F177: =ProjectCashflows!F$234 -> 0 | G177: =ProjectCashflows!G$234 -> US$ mn | H177: =ProjectCashflows!H$234 -> 0 | I177: =ProjectCashflows!I$234 -> 57168.54352 | J177: =ProjectCashflows!J$234 -> 0 | K177: =ProjectCashflows!K$234 -> 0 | L177: =ProjectCashflows!L$234 -> 0 | M177: =ProjectCashflows!M$234 -> 0 | N177: =ProjectCashflows!N$234 -> 0 | O177: =ProjectCashflows!O$234 -> 207.4571706 | P177: =ProjectCashflows!P$234 -> 1662.331659 | Q177: =ProjectCashflows!Q$234 -> 3391.156585 | R177: =ProjectCashflows!R$234 -> 3458.979717 | S177: =ProjectCashflows!S$234 -> 3528.159311 | T177: =ProjectCashflows!T$234 -> 3598.722497 | U177: =ProjectCashflows!U$234 -> 3670.696947 | V177: =ProjectCashflows!V$234 -> 3744.110886 | W177: =ProjectCashflows!W$234 -> 3818.993104 | X177: =ProjectCashflows!X$234 -> 3895.372966 | Y177: =ProjectCashflows!Y$234 -> 3973.280425 | Z177: =ProjectCashflows!Z$234 -> 4052.746034 | AA177: =ProjectCashflows!AA$234 -> 3348.378773 | AB177: =ProjectCashflows!AB$234 -> 2766.430542 | AC177: =ProjectCashflows!AC$234 -> 2285.624914 | AD177: =ProjectCashflows!AD$234 -> 1888.383304 | AE177: =ProjectCashflows!AE$234 -> 1560.182286 | AF177: =ProjectCashflows!AF$234 -> 1289.022605 | AG177: =ProjectCashflows!AG$234 -> 1064.990476 | AH177: =ProjectCashflows!AH$234 -> 879.8951311 | AI177: =ProjectCashflows!AI$234 -> 726.9693574 | AJ177: =ProjectCashflows!AJ$234 -> 600.622083 | AK177: =ProjectCashflows!AK$234 -> 496.233965 | AL177: =ProjectCashflows!AL$234 -> 409.9885019 | AM177: =ProjectCashflows!AM$234 -> 338.7325003 | AN177: =ProjectCashflows!AN$234 -> 279.8607917 | AO177: =ProjectCashflows!AO$234 -> 231.2209861 | AP177: =ProjectCashflows!AP$234 -> 0 | AQ177: =ProjectCashflows!AQ$234 -> 0 | AR177: =ProjectCashflows!AR$234 -> 0 | AS177: =ProjectCashflows!AS$234 -> 0 | AT177: =ProjectCashflows!AT$234 -> 0 | AU177: =ProjectCashflows!AU$234 -> 0 | AV177: =ProjectCashflows!AV$234 -> 0 | AW177: =ProjectCashflows!AW$234 -> 0 | AX177: =ProjectCashflows!AX$234 -> 0
E178: =ProjectCashflows!E$236 -> Net revenues after ELT | F178: =ProjectCashflows!F$236 -> 0 | G178: =ProjectCashflows!G$236 -> US$ mn | H178: =ProjectCashflows!H$236 -> 0 | I178: =ProjectCashflows!I$236 -> 57168.54352 | J178: =ProjectCashflows!J$236 -> 0 | K178: =ProjectCashflows!K$236 -> 0 | L178: =ProjectCashflows!L$236 -> 0 | M178: =ProjectCashflows!M$236 -> 0 | N178: =ProjectCashflows!N$236 -> 0 | O178: =ProjectCashflows!O$236 -> 207.4571706 | P178: =ProjectCashflows!P$236 -> 1662.331659 | Q178: =ProjectCashflows!Q$236 -> 3391.156585 | R178: =ProjectCashflows!R$236 -> 3458.979717 | S178: =ProjectCashflows!S$236 -> 3528.159311 | T178: =ProjectCashflows!T$236 -> 3598.722497 | U178: =ProjectCashflows!U$236 -> 3670.696947 | V178: =ProjectCashflows!V$236 -> 3744.110886 | W178: =ProjectCashflows!W$236 -> 3818.993104 | X178: =ProjectCashflows!X$236 -> 3895.372966 | Y178: =ProjectCashflows!Y$236 -> 3973.280425 | Z178: =ProjectCashflows!Z$236 -> 4052.746034 | AA178: =ProjectCashflows!AA$236 -> 3348.378773 | AB178: =ProjectCashflows!AB$236 -> 2766.430542 | AC178: =ProjectCashflows!AC$236 -> 2285.624914 | AD178: =ProjectCashflows!AD$236 -> 1888.383304 | AE178: =ProjectCashflows!AE$236 -> 1560.182286 | AF178: =ProjectCashflows!AF$236 -> 1289.022605 | AG178: =ProjectCashflows!AG$236 -> 1064.990476 | AH178: =ProjectCashflows!AH$236 -> 879.8951311 | AI178: =ProjectCashflows!AI$236 -> 726.9693574 | AJ178: =ProjectCashflows!AJ$236 -> 600.622083 | AK178: =ProjectCashflows!AK$236 -> 496.233965 | AL178: =ProjectCashflows!AL$236 -> 409.9885019 | AM178: =ProjectCashflows!AM$236 -> 338.7325003 | AN178: =ProjectCashflows!AN$236 -> 279.8607917 | AO178: =ProjectCashflows!AO$236 -> 231.2209861 | AP178: =ProjectCashflows!AP$236 -> 0 | AQ178: =ProjectCashflows!AQ$236 -> 0 | AR178: =ProjectCashflows!AR$236 -> 0 | AS178: =ProjectCashflows!AS$236 -> 0 | AT178: =ProjectCashflows!AT$236 -> 0 | AU178: =ProjectCashflows!AU$236 -> 0 | AV178: =ProjectCashflows!AV$236 -> 0 | AW178: =ProjectCashflows!AW$236 -> 0 | AX178: =ProjectCashflows!AX$236 -> 0
E180: =FiscalModel!E$24 -> Royalty base (net/gross) | F180: =FiscalModel!F$24 -> net | G180: =FiscalModel!G$24 -> Switch
F181: =Translate!E133 -> gross | G181: =Translate!E$103 -> Option
F182: =Translate!E134 -> net | G182: =Translate!E$103 -> Option
E183: =FiscalModel!E$24 -> Royalty base (net/gross) | F183: =IF(F180 = F181, 1, 2) -> 2 | G183: =Translate!E$745 -> option applicable
E185: =Translate!E132& ": " & IF(F183 = 1, E177, E178) -> Royalty base (net/gross): Net revenues after ELT | G185: =Translate!E$603 -> US$ mn | I185: =SUM(K185:AX185) -> 57168.54352 | K185: =IF($F180 = $F181, K177, K178) -> 0 | L185: =IF($F180 = $F181, L177, L178) -> 0 | M185: 0 | N185: 0 | O185: 207.4571706 | P185: 1662.331659 | Q185: 3391.156585 | R185: 3458.979717 | S185: 3528.159311 | T185: 3598.722497 | U185: 3670.696947 | V185: 3744.110886 | W185: 3818.993104 | X185: 3895.372966 | Y185: 3973.280425 | Z185: 4052.746034 | AA185: 3348.378773 | AB185: 2766.430542 | AC185: 2285.624914 | AD185: 1888.383304 | AE185: 1560.182286 | AF185: 1289.022605 | AG185: 1064.990476 | AH185: 879.8951311 | AI185: 726.9693574 | AJ185: 600.622083 | AK185: 496.233965 | AL185: 409.9885019 | AM185: 338.7325003 | AN185: 279.8607917 | AO185: 231.2209861 | AP185: 0 | AQ185: 0 | AR185: 0 | AS185: 0 | AT185: 0 | AU185: 0 | AV185: 0 | AW185: 0 | AX185: 0
B187: =Translate!E415 -> Flat royalty
E188: =FiscalModel!E$20 -> Royalty rate | F188: =FiscalModel!F$20 -> 0.2 | G188: =FiscalModel!G$20 -> %
E189: =Translate!E$238 -> Flat royalty rate | G189: =G188 -> % | K189: =$F188 -> 0.2 | L189: =$F188 -> 0.2 | M189: 0.2 | N189: 0.2 | O189: 0.2 | P189: 0.2 | Q189: 0.2 | R189: 0.2 | S189: 0.2 | T189: 0.2 | U189: 0.2 | V189: 0.2 | W189: 0.2 | X189: 0.2 | Y189: 0.2 | Z189: 0.2 | AA189: 0.2 | AB189: 0.2 | AC189: 0.2 | AD189: 0.2 | AE189: 0.2 | AF189: 0.2 | AG189: 0.2 | AH189: 0.2 | AI189: 0.2 | AJ189: 0.2 | AK189: 0.2 | AL189: 0.2 | AM189: 0.2 | AN189: 0.2 | AO189: 0.2 | AP189: 0.2 | AQ189: 0.2 | AR189: 0.2 | AS189: 0.2 | AT189: 0.2 | AU189: 0.2 | AV189: 0.2 | AW189: 0.2 | AX189: 0.2
B191: =Translate!$E$416 -> Price-based royalty
E192: =E$22 -> Threshold for price royalty (0 = no price royalty) | F192: =F$22 -> 0 | G192: =G$22 -> US$ / bbl
E193: =E$23 -> Price threshold inflation indexed | F193: =F$23 -> 0 | G193: =G$23 -> Option
E194: =Inputs!E$87 -> Label: yes | F194: =Inputs!F$87 -> yes | G194: =Inputs!G$87 -> Label
E195: =Inputs!E$88 -> Label: no | F195: =Inputs!F$88 -> no | G195: =Inputs!G$88 -> Label
E196: =ProjectCashflows!E$200 -> Inflation index | F196: =ProjectCashflows!F$200 -> 0 | G196: =ProjectCashflows!G$200 -> Index | H196: =ProjectCashflows!H$200 -> base year is first project year | I196: =ProjectCashflows!I$200 -> 0 | J196: =ProjectCashflows!J$200 -> 0 | K196: =ProjectCashflows!K$200 -> 1 | L196: =ProjectCashflows!L$200 -> 1.02 | M196: =ProjectCashflows!M$200 -> 1.0404 | N196: =ProjectCashflows!N$200 -> 1.061208 | O196: =ProjectCashflows!O$200 -> 1.08243216 | P196: =ProjectCashflows!P$200 -> 1.104080803 | Q196: =ProjectCashflows!Q$200 -> 1.126162419 | R196: =ProjectCashflows!R$200 -> 1.148685668 | S196: =ProjectCashflows!S$200 -> 1.171659381 | T196: =ProjectCashflows!T$200 -> 1.195092569 | U196: =ProjectCashflows!U$200 -> 1.21899442 | V196: =ProjectCashflows!V$200 -> 1.243374308 | W196: =ProjectCashflows!W$200 -> 1.268241795 | X196: =ProjectCashflows!X$200 -> 1.29360663 | Y196: =ProjectCashflows!Y$200 -> 1.319478763 | Z196: =ProjectCashflows!Z$200 -> 1.345868338 | AA196: =ProjectCashflows!AA$200 -> 1.372785705 | AB196: =ProjectCashflows!AB$200 -> 1.400241419 | AC196: =ProjectCashflows!AC$200 -> 1.428246248 | AD196: =ProjectCashflows!AD$200 -> 1.456811173 | AE196: =ProjectCashflows!AE$200 -> 1.485947396 | AF196: =ProjectCashflows!AF$200 -> 1.515666344 | AG196: =ProjectCashflows!AG$200 -> 1.545979671 | AH196: =ProjectCashflows!AH$200 -> 1.576899264 | AI196: =ProjectCashflows!AI$200 -> 1.608437249 | AJ196: =ProjectCashflows!AJ$200 -> 1.640605994 | AK196: =ProjectCashflows!AK$200 -> 1.673418114 | AL196: =ProjectCashflows!AL$200 -> 1.706886477 | AM196: =ProjectCashflows!AM$200 -> 1.741024206 | AN196: =ProjectCashflows!AN$200 -> 1.77584469 | AO196: =ProjectCashflows!AO$200 -> 1.811361584 | AP196: =ProjectCashflows!AP$200 -> 1.847588816 | AQ196: =ProjectCashflows!AQ$200 -> 1.884540592 | AR196: =ProjectCashflows!AR$200 -> 1 | AS196: =ProjectCashflows!AS$200 -> 1 | AT196: =ProjectCashflows!AT$200 -> 1 | AU196: =ProjectCashflows!AU$200 -> 1 | AV196: =ProjectCashflows!AV$200 -> 1 | AW196: =ProjectCashflows!AW$200 -> 1 | AX196: =ProjectCashflows!AX$200 -> 1
E197: =E192 & IF( $F193 = $F194, ": " & Translate!E546, ": " & Translate!E547) -> Threshold for price royalty (0 = no price royalty): not inflation indexed | G197: =G192 -> US$ / bbl | K197: =IF( $F193 = $F194, $F192 * K196, $F192) -> 0 | L197: 0 | M197: 0 | N197: 0 | O197: 0 | P197: 0 | Q197: 0 | R197: 0 | S197: 0 | T197: 0 | U197: 0 | V197: 0 | W197: 0 | X197: 0 | Y197: 0 | Z197: 0 | AA197: 0 | AB197: 0 | AC197: 0 | AD197: 0 | AE197: 0 | AF197: 0 | AG197: 0 | AH197: 0 | AI197: 0 | AJ197: 0 | AK197: 0 | AL197: 0 | AM197: 0 | AN197: 0 | AO197: 0 | AP197: 0 | AQ197: 0 | AR197: 0 | AS197: 0 | AT197: 0 | AU197: 0 | AV197: 0 | AW197: 0 | AX197: 0
E199: =ProjectCashflows!E$232 -> Oil price realized from sales, after ELT | F199: =ProjectCashflows!F$232 -> 0 | G199: =ProjectCashflows!G$232 -> US$ / bbl | H199: =ProjectCashflows!H$232 -> 0 | I199: =ProjectCashflows!I$232 -> 0 | J199: =ProjectCashflows!J$232 -> 0 | K199: =ProjectCashflows!K$232 -> 55 | L199: =ProjectCashflows!L$232 -> 56.1 | M199: =ProjectCashflows!M$232 -> 57.222 | N199: =ProjectCashflows!N$232 -> 58.36644 | O199: =ProjectCashflows!O$232 -> 59.5337688 | P199: =ProjectCashflows!P$232 -> 60.72444418 | Q199: =ProjectCashflows!Q$232 -> 61.93893306 | R199: =ProjectCashflows!R$232 -> 63.17771172 | S199: =ProjectCashflows!S$232 -> 64.44126596 | T199: =ProjectCashflows!T$232 -> 65.73009127 | U199: =ProjectCashflows!U$232 -> 67.0446931 | V199: =ProjectCashflows!V$232 -> 68.38558696 | W199: =ProjectCashflows!W$232 -> 69.7532987 | X199: =ProjectCashflows!X$232 -> 71.14836467 | Y199: =ProjectCashflows!Y$232 -> 72.57133197 | Z199: =ProjectCashflows!Z$232 -> 74.02275861 | AA199: =ProjectCashflows!AA$232 -> 75.50321378 | AB199: =ProjectCashflows!AB$232 -> 77.01327806 | AC199: =ProjectCashflows!AC$232 -> 78.55354362 | AD199: =ProjectCashflows!AD$232 -> 80.12461449 | AE199: =ProjectCashflows!AE$232 -> 81.72710678 | AF199: =ProjectCashflows!AF$232 -> 83.36164891 | AG199: =ProjectCashflows!AG$232 -> 85.02888189 | AH199: =ProjectCashflows!AH$232 -> 86.72945953 | AI199: =ProjectCashflows!AI$232 -> 88.46404872 | AJ199: =ProjectCashflows!AJ$232 -> 90.2333297 | AK199: =ProjectCashflows!AK$232 -> 92.03799629 | AL199: =ProjectCashflows!AL$232 -> 93.87875622 | AM199: =ProjectCashflows!AM$232 -> 95.75633134 | AN199: =ProjectCashflows!AN$232 -> 97.67145797 | AO199: =ProjectCashflows!AO$232 -> 99.62488713 | AP199: =ProjectCashflows!AP$232 -> 0 | AQ199: =ProjectCashflows!AQ$232 -> 0 | AR199: =ProjectCashflows!AR$232 -> 0 | AS199: =ProjectCashflows!AS$232 -> 0 | AT199: =ProjectCashflows!AT$232 -> 0 | AU199: =ProjectCashflows!AU$232 -> 0 | AV199: =ProjectCashflows!AV$232 -> 0 | AW199: =ProjectCashflows!AW$232 -> 0 | AX199: =ProjectCashflows!AX$232 -> 0
E200: =E199 & " " & Translate!E548 -> Oil price realized from sales, after ELT above threshold | G200: =G199 -> US$ / bbl | K200: =IF( K199 > K197, K199 - K197, 0) -> 55 | L200: 56.1 | M200: 57.222 | N200: 58.36644 | O200: 59.5337688 | P200: 60.72444418 | Q200: 61.93893306 | R200: 63.17771172 | S200: 64.44126596 | T200: 65.73009127 | U200: 67.0446931 | V200: 68.38558696 | W200: 69.7532987 | X200: 71.14836467 | Y200: 72.57133197 | Z200: 74.02275861 | AA200: 75.50321378 | AB200: 77.01327806 | AC200: 78.55354362 | AD200: 80.12461449 | AE200: 81.72710678 | AF200: 83.36164891 | AG200: 85.02888189 | AH200: 86.72945953 | AI200: 88.46404872 | AJ200: 90.2333297 | AK200: 92.03799629 | AL200: 93.87875622 | AM200: 95.75633134 | AN200: 97.67145797 | AO200: 99.62488713 | AP200: 0 | AQ200: 0 | AR200: 0 | AS200: 0 | AT200: 0 | AU200: 0 | AV200: 0 | AW200: 0 | AX200: 0
E201: =Translate!E$239 -> Proportion of price above threshold | G201: % | K201: =IF( $F192 = 0, 0, IFERROR(K200 / K197, 0)) -> 0 | L201: 0 | M201: 0 | N201: 0 | O201: 0 | P201: 0 | Q201: 0 | R201: 0 | S201: 0 | T201: 0 | U201: 0 | V201: 0 | W201: 0 | X201: 0 | Y201: 0 | Z201: 0 | AA201: 0 | AB201: 0 | AC201: 0 | AD201: 0 | AE201: 0 | AF201: 0 | AG201: 0 | AH201: 0 | AI201: 0 | AJ201: 0 | AK201: 0 | AL201: 0 | AM201: 0 | AN201: 0 | AO201: 0 | AP201: 0 | AQ201: 0 | AR201: 0 | AS201: 0 | AT201: 0 | AU201: 0 | AV201: 0 | AW201: 0 | AX201: 0
E203: =E$21 -> Additional royalty rate above price threshold | F203: =F$21 -> 0 | G203: =G$21 -> %
E204: =Translate!E$240 -> Price-based royalty rate | G204: % | H204: =Translate!E516 -> percentage of aggregate price | K204: =K201 * $F203 -> 0 | L204: 0 | M204: 0 | N204: 0 | O204: 0 | P204: 0 | Q204: 0 | R204: 0 | S204: 0 | T204: 0 | U204: 0 | V204: 0 | W204: 0 | X204: 0 | Y204: 0 | Z204: 0 | AA204: 0 | AB204: 0 | AC204: 0 | AD204: 0 | AE204: 0 | AF204: 0 | AG204: 0 | AH204: 0 | AI204: 0 | AJ204: 0 | AK204: 0 | AL204: 0 | AM204: 0 | AN204: 0 | AO204: 0 | AP204: 0 | AQ204: 0 | AR204: 0 | AS204: 0 | AT204: 0 | AU204: 0 | AV204: 0 | AW204: 0 | AX204: 0
B206: =Translate!$E$417 -> Aggregate royalty rate
E207: =E189 -> Flat royalty rate | F207: 0 | G207: % | H207: 0 | I207: 0 | J207: 0 | K207: 0.2 | L207: 0.2 | M207: 0.2 | N207: 0.2 | O207: 0.2 | P207: 0.2 | Q207: 0.2 | R207: 0.2 | S207: 0.2 | T207: 0.2 | U207: 0.2 | V207: 0.2 | W207: 0.2 | X207: 0.2 | Y207: 0.2 | Z207: 0.2 | AA207: 0.2 | AB207: 0.2 | AC207: 0.2 | AD207: 0.2 | AE207: 0.2 | AF207: 0.2 | AG207: 0.2 | AH207: 0.2 | AI207: 0.2 | AJ207: 0.2 | AK207: 0.2 | AL207: 0.2 | AM207: 0.2 | AN207: 0.2 | AO207: 0.2 | AP207: 0.2 | AQ207: 0.2 | AR207: 0.2 | AS207: 0.2 | AT207: 0.2 | AU207: 0.2 | AV207: 0.2 | AW207: 0.2 | AX207: 0.2
E208: =E$204 -> Price-based royalty rate | F208: =F$204 -> 0 | G208: % | H208: percentage of aggregate price | I208: 0 | J208: 0 | K208: 0 | L208: 0 | M208: 0 | N208: 0 | O208: 0 | P208: 0 | Q208: 0 | R208: 0 | S208: 0 | T208: 0 | U208: 0 | V208: 0 | W208: 0 | X208: 0 | Y208: 0 | Z208: 0 | AA208: 0 | AB208: 0 | AC208: 0 | AD208: 0 | AE208: 0 | AF208: 0 | AG208: 0 | AH208: 0 | AI208: 0 | AJ208: 0 | AK208: 0 | AL208: 0 | AM208: 0 | AN208: 0 | AO208: 0 | AP208: 0 | AQ208: 0 | AR208: 0 | AS208: 0 | AT208: 0 | AU208: 0 | AV208: 0 | AW208: 0 | AX208: 0
E209: =Translate!E$128 -> Royalty rate | G209: % | K209: =SUM(K207:K208) -> 0.2 | L209: 0.2 | M209: 0.2 | N209: 0.2 | O209: 0.2 | P209: 0.2 | Q209: 0.2 | R209: 0.2 | S209: 0.2 | T209: 0.2 | U209: 0.2 | V209: 0.2 | W209: 0.2 | X209: 0.2 | Y209: 0.2 | Z209: 0.2 | AA209: 0.2 | AB209: 0.2 | AC209: 0.2 | AD209: 0.2 | AE209: 0.2 | AF209: 0.2 | AG209: 0.2 | AH209: 0.2 | AI209: 0.2 | AJ209: 0.2 | AK209: 0.2 | AL209: 0.2 | AM209: 0.2 | AN209: 0.2 | AO209: 0.2 | AP209: 0.2 | AQ209: 0.2 | AR209: 0.2 | AS209: 0.2 | AT209: 0.2 | AU209: 0.2 | AV209: 0.2 | AW209: 0.2 | AX209: 0.2
B211: =Translate!$E$127 -> Royalty
E212: =E$185 -> Royalty base (net/gross): Net revenues after ELT | F212: =F$185 -> 0 | G212: US$ mn | H212: 0 | I212: 57168.54352 | J212: 0 | K212: 0 | L212: 0 | M212: 0 | N212: 0 | O212: 207.4571706 | P212: 1662.331659 | Q212: 3391.156585 | R212: 3458.979717 | S212: 3528.159311 | T212: 3598.722497 | U212: 3670.696947 | V212: 3744.110886 | W212: 3818.993104 | X212: 3895.372966 | Y212: 3973.280425 | Z212: 4052.746034 | AA212: 3348.378773 | AB212: 2766.430542 | AC212: 2285.624914 | AD212: 1888.383304 | AE212: 1560.182286 | AF212: 1289.022605 | AG212: 1064.990476 | AH212: 879.8951311 | AI212: 726.9693574 | AJ212: 600.622083 | AK212: 496.233965 | AL212: 409.9885019 | AM212: 338.7325003 | AN212: 279.8607917 | AO212: 231.2209861 | AP212: 0 | AQ212: 0 | AR212: 0 | AS212: 0 | AT212: 0 | AU212: 0 | AV212: 0 | AW212: 0 | AX212: 0
E213: =E$209 -> Royalty rate | F213: =F$209 -> 0 | G213: % | H213: 0 | I213: 0 | J213: 0 | K213: 0.2 | L213: 0.2 | M213: 0.2 | N213: 0.2 | O213: 0.2 | P213: 0.2 | Q213: 0.2 | R213: 0.2 | S213: 0.2 | T213: 0.2 | U213: 0.2 | V213: 0.2 | W213: 0.2 | X213: 0.2 | Y213: 0.2 | Z213: 0.2 | AA213: 0.2 | AB213: 0.2 | AC213: 0.2 | AD213: 0.2 | AE213: 0.2 | AF213: 0.2 | AG213: 0.2 | AH213: 0.2 | AI213: 0.2 | AJ213: 0.2 | AK213: 0.2 | AL213: 0.2 | AM213: 0.2 | AN213: 0.2 | AO213: 0.2 | AP213: 0.2 | AQ213: 0.2 | AR213: 0.2 | AS213: 0.2 | AT213: 0.2 | AU213: 0.2 | AV213: 0.2 | AW213: 0.2 | AX213: 0.2
E214: =Translate!E$127 -> Royalty | G214: =Translate!E$603 -> US$ mn | I214: =SUM(K214:AX214) -> 11433.7087 | K214: =K212 * K213 -> 0 | L214: 0 | M214: 0 | N214: 0 | O214: 41.49143412 | P214: 332.4663319 | Q214: 678.231317 | R214: 691.7959433 | S214: 705.6318622 | T214: 719.7444995 | U214: 734.1393894 | V214: 748.8221772 | W214: 763.7986208 | X214: 779.0745932 | Y214: 794.6560851 | Z214: 810.5492068 | AA214: 669.6757546 | AB214: 553.2861085 | AC214: 457.1249828 | AD214: 377.6766608 | AE214: 312.0364572 | AF214: 257.8045209 | AG214: 212.9980952 | AH214: 175.9790262 | AI214: 145.3938715 | AJ214: 120.1244166 | AK214: 99.246793 | AL214: 81.99770038 | AM214: 67.74650005 | AN214: 55.97215834 | AO214: 46.24419722 | AP214: 0 | AQ214: 0 | AR214: 0 | AS214: 0 | AT214: 0 | AU214: 0 | AV214: 0 | AW214: 0 | AX214: 0
B216: =Translate!$E$418 -> Net revenues after royalty
E217: =ProjectCashflows!E$236 -> Net revenues after ELT | F217: =ProjectCashflows!F$236 -> 0 | G217: =ProjectCashflows!G$236 -> US$ mn | H217: =ProjectCashflows!H$236 -> 0 | I217: =ProjectCashflows!I$236 -> 57168.54352 | J217: =ProjectCashflows!J$236 -> 0 | K217: =ProjectCashflows!K$236 -> 0 | L217: =ProjectCashflows!L$236 -> 0 | M217: =ProjectCashflows!M$236 -> 0 | N217: =ProjectCashflows!N$236 -> 0 | O217: =ProjectCashflows!O$236 -> 207.4571706 | P217: =ProjectCashflows!P$236 -> 1662.331659 | Q217: =ProjectCashflows!Q$236 -> 3391.156585 | R217: =ProjectCashflows!R$236 -> 3458.979717 | S217: =ProjectCashflows!S$236 -> 3528.159311 | T217: =ProjectCashflows!T$236 -> 3598.722497 | U217: =ProjectCashflows!U$236 -> 3670.696947 | V217: =ProjectCashflows!V$236 -> 3744.110886 | W217: =ProjectCashflows!W$236 -> 3818.993104 | X217: =ProjectCashflows!X$236 -> 3895.372966 | Y217: =ProjectCashflows!Y$236 -> 3973.280425 | Z217: =ProjectCashflows!Z$236 -> 4052.746034 | AA217: =ProjectCashflows!AA$236 -> 3348.378773 | AB217: =ProjectCashflows!AB$236 -> 2766.430542 | AC217: =ProjectCashflows!AC$236 -> 2285.624914 | AD217: =ProjectCashflows!AD$236 -> 1888.383304 | AE217: =ProjectCashflows!AE$236 -> 1560.182286 | AF217: =ProjectCashflows!AF$236 -> 1289.022605 | AG217: =ProjectCashflows!AG$236 -> 1064.990476 | AH217: =ProjectCashflows!AH$236 -> 879.8951311 | AI217: =ProjectCashflows!AI$236 -> 726.9693574 | AJ217: =ProjectCashflows!AJ$236 -> 600.622083 | AK217: =ProjectCashflows!AK$236 -> 496.233965 | AL217: =ProjectCashflows!AL$236 -> 409.9885019 | AM217: =ProjectCashflows!AM$236 -> 338.7325003 | AN217: =ProjectCashflows!AN$236 -> 279.8607917 | AO217: =ProjectCashflows!AO$236 -> 231.2209861 | AP217: =ProjectCashflows!AP$236 -> 0 | AQ217: =ProjectCashflows!AQ$236 -> 0 | AR217: =ProjectCashflows!AR$236 -> 0 | AS217: =ProjectCashflows!AS$236 -> 0 | AT217: =ProjectCashflows!AT$236 -> 0 | AU217: =ProjectCashflows!AU$236 -> 0 | AV217: =ProjectCashflows!AV$236 -> 0 | AW217: =ProjectCashflows!AW$236 -> 0 | AX217: =ProjectCashflows!AX$236 -> 0
E218: =E$214 -> Royalty | F218: =F$214 -> 0 | G218: US$ mn | H218: 0 | I218: 11433.7087 | J218: 0 | K218: 0 | L218: 0 | M218: 0 | N218: 0 | O218: 41.49143412 | P218: 332.4663319 | Q218: 678.231317 | R218: 691.7959433 | S218: 705.6318622 | T218: 719.7444995 | U218: 734.1393894 | V218: 748.8221772 | W218: 763.7986208 | X218: 779.0745932 | Y218: 794.6560851 | Z218: 810.5492068 | AA218: 669.6757546 | AB218: 553.2861085 | AC218: 457.1249828 | AD218: 377.6766608 | AE218: 312.0364572 | AF218: 257.8045209 | AG218: 212.9980952 | AH218: 175.9790262 | AI218: 145.3938715 | AJ218: 120.1244166 | AK218: 99.246793 | AL218: 81.99770038 | AM218: 67.74650005 | AN218: 55.97215834 | AO218: 46.24419722 | AP218: 0 | AQ218: 0 | AR218: 0 | AS218: 0 | AT218: 0 | AU218: 0 | AV218: 0 | AW218: 0 | AX218: 0
E219: =Translate!E$241 -> Oil revenues after royalty | G219: =G176 -> 0 | I219: =SUM(K219:AX219) -> 45734.83481 | K219: =K217 - K218 -> 0 | L219: 0 | M219: 0 | N219: 0 | O219: 165.9657365 | P219: 1329.865327 | Q219: 2712.925268 | R219: 2767.183773 | S219: 2822.527449 | T219: 2878.977998 | U219: 2936.557558 | V219: 2995.288709 | W219: 3055.194483 | X219: 3116.298373 | Y219: 3178.62434 | Z219: 3242.196827 | AA219: 2678.703018 | AB219: 2213.144434 | AC219: 1828.499931 | AD219: 1510.706643 | AE219: 1248.145829 | AF219: 1031.218084 | AG219: 851.9923807 | AH219: 703.9161049 | AI219: 581.5754859 | AJ219: 480.4976664 | AK219: 396.987172 | AL219: 327.9908015 | AM219: 270.9860002 | AN219: 223.8886334 | AO219: 184.9767889 | AP219: 0 | AQ219: 0 | AR219: 0 | AS219: 0 | AT219: 0 | AU219: 0 | AV219: 0 | AW219: 0 | AX219: 0
E221: =E$77 -> State participation | F221: =F$77 -> 0.2 | G221: =G$77 -> %
E222: =E$214 & " " & Translate!E535 -> Royalty attributable to: SOC | G222: =Translate!E$603 -> US$ mn | I222: =SUM(K222:AX222) -> 2286.741741 | K222: =K$214* $F221 -> 0 | L222: =L$214* $F221 -> 0 | M222: 0 | N222: 0 | O222: 8.298286824 | P222: 66.49326637 | Q222: 135.6462634 | R222: 138.3591887 | S222: 141.1263724 | T222: 143.9488999 | U222: 146.8278779 | V222: 149.7644354 | W222: 152.7597242 | X222: 155.8149186 | Y222: 158.931217 | Z222: 162.1098414 | AA222: 133.9351509 | AB222: 110.6572217 | AC222: 91.42499656 | AD222: 75.53533216 | AE222: 62.40729143 | AF222: 51.56090418 | AG222: 42.59961903 | AH222: 35.19580525 | AI222: 29.07877429 | AJ222: 24.02488332 | AK222: 19.8493586 | AL222: 16.39954008 | AM222: 13.54930001 | AN222: 11.19443167 | AO222: 9.248839445 | AP222: 0 | AQ222: 0 | AR222: 0 | AS222: 0 | AT222: 0 | AU222: 0 | AV222: 0 | AW222: 0 | AX222: 0
E223: =E$214 & " " & Translate!E536 -> Royalty attributable to: IOC | G223: =Translate!E$603 -> US$ mn | I223: =SUM(K223:AX223) -> 9146.966963 | K223: =K214 - K222 -> 0 | L223: =L214 - L222 -> 0 | M223: 0 | N223: 0 | O223: 33.1931473 | P223: 265.9730655 | Q223: 542.5850536 | R223: 553.4367547 | S223: 564.5054898 | T223: 575.7955996 | U223: 587.3115116 | V223: 599.0577418 | W223: 611.0388966 | X223: 623.2596746 | Y223: 635.724868 | Z223: 648.4393654 | AA223: 535.7406037 | AB223: 442.6288868 | AC223: 365.6999863 | AD223: 302.1413286 | AE223: 249.6291657 | AF223: 206.2436167 | AG223: 170.3984761 | AH223: 140.783221 | AI223: 116.3150972 | AJ223: 96.09953329 | AK223: 79.3974344 | AL223: 65.5981603 | AM223: 54.19720004 | AN223: 44.77772667 | AO223: 36.99535778 | AP223: 0 | AQ223: 0 | AR223: 0 | AS223: 0 | AT223: 0 | AU223: 0 | AV223: 0 | AW223: 0 | AX223: 0
A225: =Translate!E$136 -> Carbon tax
B227: =Translate!$E$419 -> Determination of tax base
E228: =E$34 -> Carbon tax imposed on scope 3 emissions levied on investor | F228: =F$34 -> no | G228: =G$34 -> Option
E229: =Inputs!E$87 -> Label: yes | F229: =Inputs!F$87 -> yes | G229: =Inputs!G$87 -> Label
E230: =Inputs!E$88 -> Label: no | F230: =Inputs!F$88 -> no | G230: =Inputs!G$88 -> Label
E231: =ProjectCashflows!E$279 -> Scope 1: Upstream GHG emissions | F231: =ProjectCashflows!F$279 -> 0 | G231: =ProjectCashflows!G$279 -> Mn t CO2 eq | H231: =ProjectCashflows!H$279 -> 0 | I231: =ProjectCashflows!I$279 -> 50.54687659 | J231: =ProjectCashflows!J$279 -> 0 | K231: =ProjectCashflows!K$279 -> 0 | L231: =ProjectCashflows!L$279 -> 0 | M231: =ProjectCashflows!M$279 -> 0 | N231: =ProjectCashflows!N$279 -> 0 | O231: =ProjectCashflows!O$279 -> 0.2196613866 | P231: =ProjectCashflows!P$279 -> 1.7256105 | Q231: =ProjectCashflows!Q$279 -> 3.451221 | R231: =ProjectCashflows!R$279 -> 3.451221 | S231: =ProjectCashflows!S$279 -> 3.451221 | T231: =ProjectCashflows!T$279 -> 3.451221 | U231: =ProjectCashflows!U$279 -> 3.451221 | V231: =ProjectCashflows!V$279 -> 3.451221 | W231: =ProjectCashflows!W$279 -> 3.451221 | X231: =ProjectCashflows!X$279 -> 3.451221 | Y231: =ProjectCashflows!Y$279 -> 3.451221 | Z231: =ProjectCashflows!Z$279 -> 3.451221 | AA231: =ProjectCashflows!AA$279 -> 2.79548901 | AB231: =ProjectCashflows!AB$279 -> 2.264346098 | AC231: =ProjectCashflows!AC$279 -> 1.834120339 | AD231: =ProjectCashflows!AD$279 -> 1.485637475 | AE231: =ProjectCashflows!AE$279 -> 1.203366355 | AF231: =ProjectCashflows!AF$279 -> 0.9747267473 | AG231: =ProjectCashflows!AG$279 -> 0.7895286653 | AH231: =ProjectCashflows!AH$279 -> 0.6395182189 | AI231: =ProjectCashflows!AI$279 -> 0.5180097573 | AJ231: =ProjectCashflows!AJ$279 -> 0.4195879034 | AK231: =ProjectCashflows!AK$279 -> 0.3398662018 | AL231: =ProjectCashflows!AL$279 -> 0.2752916234 | AM231: =ProjectCashflows!AM$279 -> 0.222986215 | AN231: =ProjectCashflows!AN$279 -> 0.1806188341 | AO231: =ProjectCashflows!AO$279 -> 0.1463012557 | AP231: =ProjectCashflows!AP$279 -> 0 | AQ231: =ProjectCashflows!AQ$279 -> 0 | AR231: =ProjectCashflows!AR$279 -> 0 | AS231: =ProjectCashflows!AS$279 -> 0 | AT231: =ProjectCashflows!AT$279 -> 0 | AU231: =ProjectCashflows!AU$279 -> 0 | AV231: =ProjectCashflows!AV$279 -> 0 | AW231: =ProjectCashflows!AW$279 -> 0 | AX231: =ProjectCashflows!AX$279 -> 0
E232: =ProjectCashflows!E$284 -> Scope 3: GHG emissions from oil consumed | F232: =ProjectCashflows!F$284 -> 0 | G232: =ProjectCashflows!G$284 -> Mn t CO2 eq | H232: =ProjectCashflows!H$284 -> 0 | I232: =ProjectCashflows!I$284 -> 344.8054593 | J232: =ProjectCashflows!J$284 -> 0 | K232: =ProjectCashflows!K$284 -> 0 | L232: =ProjectCashflows!L$284 -> 0 | M232: =ProjectCashflows!M$284 -> 0 | N232: =ProjectCashflows!N$284 -> 0 | O232: =ProjectCashflows!O$284 -> 1.498419891 | P232: =ProjectCashflows!P$284 -> 11.77125 | Q232: =ProjectCashflows!Q$284 -> 23.5425 | R232: =ProjectCashflows!R$284 -> 23.5425 | S232: =ProjectCashflows!S$284 -> 23.5425 | T232: =ProjectCashflows!T$284 -> 23.5425 | U232: =ProjectCashflows!U$284 -> 23.5425 | V232: =ProjectCashflows!V$284 -> 23.5425 | W232: =ProjectCashflows!W$284 -> 23.5425 | X232: =ProjectCashflows!X$284 -> 23.5425 | Y232: =ProjectCashflows!Y$284 -> 23.5425 | Z232: =ProjectCashflows!Z$284 -> 23.5425 | AA232: =ProjectCashflows!AA$284 -> 19.069425 | AB232: =ProjectCashflows!AB$284 -> 15.44623425 | AC232: =ProjectCashflows!AC$284 -> 12.51144974 | AD232: =ProjectCashflows!AD$284 -> 10.13427429 | AE232: =ProjectCashflows!AE$284 -> 8.208762176 | AF232: =ProjectCashflows!AF$284 -> 6.649097363 | AG232: =ProjectCashflows!AG$284 -> 5.385768864 | AH232: =ProjectCashflows!AH$284 -> 4.36247278 | AI232: =ProjectCashflows!AI$284 -> 3.533602951 | AJ232: =ProjectCashflows!AJ$284 -> 2.862218391 | AK232: =ProjectCashflows!AK$284 -> 2.318396896 | AL232: =ProjectCashflows!AL$284 -> 1.877901486 | AM232: =ProjectCashflows!AM$284 -> 1.521100204 | AN232: =ProjectCashflows!AN$284 -> 1.232091165 | AO232: =ProjectCashflows!AO$284 -> 0.9979938437 | AP232: =ProjectCashflows!AP$284 -> 0 | AQ232: =ProjectCashflows!AQ$284 -> 0 | AR232: =ProjectCashflows!AR$284 -> 0 | AS232: =ProjectCashflows!AS$284 -> 0 | AT232: =ProjectCashflows!AT$284 -> 0 | AU232: =ProjectCashflows!AU$284 -> 0 | AV232: =ProjectCashflows!AV$284 -> 0 | AW232: =ProjectCashflows!AW$284 -> 0 | AX232: =ProjectCashflows!AX$284 -> 0
E233: =Translate!E$242 -> Total GHG emissions applicable for carbon tax | G233: =G232 -> Mn t CO2 eq | I233: =SUM(K233:AX233) -> 50.54687659 | K233: =K231 + K232 * ($F228 = $F229) -> 0 | L233: 0 | M233: 0 | N233: 0 | O233: 0.2196613866 | P233: 1.7256105 | Q233: 3.451221 | R233: 3.451221 | S233: 3.451221 | T233: 3.451221 | U233: 3.451221 | V233: 3.451221 | W233: 3.451221 | X233: 3.451221 | Y233: 3.451221 | Z233: 3.451221 | AA233: 2.79548901 | AB233: 2.264346098 | AC233: 1.834120339 | AD233: 1.485637475 | AE233: 1.203366355 | AF233: 0.9747267473 | AG233: 0.7895286653 | AH233: 0.6395182189 | AI233: 0.5180097573 | AJ233: 0.4195879034 | AK233: 0.3398662018 | AL233: 0.2752916234 | AM233: 0.222986215 | AN233: 0.1806188341 | AO233: 0.1463012557 | AP233: 0 | AQ233: 0 | AR233: 0 | AS233: 0 | AT233: 0 | AU233: 0 | AV233: 0 | AW233: 0 | AX233: 0
B235: =Translate!$E$420 -> Tax applicable
... 752 more rows

Sheet ProjectCashflows
A1: =RIGHT( CELL("filename",$A$1), LEN( CELL("filename",$A$1)) - SEARCH("]", CELL("filename",$A$1))) -> ProjectCashflows | K1: =ProjectCashflows!K$34 -> 2021 | L1: =ProjectCashflows!L$34 -> 2022 | M1: =ProjectCashflows!M$34 -> 2023 | N1: =ProjectCashflows!N$34 -> 2024 | O1: =ProjectCashflows!O$34 -> 2025 | P1: =ProjectCashflows!P$34 -> 2026 | Q1: =ProjectCashflows!Q$34 -> 2027 | R1: =ProjectCashflows!R$34 -> 2028 | S1: =ProjectCashflows!S$34 -> 2029 | T1: =ProjectCashflows!T$34 -> 2030 | U1: =ProjectCashflows!U$34 -> 2031 | V1: =ProjectCashflows!V$34 -> 2032 | W1: =ProjectCashflows!W$34 -> 2033 | X1: =ProjectCashflows!X$34 -> 2034 | Y1: =ProjectCashflows!Y$34 -> 2035 | Z1: =ProjectCashflows!Z$34 -> 2036 | AA1: =ProjectCashflows!AA$34 -> 2037 | AB1: =ProjectCashflows!AB$34 -> 2038 | AC1: =ProjectCashflows!AC$34 -> 2039 | AD1: =ProjectCashflows!AD$34 -> 2040 | AE1: =ProjectCashflows!AE$34 -> 2041 | AF1: =ProjectCashflows!AF$34 -> 2042 | AG1: =ProjectCashflows!AG$34 -> 2043 | AH1: =ProjectCashflows!AH$34 -> 2044 | AI1: =ProjectCashflows!AI$34 -> 2045 | AJ1: =ProjectCashflows!AJ$34 -> 2046 | AK1: =ProjectCashflows!AK$34 -> 2047 | AL1: =ProjectCashflows!AL$34 -> 2048 | AM1: =ProjectCashflows!AM$34 -> 2049 | AN1: =ProjectCashflows!AN$34 -> 2050 | AO1: =ProjectCashflows!AO$34 -> 2051 | AP1: =ProjectCashflows!AP$34 -> 2052 | AQ1: =ProjectCashflows!AQ$34 -> 2053 | AR1: =ProjectCashflows!AR$34 -> 2054 | AS1: =ProjectCashflows!AS$34 -> 2055 | AT1: =ProjectCashflows!AT$34 -> 2056 | AU1: =ProjectCashflows!AU$34 -> 2057 | AV1: =ProjectCashflows!AV$34 -> 2058 | AW1: =ProjectCashflows!AW$34 -> 2059 | AX1: =ProjectCashflows!AX$34 -> 2060
E2: =Translate!E$597 -> Row description | F2: =Translate!E$598 -> Constant | G2: =Translate!E$599 -> Units | H2: =Translate!E600 -> Comments | I2: =Translate!E$601 -> Total
F3: =ReadMe!$D$7 -> 0 | G3: =ReadMe!$E$7 -> Checks | K3: =Track!F$1 -> 0 | L3: =Track!G$1 -> Track changes
A4: =Translate!E570 -> Data for selected project
E6: =Inputs!E$12 -> Selected project | F6: =Inputs!F$12 -> 800MMbbl_A | G6: =Inputs!G$12 -> Option
B8: =Translate!E$569 -> Raw project data | K8: =Translate!E$794 -> Do not change start-row of this block, unless all project examples changed accordingly
E9: =Translate!E$710 -> Oil production RATE | G9: =Translate!E$611 -> KBOPD | K9: =INDIRECT( ADDRESS( ROW(), COLUMN(),,, ProjectCashflows!$F$6)) -> 0 | L9: =INDIRECT( ADDRESS( ROW(), COLUMN(),,, ProjectCashflows!$F$6)) -> 0 | M9: =INDIRECT( ADDRESS( ROW(), COLUMN(),,, ProjectCashflows!$F$6)) -> 0 | N9: =INDIRECT( ADDRESS( ROW(), COLUMN(),,, ProjectCashflows!$F$6)) -> 0 | O9: =INDIRECT( ADDRESS( ROW(), COLUMN(),,, ProjectCashflows!$F$6)) -> 9.547116222 | P9: =INDIRECT( ADDRESS( ROW(), COLUMN(),,, ProjectCashflows!$F$6)) -> 75 | Q9: =INDIRECT( ADDRESS( ROW(), COLUMN(),,, ProjectCashflows!$F$6)) -> 150 | R9: =INDIRECT( ADDRESS( ROW(), COLUMN(),,, ProjectCashflows!$F$6)) -> 150 | S9: =INDIRECT( ADDRESS( ROW(), COLUMN(),,, ProjectCashflows!$F$6)) -> 150 | T9: =INDIRECT( ADDRESS( ROW(), COLUMN(),,, ProjectCashflows!$F$6)) -> 150 | U9: =INDIRECT( ADDRESS( ROW(), COLUMN(),,, ProjectCashflows!$F$6)) -> 150 | V9: =INDIRECT( ADDRESS( ROW(), COLUMN(),,, ProjectCashflows!$F$6)) -> 150 | W9: =INDIRECT( ADDRESS( ROW(), COLUMN(),,, ProjectCashflows!$F$6)) -> 150 | X9: =INDIRECT( ADDRESS( ROW(), COLUMN(),,, ProjectCashflows!$F$6)) -> 150 | Y9: =INDIRECT( ADDRESS( ROW(), COLUMN(),,, ProjectCashflows!$F$6)) -> 150 | Z9: =INDIRECT( ADDRESS( ROW(), COLUMN(),,, ProjectCashflows!$F$6)) -> 150 | AA9: =INDIRECT( ADDRESS( ROW(), COLUMN(),,, ProjectCashflows!$F$6)) -> 121.5 | AB9: =INDIRECT( ADDRESS( ROW(), COLUMN(),,, ProjectCashflows!$F$6)) -> 98.415 | AC9: =INDIRECT( ADDRESS( ROW(), COLUMN(),,, ProjectCashflows!$F$6)) -> 79.71615 | AD9: =INDIRECT( ADDRESS( ROW(), COLUMN(),,, ProjectCashflows!$F$6)) -> 64.5700815 | AE9: =INDIRECT( ADDRESS( ROW(), COLUMN(),,, ProjectCashflows!$F$6)) -> 52.30176602 | AF9: =INDIRECT( ADDRESS( ROW(), COLUMN(),,, ProjectCashflows!$F$6)) -> 42.36443047 | AG9: =INDIRECT( ADDRESS( ROW(), COLUMN(),,, ProjectCashflows!$F$6)) -> 34.31518868 | AH9: =INDIRECT( ADDRESS( ROW(), COLUMN(),,, ProjectCashflows!$F$6)) -> 27.79530283 | AI9: =INDIRECT( ADDRESS( ROW(), COLUMN(),,, ProjectCashflows!$F$6)) -> 22.51419529 | AJ9: =INDIRECT( ADDRESS( ROW(), COLUMN(),,, ProjectCashflows!$F$6)) -> 18.23649819 | AK9: =INDIRECT( ADDRESS( ROW(), COLUMN(),,, ProjectCashflows!$F$6)) -> 14.77156353 | AL9: =INDIRECT( ADDRESS( ROW(), COLUMN(),,, ProjectCashflows!$F$6)) -> 11.96496646 | AM9: =INDIRECT( ADDRESS( ROW(), COLUMN(),,, ProjectCashflows!$F$6)) -> 9.691622834 | AN9: =INDIRECT( ADDRESS( ROW(), COLUMN(),,, ProjectCashflows!$F$6)) -> 7.850214495 | AO9: =INDIRECT( ADDRESS( ROW(), COLUMN(),,, ProjectCashflows!$F$6)) -> 6.358673741 | AP9: =INDIRECT( ADDRESS( ROW(), COLUMN(),,, ProjectCashflows!$F$6)) -> 0 | AQ9: =INDIRECT( ADDRESS( ROW(), COLUMN(),,, ProjectCashflows!$F$6)) -> 0 | AR9: =INDIRECT( ADDRESS( ROW(), COLUMN(),,, ProjectCashflows!$F$6)) -> 0 | AS9: =INDIRECT( ADDRESS( ROW(), COLUMN(),,, ProjectCashflows!$F$6)) -> 0 | AT9: =INDIRECT( ADDRESS( ROW(), COLUMN(),,, ProjectCashflows!$F$6)) -> 0 | AU9: =INDIRECT( ADDRESS( ROW(), COLUMN(),,, ProjectCashflows!$F$6)) -> 0 | AV9: =INDIRECT( ADDRESS( ROW(), COLUMN(),,, ProjectCashflows!$F$6)) -> 0 | AW9: =INDIRECT( ADDRESS( ROW(), COLUMN(),,, ProjectCashflows!$F$6)) -> 0 | AX9: =INDIRECT( ADDRESS( ROW(), COLUMN(),,, ProjectCashflows!$F$6)) -> 0
E10: =Translate!E$711 -> Transport costs post-fiscal point | G10: =Inputs!F$52 -> US$ mn 2021 | I10: =SUM(K10:AX10) -> 0 | K10: =INDIRECT( ADDRESS( ROW(), COLUMN(),,, ProjectCashflows!$F$6)) -> 0 | L10: =INDIRECT( ADDRESS( ROW(), COLUMN(),,, ProjectCashflows!$F$6)) -> 0 | M10: =INDIRECT( ADDRESS( ROW(), COLUMN(),,, ProjectCashflows!$F$6)) -> 0 | N10: =INDIRECT( ADDRESS( ROW(), COLUMN(),,, ProjectCashflows!$F$6)) -> 0 | O10: =INDIRECT( ADDRESS( ROW(), COLUMN(),,, ProjectCashflows!$F$6)) -> 0 | P10: =INDIRECT( ADDRESS( ROW(), COLUMN(),,, ProjectCashflows!$F$6)) -> 0 | Q10: =INDIRECT( ADDRESS( ROW(), COLUMN(),,, ProjectCashflows!$F$6)) -> 0 | R10: =INDIRECT( ADDRESS( ROW(), COLUMN(),,, ProjectCashflows!$F$6)) -> 0 | S10: =INDIRECT( ADDRESS( ROW(), COLUMN(),,, ProjectCashflows!$F$6)) -> 0 | T10: =INDIRECT( ADDRESS( ROW(), COLUMN(),,, ProjectCashflows!$F$6)) -> 0 | U10: =INDIRECT( ADDRESS( ROW(), COLUMN(),,, ProjectCashflows!$F$6)) -> 0 | V10: =INDIRECT( ADDRESS( ROW(), COLUMN(),,, ProjectCashflows!$F$6)) -> 0 | W10: =INDIRECT( ADDRESS( ROW(), COLUMN(),,, ProjectCashflows!$F$6)) -> 0 | X10: =INDIRECT( ADDRESS( ROW(), COLUMN(),,, ProjectCashflows!$F$6)) -> 0 | Y10: =INDIRECT( ADDRESS( ROW(), COLUMN(),,, ProjectCashflows!$F$6)) -> 0 | Z10: =INDIRECT( ADDRESS( ROW(), COLUMN(),,, ProjectCashflows!$F$6)) -> 0 | AA10: =INDIRECT( ADDRESS( ROW(), COLUMN(),,, ProjectCashflows!$F$6)) -> 0 | AB10: =INDIRECT( ADDRESS( ROW(), COLUMN(),,, ProjectCashflows!$F$6)) -> 0 | AC10: =INDIRECT( ADDRESS( ROW(), COLUMN(),,, ProjectCashflows!$F$6)) -> 0 | AD10: =INDIRECT( ADDRESS( ROW(), COLUMN(),,, ProjectCashflows!$F$6)) -> 0 | AE10: =INDIRECT( ADDRESS( ROW(), COLUMN(),,, ProjectCashflows!$F$6)) -> 0 | AF10: =INDIRECT( ADDRESS( ROW(), COLUMN(),,, ProjectCashflows!$F$6)) -> 0 | AG10: =INDIRECT( ADDRESS( ROW(), COLUMN(),,, ProjectCashflows!$F$6)) -> 0 | AH10: =INDIRECT( ADDRESS( ROW(), COLUMN(),,, ProjectCashflows!$F$6)) -> 0 | AI10: =INDIRECT( ADDRESS( ROW(), COLUMN(),,, ProjectCashflows!$F$6)) -> 0 | AJ10: =INDIRECT( ADDRESS( ROW(), COLUMN(),,, ProjectCashflows!$F$6)) -> 0 | AK10: =INDIRECT( ADDRESS( ROW(), COLUMN(),,, ProjectCashflows!$F$6)) -> 0 | AL10: =INDIRECT( ADDRESS( ROW(), COLUMN(),,, ProjectCashflows!$F$6)) -> 0 | AM10: =INDIRECT( ADDRESS( ROW(), COLUMN(),,, ProjectCashflows!$F$6)) -> 0 | AN10: =INDIRECT( ADDRESS( ROW(), COLUMN(),,, ProjectCashflows!$F$6)) -> 0 | AO10: =INDIRECT( ADDRESS( ROW(), COLUMN(),,, ProjectCashflows!$F$6)) -> 0 | AP10: =INDIRECT( ADDRESS( ROW(), COLUMN(),,, ProjectCashflows!$F$6)) -> 0 | AQ10: =INDIRECT( ADDRESS( ROW(), COLUMN(),,, ProjectCashflows!$F$6)) -> 0 | AR10: =INDIRECT( ADDRESS( ROW(), COLUMN(),,, ProjectCashflows!$F$6)) -> 0 | AS10: =INDIRECT( ADDRESS( ROW(), COLUMN(),,, ProjectCashflows!$F$6)) -> 0 | AT10: =INDIRECT( ADDRESS( ROW(), COLUMN(),,, ProjectCashflows!$F$6)) -> 0 | AU10: =INDIRECT( ADDRESS( ROW(), COLUMN(),,, ProjectCashflows!$F$6)) -> 0 | AV10: =INDIRECT( ADDRESS( ROW(), COLUMN(),,, ProjectCashflows!$F$6)) -> 0 | AW10: =INDIRECT( ADDRESS( ROW(), COLUMN(),,, ProjectCashflows!$F$6)) -> 0 | AX10: =INDIRECT( ADDRESS( ROW(), COLUMN(),,, ProjectCashflows!$F$6)) -> 0
E11: =Translate!E$712 -> Exploration costs | G11: =Inputs!F$52 -> US$ mn 2021 | I11: 420 | K11: =INDIRECT( ADDRESS( ROW(), COLUMN(),,, ProjectCashflows!$F$6)) -> 420 | L11: =INDIRECT( ADDRESS( ROW(), COLUMN(),,, ProjectCashflows!$F$6)) -> 0 | M11: =INDIRECT( ADDRESS( ROW(), COLUMN(),,, ProjectCashflows!$F$6)) -> 0 | N11: =INDIRECT( ADDRESS( ROW(), COLUMN(),,, ProjectCashflows!$F$6)) -> 0 | O11: =INDIRECT( ADDRESS( ROW(), COLUMN(),,, ProjectCashflows!$F$6)) -> 0 | P11: =INDIRECT( ADDRESS( ROW(), COLUMN(),,, ProjectCashflows!$F$6)) -> 0 | Q11: =INDIRECT( ADDRESS( ROW(), COLUMN(),,, ProjectCashflows!$F$6)) -> 0 | R11: =INDIRECT( ADDRESS( ROW(), COLUMN(),,, ProjectCashflows!$F$6)) -> 0 | S11: =INDIRECT( ADDRESS( ROW(), COLUMN(),,, ProjectCashflows!$F$6)) -> 0 | T11: =INDIRECT( ADDRESS( ROW(), COLUMN(),,, ProjectCashflows!$F$6)) -> 0 | U11: =INDIRECT( ADDRESS( ROW(), COLUMN(),,, ProjectCashflows!$F$6)) -> 0 | V11: =INDIRECT( ADDRESS( ROW(), COLUMN(),,, ProjectCashflows!$F$6)) -> 0 | W11: =INDIRECT( ADDRESS( ROW(), COLUMN(),,, ProjectCashflows!$F$6)) -> 0 | X11: =INDIRECT( ADDRESS( ROW(), COLUMN(),,, ProjectCashflows!$F$6)) -> 0 | Y11: =INDIRECT( ADDRESS( ROW(), COLUMN(),,, ProjectCashflows!$F$6)) -> 0 | Z11: =INDIRECT( ADDRESS( ROW(), COLUMN(),,, ProjectCashflows!$F$6)) -> 0 | AA11: =INDIRECT( ADDRESS( ROW(), COLUMN(),,, ProjectCashflows!$F$6)) -> 0 | AB11: =INDIRECT( ADDRESS( ROW(), COLUMN(),,, ProjectCashflows!$F$6)) -> 0 | AC11: =INDIRECT( ADDRESS( ROW(), COLUMN(),,, ProjectCashflows!$F$6)) -> 0 | AD11: =INDIRECT( ADDRESS( ROW(), COLUMN(),,, ProjectCashflows!$F$6)) -> 0 | AE11: =INDIRECT( ADDRESS( ROW(), COLUMN(),,, ProjectCashflows!$F$6)) -> 0 | AF11: =INDIRECT( ADDRESS( ROW(), COLUMN(),,, ProjectCashflows!$F$6)) -> 0 | AG11: =INDIRECT( ADDRESS( ROW(), COLUMN(),,, ProjectCashflows!$F$6)) -> 0 | AH11: =INDIRECT( ADDRESS( ROW(), COLUMN(),,, ProjectCashflows!$F$6)) -> 0 | AI11: =INDIRECT( ADDRESS( ROW(), COLUMN(),,, ProjectCashflows!$F$6)) -> 0 | AJ11: =INDIRECT( ADDRESS( ROW(), COLUMN(),,, ProjectCashflows!$F$6)) -> 0 | AK11: =INDIRECT( ADDRESS( ROW(), COLUMN(),,, ProjectCashflows!$F$6)) -> 0 | AL11: =INDIRECT( ADDRESS( ROW(), COLUMN(),,, ProjectCashflows!$F$6)) -> 0 | AM11: =INDIRECT( ADDRESS( ROW(), COLUMN(),,, ProjectCashflows!$F$6)) -> 0 | AN11: =INDIRECT( ADDRESS( ROW(), COLUMN(),,, ProjectCashflows!$F$6)) -> 0 | AO11: =INDIRECT( ADDRESS( ROW(), COLUMN(),,, ProjectCashflows!$F$6)) -> 0 | AP11: =INDIRECT( ADDRESS( ROW(), COLUMN(),,, ProjectCashflows!$F$6)) -> 0 | AQ11: =INDIRECT( ADDRESS( ROW(), COLUMN(),,, ProjectCashflows!$F$6)) -> 0 | AR11: =INDIRECT( ADDRESS( ROW(), COLUMN(),,, ProjectCashflows!$F$6)) -> 0 | AS11: =INDIRECT( ADDRESS( ROW(), COLUMN(),,, ProjectCashflows!$F$6)) -> 0 | AT11: =INDIRECT( ADDRESS( ROW(), COLUMN(),,, ProjectCashflows!$F$6)) -> 0 | AU11: =INDIRECT( ADDRESS( ROW(), COLUMN(),,, ProjectCashflows!$F$6)) -> 0 | AV11: =INDIRECT( ADDRESS( ROW(), COLUMN(),,, ProjectCashflows!$F$6)) -> 0 | AW11: =INDIRECT( ADDRESS( ROW(), COLUMN(),,, ProjectCashflows!$F$6)) -> 0 | AX11: =INDIRECT( ADDRESS( ROW(), COLUMN(),,, ProjectCashflows!$F$6)) -> 0
E12: =Translate!E$713 -> Development costs | G12: =Inputs!F$52 -> US$ mn 2021 | I12: 9050 | K12: =INDIRECT( ADDRESS( ROW(), COLUMN(),,, ProjectCashflows!$F$6)) -> 0 | L12: =INDIRECT( ADDRESS( ROW(), COLUMN(),,, ProjectCashflows!$F$6)) -> 50 | M12: =INDIRECT( ADDRESS( ROW(), COLUMN(),,, ProjectCashflows!$F$6)) -> 300 | N12: =INDIRECT( ADDRESS( ROW(), COLUMN(),,, ProjectCashflows!$F$6)) -> 1200 | O12: =INDIRECT( ADDRESS( ROW(), COLUMN(),,, ProjectCashflows!$F$6)) -> 1200 | P12: =INDIRECT( ADDRESS( ROW(), COLUMN(),,, ProjectCashflows!$F$6)) -> 2100 | Q12: =INDIRECT( ADDRESS( ROW(), COLUMN(),,, ProjectCashflows!$F$6)) -> 1100 | R12: =INDIRECT( ADDRESS( ROW(), COLUMN(),,, ProjectCashflows!$F$6)) -> 450 | S12: =INDIRECT( ADDRESS( ROW(), COLUMN(),,, ProjectCashflows!$F$6)) -> 250 | T12: =INDIRECT( ADDRESS( ROW(), COLUMN(),,, ProjectCashflows!$F$6)) -> 250 | U12: =INDIRECT( ADDRESS( ROW(), COLUMN(),,, ProjectCashflows!$F$6)) -> 250 | V12: =INDIRECT( ADDRESS( ROW(), COLUMN(),,, ProjectCashflows!$F$6)) -> 250 | W12: =INDIRECT( ADDRESS( ROW(), COLUMN(),,, ProjectCashflows!$F$6)) -> 250 | X12: =INDIRECT( ADDRESS( ROW(), COLUMN(),,, ProjectCashflows!$F$6)) -> 250 | Y12: =INDIRECT( ADDRESS( ROW(), COLUMN(),,, ProjectCashflows!$F$6)) -> 250 | Z12: =INDIRECT( ADDRESS( ROW(), COLUMN(),,, ProjectCashflows!$F$6)) -> 250 | AA12: =INDIRECT( ADDRESS( ROW(), COLUMN(),,, ProjectCashflows!$F$6)) -> 250 | AB12: =INDIRECT( ADDRESS( ROW(), COLUMN(),,, ProjectCashflows!$F$6)) -> 0 | AC12: =INDIRECT( ADDRESS( ROW(), COLUMN(),,, ProjectCashflows!$F$6)) -> 0 | AD12: =INDIRECT( ADDRESS( ROW(), COLUMN(),,, ProjectCashflows!$F$6)) -> 200 | AE12: =INDIRECT( ADDRESS( ROW(), COLUMN(),,, ProjectCashflows!$F$6)) -> 200 | AF12: =INDIRECT( ADDRESS( ROW(), COLUMN(),,, ProjectCashflows!$F$6)) -> 0 | AG12: =INDIRECT( ADDRESS( ROW(), COLUMN(),,, ProjectCashflows!$F$6)) -> 0 | AH12: =INDIRECT( ADDRESS( ROW(), COLUMN(),,, ProjectCashflows!$F$6)) -> 0 | AI12: =INDIRECT( ADDRESS( ROW(), COLUMN(),,, ProjectCashflows!$F$6)) -> 0 | AJ12: =INDIRECT( ADDRESS( ROW(), COLUMN(),,, ProjectCashflows!$F$6)) -> 0 | AK12: =INDIRECT( ADDRESS( ROW(), COLUMN(),,, ProjectCashflows!$F$6)) -> 0 | AL12: =INDIRECT( ADDRESS( ROW(), COLUMN(),,, ProjectCashflows!$F$6)) -> 0 | AM12: =INDIRECT( ADDRESS( ROW(), COLUMN(),,, ProjectCashflows!$F$6)) -> 0 | AN12: =INDIRECT( ADDRESS( ROW(), COLUMN(),,, ProjectCashflows!$F$6)) -> 0 | AO12: =INDIRECT( ADDRESS( ROW(), COLUMN(),,, ProjectCashflows!$F$6)) -> 0 | AP12: =INDIRECT( ADDRESS( ROW(), COLUMN(),,, ProjectCashflows!$F$6)) -> 0 | AQ12: =INDIRECT( ADDRESS( ROW(), COLUMN(),,, ProjectCashflows!$F$6)) -> 0 | AR12: =INDIRECT( ADDRESS( ROW(), COLUMN(),,, ProjectCashflows!$F$6)) -> 0 | AS12: =INDIRECT( ADDRESS( ROW(), COLUMN(),,, ProjectCashflows!$F$6)) -> 0 | AT12: =INDIRECT( ADDRESS( ROW(), COLUMN(),,, ProjectCashflows!$F$6)) -> 0 | AU12: =INDIRECT( ADDRESS( ROW(), COLUMN(),,, ProjectCashflows!$F$6)) -> 0 | AV12: =INDIRECT( ADDRESS( ROW(), COLUMN(),,, ProjectCashflows!$F$6)) -> 0 | AW12: =INDIRECT( ADDRESS( ROW(), COLUMN(),,, ProjectCashflows!$F$6)) -> 0 | AX12: =INDIRECT( ADDRESS( ROW(), COLUMN(),,, ProjectCashflows!$F$6)) -> 0
E13: =Translate!E$714 -> Replacement capital costs | G13: =Inputs!F$52 -> US$ mn 2021 | I13: 0 | K13: =INDIRECT( ADDRESS( ROW(), COLUMN(),,, ProjectCashflows!$F$6)) -> 0 | L13: =INDIRECT( ADDRESS( ROW(), COLUMN(),,, ProjectCashflows!$F$6)) -> 0 | M13: =INDIRECT( ADDRESS( ROW(), COLUMN(),,, ProjectCashflows!$F$6)) -> 0 | N13: =INDIRECT( ADDRESS( ROW(), COLUMN(),,, ProjectCashflows!$F$6)) -> 0 | O13: =INDIRECT( ADDRESS( ROW(), COLUMN(),,, ProjectCashflows!$F$6)) -> 0 | P13: =INDIRECT( ADDRESS( ROW(), COLUMN(),,, ProjectCashflows!$F$6)) -> 0 | Q13: =INDIRECT( ADDRESS( ROW(), COLUMN(),,, ProjectCashflows!$F$6)) -> 0 | R13: =INDIRECT( ADDRESS( ROW(), COLUMN(),,, ProjectCashflows!$F$6)) -> 0 | S13: =INDIRECT( ADDRESS( ROW(), COLUMN(),,, ProjectCashflows!$F$6)) -> 0 | T13: =INDIRECT( ADDRESS( ROW(), COLUMN(),,, ProjectCashflows!$F$6)) -> 0 | U13: =INDIRECT( ADDRESS( ROW(), COLUMN(),,, ProjectCashflows!$F$6)) -> 0 | V13: =INDIRECT( ADDRESS( ROW(), COLUMN(),,, ProjectCashflows!$F$6)) -> 0 | W13: =INDIRECT( ADDRESS( ROW(), COLUMN(),,, ProjectCashflows!$F$6)) -> 0 | X13: =INDIRECT( ADDRESS( ROW(), COLUMN(),,, ProjectCashflows!$F$6)) -> 0 | Y13: =INDIRECT( ADDRESS( ROW(), COLUMN(),,, ProjectCashflows!$F$6)) -> 0 | Z13: =INDIRECT( ADDRESS( ROW(), COLUMN(),,, ProjectCashflows!$F$6)) -> 0 | AA13: =INDIRECT( ADDRESS( ROW(), COLUMN(),,, ProjectCashflows!$F$6)) -> 0 | AB13: =INDIRECT( ADDRESS( ROW(), COLUMN(),,, ProjectCashflows!$F$6)) -> 0 | AC13: =INDIRECT( ADDRESS( ROW(), COLUMN(),,, ProjectCashflows!$F$6)) -> 0 | AD13: =INDIRECT( ADDRESS( ROW(), COLUMN(),,, ProjectCashflows!$F$6)) -> 0 | AE13: =INDIRECT( ADDRESS( ROW(), COLUMN(),,, ProjectCashflows!$F$6)) -> 0 | AF13: =INDIRECT( ADDRESS( ROW(), COLUMN(),,, ProjectCashflows!$F$6)) -> 0 | AG13: =INDIRECT( ADDRESS( ROW(), COLUMN(),,, ProjectCashflows!$F$6)) -> 0 | AH13: =INDIRECT( ADDRESS( ROW(), COLUMN(),,, ProjectCashflows!$F$6)) -> 0 | AI13: =INDIRECT( ADDRESS( ROW(), COLUMN(),,, ProjectCashflows!$F$6)) -> 0 | AJ13: =INDIRECT( ADDRESS( ROW(), COLUMN(),,, ProjectCashflows!$F$6)) -> 0 | AK13: =INDIRECT( ADDRESS( ROW(), COLUMN(),,, ProjectCashflows!$F$6)) -> 0 | AL13: =INDIRECT( ADDRESS( ROW(), COLUMN(),,, ProjectCashflows!$F$6)) -> 0 | AM13: =INDIRECT( ADDRESS( ROW(), COLUMN(),,, ProjectCashflows!$F$6)) -> 0 | AN13: =INDIRECT( ADDRESS( ROW(), COLUMN(),,, ProjectCashflows!$F$6)) -> 0 | AO13: =INDIRECT( ADDRESS( ROW(), COLUMN(),,, ProjectCashflows!$F$6)) -> 0 | AP13: =INDIRECT( ADDRESS( ROW(), COLUMN(),,, ProjectCashflows!$F$6)) -> 0 | AQ13: =INDIRECT( ADDRESS( ROW(), COLUMN(),,, ProjectCashflows!$F$6)) -> 0 | AR13: =INDIRECT( ADDRESS( ROW(), COLUMN(),,, ProjectCashflows!$F$6)) -> 0 | AS13: =INDIRECT( ADDRESS( ROW(), COLUMN(),,, ProjectCashflows!$F$6)) -> 0 | AT13: =INDIRECT( ADDRESS( ROW(), COLUMN(),,, ProjectCashflows!$F$6)) -> 0 | AU13: =INDIRECT( ADDRESS( ROW(), COLUMN(),,, ProjectCashflows!$F$6)) -> 0 | AV13: =INDIRECT( ADDRESS( ROW(), COLUMN(),,, ProjectCashflows!$F$6)) -> 0 | AW13: =INDIRECT( ADDRESS( ROW(), COLUMN(),,, ProjectCashflows!$F$6)) -> 0 | AX13: =INDIRECT( ADDRESS( ROW(), COLUMN(),,, ProjectCashflows!$F$6)) -> 0
E14: =Translate!E$715 -> Operating costs | G14: =Inputs!F$52 -> US$ mn 2021 | I14: 4601 | K14: =INDIRECT( ADDRESS( ROW(), COLUMN(),,, ProjectCashflows!$F$6)) -> 0 | L14: =INDIRECT( ADDRESS( ROW(), COLUMN(),,, ProjectCashflows!$F$6)) -> 0 | M14: =INDIRECT( ADDRESS( ROW(), COLUMN(),,, ProjectCashflows!$F$6)) -> 0 | N14: =INDIRECT( ADDRESS( ROW(), COLUMN(),,, ProjectCashflows!$F$6)) -> 0 | O14: =INDIRECT( ADDRESS( ROW(), COLUMN(),,, ProjectCashflows!$F$6)) -> 50 | P14: =INDIRECT( ADDRESS( ROW(), COLUMN(),,, ProjectCashflows!$F$6)) -> 180 | Q14: =INDIRECT( ADDRESS( ROW(), COLUMN(),,, ProjectCashflows!$F$6)) -> 260 | R14: =INDIRECT( ADDRESS( ROW(), COLUMN(),,, ProjectCashflows!$F$6)) -> 260 | S14: =INDIRECT( ADDRESS( ROW(), COLUMN(),,, ProjectCashflows!$F$6)) -> 260 | T14: =INDIRECT( ADDRESS( ROW(), COLUMN(),,, ProjectCashflows!$F$6)) -> 260 | U14: =INDIRECT( ADDRESS( ROW(), COLUMN(),,, ProjectCashflows!$F$6)) -> 260 | V14: =INDIRECT( ADDRESS( ROW(), COLUMN(),,, ProjectCashflows!$F$6)) -> 260 | W14: =INDIRECT( ADDRESS( ROW(), COLUMN(),,, ProjectCashflows!$F$6)) -> 260 | X14: =INDIRECT( ADDRESS( ROW(), COLUMN(),,, ProjectCashflows!$F$6)) -> 260 | Y14: =INDIRECT( ADDRESS( ROW(), COLUMN(),,, ProjectCashflows!$F$6)) -> 260 | Z14: =INDIRECT( ADDRESS( ROW(), COLUMN(),,, ProjectCashflows!$F$6)) -> 260 | AA14: =INDIRECT( ADDRESS( ROW(), COLUMN(),,, ProjectCashflows!$F$6)) -> 260 | AB14: =INDIRECT( ADDRESS( ROW(), COLUMN(),,, ProjectCashflows!$F$6)) -> 260 | AC14: =INDIRECT( ADDRESS( ROW(), COLUMN(),,, ProjectCashflows!$F$6)) -> 150 | AD14: =INDIRECT( ADDRESS( ROW(), COLUMN(),,, ProjectCashflows!$F$6)) -> 140 | AE14: =INDIRECT( ADDRESS( ROW(), COLUMN(),,, ProjectCashflows!$F$6)) -> 120 | AF14: =INDIRECT( ADDRESS( ROW(), COLUMN(),,, ProjectCashflows!$F$6)) -> 111 | AG14: =INDIRECT( ADDRESS( ROW(), COLUMN(),,, ProjectCashflows!$F$6)) -> 100 | AH14: =INDIRECT( ADDRESS( ROW(), COLUMN(),,, ProjectCashflows!$F$6)) -> 95 | AI14: =INDIRECT( ADDRESS( ROW(), COLUMN(),,, ProjectCashflows!$F$6)) -> 90 | AJ14: =INDIRECT( ADDRESS( ROW(), COLUMN(),,, ProjectCashflows!$F$6)) -> 85 | AK14: =INDIRECT( ADDRESS( ROW(), COLUMN(),,, ProjectCashflows!$F$6)) -> 80 | AL14: =INDIRECT( ADDRESS( ROW(), COLUMN(),,, ProjectCashflows!$F$6)) -> 75 | AM14: =INDIRECT( ADDRESS( ROW(), COLUMN(),,, ProjectCashflows!$F$6)) -> 70 | AN14: =INDIRECT( ADDRESS( ROW(), COLUMN(),,, ProjectCashflows!$F$6)) -> 70 | AO14: =INDIRECT( ADDRESS( ROW(), COLUMN(),,, ProjectCashflows!$F$6)) -> 65 | AP14: =INDIRECT( ADDRESS( ROW(), COLUMN(),,, ProjectCashflows!$F$6)) -> 0 | AQ14: =INDIRECT( ADDRESS( ROW(), COLUMN(),,, ProjectCashflows!$F$6)) -> 0 | AR14: =INDIRECT( ADDRESS( ROW(), COLUMN(),,, ProjectCashflows!$F$6)) -> 0 | AS14: =INDIRECT( ADDRESS( ROW(), COLUMN(),,, ProjectCashflows!$F$6)) -> 0 | AT14: =INDIRECT( ADDRESS( ROW(), COLUMN(),,, ProjectCashflows!$F$6)) -> 0 | AU14: =INDIRECT( ADDRESS( ROW(), COLUMN(),,, ProjectCashflows!$F$6)) -> 0 | AV14: =INDIRECT( ADDRESS( ROW(), COLUMN(),,, ProjectCashflows!$F$6)) -> 0 | AW14: =INDIRECT( ADDRESS( ROW(), COLUMN(),,, ProjectCashflows!$F$6)) -> 0 | AX14: =INDIRECT( ADDRESS( ROW(), COLUMN(),,, ProjectCashflows!$F$6)) -> 0
E15: =Translate!E$716 -> Decommissioning costs | G15: =Inputs!F$52 -> US$ mn 2021 | I15: 750 | K15: =INDIRECT( ADDRESS( ROW(), COLUMN(),,, ProjectCashflows!$F$6)) -> 0 | L15: =INDIRECT( ADDRESS( ROW(), COLUMN(),,, ProjectCashflows!$F$6)) -> 0 | M15: =INDIRECT( ADDRESS( ROW(), COLUMN(),,, ProjectCashflows!$F$6)) -> 0 | N15: =INDIRECT( ADDRESS( ROW(), COLUMN(),,, ProjectCashflows!$F$6)) -> 0 | O15: =INDIRECT( ADDRESS( ROW(), COLUMN(),,, ProjectCashflows!$F$6)) -> 0 | P15: =INDIRECT( ADDRESS( ROW(), COLUMN(),,, ProjectCashflows!$F$6)) -> 0 | Q15: =INDIRECT( ADDRESS( ROW(), COLUMN(),,, ProjectCashflows!$F$6)) -> 0 | R15: =INDIRECT( ADDRESS( ROW(), COLUMN(),,, ProjectCashflows!$F$6)) -> 0 | S15: =INDIRECT( ADDRESS( ROW(), COLUMN(),,, ProjectCashflows!$F$6)) -> 0 | T15: =INDIRECT( ADDRESS( ROW(), COLUMN(),,, ProjectCashflows!$F$6)) -> 0 | U15: =INDIRECT( ADDRESS( ROW(), COLUMN(),,, ProjectCashflows!$F$6)) -> 0 | V15: =INDIRECT( ADDRESS( ROW(), COLUMN(),,, ProjectCashflows!$F$6)) -> 0 | W15: =INDIRECT( ADDRESS( ROW(), COLUMN(),,, ProjectCashflows!$F$6)) -> 0 | X15: =INDIRECT( ADDRESS( ROW(), COLUMN(),,, ProjectCashflows!$F$6)) -> 0 | Y15: =INDIRECT( ADDRESS( ROW(), COLUMN(),,, ProjectCashflows!$F$6)) -> 0 | Z15: =INDIRECT( ADDRESS( ROW(), COLUMN(),,, ProjectCashflows!$F$6)) -> 0 | AA15: =INDIRECT( ADDRESS( ROW(), COLUMN(),,, ProjectCashflows!$F$6)) -> 0 | AB15: =INDIRECT( ADDRESS( ROW(), COLUMN(),,, ProjectCashflows!$F$6)) -> 0 | AC15: =INDIRECT( ADDRESS( ROW(), COLUMN(),,, ProjectCashflows!$F$6)) -> 0 | AD15: =INDIRECT( ADDRESS( ROW(), COLUMN(),,, ProjectCashflows!$F$6)) -> 0 | AE15: =INDIRECT( ADDRESS( ROW(), COLUMN(),,, ProjectCashflows!$F$6)) -> 0 | AF15: =INDIRECT( ADDRESS( ROW(), COLUMN(),,, ProjectCashflows!$F$6)) -> 0 | AG15: =INDIRECT( ADDRESS( ROW(), COLUMN(),,, ProjectCashflows!$F$6)) -> 0 | AH15: =INDIRECT( ADDRESS( ROW(), COLUMN(),,, ProjectCashflows!$F$6)) -> 0 | AI15: =INDIRECT( ADDRESS( ROW(), COLUMN(),,, ProjectCashflows!$F$6)) -> 0 | AJ15: =INDIRECT( ADDRESS( ROW(), COLUMN(),,, ProjectCashflows!$F$6)) -> 0 | AK15: =INDIRECT( ADDRESS( ROW(), COLUMN(),,, ProjectCashflows!$F$6)) -> 0 | AL15: =INDIRECT( ADDRESS( ROW(), COLUMN(),,, ProjectCashflows!$F$6)) -> 250 | AM15: =INDIRECT( ADDRESS( ROW(), COLUMN(),,, ProjectCashflows!$F$6)) -> 0 | AN15: =INDIRECT( ADDRESS( ROW(), COLUMN(),,, ProjectCashflows!$F$6)) -> 0 | AO15: =INDIRECT( ADDRESS( ROW(), COLUMN(),,, ProjectCashflows!$F$6)) -> 0 | AP15: =INDIRECT( ADDRESS( ROW(), COLUMN(),,, ProjectCashflows!$F$6)) -> 250 | AQ15: =INDIRECT( ADDRESS( ROW(), COLUMN(),,, ProjectCashflows!$F$6)) -> 250 | AR15: =INDIRECT( ADDRESS( ROW(), COLUMN(),,, ProjectCashflows!$F$6)) -> 0 | AS15: =INDIRECT( ADDRESS( ROW(), COLUMN(),,, ProjectCashflows!$F$6)) -> 0 | AT15: =INDIRECT( ADDRESS( ROW(), COLUMN(),,, ProjectCashflows!$F$6)) -> 0 | AU15: =INDIRECT( ADDRESS( ROW(), COLUMN(),,, ProjectCashflows!$F$6)) -> 0 | AV15: =INDIRECT( ADDRESS( ROW(), COLUMN(),,, ProjectCashflows!$F$6)) -> 0 | AW15: =INDIRECT( ADDRESS( ROW(), COLUMN(),,, ProjectCashflows!$F$6)) -> 0 | AX15: =INDIRECT( ADDRESS( ROW(), COLUMN(),,, ProjectCashflows!$F$6)) -> 0
E17: =Inputs!E$79 -> Production days per year | F17: =Inputs!F$79 -> 365 | G17: =Inputs!G$79 -> Days
E18: =Inputs!E$81 -> one thousand | F18: =Inputs!F$81 -> 1000 | G18: =Inputs!G$81 -> Constant
E20: =Translate!E$723 -> Oil production Volume | G20: =Translate!E$88 -> Mn Bbl | I20: =SUM(K20:AX20) -> 801.8731611 | K20: =K9 * $F17 / $F18 -> 0 | L20: 0 | M20: 0 | N20: 0 | O20: 3.484697421 | P20: 27.375 | Q20: 54.75 | R20: 54.75 | S20: 54.75 | T20: 54.75 | U20: 54.75 | V20: 54.75 | W20: 54.75 | X20: 54.75 | Y20: 54.75 | Z20: 54.75 | AA20: 44.3475 | AB20: 35.921475 | AC20: 29.09639475 | AD20: 23.56807975 | AE20: 19.0901446 | AF20: 15.46301712 | AG20: 12.52504387 | AH20: 10.14528553 | AI20: 8.217681283 | AJ20: 6.656321839 | AK20: 5.391620689 | AL20: 4.367212758 | AM20: 3.537442334 | AN20: 2.865328291 | AO20: 2.320915916 | AP20: 0 | AQ20: 0 | AR20: 0 | AS20: 0 | AT20: 0 | AU20: 0 | AV20: 0 | AW20: 0 | AX20: 0
E21: =Translate!E$601 & ": " & E$20 -> Total: Oil production Volume | F21: =SUM(K20:AX20) -> 801.8731611 | G21: =G20 -> Mn Bbl
B23: =Translate!$E$679 -> Check project data in correct row
E24: =Inputs!E$15 -> First row of project data | F24: =Inputs!F$15 -> 9 | G24: =Inputs!G$15 -> row
E25: =Translate!E$722 -> First row of project data | F25: =ROW(F9) -> 9 | G25: row
E26: =Translate!E$755 & " " & Translate!E$722 -> Check: First row of project data | F26: =IF( ABS(F24 - F25) <> 0, 1, 0) -> 0 | G26: =Translate!E$604 -> Check
A29: =Translate!E571 -> Model timeline
E31: =Translate!E$655 -> Model years | G31: =Translate!E$759 -> Columns | K31: =J31 + 1 -> 1 | L31: 2 | M31: 3 | N31: 4 | O31: 5 | P31: 6 | Q31: 7 | R31: 8 | S31: 9 | T31: 10 | U31: 11 | V31: 12 | W31: 13 | X31: 14 | Y31: 15 | Z31: 16 | AA31: 17 | AB31: 18 | AC31: 19 | AD31: 20 | AE31: 21 | AF31: 22 | AG31: 23 | AH31: 24 | AI31: 25 | AJ31: 26 | AK31: 27 | AL31: 28 | AM31: 29 | AN31: 30 | AO31: 31 | AP31: 32 | AQ31: 33 | AR31: 34 | AS31: 35 | AT31: 36 | AU31: 37 | AV31: 38 | AW31: 39 | AX31: 40
E33: =Inputs!E$7 -> Model first calendar year | F33: =Inputs!F$7 -> 2021 | G33: =Inputs!G$7 -> Calendar year
E34: =Translate!E$656 -> Model calendar years | G34: =Translate!E$608 -> Year | K34: =IF(K31 = 1, $F33, J34 + 1) -> 2021 | L34: 2022 | M34: 2023 | N34: 2024 | O34: 2025 | P34: 2026 | Q34: 2027 | R34: 2028 | S34: 2029 | T34: 2030 | U34: 2031 | V34: 2032 | W34: 2033 | X34: 2034 | Y34: 2035 | Z34: 2036 | AA34: 2037 | AB34: 2038 | AC34: 2039 | AD34: 2040 | AE34: 2041 | AF34: 2042 | AG34: 2043 | AH34: 2044 | AI34: 2045 | AJ34: 2046 | AK34: 2047 | AL34: 2048 | AM34: 2049 | AN34: 2050 | AO34: 2051 | AP34: 2052 | AQ34: 2053 | AR34: 2054 | AS34: 2055 | AT34: 2056 | AU34: 2057 | AV34: 2058 | AW34: 2059 | AX34: 2060
A37: =Translate!E572 -> Project data with sensitivity factors applied
B39: =Translate!$E$680 -> Sensitivity factors
E40: =Inputs!E$34 -> Production sensitivity | F40: =Inputs!F$34 -> 1 | G40: =Inputs!G$34 -> factor
E41: =Inputs!E$35 -> Exploration cost sensitivity | F41: =Inputs!F$35 -> 1 | G41: =Inputs!G$35 -> factor
E42: =Inputs!E$36 -> Capex sensitivity (Dev; Replace; Decomm.) | F42: =Inputs!F$36 -> 1 | G42: =Inputs!G$36 -> factor
E43: =Inputs!E$37 -> Operating cost sensitivity | F43: =Inputs!F$37 -> 1 | G43: =Inputs!G$37 -> factor
B45: =Translate!$E$681 -> Project data with sensitivies applied
E46: =E9 -> Oil production RATE | G46: =G9 -> KBOPD | K46: =K9 * $F40 -> 0 | L46: 0 | M46: 0 | N46: 0 | O46: 9.547116222 | P46: 75 | Q46: 150 | R46: 150 | S46: 150 | T46: 150 | U46: 150 | V46: 150 | W46: 150 | X46: 150 | Y46: 150 | Z46: 150 | AA46: 121.5 | AB46: 98.415 | AC46: 79.71615 | AD46: 64.5700815 | AE46: 52.30176602 | AF46: 42.36443047 | AG46: 34.31518868 | AH46: 27.79530283 | AI46: 22.51419529 | AJ46: 18.23649819 | AK46: 14.77156353 | AL46: 11.96496646 | AM46: 9.691622834 | AN46: 7.850214495 | AO46: 6.358673741 | AP46: 0 | AQ46: 0 | AR46: 0 | AS46: 0 | AT46: 0 | AU46: 0 | AV46: 0 | AW46: 0 | AX46: 0
E47: =E20 -> Oil production Volume | G47: =G20 -> Mn Bbl | I47: =SUM(K47:AX47) -> 801.8731611 | K47: =K20 * $F40 -> 0 | L47: 0 | M47: 0 | N47: 0 | O47: 3.484697421 | P47: 27.375 | Q47: 54.75 | R47: 54.75 | S47: 54.75 | T47: 54.75 | U47: 54.75 | V47: 54.75 | W47: 54.75 | X47: 54.75 | Y47: 54.75 | Z47: 54.75 | AA47: 44.3475 | AB47: 35.921475 | AC47: 29.09639475 | AD47: 23.56807975 | AE47: 19.0901446 | AF47: 15.46301712 | AG47: 12.52504387 | AH47: 10.14528553 | AI47: 8.217681283 | AJ47: 6.656321839 | AK47: 5.391620689 | AL47: 4.367212758 | AM47: 3.537442334 | AN47: 2.865328291 | AO47: 2.320915916 | AP47: 0 | AQ47: 0 | AR47: 0 | AS47: 0 | AT47: 0 | AU47: 0 | AV47: 0 | AW47: 0 | AX47: 0
E48: =E10 -> Transport costs post-fiscal point | G48: =G10 -> US$ mn 2021 | I48: 0 | K48: =K10 * $F40 -> 0 | L48: 0 | M48: 0 | N48: 0 | O48: 0 | P48: 0 | Q48: 0 | R48: 0 | S48: 0 | T48: 0 | U48: 0 | V48: 0 | W48: 0 | X48: 0 | Y48: 0 | Z48: 0 | AA48: 0 | AB48: 0 | AC48: 0 | AD48: 0 | AE48: 0 | AF48: 0 | AG48: 0 | AH48: 0 | AI48: 0 | AJ48: 0 | AK48: 0 | AL48: 0 | AM48: 0 | AN48: 0 | AO48: 0 | AP48: 0 | AQ48: 0 | AR48: 0 | AS48: 0 | AT48: 0 | AU48: 0 | AV48: 0 | AW48: 0 | AX48: 0
E49: Exploration costs | G49: US$ mn 2021 | I49: 420 | K49: =K11 * $F41 -> 420 | L49: 0 | M49: 0 | N49: 0 | O49: 0 | P49: 0 | Q49: 0 | R49: 0 | S49: 0 | T49: 0 | U49: 0 | V49: 0 | W49: 0 | X49: 0 | Y49: 0 | Z49: 0 | AA49: 0 | AB49: 0 | AC49: 0 | AD49: 0 | AE49: 0 | AF49: 0 | AG49: 0 | AH49: 0 | AI49: 0 | AJ49: 0 | AK49: 0 | AL49: 0 | AM49: 0 | AN49: 0 | AO49: 0 | AP49: 0 | AQ49: 0 | AR49: 0 | AS49: 0 | AT49: 0 | AU49: 0 | AV49: 0 | AW49: 0 | AX49: 0
E50: Development costs | G50: US$ mn 2021 | I50: 9050 | K50: =K12 * $F42 -> 0 | L50: 50 | M50: 300 | N50: 1200 | O50: 1200 | P50: 2100 | Q50: 1100 | R50: 450 | S50: 250 | T50: 250 | U50: 250 | V50: 250 | W50: 250 | X50: 250 | Y50: 250 | Z50: 250 | AA50: 250 | AB50: 0 | AC50: 0 | AD50: 200 | AE50: 200 | AF50: 0 | AG50: 0 | AH50: 0 | AI50: 0 | AJ50: 0 | AK50: 0 | AL50: 0 | AM50: 0 | AN50: 0 | AO50: 0 | AP50: 0 | AQ50: 0 | AR50: 0 | AS50: 0 | AT50: 0 | AU50: 0 | AV50: 0 | AW50: 0 | AX50: 0
E51: Replacement capital costs | G51: US$ mn 2021 | I51: 0 | K51: =K13 * $F42 -> 0 | L51: 0 | M51: 0 | N51: 0 | O51: 0 | P51: 0 | Q51: 0 | R51: 0 | S51: 0 | T51: 0 | U51: 0 | V51: 0 | W51: 0 | X51: 0 | Y51: 0 | Z51: 0 | AA51: 0 | AB51: 0 | AC51: 0 | AD51: 0 | AE51: 0 | AF51: 0 | AG51: 0 | AH51: 0 | AI51: 0 | AJ51: 0 | AK51: 0 | AL51: 0 | AM51: 0 | AN51: 0 | AO51: 0 | AP51: 0 | AQ51: 0 | AR51: 0 | AS51: 0 | AT51: 0 | AU51: 0 | AV51: 0 | AW51: 0 | AX51: 0
E52: Operating costs | G52: US$ mn 2021 | I52: 4601 | K52: =K14 * $F43 -> 0 | L52: 0 | M52: 0 | N52: 0 | O52: 50 | P52: 180 | Q52: 260 | R52: 260 | S52: 260 | T52: 260 | U52: 260 | V52: 260 | W52: 260 | X52: 260 | Y52: 260 | Z52: 260 | AA52: 260 | AB52: 260 | AC52: 150 | AD52: 140 | AE52: 120 | AF52: 111 | AG52: 100 | AH52: 95 | AI52: 90 | AJ52: 85 | AK52: 80 | AL52: 75 | AM52: 70 | AN52: 70 | AO52: 65 | AP52: 0 | AQ52: 0 | AR52: 0 | AS52: 0 | AT52: 0 | AU52: 0 | AV52: 0 | AW52: 0 | AX52: 0
E53: Decommissioning costs | G53: US$ mn 2021 | I53: 750 | K53: =K15 * $F42 -> 0 | L53: 0 | M53: 0 | N53: 0 | O53: 0 | P53: 0 | Q53: 0 | R53: 0 | S53: 0 | T53: 0 | U53: 0 | V53: 0 | W53: 0 | X53: 0 | Y53: 0 | Z53: 0 | AA53: 0 | AB53: 0 | AC53: 0 | AD53: 0 | AE53: 0 | AF53: 0 | AG53: 0 | AH53: 0 | AI53: 0 | AJ53: 0 | AK53: 0 | AL53: 250 | AM53: 0 | AN53: 0 | AO53: 0 | AP53: 250 | AQ53: 250 | AR53: 0 | AS53: 0 | AT53: 0 | AU53: 0 | AV53: 0 | AW53: 0 | AX53: 0
E55: =E$34 -> Model calendar years | F55: 0 | G55: Year | H55: 0 | I55: 0 | J55: 0 | K55: 2021 | L55: 2022 | M55: 2023 | N55: 2024 | O55: 2025 | P55: 2026 | Q55: 2027 | R55: 2028 | S55: 2029 | T55: 2030 | U55: 2031 | V55: 2032 | W55: 2033 | X55: 2034 | Y55: 2035 | Z55: 2036 | AA55: 2037 | AB55: 2038 | AC55: 2039 | AD55: 2040 | AE55: 2041 | AF55: 2042 | AG55: 2043 | AH55: 2044 | AI55: 2045 | AJ55: 2046 | AK55: 2047 | AL55: 2048 | AM55: 2049 | AN55: 2050 | AO55: 2051 | AP55: 2052 | AQ55: 2053 | AR55: 2054 | AS55: 2055 | AT55: 2056 | AU55: 2057 | AV55: 2058 | AW55: 2059 | AX55: 2060
E56: =Translate!E573 -> Peak production | F56: =MAX(K46:AX46) -> 150 | G56: =G46 -> KBOPD
E57: =Translate!E574 -> Peak production year | F57: =INDEX(K55:BH55,,MATCH(F56,K46:AX46,0)) -> 2027 | G57: =Translate!E$608 -> Year
A59: =Translate!E$701 & ": " & Inputs!F$91 -> Project cashflows: real
B61: =Translate!$E$682 -> Oil price
E62: =Inputs!E$30 -> Oil price (constant real terms) | F62: =Inputs!F$30 -> 55 | G62: =Inputs!G$30 -> US$ 2021 / bbl
E63: =Inputs!E$33 -> Price sensitivity | F63: =Inputs!F$33 -> 1 | G63: =Inputs!G$33 -> factor
E64: =E62 & " " & Translate!E575 -> Oil price (constant real terms) into model | F64: =F62 * F63 -> 55 | G64: =G62 -> US$ 2021 / bbl
E65: =Translate!E576 -> Oil price realized from sales | G65: =Inputs!F$56 -> US$ 2021 / bbl | K65: =$F64 -> 55 | L65: 55 | M65: 55 | N65: 55 | O65: 55 | P65: 55 | Q65: 55 | R65: 55 | S65: 55 | T65: 55 | U65: 55 | V65: 55 | W65: 55 | X65: 55 | Y65: 55 | Z65: 55 | AA65: 55 | AB65: 55 | AC65: 55 | AD65: 55 | AE65: 55 | AF65: 55 | AG65: 55 | AH65: 55 | AI65: 55 | AJ65: 55 | AK65: 55 | AL65: 55 | AM65: 55 | AN65: 55 | AO65: 55 | AP65: 55 | AQ65: 55 | AR65: 55 | AS65: 55 | AT65: 55 | AU65: 55 | AV65: 55 | AW65: 55 | AX65: 55
B67: =Translate!$E$683 -> Revenues
E68: =E$47 -> Oil production Volume | F68: 0 | G68: Mn Bbl | H68: 0 | I68: 801.8731611 | J68: 0 | K68: 0 | L68: 0 | M68: 0 | N68: 0 | O68: 3.484697421 | P68: 27.375 | Q68: 54.75 | R68: 54.75 | S68: 54.75 | T68: 54.75 | U68: 54.75 | V68: 54.75 | W68: 54.75 | X68: 54.75 | Y68: 54.75 | Z68: 54.75 | AA68: 44.3475 | AB68: 35.921475 | AC68: 29.09639475 | AD68: 23.56807975 | AE68: 19.0901446 | AF68: 15.46301712 | AG68: 12.52504387 | AH68: 10.14528553 | AI68: 8.217681283 | AJ68: 6.656321839 | AK68: 5.391620689 | AL68: 4.367212758 | AM68: 3.537442334 | AN68: 2.865328291 | AO68: 2.320915916 | AP68: 0 | AQ68: 0 | AR68: 0 | AS68: 0 | AT68: 0 | AU68: 0 | AV68: 0 | AW68: 0 | AX68: 0
E69: =E$65 -> Oil price realized from sales | F69: 0 | G69: US$ 2021 / bbl | H69: 0 | I69: 0 | J69: 0 | K69: 55 | L69: 55 | M69: 55 | N69: 55 | O69: 55 | P69: 55 | Q69: 55 | R69: 55 | S69: 55 | T69: 55 | U69: 55 | V69: 55 | W69: 55 | X69: 55 | Y69: 55 | Z69: 55 | AA69: 55 | AB69: 55 | AC69: 55 | AD69: 55 | AE69: 55 | AF69: 55 | AG69: 55 | AH69: 55 | AI69: 55 | AJ69: 55 | AK69: 55 | AL69: 55 | AM69: 55 | AN69: 55 | AO69: 55 | AP69: 55 | AQ69: 55 | AR69: 55 | AS69: 55 | AT69: 55 | AU69: 55 | AV69: 55 | AW69: 55 | AX69: 55
D70: =Translate!E529 -> add | E70: =Translate!E$577 -> Oil revenues gross | G70: =Inputs!F$52 -> US$ mn 2021 | I70: =SUM(K70:AX70) -> 44103.02386 | K70: =K68 * K69 -> 0 | L70: 0 | M70: 0 | N70: 0 | O70: 191.6583582 | P70: 1505.625 | Q70: 3011.25 | R70: 3011.25 | S70: 3011.25 | T70: 3011.25 | U70: 3011.25 | V70: 3011.25 | W70: 3011.25 | X70: 3011.25 | Y70: 3011.25 | Z70: 3011.25 | AA70: 2439.1125 | AB70: 1975.681125 | AC70: 1600.301711 | AD70: 1296.244386 | AE70: 1049.957953 | AF70: 850.4659417 | AG70: 688.8774128 | AH70: 557.9907044 | AI70: 451.9724705 | AJ70: 366.0977011 | AK70: 296.5391379 | AL70: 240.1967017 | AM70: 194.5593284 | AN70: 157.593056 | AO70: 127.6503754 | AP70: 0 | AQ70: 0 | AR70: 0 | AS70: 0 | AT70: 0 | AU70: 0 | AV70: 0 | AW70: 0 | AX70: 0
D71: =Translate!E530 -> less | E71: =E$48 -> Transport costs post-fiscal point | F71: 0 | G71: US$ mn 2021 | H71: 0 | I71: 0 | J71: 0 | K71: 0 | L71: 0 | M71: 0 | N71: 0 | O71: 0 | P71: 0 | Q71: 0 | R71: 0 | S71: 0 | T71: 0 | U71: 0 | V71: 0 | W71: 0 | X71: 0 | Y71: 0 | Z71: 0 | AA71: 0 | AB71: 0 | AC71: 0 | AD71: 0 | AE71: 0 | AF71: 0 | AG71: 0 | AH71: 0 | AI71: 0 | AJ71: 0 | AK71: 0 | AL71: 0 | AM71: 0 | AN71: 0 | AO71: 0 | AP71: 0 | AQ71: 0 | AR71: 0 | AS71: 0 | AT71: 0 | AU71: 0 | AV71: 0 | AW71: 0 | AX71: 0
E72: =Translate!E$578 -> Oil revenues net | G72: =G$48 -> US$ mn 2021 | I72: =SUM(K72:AX72) -> 44103.02386 | K72: =K70 - K71 -> 0 | L72: 0 | M72: 0 | N72: 0 | O72: 191.6583582 | P72: 1505.625 | Q72: 3011.25 | R72: 3011.25 | S72: 3011.25 | T72: 3011.25 | U72: 3011.25 | V72: 3011.25 | W72: 3011.25 | X72: 3011.25 | Y72: 3011.25 | Z72: 3011.25 | AA72: 2439.1125 | AB72: 1975.681125 | AC72: 1600.301711 | AD72: 1296.244386 | AE72: 1049.957953 | AF72: 850.4659417 | AG72: 688.8774128 | AH72: 557.9907044 | AI72: 451.9724705 | AJ72: 366.0977011 | AK72: 296.5391379 | AL72: 240.1967017 | AM72: 194.5593284 | AN72: 157.593056 | AO72: 127.6503754 | AP72: 0 | AQ72: 0 | AR72: 0 | AS72: 0 | AT72: 0 | AU72: 0 | AV72: 0 | AW72: 0 | AX72: 0
B74: =Translate!E$579 -> Project costs
E75: =E$49 -> Exploration costs | F75: 0 | G75: US$ mn 2021 | H75: 0 | I75: 420 | J75: 0 | K75: 420 | L75: 0 | M75: 0 | N75: 0 | O75: 0 | P75: 0 | Q75: 0 | R75: 0 | S75: 0 | T75: 0 | U75: 0 | V75: 0 | W75: 0 | X75: 0 | Y75: 0 | Z75: 0 | AA75: 0 | AB75: 0 | AC75: 0 | AD75: 0 | AE75: 0 | AF75: 0 | AG75: 0 | AH75: 0 | AI75: 0 | AJ75: 0 | AK75: 0 | AL75: 0 | AM75: 0 | AN75: 0 | AO75: 0 | AP75: 0 | AQ75: 0 | AR75: 0 | AS75: 0 | AT75: 0 | AU75: 0 | AV75: 0 | AW75: 0 | AX75: 0
E76: =E$50 -> Development costs | F76: 0 | G76: US$ mn 2021 | H76: 0 | I76: 9050 | J76: 0 | K76: 0 | L76: 50 | M76: 300 | N76: 1200 | O76: 1200 | P76: 2100 | Q76: 1100 | R76: 450 | S76: 250 | T76: 250 | U76: 250 | V76: 250 | W76: 250 | X76: 250 | Y76: 250 | Z76: 250 | AA76: 250 | AB76: 0 | AC76: 0 | AD76: 200 | AE76: 200 | AF76: 0 | AG76: 0 | AH76: 0 | AI76: 0 | AJ76: 0 | AK76: 0 | AL76: 0 | AM76: 0 | AN76: 0 | AO76: 0 | AP76: 0 | AQ76: 0 | AR76: 0 | AS76: 0 | AT76: 0 | AU76: 0 | AV76: 0 | AW76: 0 | AX76: 0
E77: =E$51 -> Replacement capital costs | F77: 0 | G77: US$ mn 2021 | H77: 0 | I77: 0 | J77: 0 | K77: 0 | L77: 0 | M77: 0 | N77: 0 | O77: 0 | P77: 0 | Q77: 0 | R77: 0 | S77: 0 | T77: 0 | U77: 0 | V77: 0 | W77: 0 | X77: 0 | Y77: 0 | Z77: 0 | AA77: 0 | AB77: 0 | AC77: 0 | AD77: 0 | AE77: 0 | AF77: 0 | AG77: 0 | AH77: 0 | AI77: 0 | AJ77: 0 | AK77: 0 | AL77: 0 | AM77: 0 | AN77: 0 | AO77: 0 | AP77: 0 | AQ77: 0 | AR77: 0 | AS77: 0 | AT77: 0 | AU77: 0 | AV77: 0 | AW77: 0 | AX77: 0
E78: =E$52 -> Operating costs | F78: 0 | G78: US$ mn 2021 | H78: 0 | I78: 4601 | J78: 0 | K78: 0 | L78: 0 | M78: 0 | N78: 0 | O78: 50 | P78: 180 | Q78: 260 | R78: 260 | S78: 260 | T78: 260 | U78: 260 | V78: 260 | W78: 260 | X78: 260 | Y78: 260 | Z78: 260 | AA78: 260 | AB78: 260 | AC78: 150 | AD78: 140 | AE78: 120 | AF78: 111 | AG78: 100 | AH78: 95 | AI78: 90 | AJ78: 85 | AK78: 80 | AL78: 75 | AM78: 70 | AN78: 70 | AO78: 65 | AP78: 0 | AQ78: 0 | AR78: 0 | AS78: 0 | AT78: 0 | AU78: 0 | AV78: 0 | AW78: 0 | AX78: 0
E79: =E$53 -> Decommissioning costs | F79: 0 | G79: US$ mn 2021 | H79: 0 | I79: 750 | J79: 0 | K79: 0 | L79: 0 | M79: 0 | N79: 0 | O79: 0 | P79: 0 | Q79: 0 | R79: 0 | S79: 0 | T79: 0 | U79: 0 | V79: 0 | W79: 0 | X79: 0 | Y79: 0 | Z79: 0 | AA79: 0 | AB79: 0 | AC79: 0 | AD79: 0 | AE79: 0 | AF79: 0 | AG79: 0 | AH79: 0 | AI79: 0 | AJ79: 0 | AK79: 0 | AL79: 250 | AM79: 0 | AN79: 0 | AO79: 0 | AP79: 250 | AQ79: 250 | AR79: 0 | AS79: 0 | AT79: 0 | AU79: 0 | AV79: 0 | AW79: 0 | AX79: 0
E80: =Translate!E$579 -> Project costs | G80: =Inputs!F$52 -> US$ mn 2021 | I80: =SUM(K80:AX80) -> 14821 | K80: =SUM(K75:K79) -> 420 | L80: 50 | M80: 300 | N80: 1200 | O80: 1250 | P80: 2280 | Q80: 1360 | R80: 710 | S80: 510 | T80: 510 | U80: 510 | V80: 510 | W80: 510 | X80: 510 | Y80: 510 | Z80: 510 | AA80: 510 | AB80: 260 | AC80: 150 | AD80: 340 | AE80: 320 | AF80: 111 | AG80: 100 | AH80: 95 | AI80: 90 | AJ80: 85 | AK80: 80 | AL80: 325 | AM80: 70 | AN80: 70 | AO80: 65 | AP80: 250 | AQ80: 250 | AR80: 0 | AS80: 0 | AT80: 0 | AU80: 0 | AV80: 0 | AW80: 0 | AX80: 0
B82: =Translate!$E$580 -> Project cashflows, real before ELT
D83: =Translate!E529 -> add | E83: =E$72 -> Oil revenues net | F83: 0 | G83: US$ mn 2021 | H83: 0 | I83: 44103.02386 | J83: 0 | K83: 0 | L83: 0 | M83: 0 | N83: 0 | O83: 191.6583582 | P83: 1505.625 | Q83: 3011.25 | R83: 3011.25 | S83: 3011.25 | T83: 3011.25 | U83: 3011.25 | V83: 3011.25 | W83: 3011.25 | X83: 3011.25 | Y83: 3011.25 | Z83: 3011.25 | AA83: 2439.1125 | AB83: 1975.681125 | AC83: 1600.301711 | AD83: 1296.244386 | AE83: 1049.957953 | AF83: 850.4659417 | AG83: 688.8774128 | AH83: 557.9907044 | AI83: 451.9724705 | AJ83: 366.0977011 | AK83: 296.5391379 | AL83: 240.1967017 | AM83: 194.5593284 | AN83: 157.593056 | AO83: 127.6503754 | AP83: 0 | AQ83: 0 | AR83: 0 | AS83: 0 | AT83: 0 | AU83: 0 | AV83: 0 | AW83: 0 | AX83: 0
D84: =Translate!E530 -> less | E84: =E$80 -> Project costs | F84: 0 | G84: US$ mn 2021 | H84: 0 | I84: 14821 | J84: 0 | K84: 420 | L84: 50 | M84: 300 | N84: 1200 | O84: 1250 | P84: 2280 | Q84: 1360 | R84: 710 | S84: 510 | T84: 510 | U84: 510 | V84: 510 | W84: 510 | X84: 510 | Y84: 510 | Z84: 510 | AA84: 510 | AB84: 260 | AC84: 150 | AD84: 340 | AE84: 320 | AF84: 111 | AG84: 100 | AH84: 95 | AI84: 90 | AJ84: 85 | AK84: 80 | AL84: 325 | AM84: 70 | AN84: 70 | AO84: 65 | AP84: 250 | AQ84: 250 | AR84: 0 | AS84: 0 | AT84: 0 | AU84: 0 | AV84: 0 | AW84: 0 | AX84: 0
E85: =Translate!E$580 -> Project cashflows, real before ELT | G85: =Inputs!F$52 -> US$ mn 2021 | I85: =SUM(K85:AX85) -> 29282.02386 | K85: =K83 - K84 -> -420 | L85: -50 | M85: -300 | N85: -1200 | O85: -1058.341642 | P85: -774.375 | Q85: 1651.25 | R85: 2301.25 | S85: 2501.25 | T85: 2501.25 | U85: 2501.25 | V85: 2501.25 | W85: 2501.25 | X85: 2501.25 | Y85: 2501.25 | Z85: 2501.25 | AA85: 1929.1125 | AB85: 1715.681125 | AC85: 1450.301711 | AD85: 956.2443861 | AE85: 729.9579528 | AF85: 739.4659417 | AG85: 588.8774128 | AH85: 462.9907044 | AI85: 361.9724705 | AJ85: 281.0977011 | AK85: 216.5391379 | AL85: -84.80329828 | AM85: 124.5593284 | AN85: 87.593056 | AO85: 62.65037536 | AP85: -250 | AQ85: -250 | AR85: 0 | AS85: 0 | AT85: 0 | AU85: 0 | AV85: 0 | AW85: 0 | AX85: 0
A88: =Translate!E$581 -> Economic Limit Test (ELT)
B90: =Translate!E$582 -> Peak production year: assumed Economic Limit will not be triggered before this period
E91: =E$57 -> Peak production year | F91: =F$57 -> 2027 | G91: =G$57 -> Year
B93: =Translate!E$583 -> Maximum cumulative cashflows used to determine when Econ Limit reached
E94: =E$85 -> Project cashflows, real before ELT | F94: 0 | G94: US$ mn 2021 | H94: 0 | I94: 29282.02386 | J94: 0 | K94: -420 | L94: -50 | M94: -300 | N94: -1200 | O94: -1058.341642 | P94: -774.375 | Q94: 1651.25 | R94: 2301.25 | S94: 2501.25 | T94: 2501.25 | U94: 2501.25 | V94: 2501.25 | W94: 2501.25 | X94: 2501.25 | Y94: 2501.25 | Z94: 2501.25 | AA94: 1929.1125 | AB94: 1715.681125 | AC94: 1450.301711 | AD94: 956.2443861 | AE94: 729.9579528 | AF94: 739.4659417 | AG94: 588.8774128 | AH94: 462.9907044 | AI94: 361.9724705 | AJ94: 281.0977011 | AK94: 216.5391379 | AL94: -84.80329828 | AM94: 124.5593284 | AN94: 87.593056 | AO94: 62.65037536 | AP94: -250 | AQ94: -250 | AR94: 0 | AS94: 0 | AT94: 0 | AU94: 0 | AV94: 0 | AW94: 0 | AX94: 0
E95: =E$53 -> Decommissioning costs | F95: 0 | G95: US$ mn 2021 | H95: 0 | I95: 750 | J95: 0 | K95: 0 | L95: 0 | M95: 0 | N95: 0 | O95: 0 | P95: 0 | Q95: 0 | R95: 0 | S95: 0 | T95: 0 | U95: 0 | V95: 0 | W95: 0 | X95: 0 | Y95: 0 | Z95: 0 | AA95: 0 | AB95: 0 | AC95: 0 | AD95: 0 | AE95: 0 | AF95: 0 | AG95: 0 | AH95: 0 | AI95: 0 | AJ95: 0 | AK95: 0 | AL95: 250 | AM95: 0 | AN95: 0 | AO95: 0 | AP95: 250 | AQ95: 250 | AR95: 0 | AS95: 0 | AT95: 0 | AU95: 0 | AV95: 0 | AW95: 0 | AX95: 0
E96: =E94 & " (" & Translate!E772 & ")" -> Project cashflows, real before ELT (before decommisioning) | G96: =G95 -> US$ mn 2021 | I96: =SUM(K96:BH96) -> 30032.02386 | K96: =K94 + K95 -> -420 | L96: -50 | M96: -300 | N96: -1200 | O96: -1058.341642 | P96: -774.375 | Q96: 1651.25 | R96: 2301.25 | S96: 2501.25 | T96: 2501.25 | U96: 2501.25 | V96: 2501.25 | W96: 2501.25 | X96: 2501.25 | Y96: 2501.25 | Z96: 2501.25 | AA96: 1929.1125 | AB96: 1715.681125 | AC96: 1450.301711 | AD96: 956.2443861 | AE96: 729.9579528 | AF96: 739.4659417 | AG96: 588.8774128 | AH96: 462.9907044 | AI96: 361.9724705 | AJ96: 281.0977011 | AK96: 216.5391379 | AL96: 165.1967017 | AM96: 124.5593284 | AN96: 87.593056 | AO96: 62.65037536 | AP96: 0 | AQ96: 0 | AR96: 0 | AS96: 0 | AT96: 0 | AU96: 0 | AV96: 0 | AW96: 0 | AX96: 0
E97: =E96 & ": " & Translate!E$811 -> Project cashflows, real before ELT (before decommisioning): cumulative | G97: =G96 -> US$ mn 2021 | K97: =J97 + K96 -> -420 | L97: -470 | M97: -770 | N97: -1970 | O97: -3028.341642 | P97: -3802.716642 | Q97: -2151.466642 | R97: 149.7833582 | S97: 2651.033358 | T97: 5152.283358 | U97: 7653.533358 | V97: 10154.78336 | W97: 12656.03336 | X97: 15157.28336 | Y97: 17658.53336 | Z97: 20159.78336 | AA97: 22088.89586 | AB97: 23804.57698 | AC97: 25254.87869 | AD97: 26211.12308 | AE97: 26941.08103 | AF97: 27680.54698 | AG97: 28269.42439 | AH97: 28732.41509 | AI97: 29094.38756 | AJ97: 29375.48526 | AK97: 29592.0244 | AL97: 29757.2211 | AM97: 29881.78043 | AN97: 29969.37349 | AO97: 30032.02386 | AP97: 30032.02386 | AQ97: 30032.02386 | AR97: 30032.02386 | AS97: 30032.02386 | AT97: 30032.02386 | AU97: 30032.02386 | AV97: 30032.02386 | AW97: 30032.02386 | AX97: 30032.02386
E98: =Translate!E$584 -> Peak cumulative cashflows | F98: =MAX(K97:AX97) -> 30032.02386 | G98: =G95 -> US$ mn 2021
E99: =E$34 -> Model calendar years | F99: 0 | G99: Year | H99: 0 | I99: 0 | J99: 0 | K99: 2021 | L99: 2022 | M99: 2023 | N99: 2024 | O99: 2025 | P99: 2026 | Q99: 2027 | R99: 2028 | S99: 2029 | T99: 2030 | U99: 2031 | V99: 2032 | W99: 2033 | X99: 2034 | Y99: 2035 | Z99: 2036 | AA99: 2037 | AB99: 2038 | AC99: 2039 | AD99: 2040 | AE99: 2041 | AF99: 2042 | AG99: 2043 | AH99: 2044 | AI99: 2045 | AJ99: 2046 | AK99: 2047 | AL99: 2048 | AM99: 2049 | AN99: 2050 | AO99: 2051 | AP99: 2052 | AQ99: 2053 | AR99: 2054 | AS99: 2055 | AT99: 2056 | AU99: 2057 | AV99: 2058 | AW99: 2059 | AX99: 2060
E100: =Translate!E$585 -> Economic limit reached | G100: =Translate!E405 -> Flag | K100: =($F98 = K97) * 1 -> 0 | L100: 0 | M100: 0 | N100: 0 | O100: 0 | P100: 0 | Q100: 0 | R100: 0 | S100: 0 | T100: 0 | U100: 0 | V100: 0 | W100: 0 | X100: 0 | Y100: 0 | Z100: 0 | AA100: 0 | AB100: 0 | AC100: 0 | AD100: 0 | AE100: 0 | AF100: 0 | AG100: 0 | AH100: 0 | AI100: 0 | AJ100: 0 | AK100: 0 | AL100: 0 | AM100: 0 | AN100: 0 | AO100: 1 | AP100: 1 | AQ100: 1 | AR100: 1 | AS100: 1 | AT100: 1 | AU100: 1 | AV100: 1 | AW100: 1 | AX100: 1
E102: =Translate!E$586 -> Economic limit year based on cashflows | F102: =INDEX(K99:AX99, MATCH(1, K100:AX100, 0)) -> 2051 | G102: =Translate!E$608 -> Year
E103: =Translate!E$587 -> Project economic limit | F103: =MAX(F102, F91) -> 2051 | G103: =Translate!E$608 -> Year
E105: =Inputs!E$40 -> ELT applies | F105: =Inputs!F$40 -> yes | G105: =Inputs!G$40 -> Option
E106: =Inputs!E$87 -> Label: yes | F106: =Inputs!F$87 -> yes | G106: =Inputs!G$87 -> Label
E107: =Translate!E$587 -> Project economic limit | G107: =Translate!E405 -> Flag | I107: =SUM(K107:BH107) -> 31 | K107: =IF( $F105 = $F106, (K99 <= $F103) * 1, 1) -> 1 | L107: 1 | M107: 1 | N107: 1 | O107: 1 | P107: 1 | Q107: 1 | R107: 1 | S107: 1 | T107: 1 | U107: 1 | V107: 1 | W107: 1 | X107: 1 | Y107: 1 | Z107: 1 | AA107: 1 | AB107: 1 | AC107: 1 | AD107: 1 | AE107: 1 | AF107: 1 | AG107: 1 | AH107: 1 | AI107: 1 | AJ107: 1 | AK107: 1 | AL107: 1 | AM107: 1 | AN107: 1 | AO107: 1 | AP107: 0 | AQ107: 0 | AR107: 0 | AS107: 0 | AT107: 0 | AU107: 0 | AV107: 0 | AW107: 0 | AX107: 0
B109: =Translate!E$588 -> Reschedule decommissioning costs
E110: =E$34 -> Model calendar years | F110: 0 | G110: Year | H110: 0 | I110: 0 | J110: 0 | K110: 2021 | L110: 2022 | M110: 2023 | N110: 2024 | O110: 2025 | P110: 2026 | Q110: 2027 | R110: 2028 | S110: 2029 | T110: 2030 | U110: 2031 | V110: 2032 | W110: 2033 | X110: 2034 | Y110: 2035 | Z110: 2036 | AA110: 2037 | AB110: 2038 | AC110: 2039 | AD110: 2040 | AE110: 2041 | AF110: 2042 | AG110: 2043 | AH110: 2044 | AI110: 2045 | AJ110: 2046 | AK110: 2047 | AL110: 2048 | AM110: 2049 | AN110: 2050 | AO110: 2051 | AP110: 2052 | AQ110: 2053 | AR110: 2054 | AS110: 2055 | AT110: 2056 | AU110: 2057 | AV110: 2058 | AW110: 2059 | AX110: 2060
E111: =E$53 -> Decommissioning costs | F111: 0 | G111: US$ mn 2021 | H111: 0 | I111: 750 | J111: 0 | K111: 0 | L111: 0 | M111: 0 | N111: 0 | O111: 0 | P111: 0 | Q111: 0 | R111: 0 | S111: 0 | T111: 0 | U111: 0 | V111: 0 | W111: 0 | X111: 0 | Y111: 0 | Z111: 0 | AA111: 0 | AB111: 0 | AC111: 0 | AD111: 0 | AE111: 0 | AF111: 0 | AG111: 0 | AH111: 0 | AI111: 0 | AJ111: 0 | AK111: 0 | AL111: 250 | AM111: 0 | AN111: 0 | AO111: 0 | AP111: 250 | AQ111: 250 | AR111: 0 | AS111: 0 | AT111: 0 | AU111: 0 | AV111: 0 | AW111: 0 | AX111: 0
E112: =E111 & " " & Translate!E589 -> Decommissioning costs incurred before ELT reached | G112: =G$96 -> US$ mn 2021 | I112: =SUM(K112:AX112) -> 250 | K112: =K111 * K107 -> 0 | L112: 0 | M112: 0 | N112: 0 | O112: 0 | P112: 0 | Q112: 0 | R112: 0 | S112: 0 | T112: 0 | U112: 0 | V112: 0 | W112: 0 | X112: 0 | Y112: 0 | Z112: 0 | AA112: 0 | AB112: 0 | AC112: 0 | AD112: 0 | AE112: 0 | AF112: 0 | AG112: 0 | AH112: 0 | AI112: 0 | AJ112: 0 | AK112: 0 | AL112: 250 | AM112: 0 | AN112: 0 | AO112: 0 | AP112: 0 | AQ112: 0 | AR112: 0 | AS112: 0 | AT112: 0 | AU112: 0 | AV112: 0 | AW112: 0 | AX112: 0
E113: =Translate!E$590 -> Decommissioning costs incurred after ELT year | G113: =G$96 -> US$ mn 2021 | I113: =SUM(K113:AX113) -> 500 | K113: =K111 * ( K107 = 0) -> 0 | L113: 0 | M113: 0 | N113: 0 | O113: 0 | P113: 0 | Q113: 0 | R113: 0 | S113: 0 | T113: 0 | U113: 0 | V113: 0 | W113: 0 | X113: 0 | Y113: 0 | Z113: 0 | AA113: 0 | AB113: 0 | AC113: 0 | AD113: 0 | AE113: 0 | AF113: 0 | AG113: 0 | AH113: 0 | AI113: 0 | AJ113: 0 | AK113: 0 | AL113: 0 | AM113: 0 | AN113: 0 | AO113: 0 | AP113: 250 | AQ113: 250 | AR113: 0 | AS113: 0 | AT113: 0 | AU113: 0 | AV113: 0 | AW113: 0 | AX113: 0
E115: =E$34 -> Model calendar years | F115: 0 | G115: Year | H115: 0 | I115: 0 | J115: 0 | K115: 2021 | L115: 2022 | M115: 2023 | N115: 2024 | O115: 2025 | P115: 2026 | Q115: 2027 | R115: 2028 | S115: 2029 | T115: 2030 | U115: 2031 | V115: 2032 | W115: 2033 | X115: 2034 | Y115: 2035 | Z115: 2036 | AA115: 2037 | AB115: 2038 | AC115: 2039 | AD115: 2040 | AE115: 2041 | AF115: 2042 | AG115: 2043 | AH115: 2044 | AI115: 2045 | AJ115: 2046 | AK115: 2047 | AL115: 2048 | AM115: 2049 | AN115: 2050 | AO115: 2051 | AP115: 2052 | AQ115: 2053 | AR115: 2054 | AS115: 2055 | AT115: 2056 | AU115: 2057 | AV115: 2058 | AW115: 2059 | AX115: 2060
E116: =Translate!E$591 -> Post-production Decommissioning original start year | F116: =SUM(K116:AX116) -> 2052 | G116: =Translate!E$608 -> Year | K116: =AND(J113 = 0, K113 > 0 ) * K115 * (SUM($J116:J116) = 0 ) -> 0 | L116: =AND(K113 = 0, L113 > 0 ) * L115 * (SUM($J116:K116) = 0 ) -> 0 | M116: =AND(L113 = 0, M113 > 0 ) * M115 * (SUM($J116:L116) = 0 ) -> 0 | N116: =AND(M113 = 0, N113 > 0 ) * N115 * (SUM($J116:M116) = 0 ) -> 0 | O116: =AND(N113 = 0, O113 > 0 ) * O115 * (SUM($J116:N116) = 0 ) -> 0 | P116: =AND(O113 = 0, P113 > 0 ) * P115 * (SUM($J116:O116) = 0 ) -> 0 | Q116: =AND(P113 = 0, Q113 > 0 ) * Q115 * (SUM($J116:P116) = 0 ) -> 0 | R116: =AND(Q113 = 0, R113 > 0 ) * R115 * (SUM($J116:Q116) = 0 ) -> 0 | S116: =AND(R113 = 0, S113 > 0 ) * S115 * (SUM($J116:R116) = 0 ) -> 0 | T116: =AND(S113 = 0, T113 > 0 ) * T115 * (SUM($J116:S116) = 0 ) -> 0 | U116: =AND(T113 = 0, U113 > 0 ) * U115 * (SUM($J116:T116) = 0 ) -> 0 | V116: =AND(U113 = 0, V113 > 0 ) * V115 * (SUM($J116:U116) = 0 ) -> 0 | W116: =AND(V113 = 0, W113 > 0 ) * W115 * (SUM($J116:V116) = 0 ) -> 0 | X116: =AND(W113 = 0, X113 > 0 ) * X115 * (SUM($J116:W116) = 0 ) -> 0 | Y116: =AND(X113 = 0, Y113 > 0 ) * Y115 * (SUM($J116:X116) = 0 ) -> 0 | Z116: =AND(Y113 = 0, Z113 > 0 ) * Z115 * (SUM($J116:Y116) = 0 ) -> 0 | AA116: =AND(Z113 = 0, AA113 > 0 ) * AA115 * (SUM($J116:Z116) = 0 ) -> 0 | AB116: =AND(AA113 = 0, AB113 > 0 ) * AB115 * (SUM($J116:AA116) = 0 ) -> 0 | AC116: =AND(AB113 = 0, AC113 > 0 ) * AC115 * (SUM($J116:AB116) = 0 ) -> 0 | AD116: =AND(AC113 = 0, AD113 > 0 ) * AD115 * (SUM($J116:AC116) = 0 ) -> 0 | AE116: =AND(AD113 = 0, AE113 > 0 ) * AE115 * (SUM($J116:AD116) = 0 ) -> 0 | AF116: =AND(AE113 = 0, AF113 > 0 ) * AF115 * (SUM($J116:AE116) = 0 ) -> 0 | AG116: =AND(AF113 = 0, AG113 > 0 ) * AG115 * (SUM($J116:AF116) = 0 ) -> 0 | AH116: =AND(AG113 = 0, AH113 > 0 ) * AH115 * (SUM($J116:AG116) = 0 ) -> 0 | AI116: =AND(AH113 = 0, AI113 > 0 ) * AI115 * (SUM($J116:AH116) = 0 ) -> 0 | AJ116: =AND(AI113 = 0, AJ113 > 0 ) * AJ115 * (SUM($J116:AI116) = 0 ) -> 0 | AK116: =AND(AJ113 = 0, AK113 > 0 ) * AK115 * (SUM($J116:AJ116) = 0 ) -> 0 | AL116: =AND(AK113 = 0, AL113 > 0 ) * AL115 * (SUM($J116:AK116) = 0 ) -> 0 | AM116: =AND(AL113 = 0, AM113 > 0 ) * AM115 * (SUM($J116:AL116) = 0 ) -> 0 | AN116: =AND(AM113 = 0, AN113 > 0 ) * AN115 * (SUM($J116:AM116) = 0 ) -> 0 | AO116: =AND(AN113 = 0, AO113 > 0 ) * AO115 * (SUM($J116:AN116) = 0 ) -> 0 | AP116: =AND(AO113 = 0, AP113 > 0 ) * AP115 * (SUM($J116:AO116) = 0 ) -> 2052 | AQ116: =AND(AP113 = 0, AQ113 > 0 ) * AQ115 * (SUM($J116:AP116) = 0 ) -> 0 | AR116: =AND(AQ113 = 0, AR113 > 0 ) * AR115 * (SUM($J116:AQ116) = 0 ) -> 0 | AS116: =AND(AR113 = 0, AS113 > 0 ) * AS115 * (SUM($J116:AR116) = 0 ) -> 0 | AT116: =AND(AS113 = 0, AT113 > 0 ) * AT115 * (SUM($J116:AS116) = 0 ) -> 0 | AU116: =AND(AT113 = 0, AU113 > 0 ) * AU115 * (SUM($J116:AT116) = 0 ) -> 0 | AV116: =AND(AU113 = 0, AV113 > 0 ) * AV115 * (SUM($J116:AU116) = 0 ) -> 0 | AW116: =AND(AV113 = 0, AW113 > 0 ) * AW115 * (SUM($J116:AV116) = 0 ) -> 0 | AX116: =AND(AW113 = 0, AX113 > 0 ) * AX115 * (SUM($J116:AW116) = 0 ) -> 0
E118: =E$116 -> Post-production Decommissioning original start year | F118: =F$116 -> 2052 | G118: =G$116 -> Year
E119: =Translate!E$592 -> Post-production Decommissioning start with ELT | F119: =F103 + 1 -> 2052 | G119: =Translate!E$608 -> Year
E120: =Translate!E$593 -> EL reached before project end | F120: =IF(F105 <> F106, 0, F118 - F119) -> 0 | G120: =Translate!E$608 -> Year | H120: =Translate!E694 -> Zero if ELT off
E121: =E112 -> Decommissioning costs incurred before ELT reached | F121: 0 | G121: US$ mn 2021 | H121: 0 | I121: 250 | J121: 0 | K121: 0 | L121: 0 | M121: 0 | N121: 0 | O121: 0 | P121: 0 | Q121: 0 | R121: 0 | S121: 0 | T121: 0 | U121: 0 | V121: 0 | W121: 0 | X121: 0 | Y121: 0 | Z121: 0 | AA121: 0 | AB121: 0 | AC121: 0 | AD121: 0 | AE121: 0 | AF121: 0 | AG121: 0 | AH121: 0 | AI121: 0 | AJ121: 0 | AK121: 0 | AL121: 250 | AM121: 0 | AN121: 0 | AO121: 0 | AP121: 0 | AQ121: 0 | AR121: 0 | AS121: 0 | AT121: 0 | AU121: 0 | AV121: 0 | AW121: 0 | AX121: 0
E122: =Translate!E$594 -> Post-production Decomm. Costs with ELT | G122: =G$96 -> US$ mn 2021 | I122: =SUM(K122:AX122) -> 500 | K122: =SUMIFS( $K113:$AX113, $K110:$AX110, K110 + $F120) -> 0 | L122: 0 | M122: 0 | N122: 0 | O122: 0 | P122: 0 | Q122: 0 | R122: 0 | S122: 0 | T122: 0 | U122: 0 | V122: 0 | W122: 0 | X122: 0 | Y122: 0 | Z122: 0 | AA122: 0 | AB122: 0 | AC122: 0 | AD122: 0 | AE122: 0 | AF122: 0 | AG122: 0 | AH122: 0 | AI122: 0 | AJ122: 0 | AK122: 0 | AL122: 0 | AM122: 0 | AN122: 0 | AO122: 0 | AP122: 250 | AQ122: 250 | AR122: 0 | AS122: 0 | AT122: 0 | AU122: 0 | AV122: 0 | AW122: 0 | AX122: 0
E123: =E111 & ", " & Translate!E595 -> Decommissioning costs, after ELT | G123: =G$96 -> US$ mn 2021 | I123: =SUM(K123:AX123) -> 750 | K123: =SUM(K121:K122) -> 0 | L123: 0 | M123: 0 | N123: 0 | O123: 0 | P123: 0 | Q123: 0 | R123: 0 | S123: 0 | T123: 0 | U123: 0 | V123: 0 | W123: 0 | X123: 0 | Y123: 0 | Z123: 0 | AA123: 0 | AB123: 0 | AC123: 0 | AD123: 0 | AE123: 0 | AF123: 0 | AG123: 0 | AH123: 0 | AI123: 0 | AJ123: 0 | AK123: 0 | AL123: 250 | AM123: 0 | AN123: 0 | AO123: 0 | AP123: 250 | AQ123: 250 | AR123: 0 | AS123: 0 | AT123: 0 | AU123: 0 | AV123: 0 | AW123: 0 | AX123: 0
A125: =Translate!E$684 -> Project cashflows: real after ELT
E127: =E$107 -> Project economic limit | F127: 0 | G127: Flag | H127: 0 | I127: 31 | J127: 0 | K127: 1 | L127: 1 | M127: 1 | N127: 1 | O127: 1 | P127: 1 | Q127: 1 | R127: 1 | S127: 1 | T127: 1 | U127: 1 | V127: 1 | W127: 1 | X127: 1 | Y127: 1 | Z127: 1 | AA127: 1 | AB127: 1 | AC127: 1 | AD127: 1 | AE127: 1 | AF127: 1 | AG127: 1 | AH127: 1 | AI127: 1 | AJ127: 1 | AK127: 1 | AL127: 1 | AM127: 1 | AN127: 1 | AO127: 1 | AP127: 0 | AQ127: 0 | AR127: 0 | AS127: 0 | AT127: 0 | AU127: 0 | AV127: 0 | AW127: 0 | AX127: 0
E129: =E$46 -> Oil production RATE | F129: 0 | G129: KBOPD | H129: 0 | I129: 0 | J129: 0 | K129: 0 | L129: 0 | M129: 0 | N129: 0 | O129: 9.547116222 | P129: 75 | Q129: 150 | R129: 150 | S129: 150 | T129: 150 | U129: 150 | V129: 150 | W129: 150 | X129: 150 | Y129: 150 | Z129: 150 | AA129: 121.5 | AB129: 98.415 | AC129: 79.71615 | AD129: 64.5700815 | AE129: 52.30176602 | AF129: 42.36443047 | AG129: 34.31518868 | AH129: 27.79530283 | AI129: 22.51419529 | AJ129: 18.23649819 | AK129: 14.77156353 | AL129: 11.96496646 | AM129: 9.691622834 | AN129: 7.850214495 | AO129: 6.358673741 | AP129: 0 | AQ129: 0 | AR129: 0 | AS129: 0 | AT129: 0 | AU129: 0 | AV129: 0 | AW129: 0 | AX129: 0
E130: =E$47 -> Oil production Volume | F130: 0 | G130: Mn Bbl | H130: 0 | I130: 801.8731611 | J130: 0 | K130: 0 | L130: 0 | M130: 0 | N130: 0 | O130: 3.484697421 | P130: 27.375 | Q130: 54.75 | R130: 54.75 | S130: 54.75 | T130: 54.75 | U130: 54.75 | V130: 54.75 | W130: 54.75 | X130: 54.75 | Y130: 54.75 | Z130: 54.75 | AA130: 44.3475 | AB130: 35.921475 | AC130: 29.09639475 | AD130: 23.56807975 | AE130: 19.0901446 | AF130: 15.46301712 | AG130: 12.52504387 | AH130: 10.14528553 | AI130: 8.217681283 | AJ130: 6.656321839 | AK130: 5.391620689 | AL130: 4.367212758 | AM130: 3.537442334 | AN130: 2.865328291 | AO130: 2.320915916 | AP130: 0 | AQ130: 0 | AR130: 0 | AS130: 0 | AT130: 0 | AU130: 0 | AV130: 0 | AW130: 0 | AX130: 0
E131: =E129 & " " & Translate!E595 -> Oil production RATE after ELT | G131: =G129 -> KBOPD | H131: =H$12 -> 0 | K131: =K129 * K127 -> 0 | L131: 0 | M131: 0 | N131: 0 | O131: 9.547116222 | P131: 75 | Q131: 150 | R131: 150 | S131: 150 | T131: 150 | U131: 150 | V131: 150 | W131: 150 | X131: 150 | Y131: 150 | Z131: 150 | AA131: 121.5 | AB131: 98.415 | AC131: 79.71615 | AD131: 64.5700815 | AE131: 52.30176602 | AF131: 42.36443047 | AG131: 34.31518868 | AH131: 27.79530283 | AI131: 22.51419529 | AJ131: 18.23649819 | AK131: 14.77156353 | AL131: 11.96496646 | AM131: 9.691622834 | AN131: 7.850214495 | AO131: 6.358673741 | AP131: 0 | AQ131: 0 | AR131: 0 | AS131: 0 | AT131: 0 | AU131: 0 | AV131: 0 | AW131: 0 | AX131: 0
E132: =E130 & " " & Translate!E595 -> Oil production Volume after ELT | G132: =G130 -> Mn Bbl | H132: =H$12 -> 0 | I132: =SUM(K132:AX132) -> 801.8731611 | K132: =K130 * K127 -> 0 | L132: 0 | M132: 0 | N132: 0 | O132: 3.484697421 | P132: 27.375 | Q132: 54.75 | R132: 54.75 | S132: 54.75 | T132: 54.75 | U132: 54.75 | V132: 54.75 | W132: 54.75 | X132: 54.75 | Y132: 54.75 | Z132: 54.75 | AA132: 44.3475 | AB132: 35.921475 | AC132: 29.09639475 | AD132: 23.56807975 | AE132: 19.0901446 | AF132: 15.46301712 | AG132: 12.52504387 | AH132: 10.14528553 | AI132: 8.217681283 | AJ132: 6.656321839 | AK132: 5.391620689 | AL132: 4.367212758 | AM132: 3.537442334 | AN132: 2.865328291 | AO132: 2.320915916 | AP132: 0 | AQ132: 0 | AR132: 0 | AS132: 0 | AT132: 0 | AU132: 0 | AV132: 0 | AW132: 0 | AX132: 0
E133: =Translate!E$601 & ": " & E132 -> Total: Oil production Volume after ELT | F133: =SUM(K132:AX132) -> 801.8731611 | G133: =G132 -> Mn Bbl
B135: =Translate!E$580 -> Project cashflows, real before ELT
E136: =E$65 -> Oil price realized from sales | F136: 0 | G136: US$ 2021 / bbl | H136: 0 | I136: 0 | J136: 0 | K136: 55 | L136: 55 | M136: 55 | N136: 55 | O136: 55 | P136: 55 | Q136: 55 | R136: 55 | S136: 55 | T136: 55 | U136: 55 | V136: 55 | W136: 55 | X136: 55 | Y136: 55 | Z136: 55 | AA136: 55 | AB136: 55 | AC136: 55 | AD136: 55 | AE136: 55 | AF136: 55 | AG136: 55 | AH136: 55 | AI136: 55 | AJ136: 55 | AK136: 55 | AL136: 55 | AM136: 55 | AN136: 55 | AO136: 55 | AP136: 55 | AQ136: 55 | AR136: 55 | AS136: 55 | AT136: 55 | AU136: 55 | AV136: 55 | AW136: 55 | AX136: 55
E138: =E$70 -> Oil revenues gross | F138: 0 | G138: US$ mn 2021 | H138: 0 | I138: 44103.02386 | J138: 0 | K138: 0 | L138: 0 | M138: 0 | N138: 0 | O138: 191.6583582 | P138: 1505.625 | Q138: 3011.25 | R138: 3011.25 | S138: 3011.25 | T138: 3011.25 | U138: 3011.25 | V138: 3011.25 | W138: 3011.25 | X138: 3011.25 | Y138: 3011.25 | Z138: 3011.25 | AA138: 2439.1125 | AB138: 1975.681125 | AC138: 1600.301711 | AD138: 1296.244386 | AE138: 1049.957953 | AF138: 850.4659417 | AG138: 688.8774128 | AH138: 557.9907044 | AI138: 451.9724705 | AJ138: 366.0977011 | AK138: 296.5391379 | AL138: 240.1967017 | AM138: 194.5593284 | AN138: 157.593056 | AO138: 127.6503754 | AP138: 0 | AQ138: 0 | AR138: 0 | AS138: 0 | AT138: 0 | AU138: 0 | AV138: 0 | AW138: 0 | AX138: 0
E139: =E$71 -> Transport costs post-fiscal point | F139: 0 | G139: US$ mn 2021 | H139: 0 | I139: 0 | J139: 0 | K139: 0 | L139: 0 | M139: 0 | N139: 0 | O139: 0 | P139: 0 | Q139: 0 | R139: 0 | S139: 0 | T139: 0 | U139: 0 | V139: 0 | W139: 0 | X139: 0 | Y139: 0 | Z139: 0 | AA139: 0 | AB139: 0 | AC139: 0 | AD139: 0 | AE139: 0 | AF139: 0 | AG139: 0 | AH139: 0 | AI139: 0 | AJ139: 0 | AK139: 0 | AL139: 0 | AM139: 0 | AN139: 0 | AO139: 0 | AP139: 0 | AQ139: 0 | AR139: 0 | AS139: 0 | AT139: 0 | AU139: 0 | AV139: 0 | AW139: 0 | AX139: 0
E140: =E$72 -> Oil revenues net | F140: 0 | G140: US$ mn 2021 | H140: 0 | I140: 44103.02386 | J140: 0 | K140: 0 | L140: 0 | M140: 0 | N140: 0 | O140: 191.6583582 | P140: 1505.625 | Q140: 3011.25 | R140: 3011.25 | S140: 3011.25 | T140: 3011.25 | U140: 3011.25 | V140: 3011.25 | W140: 3011.25 | X140: 3011.25 | Y140: 3011.25 | Z140: 3011.25 | AA140: 2439.1125 | AB140: 1975.681125 | AC140: 1600.301711 | AD140: 1296.244386 | AE140: 1049.957953 | AF140: 850.4659417 | AG140: 688.8774128 | AH140: 557.9907044 | AI140: 451.9724705 | AJ140: 366.0977011 | AK140: 296.5391379 | AL140: 240.1967017 | AM140: 194.5593284 | AN140: 157.593056 | AO140: 127.6503754 | AP140: 0 | AQ140: 0 | AR140: 0 | AS140: 0 | AT140: 0 | AU140: 0 | AV140: 0 | AW140: 0 | AX140: 0
E142: =E$75 -> Exploration costs | F142: 0 | G142: US$ mn 2021 | H142: 0 | I142: 420 | J142: 0 | K142: 420 | L142: 0 | M142: 0 | N142: 0 | O142: 0 | P142: 0 | Q142: 0 | R142: 0 | S142: 0 | T142: 0 | U142: 0 | V142: 0 | W142: 0 | X142: 0 | Y142: 0 | Z142: 0 | AA142: 0 | AB142: 0 | AC142: 0 | AD142: 0 | AE142: 0 | AF142: 0 | AG142: 0 | AH142: 0 | AI142: 0 | AJ142: 0 | AK142: 0 | AL142: 0 | AM142: 0 | AN142: 0 | AO142: 0 | AP142: 0 | AQ142: 0 | AR142: 0 | AS142: 0 | AT142: 0 | AU142: 0 | AV142: 0 | AW142: 0 | AX142: 0
E143: =E$76 -> Development costs | F143: 0 | G143: US$ mn 2021 | H143: 0 | I143: 9050 | J143: 0 | K143: 0 | L143: 50 | M143: 300 | N143: 1200 | O143: 1200 | P143: 2100 | Q143: 1100 | R143: 450 | S143: 250 | T143: 250 | U143: 250 | V143: 250 | W143: 250 | X143: 250 | Y143: 250 | Z143: 250 | AA143: 250 | AB143: 0 | AC143: 0 | AD143: 200 | AE143: 200 | AF143: 0 | AG143: 0 | AH143: 0 | AI143: 0 | AJ143: 0 | AK143: 0 | AL143: 0 | AM143: 0 | AN143: 0 | AO143: 0 | AP143: 0 | AQ143: 0 | AR143: 0 | AS143: 0 | AT143: 0 | AU143: 0 | AV143: 0 | AW143: 0 | AX143: 0
E144: =E$77 -> Replacement capital costs | F144: 0 | G144: US$ mn 2021 | H144: 0 | I144: 0 | J144: 0 | K144: 0 | L144: 0 | M144: 0 | N144: 0 | O144: 0 | P144: 0 | Q144: 0 | R144: 0 | S144: 0 | T144: 0 | U144: 0 | V144: 0 | W144: 0 | X144: 0 | Y144: 0 | Z144: 0 | AA144: 0 | AB144: 0 | AC144: 0 | AD144: 0 | AE144: 0 | AF144: 0 | AG144: 0 | AH144: 0 | AI144: 0 | AJ144: 0 | AK144: 0 | AL144: 0 | AM144: 0 | AN144: 0 | AO144: 0 | AP144: 0 | AQ144: 0 | AR144: 0 | AS144: 0 | AT144: 0 | AU144: 0 | AV144: 0 | AW144: 0 | AX144: 0
E145: =E$78 -> Operating costs | F145: 0 | G145: US$ mn 2021 | H145: 0 | I145: 4601 | J145: 0 | K145: 0 | L145: 0 | M145: 0 | N145: 0 | O145: 50 | P145: 180 | Q145: 260 | R145: 260 | S145: 260 | T145: 260 | U145: 260 | V145: 260 | W145: 260 | X145: 260 | Y145: 260 | Z145: 260 | AA145: 260 | AB145: 260 | AC145: 150 | AD145: 140 | AE145: 120 | AF145: 111 | AG145: 100 | AH145: 95 | AI145: 90 | AJ145: 85 | AK145: 80 | AL145: 75 | AM145: 70 | AN145: 70 | AO145: 65 | AP145: 0 | AQ145: 0 | AR145: 0 | AS145: 0 | AT145: 0 | AU145: 0 | AV145: 0 | AW145: 0 | AX145: 0
E146: =E$79 -> Decommissioning costs | F146: 0 | G146: US$ mn 2021 | H146: 0 | I146: 750 | J146: 0 | K146: 0 | L146: 0 | M146: 0 | N146: 0 | O146: 0 | P146: 0 | Q146: 0 | R146: 0 | S146: 0 | T146: 0 | U146: 0 | V146: 0 | W146: 0 | X146: 0 | Y146: 0 | Z146: 0 | AA146: 0 | AB146: 0 | AC146: 0 | AD146: 0 | AE146: 0 | AF146: 0 | AG146: 0 | AH146: 0 | AI146: 0 | AJ146: 0 | AK146: 0 | AL146: 250 | AM146: 0 | AN146: 0 | AO146: 0 | AP146: 250 | AQ146: 250 | AR146: 0 | AS146: 0 | AT146: 0 | AU146: 0 | AV146: 0 | AW146: 0 | AX146: 0
E147: =Translate!E579 -> Project costs | G147: =Inputs!F$52 -> US$ mn 2021 | I147: =SUM(K147:AX147) -> 14821 | K147: =SUM(K142:K146) -> 420 | L147: 50 | M147: 300 | N147: 1200 | O147: 1250 | P147: 2280 | Q147: 1360 | R147: 710 | S147: 510 | T147: 510 | U147: 510 | V147: 510 | W147: 510 | X147: 510 | Y147: 510 | Z147: 510 | AA147: 510 | AB147: 260 | AC147: 150 | AD147: 340 | AE147: 320 | AF147: 111 | AG147: 100 | AH147: 95 | AI147: 90 | AJ147: 85 | AK147: 80 | AL147: 325 | AM147: 70 | AN147: 70 | AO147: 65 | AP147: 250 | AQ147: 250 | AR147: 0 | AS147: 0 | AT147: 0 | AU147: 0 | AV147: 0 | AW147: 0 | AX147: 0
B149: =Translate!$E$684 -> Project cashflows: real after ELT
E150: =E$107 -> Project economic limit | F150: 0 | G150: Flag | H150: 0 | I150: 31 | J150: 0 | K150: 1 | L150: 1 | M150: 1 | N150: 1 | O150: 1 | P150: 1 | Q150: 1 | R150: 1 | S150: 1 | T150: 1 | U150: 1 | V150: 1 | W150: 1 | X150: 1 | Y150: 1 | Z150: 1 | AA150: 1 | AB150: 1 | AC150: 1 | AD150: 1 | AE150: 1 | AF150: 1 | AG150: 1 | AH150: 1 | AI150: 1 | AJ150: 1 | AK150: 1 | AL150: 1 | AM150: 1 | AN150: 1 | AO150: 1 | AP150: 0 | AQ150: 0 | AR150: 0 | AS150: 0 | AT150: 0 | AU150: 0 | AV150: 0 | AW150: 0 | AX150: 0
E152: =E136 & ", " & Translate!E595 -> Oil price realized from sales, after ELT | G152: =G136 -> US$ 2021 / bbl | H152: =H$79 -> 0 | I152: =SUM(K152:AX152) -> 1705 | K152: =K136 * K$150 -> 55 | L152: 55 | M152: 55 | N152: 55 | O152: 55 | P152: 55 | Q152: 55 | R152: 55 | S152: 55 | T152: 55 | U152: 55 | V152: 55 | W152: 55 | X152: 55 | Y152: 55 | Z152: 55 | AA152: 55 | AB152: 55 | AC152: 55 | AD152: 55 | AE152: 55 | AF152: 55 | AG152: 55 | AH152: 55 | AI152: 55 | AJ152: 55 | AK152: 55 | AL152: 55 | AM152: 55 | AN152: 55 | AO152: 55 | AP152: 0 | AQ152: 0 | AR152: 0 | AS152: 0 | AT152: 0 | AU152: 0 | AV152: 0 | AW152: 0 | AX152: 0
E154: =E138 & ", " & Translate!E595 -> Oil revenues gross, after ELT | G154: =G138 -> US$ mn 2021 | H154: =H$85 -> 0 | I154: =SUM(K154:AX154) -> 44103.02386 | K154: =K138 * K$150 -> 0 | L154: 0 | M154: 0 | N154: 0 | O154: 191.6583582 | P154: 1505.625 | Q154: 3011.25 | R154: 3011.25 | S154: 3011.25 | T154: 3011.25 | U154: 3011.25 | V154: 3011.25 | W154: 3011.25 | X154: 3011.25 | Y154: 3011.25 | Z154: 3011.25 | AA154: 2439.1125 | AB154: 1975.681125 | AC154: 1600.301711 | AD154: 1296.244386 | AE154: 1049.957953 | AF154: 850.4659417 | AG154: 688.8774128 | AH154: 557.9907044 | AI154: 451.9724705 | AJ154: 366.0977011 | AK154: 296.5391379 | AL154: 240.1967017 | AM154: 194.5593284 | AN154: 157.593056 | AO154: 127.6503754 | AP154: 0 | AQ154: 0 | AR154: 0 | AS154: 0 | AT154: 0 | AU154: 0 | AV154: 0 | AW154: 0 | AX154: 0
E155: =E139 & ", " & Translate!E595 -> Transport costs post-fiscal point, after ELT | G155: =G139 -> US$ mn 2021 | H155: =H$63 -> 0 | I155: =SUM(K155:AX155) -> 0 | K155: =K139 * K$150 -> 0 | L155: 0 | M155: 0 | N155: 0 | O155: 0 | P155: 0 | Q155: 0 | R155: 0 | S155: 0 | T155: 0 | U155: 0 | V155: 0 | W155: 0 | X155: 0 | Y155: 0 | Z155: 0 | AA155: 0 | AB155: 0 | AC155: 0 | AD155: 0 | AE155: 0 | AF155: 0 | AG155: 0 | AH155: 0 | AI155: 0 | AJ155: 0 | AK155: 0 | AL155: 0 | AM155: 0 | AN155: 0 | AO155: 0 | AP155: 0 | AQ155: 0 | AR155: 0 | AS155: 0 | AT155: 0 | AU155: 0 | AV155: 0 | AW155: 0 | AX155: 0
E156: =E140 & ", " & Translate!E595 -> Oil revenues net, after ELT | G156: =G140 -> US$ mn 2021 | H156: =H$87 -> 0 | I156: =SUM(K156:AX156) -> 44103.02386 | K156: =K154 - K155 -> 0 | L156: 0 | M156: 0 | N156: 0 | O156: 191.6583582 | P156: 1505.625 | Q156: 3011.25 | R156: 3011.25 | S156: 3011.25 | T156: 3011.25 | U156: 3011.25 | V156: 3011.25 | W156: 3011.25 | X156: 3011.25 | Y156: 3011.25 | Z156: 3011.25 | AA156: 2439.1125 | AB156: 1975.681125 | AC156: 1600.301711 | AD156: 1296.244386 | AE156: 1049.957953 | AF156: 850.4659417 | AG156: 688.8774128 | AH156: 557.9907044 | AI156: 451.9724705 | AJ156: 366.0977011 | AK156: 296.5391379 | AL156: 240.1967017 | AM156: 194.5593284 | AN156: 157.593056 | AO156: 127.6503754 | AP156: 0 | AQ156: 0 | AR156: 0 | AS156: 0 | AT156: 0 | AU156: 0 | AV156: 0 | AW156: 0 | AX156: 0
E158: =E142 & ", " & Translate!E595 -> Exploration costs, after ELT | G158: =G142 -> US$ mn 2021 | H158: =H$64 -> 0 | I158: =SUM(K158:AX158) -> 420 | K158: =K142 * K$150 -> 420 | L158: 0 | M158: 0 | N158: 0 | O158: 0 | P158: 0 | Q158: 0 | R158: 0 | S158: 0 | T158: 0 | U158: 0 | V158: 0 | W158: 0 | X158: 0 | Y158: 0 | Z158: 0 | AA158: 0 | AB158: 0 | AC158: 0 | AD158: 0 | AE158: 0 | AF158: 0 | AG158: 0 | AH158: 0 | AI158: 0 | AJ158: 0 | AK158: 0 | AL158: 0 | AM158: 0 | AN158: 0 | AO158: 0 | AP158: 0 | AQ158: 0 | AR158: 0 | AS158: 0 | AT158: 0 | AU158: 0 | AV158: 0 | AW158: 0 | AX158: 0
E159: =E143 & ", " & Translate!E595 -> Development costs, after ELT | G159: =G143 -> US$ mn 2021 | H159: =H$91 -> 0 | I159: =SUM(K159:AX159) -> 9050 | K159: =K143 * K$150 -> 0 | L159: 50 | M159: 300 | N159: 1200 | O159: 1200 | P159: 2100 | Q159: 1100 | R159: 450 | S159: 250 | T159: 250 | U159: 250 | V159: 250 | W159: 250 | X159: 250 | Y159: 250 | Z159: 250 | AA159: 250 | AB159: 0 | AC159: 0 | AD159: 200 | AE159: 200 | AF159: 0 | AG159: 0 | AH159: 0 | AI159: 0 | AJ159: 0 | AK159: 0 | AL159: 0 | AM159: 0 | AN159: 0 | AO159: 0 | AP159: 0 | AQ159: 0 | AR159: 0 | AS159: 0 | AT159: 0 | AU159: 0 | AV159: 0 | AW159: 0 | AX159: 0
E160: =E144 & ", " & Translate!E595 -> Replacement capital costs, after ELT | G160: =G144 -> US$ mn 2021 | H160: =H$92 -> 0 | I160: =SUM(K160:AX160) -> 0 | K160: =K144 * K$150 -> 0 | L160: 0 | M160: 0 | N160: 0 | O160: 0 | P160: 0 | Q160: 0 | R160: 0 | S160: 0 | T160: 0 | U160: 0 | V160: 0 | W160: 0 | X160: 0 | Y160: 0 | Z160: 0 | AA160: 0 | AB160: 0 | AC160: 0 | AD160: 0 | AE160: 0 | AF160: 0 | AG160: 0 | AH160: 0 | AI160: 0 | AJ160: 0 | AK160: 0 | AL160: 0 | AM160: 0 | AN160: 0 | AO160: 0 | AP160: 0 | AQ160: 0 | AR160: 0 | AS160: 0 | AT160: 0 | AU160: 0 | AV160: 0 | AW160: 0 | AX160: 0
E161: =E145 & ", " & Translate!E595 -> Operating costs, after ELT | G161: =G145 -> US$ mn 2021 | H161: =H$93 -> 0 | I161: =SUM(K161:AX161) -> 4601 | K161: =K145 * K$150 -> 0 | L161: 0 | M161: 0 | N161: 0 | O161: 50 | P161: 180 | Q161: 260 | R161: 260 | S161: 260 | T161: 260 | U161: 260 | V161: 260 | W161: 260 | X161: 260 | Y161: 260 | Z161: 260 | AA161: 260 | AB161: 260 | AC161: 150 | AD161: 140 | AE161: 120 | AF161: 111 | AG161: 100 | AH161: 95 | AI161: 90 | AJ161: 85 | AK161: 80 | AL161: 75 | AM161: 70 | AN161: 70 | AO161: 65 | AP161: 0 | AQ161: 0 | AR161: 0 | AS161: 0 | AT161: 0 | AU161: 0 | AV161: 0 | AW161: 0 | AX161: 0
E162: =E$123 -> Decommissioning costs, after ELT | F162: 0 | G162: US$ mn 2021 | H162: 0 | I162: 750 | J162: 0 | K162: 0 | L162: 0 | M162: 0 | N162: 0 | O162: 0 | P162: 0 | Q162: 0 | R162: 0 | S162: 0 | T162: 0 | U162: 0 | V162: 0 | W162: 0 | X162: 0 | Y162: 0 | Z162: 0 | AA162: 0 | AB162: 0 | AC162: 0 | AD162: 0 | AE162: 0 | AF162: 0 | AG162: 0 | AH162: 0 | AI162: 0 | AJ162: 0 | AK162: 0 | AL162: 250 | AM162: 0 | AN162: 0 | AO162: 0 | AP162: 250 | AQ162: 250 | AR162: 0 | AS162: 0 | AT162: 0 | AU162: 0 | AV162: 0 | AW162: 0 | AX162: 0
E163: =E147 & ", " & Translate!E595 -> Project costs, after ELT | G163: =G147 -> US$ mn 2021 | I163: =SUM(K163:AX163) -> 14821 | K163: =SUM(K158:K162) -> 420 | L163: 50 | M163: 300 | N163: 1200 | O163: 1250 | P163: 2280 | Q163: 1360 | R163: 710 | S163: 510 | T163: 510 | U163: 510 | V163: 510 | W163: 510 | X163: 510 | Y163: 510 | Z163: 510 | AA163: 510 | AB163: 260 | AC163: 150 | AD163: 340 | AE163: 320 | AF163: 111 | AG163: 100 | AH163: 95 | AI163: 90 | AJ163: 85 | AK163: 80 | AL163: 325 | AM163: 70 | AN163: 70 | AO163: 65 | AP163: 250 | AQ163: 250 | AR163: 0 | AS163: 0 | AT163: 0 | AU163: 0 | AV163: 0 | AW163: 0 | AX163: 0
D165: =Translate!E529 -> add | E165: =E$156 -> Oil revenues net, after ELT | F165: 0 | G165: US$ mn 2021 | H165: 0 | I165: 44103.02386 | J165: 0 | K165: 0 | L165: 0 | M165: 0 | N165: 0 | O165: 191.6583582 | P165: 1505.625 | Q165: 3011.25 | R165: 3011.25 | S165: 3011.25 | T165: 3011.25 | U165: 3011.25 | V165: 3011.25 | W165: 3011.25 | X165: 3011.25 | Y165: 3011.25 | Z165: 3011.25 | AA165: 2439.1125 | AB165: 1975.681125 | AC165: 1600.301711 | AD165: 1296.244386 | AE165: 1049.957953 | AF165: 850.4659417 | AG165: 688.8774128 | AH165: 557.9907044 | AI165: 451.9724705 | AJ165: 366.0977011 | AK165: 296.5391379 | AL165: 240.1967017 | AM165: 194.5593284 | AN165: 157.593056 | AO165: 127.6503754 | AP165: 0 | AQ165: 0 | AR165: 0 | AS165: 0 | AT165: 0 | AU165: 0 | AV165: 0 | AW165: 0 | AX165: 0
D166: =Translate!E530 -> less | E166: =E$163 -> Project costs, after ELT | F166: 0 | G166: US$ mn 2021 | H166: 0 | I166: 14821 | J166: 0 | K166: 420 | L166: 50 | M166: 300 | N166: 1200 | O166: 1250 | P166: 2280 | Q166: 1360 | R166: 710 | S166: 510 | T166: 510 | U166: 510 | V166: 510 | W166: 510 | X166: 510 | Y166: 510 | Z166: 510 | AA166: 510 | AB166: 260 | AC166: 150 | AD166: 340 | AE166: 320 | AF166: 111 | AG166: 100 | AH166: 95 | AI166: 90 | AJ166: 85 | AK166: 80 | AL166: 325 | AM166: 70 | AN166: 70 | AO166: 65 | AP166: 250 | AQ166: 250 | AR166: 0 | AS166: 0 | AT166: 0 | AU166: 0 | AV166: 0 | AW166: 0 | AX166: 0
E167: =Translate!E684 -> Project cashflows: real after ELT | G167: =Inputs!F$52 -> US$ mn 2021 | I167: =SUM(K167:AX167) -> 29282.02386 | K167: =K165 - K166 -> -420 | L167: -50 | M167: -300 | N167: -1200 | O167: -1058.341642 | P167: -774.375 | Q167: 1651.25 | R167: 2301.25 | S167: 2501.25 | T167: 2501.25 | U167: 2501.25 | V167: 2501.25 | W167: 2501.25 | X167: 2501.25 | Y167: 2501.25 | Z167: 2501.25 | AA167: 1929.1125 | AB167: 1715.681125 | AC167: 1450.301711 | AD167: 956.2443861 | AE167: 729.9579528 | AF167: 739.4659417 | AG167: 588.8774128 | AH167: 462.9907044 | AI167: 361.9724705 | AJ167: 281.0977011 | AK167: 216.5391379 | AL167: -84.80329828 | AM167: 124.5593284 | AN167: 87.593056 | AO167: 62.65037536 | AP167: -250 | AQ167: -250 | AR167: 0 | AS167: 0 | AT167: 0 | AU167: 0 | AV167: 0 | AW167: 0 | AX167: 0
A169: =Translate!$E$676 -> Flags
B171: =Translate!$E$685 -> Project period
E172: =E$34 -> Model calendar years | F172: 0 | G172: Year | H172: 0 | I172: 0 | J172: 0 | K172: 2021 | L172: 2022 | M172: 2023 | N172: 2024 | O172: 2025 | P172: 2026 | Q172: 2027 | R172: 2028 | S172: 2029 | T172: 2030 | U172: 2031 | V172: 2032 | W172: 2033 | X172: 2034 | Y172: 2035 | Z172: 2036 | AA172: 2037 | AB172: 2038 | AC172: 2039 | AD172: 2040 | AE172: 2041 | AF172: 2042 | AG172: 2043 | AH172: 2044 | AI172: 2045 | AJ172: 2046 | AK172: 2047 | AL172: 2048 | AM172: 2049 | AN172: 2050 | AO172: 2051 | AP172: 2052 | AQ172: 2053 | AR172: 2054 | AS172: 2055 | AT172: 2056 | AU172: 2057 | AV172: 2058 | AW172: 2059 | AX172: 2060
E173: =Translate!E657 -> Project activity | G173: =Translate!E405 -> Flag | I173: =SUM(K173:AX173) -> 33 | K173: =AND( SUM($K154:K163) > 0, SUM(K154:$AX163) > 0 ) * 1 -> 1 | L173: =AND( SUM($K154:L163) > 0, SUM(L154:$AX163) > 0 ) * 1 -> 1 | M173: =AND( SUM($K154:M163) > 0, SUM(M154:$AX163) > 0 ) * 1 -> 1 | N173: =AND( SUM($K154:N163) > 0, SUM(N154:$AX163) > 0 ) * 1 -> 1 | O173: =AND( SUM($K154:O163) > 0, SUM(O154:$AX163) > 0 ) * 1 -> 1 | P173: =AND( SUM($K154:P163) > 0, SUM(P154:$AX163) > 0 ) * 1 -> 1 | Q173: =AND( SUM($K154:Q163) > 0, SUM(Q154:$AX163) > 0 ) * 1 -> 1 | R173: =AND( SUM($K154:R163) > 0, SUM(R154:$AX163) > 0 ) * 1 -> 1 | S173: =AND( SUM($K154:S163) > 0, SUM(S154:$AX163) > 0 ) * 1 -> 1 | T173: =AND( SUM($K154:T163) > 0, SUM(T154:$AX163) > 0 ) * 1 -> 1 | U173: =AND( SUM($K154:U163) > 0, SUM(U154:$AX163) > 0 ) * 1 -> 1 | V173: =AND( SUM($K154:V163) > 0, SUM(V154:$AX163) > 0 ) * 1 -> 1 | W173: =AND( SUM($K154:W163) > 0, SUM(W154:$AX163) > 0 ) * 1 -> 1 | X173: =AND( SUM($K154:X163) > 0, SUM(X154:$AX163) > 0 ) * 1 -> 1 | Y173: =AND( SUM($K154:Y163) > 0, SUM(Y154:$AX163) > 0 ) * 1 -> 1 | Z173: =AND( SUM($K154:Z163) > 0, SUM(Z154:$AX163) > 0 ) * 1 -> 1 | AA173: =AND( SUM($K154:AA163) > 0, SUM(AA154:$AX163) > 0 ) * 1 -> 1 | AB173: =AND( SUM($K154:AB163) > 0, SUM(AB154:$AX163) > 0 ) * 1 -> 1 | AC173: =AND( SUM($K154:AC163) > 0, SUM(AC154:$AX163) > 0 ) * 1 -> 1 | AD173: =AND( SUM($K154:AD163) > 0, SUM(AD154:$AX163) > 0 ) * 1 -> 1 | AE173: =AND( SUM($K154:AE163) > 0, SUM(AE154:$AX163) > 0 ) * 1 -> 1 | AF173: =AND( SUM($K154:AF163) > 0, SUM(AF154:$AX163) > 0 ) * 1 -> 1 | AG173: =AND( SUM($K154:AG163) > 0, SUM(AG154:$AX163) > 0 ) * 1 -> 1 | AH173: =AND( SUM($K154:AH163) > 0, SUM(AH154:$AX163) > 0 ) * 1 -> 1 | AI173: =AND( SUM($K154:AI163) > 0, SUM(AI154:$AX163) > 0 ) * 1 -> 1 | AJ173: =AND( SUM($K154:AJ163) > 0, SUM(AJ154:$AX163) > 0 ) * 1 -> 1 | AK173: =AND( SUM($K154:AK163) > 0, SUM(AK154:$AX163) > 0 ) * 1 -> 1 | AL173: =AND( SUM($K154:AL163) > 0, SUM(AL154:$AX163) > 0 ) * 1 -> 1 | AM173: =AND( SUM($K154:AM163) > 0, SUM(AM154:$AX163) > 0 ) * 1 -> 1 | AN173: =AND( SUM($K154:AN163) > 0, SUM(AN154:$AX163) > 0 ) * 1 -> 1 | AO173: =AND( SUM($K154:AO163) > 0, SUM(AO154:$AX163) > 0 ) * 1 -> 1 | AP173: =AND( SUM($K154:AP163) > 0, SUM(AP154:$AX163) > 0 ) * 1 -> 1 | AQ173: =AND( SUM($K154:AQ163) > 0, SUM(AQ154:$AX163) > 0 ) * 1 -> 1 | AR173: =AND( SUM($K154:AR163) > 0, SUM(AR154:$AX163) > 0 ) * 1 -> 0 | AS173: =AND( SUM($K154:AS163) > 0, SUM(AS154:$AX163) > 0 ) * 1 -> 0 | AT173: =AND( SUM($K154:AT163) > 0, SUM(AT154:$AX163) > 0 ) * 1 -> 0 | AU173: =AND( SUM($K154:AU163) > 0, SUM(AU154:$AX163) > 0 ) * 1 -> 0 | AV173: =AND( SUM($K154:AV163) > 0, SUM(AV154:$AX163) > 0 ) * 1 -> 0 | AW173: =AND( SUM($K154:AW163) > 0, SUM(AW154:$AX163) > 0 ) * 1 -> 0 | AX173: =AND( SUM($K154:AX163) > 0, SUM(AX154:$AX163) > 0 ) * 1 -> 0
E174: =Translate!E658 -> Cumulative project years | G174: =Translate!E$608 -> Year | K174: =( J174 + K173 ) * K173 -> 1 | L174: 2 | M174: 3 | N174: 4 | O174: 5 | P174: 6 | Q174: 7 | R174: 8 | S174: 9 | T174: 10 | U174: 11 | V174: 12 | W174: 13 | X174: 14 | Y174: 15 | Z174: 16 | AA174: 17 | AB174: 18 | AC174: 19 | AD174: 20 | AE174: 21 | AF174: 22 | AG174: 23 | AH174: 24 | AI174: 25 | AJ174: 26 | AK174: 27 | AL174: 28 | AM174: 29 | AN174: 30 | AO174: 31 | AP174: 32 | AQ174: 33 | AR174: 0 | AS174: 0 | AT174: 0 | AU174: 0 | AV174: 0 | AW174: 0 | AX174: 0
C176: =Translate!$E$693 -> Project activity excluding decommissioning | H176: =Translate!E695 -> used in depreciation calculations
E177: =Translate!E660 -> Project activity (excl. decommissioning) | G177: =Translate!E405 -> Flag | I177: =SUM(K177:AX177) -> 31 | K177: =AND( SUM($K154:K161) > 0, SUM(K154:$AX161) > 0 ) * 1 -> 1 | L177: =AND( SUM($K154:L161) > 0, SUM(L154:$AX161) > 0 ) * 1 -> 1 | M177: =AND( SUM($K154:M161) > 0, SUM(M154:$AX161) > 0 ) * 1 -> 1 | N177: =AND( SUM($K154:N161) > 0, SUM(N154:$AX161) > 0 ) * 1 -> 1 | O177: =AND( SUM($K154:O161) > 0, SUM(O154:$AX161) > 0 ) * 1 -> 1 | P177: =AND( SUM($K154:P161) > 0, SUM(P154:$AX161) > 0 ) * 1 -> 1 | Q177: =AND( SUM($K154:Q161) > 0, SUM(Q154:$AX161) > 0 ) * 1 -> 1 | R177: =AND( SUM($K154:R161) > 0, SUM(R154:$AX161) > 0 ) * 1 -> 1 | S177: =AND( SUM($K154:S161) > 0, SUM(S154:$AX161) > 0 ) * 1 -> 1 | T177: =AND( SUM($K154:T161) > 0, SUM(T154:$AX161) > 0 ) * 1 -> 1 | U177: =AND( SUM($K154:U161) > 0, SUM(U154:$AX161) > 0 ) * 1 -> 1 | V177: =AND( SUM($K154:V161) > 0, SUM(V154:$AX161) > 0 ) * 1 -> 1 | W177: =AND( SUM($K154:W161) > 0, SUM(W154:$AX161) > 0 ) * 1 -> 1 | X177: =AND( SUM($K154:X161) > 0, SUM(X154:$AX161) > 0 ) * 1 -> 1 | Y177: =AND( SUM($K154:Y161) > 0, SUM(Y154:$AX161) > 0 ) * 1 -> 1 | Z177: =AND( SUM($K154:Z161) > 0, SUM(Z154:$AX161) > 0 ) * 1 -> 1 | AA177: =AND( SUM($K154:AA161) > 0, SUM(AA154:$AX161) > 0 ) * 1 -> 1 | AB177: =AND( SUM($K154:AB161) > 0, SUM(AB154:$AX161) > 0 ) * 1 -> 1 | AC177: =AND( SUM($K154:AC161) > 0, SUM(AC154:$AX161) > 0 ) * 1 -> 1 | AD177: =AND( SUM($K154:AD161) > 0, SUM(AD154:$AX161) > 0 ) * 1 -> 1 | AE177: =AND( SUM($K154:AE161) > 0, SUM(AE154:$AX161) > 0 ) * 1 -> 1 | AF177: =AND( SUM($K154:AF161) > 0, SUM(AF154:$AX161) > 0 ) * 1 -> 1 | AG177: =AND( SUM($K154:AG161) > 0, SUM(AG154:$AX161) > 0 ) * 1 -> 1 | AH177: =AND( SUM($K154:AH161) > 0, SUM(AH154:$AX161) > 0 ) * 1 -> 1 | AI177: =AND( SUM($K154:AI161) > 0, SUM(AI154:$AX161) > 0 ) * 1 -> 1 | AJ177: =AND( SUM($K154:AJ161) > 0, SUM(AJ154:$AX161) > 0 ) * 1 -> 1 | AK177: =AND( SUM($K154:AK161) > 0, SUM(AK154:$AX161) > 0 ) * 1 -> 1 | AL177: =AND( SUM($K154:AL161) > 0, SUM(AL154:$AX161) > 0 ) * 1 -> 1 | AM177: =AND( SUM($K154:AM161) > 0, SUM(AM154:$AX161) > 0 ) * 1 -> 1 | AN177: =AND( SUM($K154:AN161) > 0, SUM(AN154:$AX161) > 0 ) * 1 -> 1 | AO177: =AND( SUM($K154:AO161) > 0, SUM(AO154:$AX161) > 0 ) * 1 -> 1 | AP177: =AND( SUM($K154:AP161) > 0, SUM(AP154:$AX161) > 0 ) * 1 -> 0 | AQ177: =AND( SUM($K154:AQ161) > 0, SUM(AQ154:$AX161) > 0 ) * 1 -> 0 | AR177: =AND( SUM($K154:AR161) > 0, SUM(AR154:$AX161) > 0 ) * 1 -> 0 | AS177: =AND( SUM($K154:AS161) > 0, SUM(AS154:$AX161) > 0 ) * 1 -> 0 | AT177: =AND( SUM($K154:AT161) > 0, SUM(AT154:$AX161) > 0 ) * 1 -> 0 | AU177: =AND( SUM($K154:AU161) > 0, SUM(AU154:$AX161) > 0 ) * 1 -> 0 | AV177: =AND( SUM($K154:AV161) > 0, SUM(AV154:$AX161) > 0 ) * 1 -> 0 | AW177: =AND( SUM($K154:AW161) > 0, SUM(AW154:$AX161) > 0 ) * 1 -> 0 | AX177: =AND( SUM($K154:AX161) > 0, SUM(AX154:$AX161) > 0 ) * 1 -> 0
B179: =Translate!$E$686 -> Production period
E180: =Translate!E$661 & ", " & Translate!E$595 -> Production years, after ELT | G180: =Translate!E$608 -> Year | K180: =AND( SUM($K154:K154) > 0, SUM(K154:$AX154) > 0 ) * 1 -> 0 | L180: =AND( SUM($K154:L154) > 0, SUM(L154:$AX154) > 0 ) * 1 -> 0 | M180: =AND( SUM($K154:M154) > 0, SUM(M154:$AX154) > 0 ) * 1 -> 0 | N180: =AND( SUM($K154:N154) > 0, SUM(N154:$AX154) > 0 ) * 1 -> 0 | O180: =AND( SUM($K154:O154) > 0, SUM(O154:$AX154) > 0 ) * 1 -> 1 | P180: =AND( SUM($K154:P154) > 0, SUM(P154:$AX154) > 0 ) * 1 -> 1 | Q180: =AND( SUM($K154:Q154) > 0, SUM(Q154:$AX154) > 0 ) * 1 -> 1 | R180: =AND( SUM($K154:R154) > 0, SUM(R154:$AX154) > 0 ) * 1 -> 1 | S180: =AND( SUM($K154:S154) > 0, SUM(S154:$AX154) > 0 ) * 1 -> 1 | T180: =AND( SUM($K154:T154) > 0, SUM(T154:$AX154) > 0 ) * 1 -> 1 | U180: =AND( SUM($K154:U154) > 0, SUM(U154:$AX154) > 0 ) * 1 -> 1 | V180: =AND( SUM($K154:V154) > 0, SUM(V154:$AX154) > 0 ) * 1 -> 1 | W180: =AND( SUM($K154:W154) > 0, SUM(W154:$AX154) > 0 ) * 1 -> 1 | X180: =AND( SUM($K154:X154) > 0, SUM(X154:$AX154) > 0 ) * 1 -> 1 | Y180: =AND( SUM($K154:Y154) > 0, SUM(Y154:$AX154) > 0 ) * 1 -> 1 | Z180: =AND( SUM($K154:Z154) > 0, SUM(Z154:$AX154) > 0 ) * 1 -> 1 | AA180: =AND( SUM($K154:AA154) > 0, SUM(AA154:$AX154) > 0 ) * 1 -> 1 | AB180: =AND( SUM($K154:AB154) > 0, SUM(AB154:$AX154) > 0 ) * 1 -> 1 | AC180: =AND( SUM($K154:AC154) > 0, SUM(AC154:$AX154) > 0 ) * 1 -> 1 | AD180: =AND( SUM($K154:AD154) > 0, SUM(AD154:$AX154) > 0 ) * 1 -> 1 | AE180: =AND( SUM($K154:AE154) > 0, SUM(AE154:$AX154) > 0 ) * 1 -> 1 | AF180: =AND( SUM($K154:AF154) > 0, SUM(AF154:$AX154) > 0 ) * 1 -> 1 | AG180: =AND( SUM($K154:AG154) > 0, SUM(AG154:$AX154) > 0 ) * 1 -> 1 | AH180: =AND( SUM($K154:AH154) > 0, SUM(AH154:$AX154) > 0 ) * 1 -> 1 | AI180: =AND( SUM($K154:AI154) > 0, SUM(AI154:$AX154) > 0 ) * 1 -> 1 | AJ180: =AND( SUM($K154:AJ154) > 0, SUM(AJ154:$AX154) > 0 ) * 1 -> 1 | AK180: =AND( SUM($K154:AK154) > 0, SUM(AK154:$AX154) > 0 ) * 1 -> 1 | AL180: =AND( SUM($K154:AL154) > 0, SUM(AL154:$AX154) > 0 ) * 1 -> 1 | AM180: =AND( SUM($K154:AM154) > 0, SUM(AM154:$AX154) > 0 ) * 1 -> 1 | AN180: =AND( SUM($K154:AN154) > 0, SUM(AN154:$AX154) > 0 ) * 1 -> 1 | AO180: =AND( SUM($K154:AO154) > 0, SUM(AO154:$AX154) > 0 ) * 1 -> 1 | AP180: =AND( SUM($K154:AP154) > 0, SUM(AP154:$AX154) > 0 ) * 1 -> 0 | AQ180: =AND( SUM($K154:AQ154) > 0, SUM(AQ154:$AX154) > 0 ) * 1 -> 0 | AR180: =AND( SUM($K154:AR154) > 0, SUM(AR154:$AX154) > 0 ) * 1 -> 0 | AS180: =AND( SUM($K154:AS154) > 0, SUM(AS154:$AX154) > 0 ) * 1 -> 0 | AT180: =AND( SUM($K154:AT154) > 0, SUM(AT154:$AX154) > 0 ) * 1 -> 0 | AU180: =AND( SUM($K154:AU154) > 0, SUM(AU154:$AX154) > 0 ) * 1 -> 0 | AV180: =AND( SUM($K154:AV154) > 0, SUM(AV154:$AX154) > 0 ) * 1 -> 0 | AW180: =AND( SUM($K154:AW154) > 0, SUM(AW154:$AX154) > 0 ) * 1 -> 0 | AX180: =AND( SUM($K154:AX154) > 0, SUM(AX154:$AX154) > 0 ) * 1 -> 0
E181: =Translate!E662 -> Cumulative production years | G181: =Translate!E$608 -> Year | K181: =( J181 + K180 ) * K180 -> 0 | L181: 0 | M181: 0 | N181: 0 | O181: 1 | P181: 2 | Q181: 3 | R181: 4 | S181: 5 | T181: 6 | U181: 7 | V181: 8 | W181: 9 | X181: 10 | Y181: 11 | Z181: 12 | AA181: 13 | AB181: 14 | AC181: 15 | AD181: 16 | AE181: 17 | AF181: 18 | AG181: 19 | AH181: 20 | AI181: 21 | AJ181: 22 | AK181: 23 | AL181: 24 | AM181: 25 | AN181: 26 | AO181: 27 | AP181: 0 | AQ181: 0 | AR181: 0 | AS181: 0 | AT181: 0 | AU181: 0 | AV181: 0 | AW181: 0 | AX181: 0
E182: =Translate!E663 -> Remaining production years | G182: =Translate!E$608 -> Year | K182: =SUM(K180:$AX180) * K180 -> 0 | L182: =SUM(L180:$AX180) * L180 -> 0 | M182: =SUM(M180:$AX180) * M180 -> 0 | N182: =SUM(N180:$AX180) * N180 -> 0 | O182: =SUM(O180:$AX180) * O180 -> 27 | P182: =SUM(P180:$AX180) * P180 -> 26 | Q182: =SUM(Q180:$AX180) * Q180 -> 25 | R182: =SUM(R180:$AX180) * R180 -> 24 | S182: =SUM(S180:$AX180) * S180 -> 23 | T182: =SUM(T180:$AX180) * T180 -> 22 | U182: =SUM(U180:$AX180) * U180 -> 21 | V182: =SUM(V180:$AX180) * V180 -> 20 | W182: =SUM(W180:$AX180) * W180 -> 19 | X182: =SUM(X180:$AX180) * X180 -> 18 | Y182: =SUM(Y180:$AX180) * Y180 -> 17 | Z182: =SUM(Z180:$AX180) * Z180 -> 16 | AA182: =SUM(AA180:$AX180) * AA180 -> 15 | AB182: =SUM(AB180:$AX180) * AB180 -> 14 | AC182: =SUM(AC180:$AX180) * AC180 -> 13 | AD182: =SUM(AD180:$AX180) * AD180 -> 12 | AE182: =SUM(AE180:$AX180) * AE180 -> 11 | AF182: =SUM(AF180:$AX180) * AF180 -> 10 | AG182: =SUM(AG180:$AX180) * AG180 -> 9 | AH182: =SUM(AH180:$AX180) * AH180 -> 8 | AI182: =SUM(AI180:$AX180) * AI180 -> 7 | AJ182: =SUM(AJ180:$AX180) * AJ180 -> 6 | AK182: =SUM(AK180:$AX180) * AK180 -> 5 | AL182: =SUM(AL180:$AX180) * AL180 -> 4 | AM182: =SUM(AM180:$AX180) * AM180 -> 3 | AN182: =SUM(AN180:$AX180) * AN180 -> 2 | AO182: =SUM(AO180:$AX180) * AO180 -> 1 | AP182: =SUM(AP180:$AX180) * AP180 -> 0 | AQ182: =SUM(AQ180:$AX180) * AQ180 -> 0 | AR182: =SUM(AR180:$AX180) * AR180 -> 0 | AS182: =SUM(AS180:$AX180) * AS180 -> 0 | AT182: =SUM(AT180:$AX180) * AT180 -> 0 | AU182: =SUM(AU180:$AX180) * AU180 -> 0 | AV182: =SUM(AV180:$AX180) * AV180 -> 0 | AW182: =SUM(AW180:$AX180) * AW180 -> 0 | AX182: =SUM(AX180:$AX180) * AX180 -> 0
E183: =E180 -> Production years, after ELT | F183: =SUM(K180:AX180) -> 27 | G183: =Translate!E$608 -> Year
B185: =Translate!$E$687 -> Development period (used for depreciation calculations)
E186: =E$34 -> Model calendar years | F186: 0 | G186: Year | H186: 0 | I186: 0 | J186: 0 | K186: 2021 | L186: 2022 | M186: 2023 | N186: 2024 | O186: 2025 | P186: 2026 | Q186: 2027 | R186: 2028 | S186: 2029 | T186: 2030 | U186: 2031 | V186: 2032 | W186: 2033 | X186: 2034 | Y186: 2035 | Z186: 2036 | AA186: 2037 | AB186: 2038 | AC186: 2039 | AD186: 2040 | AE186: 2041 | AF186: 2042 | AG186: 2043 | AH186: 2044 | AI186: 2045 | AJ186: 2046 | AK186: 2047 | AL186: 2048 | AM186: 2049 | AN186: 2050 | AO186: 2051 | AP186: 2052 | AQ186: 2053 | AR186: 2054 | AS186: 2055 | AT186: 2056 | AU186: 2057 | AV186: 2058 | AW186: 2059 | AX186: 2060
E187: =E$50 -> Development costs | F187: 0 | G187: US$ mn 2021 | H187: 0 | I187: 9050 | J187: 0 | K187: 0 | L187: 50 | M187: 300 | N187: 1200 | O187: 1200 | P187: 2100 | Q187: 1100 | R187: 450 | S187: 250 | T187: 250 | U187: 250 | V187: 250 | W187: 250 | X187: 250 | Y187: 250 | Z187: 250 | AA187: 250 | AB187: 0 | AC187: 0 | AD187: 200 | AE187: 200 | AF187: 0 | AG187: 0 | AH187: 0 | AI187: 0 | AJ187: 0 | AK187: 0 | AL187: 0 | AM187: 0 | AN187: 0 | AO187: 0 | AP187: 0 | AQ187: 0 | AR187: 0 | AS187: 0 | AT187: 0 | AU187: 0 | AV187: 0 | AW187: 0 | AX187: 0
E188: =Translate!E664 -> First Development Year (FID) | G188: =Translate!E405 -> Flag | K188: =AND( J187 = 0, K187 > 0, (SUM($J188:J188) = 0)) * K186 -> 0 | L188: =AND( K187 = 0, L187 > 0, (SUM($J188:K188) = 0)) * L186 -> 2022 | M188: =AND( L187 = 0, M187 > 0, (SUM($J188:L188) = 0)) * M186 -> 0 | N188: =AND( M187 = 0, N187 > 0, (SUM($J188:M188) = 0)) * N186 -> 0 | O188: =AND( N187 = 0, O187 > 0, (SUM($J188:N188) = 0)) * O186 -> 0 | P188: =AND( O187 = 0, P187 > 0, (SUM($J188:O188) = 0)) * P186 -> 0 | Q188: =AND( P187 = 0, Q187 > 0, (SUM($J188:P188) = 0)) * Q186 -> 0 | R188: =AND( Q187 = 0, R187 > 0, (SUM($J188:Q188) = 0)) * R186 -> 0 | S188: =AND( R187 = 0, S187 > 0, (SUM($J188:R188) = 0)) * S186 -> 0 | T188: =AND( S187 = 0, T187 > 0, (SUM($J188:S188) = 0)) * T186 -> 0 | U188: =AND( T187 = 0, U187 > 0, (SUM($J188:T188) = 0)) * U186 -> 0 | V188: =AND( U187 = 0, V187 > 0, (SUM($J188:U188) = 0)) * V186 -> 0 | W188: =AND( V187 = 0, W187 > 0, (SUM($J188:V188) = 0)) * W186 -> 0 | X188: =AND( W187 = 0, X187 > 0, (SUM($J188:W188) = 0)) * X186 -> 0 | Y188: =AND( X187 = 0, Y187 > 0, (SUM($J188:X188) = 0)) * Y186 -> 0 | Z188: =AND( Y187 = 0, Z187 > 0, (SUM($J188:Y188) = 0)) * Z186 -> 0 | AA188: =AND( Z187 = 0, AA187 > 0, (SUM($J188:Z188) = 0)) * AA186 -> 0 | AB188: =AND( AA187 = 0, AB187 > 0, (SUM($J188:AA188) = 0)) * AB186 -> 0 | AC188: =AND( AB187 = 0, AC187 > 0, (SUM($J188:AB188) = 0)) * AC186 -> 0 | AD188: =AND( AC187 = 0, AD187 > 0, (SUM($J188:AC188) = 0)) * AD186 -> 0 | AE188: =AND( AD187 = 0, AE187 > 0, (SUM($J188:AD188) = 0)) * AE186 -> 0 | AF188: =AND( AE187 = 0, AF187 > 0, (SUM($J188:AE188) = 0)) * AF186 -> 0 | AG188: =AND( AF187 = 0, AG187 > 0, (SUM($J188:AF188) = 0)) * AG186 -> 0 | AH188: =AND( AG187 = 0, AH187 > 0, (SUM($J188:AG188) = 0)) * AH186 -> 0 | AI188: =AND( AH187 = 0, AI187 > 0, (SUM($J188:AH188) = 0)) * AI186 -> 0 | AJ188: =AND( AI187 = 0, AJ187 > 0, (SUM($J188:AI188) = 0)) * AJ186 -> 0 | AK188: =AND( AJ187 = 0, AK187 > 0, (SUM($J188:AJ188) = 0)) * AK186 -> 0 | AL188: =AND( AK187 = 0, AL187 > 0, (SUM($J188:AK188) = 0)) * AL186 -> 0 | AM188: =AND( AL187 = 0, AM187 > 0, (SUM($J188:AL188) = 0)) * AM186 -> 0 | AN188: =AND( AM187 = 0, AN187 > 0, (SUM($J188:AM188) = 0)) * AN186 -> 0 | AO188: =AND( AN187 = 0, AO187 > 0, (SUM($J188:AN188) = 0)) * AO186 -> 0 | AP188: =AND( AO187 = 0, AP187 > 0, (SUM($J188:AO188) = 0)) * AP186 -> 0 | AQ188: =AND( AP187 = 0, AQ187 > 0, (SUM($J188:AP188) = 0)) * AQ186 -> 0 | AR188: =AND( AQ187 = 0, AR187 > 0, (SUM($J188:AQ188) = 0)) * AR186 -> 0 | AS188: =AND( AR187 = 0, AS187 > 0, (SUM($J188:AR188) = 0)) * AS186 -> 0 | AT188: =AND( AS187 = 0, AT187 > 0, (SUM($J188:AS188) = 0)) * AT186 -> 0 | AU188: =AND( AT187 = 0, AU187 > 0, (SUM($J188:AT188) = 0)) * AU186 -> 0 | AV188: =AND( AU187 = 0, AV187 > 0, (SUM($J188:AU188) = 0)) * AV186 -> 0 | AW188: =AND( AV187 = 0, AW187 > 0, (SUM($J188:AV188) = 0)) * AW186 -> 0 | AX188: =AND( AW187 = 0, AX187 > 0, (SUM($J188:AW188) = 0)) * AX186 -> 0
E189: =Translate!E$664 -> First Development Year (FID) | F189: =SUM(K188:AX188) -> 2022 | G189: =Translate!E$608 -> Year
E191: =E$173 -> Project activity | F191: 0 | G191: Flag | H191: 0 | I191: 33 | J191: 0 | K191: 1 | L191: 1 | M191: 1 | N191: 1 | O191: 1 | P191: 1 | Q191: 1 | R191: 1 | S191: 1 | T191: 1 | U191: 1 | V191: 1 | W191: 1 | X191: 1 | Y191: 1 | Z191: 1 | AA191: 1 | AB191: 1 | AC191: 1 | AD191: 1 | AE191: 1 | AF191: 1 | AG191: 1 | AH191: 1 | AI191: 1 | AJ191: 1 | AK191: 1 | AL191: 1 | AM191: 1 | AN191: 1 | AO191: 1 | AP191: 1 | AQ191: 1 | AR191: 0 | AS191: 0 | AT191: 0 | AU191: 0 | AV191: 0 | AW191: 0 | AX191: 0
E192: =Translate!E665 -> Cumulative years from start of development | G192: =Translate!E$608 -> Year | K192: =IF( K186 >= $F189, J192 + 1, 0) * K191 -> 0 | L192: 1 | M192: 2 | N192: 3 | O192: 4 | P192: 5 | Q192: 6 | R192: 7 | S192: 8 | T192: 9 | U192: 10 | V192: 11 | W192: 12 | X192: 13 | Y192: 14 | Z192: 15 | AA192: 16 | AB192: 17 | AC192: 18 | AD192: 19 | AE192: 20 | AF192: 21 | AG192: 22 | AH192: 23 | AI192: 24 | AJ192: 25 | AK192: 26 | AL192: 27 | AM192: 28 | AN192: 29 | AO192: 30 | AP192: 31 | AQ192: 32 | AR192: 0 | AS192: 0 | AT192: 0 | AU192: 0 | AV192: 0 | AW192: 0 | AX192: 0
E193: =Translate!E666 -> FID forward flag | G193: =Translate!E405 -> Flag | I193: =SUM(K193:AX193) -> 39 | K193: =(K186 >= $F189 ) * 1 -> 0 | L193: 1 | M193: 1 | N193: 1 | O193: 1 | P193: 1 | Q193: 1 | R193: 1 | S193: 1 | T193: 1 | U193: 1 | V193: 1 | W193: 1 | X193: 1 | Y193: 1 | Z193: 1 | AA193: 1 | AB193: 1 | AC193: 1 | AD193: 1 | AE193: 1 | AF193: 1 | AG193: 1 | AH193: 1 | AI193: 1 | AJ193: 1 | AK193: 1 | AL193: 1 | AM193: 1 | AN193: 1 | AO193: 1 | AP193: 1 | AQ193: 1 | AR193: 1 | AS193: 1 | AT193: 1 | AU193: 1 | AV193: 1 | AW193: 1 | AX193: 1
A195: =Translate!$E$677 -> Inflation indices
B197: =Translate!$E$688 -> Index for escalating revenues and costs
E198: =Inputs!E$45 -> Inflation rate | F198: =Inputs!F$45 -> 0.02 | G198: =Inputs!G$45 -> %
E199: =E$174 -> Cumulative project years | F199: 0 | G199: Year | H199: 0 | I199: 0 | J199: 0 | K199: 1 | L199: 2 | M199: 3 | N199: 4 | O199: 5 | P199: 6 | Q199: 7 | R199: 8 | S199: 9 | T199: 10 | U199: 11 | V199: 12 | W199: 13 | X199: 14 | Y199: 15 | Z199: 16 | AA199: 17 | AB199: 18 | AC199: 19 | AD199: 20 | AE199: 21 | AF199: 22 | AG199: 23 | AH199: 24 | AI199: 25 | AJ199: 26 | AK199: 27 | AL199: 28 | AM199: 29 | AN199: 30 | AO199: 31 | AP199: 32 | AQ199: 33 | AR199: 0 | AS199: 0 | AT199: 0 | AU199: 0 | AV199: 0 | AW199: 0 | AX199: 0
E200: =Translate!E667 -> Inflation index | G200: =Translate!E407 -> Index | H200: =Translate!E696 -> base year is first project year | K200: =IF( K199 <= 1, 1, J200 * ( 1 + $F198)) -> 1 | L200: 1.02 | M200: 1.0404 | N200: 1.061208 | O200: 1.08243216 | P200: 1.104080803 | Q200: 1.126162419 | R200: 1.148685668 | S200: 1.171659381 | T200: 1.195092569 | U200: 1.21899442 | V200: 1.243374308 | W200: 1.268241795 | X200: 1.29360663 | Y200: 1.319478763 | Z200: 1.345868338 | AA200: 1.372785705 | AB200: 1.400241419 | AC200: 1.428246248 | AD200: 1.456811173 | AE200: 1.485947396 | AF200: 1.515666344 | AG200: 1.545979671 | AH200: 1.576899264 | AI200: 1.608437249 | AJ200: 1.640605994 | AK200: 1.673418114 | AL200: 1.706886477 | AM200: 1.741024206 | AN200: 1.77584469 | AO200: 1.811361584 | AP200: 1.847588816 | AQ200: 1.884540592 | AR200: 1 | AS200: 1 | AT200: 1 | AU200: 1 | AV200: 1 | AW200: 1 | AX200: 1
B202: =Translate!$E$689 -> Discount factors (assumes discounting to middle of the year, assuming cashflows received on average in middle of the year)
E203: =Inputs!E$58 -> Discount rate | F203: =Inputs!F$58 -> 0.08 | G203: =Inputs!G$58 -> % real
E204: =Inputs!E$63 -> Short NPV label | F204: =Inputs!F$63 -> NPV8 | G204: =Inputs!G$63 -> Label
C206: =Translate!E$771 & ": " & Inputs!F$89 & ", " & F$204 -> Discount factor: full-cycle, NPV8
E207: =E$174 -> Cumulative project years | F207: 0 | G207: Year | H207: 0 | I207: 0 | J207: 0 | K207: 1 | L207: 2 | M207: 3 | N207: 4 | O207: 5 | P207: 6 | Q207: 7 | R207: 8 | S207: 9 | T207: 10 | U207: 11 | V207: 12 | W207: 13 | X207: 14 | Y207: 15 | Z207: 16 | AA207: 17 | AB207: 18 | AC207: 19 | AD207: 20 | AE207: 21 | AF207: 22 | AG207: 23 | AH207: 24 | AI207: 25 | AJ207: 26 | AK207: 27 | AL207: 28 | AM207: 29 | AN207: 30 | AO207: 31 | AP207: 32 | AQ207: 33 | AR207: 0 | AS207: 0 | AT207: 0 | AU207: 0 | AV207: 0 | AW207: 0 | AX207: 0
E208: =Translate!E$771 & ": " & Inputs!F$89 & ", " & F$204 -> Discount factor: full-cycle, NPV8 | G208: =Translate!E$110 -> factor | K208: =IF( K207 = 0, 0, 1 / ( 1 + $F203) ^ (K207 - 1) ) -> 1 | L208: 0.9259259259 | M208: 0.8573388203 | N208: 0.793832241 | O208: 0.7350298528 | P208: 0.680583197 | Q208: 0.6301696269 | R208: 0.5834903953 | S208: 0.5402688845 | T208: 0.5002489671 | U208: 0.4631934881 | V208: 0.4288828593 | W208: 0.3971137586 | X208: 0.3676979247 | Y208: 0.3404610414 | Z208: 0.315241705 | AA208: 0.2918904676 | AB208: 0.2702689514 | AC208: 0.2502490291 | AD208: 0.231712064 | AE208: 0.2145482074 | AF208: 0.1986557476 | AG208: 0.183940507 | AH208: 0.1703152843 | AI208: 0.1576993373 | AJ208: 0.1460179049 | AK208: 0.1352017638 | AL208: 0.1251868183 | AM208: 0.1159137207 | AN208: 0.1073275192 | AO208: 0.09937733255 | AP208: 0.09201604866 | AQ208: 0.08520004505 | AR208: 0 | AS208: 0 | AT208: 0 | AU208: 0 | AV208: 0 | AW208: 0 | AX208: 0
C210: =Translate!E$771 & ": " & Inputs!F$90 & ", " & F$204 -> Discount factor: FID forward, NPV8
E211: =E$192 -> Cumulative years from start of development | F211: 0 | G211: Year | H211: 0 | I211: 0 | J211: 0 | K211: 0 | L211: 1 | M211: 2 | N211: 3 | O211: 4 | P211: 5 | Q211: 6 | R211: 7 | S211: 8 | T211: 9 | U211: 10 | V211: 11 | W211: 12 | X211: 13 | Y211: 14 | Z211: 15 | AA211: 16 | AB211: 17 | AC211: 18 | AD211: 19 | AE211: 20 | AF211: 21 | AG211: 22 | AH211: 23 | AI211: 24 | AJ211: 25 | AK211: 26 | AL211: 27 | AM211: 28 | AN211: 29 | AO211: 30 | AP211: 31 | AQ211: 32 | AR211: 0 | AS211: 0 | AT211: 0 | AU211: 0 | AV211: 0 | AW211: 0 | AX211: 0
E212: =Translate!E$771 & ": " & Inputs!F$90 & ", " & F$204 -> Discount factor: FID forward, NPV8 | G212: =Translate!E$110 -> factor | K212: =IF( K211 = 0, 0, 1 / ( 1 + $F203) ^ (K211 - 1) ) -> 0 | L212: 1 | M212: 0.9259259259 | N212: 0.8573388203 | O212: 0.793832241 | P212: 0.7350298528 | Q212: 0.680583197 | R212: 0.6301696269 | S212: 0.5834903953 | T212: 0.5402688845 | U212: 0.5002489671 | V212: 0.4631934881 | W212: 0.4288828593 | X212: 0.3971137586 | Y212: 0.3676979247 | Z212: 0.3404610414 | AA212: 0.315241705 | AB212: 0.2918904676 | AC212: 0.2702689514 | AD212: 0.2502490291 | AE212: 0.231712064 | AF212: 0.2145482074 | AG212: 0.1986557476 | AH212: 0.183940507 | AI212: 0.1703152843 | AJ212: 0.1576993373 | AK212: 0.1460179049 | AL212: 0.1352017638 | AM212: 0.1251868183 | AN212: 0.1159137207 | AO212: 0.1073275192 | AP212: 0.09937733255 | AQ212: 0.09201604866 | AR212: 0 | AS212: 0 | AT212: 0 | AU212: 0 | AV212: 0 | AW212: 0 | AX212: 0
A214: =Translate!E$701 & ": " & Inputs!F$92 -> Project cashflows: nominal
B216: =Translate!$E$701 & ": " & Inputs!F$91 -> Project cashflows: real
E217: =E$152 -> Oil price realized from sales, after ELT | F217: 0 | G217: US$ 2021 / bbl | H217: 0 | I217: 1705 | J217: 0 | K217: 55 | L217: 55 | M217: 55 | N217: 55 | O217: 55 | P217: 55 | Q217: 55 | R217: 55 | S217: 55 | T217: 55 | U217: 55 | V217: 55 | W217: 55 | X217: 55 | Y217: 55 | Z217: 55 | AA217: 55 | AB217: 55 | AC217: 55 | AD217: 55 | AE217: 55 | AF217: 55 | AG217: 55 | AH217: 55 | AI217: 55 | AJ217: 55 | AK217: 55 | AL217: 55 | AM217: 55 | AN217: 55 | AO217: 55 | AP217: 0 | AQ217: 0 | AR217: 0 | AS217: 0 | AT217: 0 | AU217: 0 | AV217: 0 | AW217: 0 | AX217: 0
E219: =E$154 -> Oil revenues gross, after ELT | F219: 0 | G219: US$ mn 2021 | H219: 0 | I219: 44103.02386 | J219: 0 | K219: 0 | L219: 0 | M219: 0 | N219: 0 | O219: 191.6583582 | P219: 1505.625 | Q219: 3011.25 | R219: 3011.25 | S219: 3011.25 | T219: 3011.25 | U219: 3011.25 | V219: 3011.25 | W219: 3011.25 | X219: 3011.25 | Y219: 3011.25 | Z219: 3011.25 | AA219: 2439.1125 | AB219: 1975.681125 | AC219: 1600.301711 | AD219: 1296.244386 | AE219: 1049.957953 | AF219: 850.4659417 | AG219: 688.8774128 | AH219: 557.9907044 | AI219: 451.9724705 | AJ219: 366.0977011 | AK219: 296.5391379 | AL219: 240.1967017 | AM219: 194.5593284 | AN219: 157.593056 | AO219: 127.6503754 | AP219: 0 | AQ219: 0 | AR219: 0 | AS219: 0 | AT219: 0 | AU219: 0 | AV219: 0 | AW219: 0 | AX219: 0
E220: =E$155 -> Transport costs post-fiscal point, after ELT | F220: 0 | G220: US$ mn 2021 | H220: 0 | I220: 0 | J220: 0 | K220: 0 | L220: 0 | M220: 0 | N220: 0 | O220: 0 | P220: 0 | Q220: 0 | R220: 0 | S220: 0 | T220: 0 | U220: 0 | V220: 0 | W220: 0 | X220: 0 | Y220: 0 | Z220: 0 | AA220: 0 | AB220: 0 | AC220: 0 | AD220: 0 | AE220: 0 | AF220: 0 | AG220: 0 | AH220: 0 | AI220: 0 | AJ220: 0 | AK220: 0 | AL220: 0 | AM220: 0 | AN220: 0 | AO220: 0 | AP220: 0 | AQ220: 0 | AR220: 0 | AS220: 0 | AT220: 0 | AU220: 0 | AV220: 0 | AW220: 0 | AX220: 0
E222: =E$158 -> Exploration costs, after ELT | F222: 0 | G222: US$ mn 2021 | H222: 0 | I222: 420 | J222: 0 | K222: 420 | L222: 0 | M222: 0 | N222: 0 | O222: 0 | P222: 0 | Q222: 0 | R222: 0 | S222: 0 | T222: 0 | U222: 0 | V222: 0 | W222: 0 | X222: 0 | Y222: 0 | Z222: 0 | AA222: 0 | AB222: 0 | AC222: 0 | AD222: 0 | AE222: 0 | AF222: 0 | AG222: 0 | AH222: 0 | AI222: 0 | AJ222: 0 | AK222: 0 | AL222: 0 | AM222: 0 | AN222: 0 | AO222: 0 | AP222: 0 | AQ222: 0 | AR222: 0 | AS222: 0 | AT222: 0 | AU222: 0 | AV222: 0 | AW222: 0 | AX222: 0
E223: =E$159 -> Development costs, after ELT | F223: 0 | G223: US$ mn 2021 | H223: 0 | I223: 9050 | J223: 0 | K223: 0 | L223: 50 | M223: 300 | N223: 1200 | O223: 1200 | P223: 2100 | Q223: 1100 | R223: 450 | S223: 250 | T223: 250 | U223: 250 | V223: 250 | W223: 250 | X223: 250 | Y223: 250 | Z223: 250 | AA223: 250 | AB223: 0 | AC223: 0 | AD223: 200 | AE223: 200 | AF223: 0 | AG223: 0 | AH223: 0 | AI223: 0 | AJ223: 0 | AK223: 0 | AL223: 0 | AM223: 0 | AN223: 0 | AO223: 0 | AP223: 0 | AQ223: 0 | AR223: 0 | AS223: 0 | AT223: 0 | AU223: 0 | AV223: 0 | AW223: 0 | AX223: 0
E224: =E$160 -> Replacement capital costs, after ELT | F224: 0 | G224: US$ mn 2021 | H224: 0 | I224: 0 | J224: 0 | K224: 0 | L224: 0 | M224: 0 | N224: 0 | O224: 0 | P224: 0 | Q224: 0 | R224: 0 | S224: 0 | T224: 0 | U224: 0 | V224: 0 | W224: 0 | X224: 0 | Y224: 0 | Z224: 0 | AA224: 0 | AB224: 0 | AC224: 0 | AD224: 0 | AE224: 0 | AF224: 0 | AG224: 0 | AH224: 0 | AI224: 0 | AJ224: 0 | AK224: 0 | AL224: 0 | AM224: 0 | AN224: 0 | AO224: 0 | AP224: 0 | AQ224: 0 | AR224: 0 | AS224: 0 | AT224: 0 | AU224: 0 | AV224: 0 | AW224: 0 | AX224: 0
E225: =E$161 -> Operating costs, after ELT | F225: 0 | G225: US$ mn 2021 | H225: 0 | I225: 4601 | J225: 0 | K225: 0 | L225: 0 | M225: 0 | N225: 0 | O225: 50 | P225: 180 | Q225: 260 | R225: 260 | S225: 260 | T225: 260 | U225: 260 | V225: 260 | W225: 260 | X225: 260 | Y225: 260 | Z225: 260 | AA225: 260 | AB225: 260 | AC225: 150 | AD225: 140 | AE225: 120 | AF225: 111 | AG225: 100 | AH225: 95 | AI225: 90 | AJ225: 85 | AK225: 80 | AL225: 75 | AM225: 70 | AN225: 70 | AO225: 65 | AP225: 0 | AQ225: 0 | AR225: 0 | AS225: 0 | AT225: 0 | AU225: 0 | AV225: 0 | AW225: 0 | AX225: 0
E226: =E$123 -> Decommissioning costs, after ELT | F226: 0 | G226: US$ mn 2021 | H226: 0 | I226: 750 | J226: 0 | K226: 0 | L226: 0 | M226: 0 | N226: 0 | O226: 0 | P226: 0 | Q226: 0 | R226: 0 | S226: 0 | T226: 0 | U226: 0 | V226: 0 | W226: 0 | X226: 0 | Y226: 0 | Z226: 0 | AA226: 0 | AB226: 0 | AC226: 0 | AD226: 0 | AE226: 0 | AF226: 0 | AG226: 0 | AH226: 0 | AI226: 0 | AJ226: 0 | AK226: 0 | AL226: 250 | AM226: 0 | AN226: 0 | AO226: 0 | AP226: 250 | AQ226: 250 | AR226: 0 | AS226: 0 | AT226: 0 | AU226: 0 | AV226: 0 | AW226: 0 | AX226: 0
E227: =Translate!E$579 -> Project costs | G227: =Inputs!F$52 -> US$ mn 2021 | I227: =SUM(K227:AX227) -> 14821 | K227: =SUM(K222:K226) -> 420 | L227: 50 | M227: 300 | N227: 1200 | O227: 1250 | P227: 2280 | Q227: 1360 | R227: 710 | S227: 510 | T227: 510 | U227: 510 | V227: 510 | W227: 510 | X227: 510 | Y227: 510 | Z227: 510 | AA227: 510 | AB227: 260 | AC227: 150 | AD227: 340 | AE227: 320 | AF227: 111 | AG227: 100 | AH227: 95 | AI227: 90 | AJ227: 85 | AK227: 80 | AL227: 325 | AM227: 70 | AN227: 70 | AO227: 65 | AP227: 250 | AQ227: 250 | AR227: 0 | AS227: 0 | AT227: 0 | AU227: 0 | AV227: 0 | AW227: 0 | AX227: 0
B229: =Translate!E$701 & ": " & Inputs!F$92 -> Project cashflows: nominal
E230: =E$200 -> Inflation index | F230: 0 | G230: Index | H230: base year is first project year | I230: 0 | J230: 0 | K230: 1 | L230: 1.02 | M230: 1.0404 | N230: 1.061208 | O230: 1.08243216 | P230: 1.104080803 | Q230: 1.126162419 | R230: 1.148685668 | S230: 1.171659381 | T230: 1.195092569 | U230: 1.21899442 | V230: 1.243374308 | W230: 1.268241795 | X230: 1.29360663 | Y230: 1.319478763 | Z230: 1.345868338 | AA230: 1.372785705 | AB230: 1.400241419 | AC230: 1.428246248 | AD230: 1.456811173 | AE230: 1.485947396 | AF230: 1.515666344 | AG230: 1.545979671 | AH230: 1.576899264 | AI230: 1.608437249 | AJ230: 1.640605994 | AK230: 1.673418114 | AL230: 1.706886477 | AM230: 1.741024206 | AN230: 1.77584469 | AO230: 1.811361584 | AP230: 1.847588816 | AQ230: 1.884540592 | AR230: 1 | AS230: 1 | AT230: 1 | AU230: 1 | AV230: 1 | AW230: 1 | AX230: 1
E232: =E217 -> Oil price realized from sales, after ELT | G232: =Inputs!F55 -> US$ / bbl | K232: =K217 * K230 -> 55 | L232: 56.1 | M232: 57.222 | N232: 58.36644 | O232: 59.5337688 | P232: 60.72444418 | Q232: 61.93893306 | R232: 63.17771172 | S232: 64.44126596 | T232: 65.73009127 | U232: 67.0446931 | V232: 68.38558696 | W232: 69.7532987 | X232: 71.14836467 | Y232: 72.57133197 | Z232: 74.02275861 | AA232: 75.50321378 | AB232: 77.01327806 | AC232: 78.55354362 | AD232: 80.12461449 | AE232: 81.72710678 | AF232: 83.36164891 | AG232: 85.02888189 | AH232: 86.72945953 | AI232: 88.46404872 | AJ232: 90.2333297 | AK232: 92.03799629 | AL232: 93.87875622 | AM232: 95.75633134 | AN232: 97.67145797 | AO232: 99.62488713 | AP232: 0 | AQ232: 0 | AR232: 0 | AS232: 0 | AT232: 0 | AU232: 0 | AV232: 0 | AW232: 0 | AX232: 0
D234: =Translate!E529 -> add | E234: =E$219 -> Oil revenues gross, after ELT | G234: =Translate!E$603 -> US$ mn | I234: =SUM(K234:AX234) -> 57168.54352 | K234: =K219 * K$230 -> 0 | L234: 0 | M234: 0 | N234: 0 | O234: 207.4571706 | P234: 1662.331659 | Q234: 3391.156585 | R234: 3458.979717 | S234: 3528.159311 | T234: 3598.722497 | U234: 3670.696947 | V234: 3744.110886 | W234: 3818.993104 | X234: 3895.372966 | Y234: 3973.280425 | Z234: 4052.746034 | AA234: 3348.378773 | AB234: 2766.430542 | AC234: 2285.624914 | AD234: 1888.383304 | AE234: 1560.182286 | AF234: 1289.022605 | AG234: 1064.990476 | AH234: 879.8951311 | AI234: 726.9693574 | AJ234: 600.622083 | AK234: 496.233965 | AL234: 409.9885019 | AM234: 338.7325003 | AN234: 279.8607917 | AO234: 231.2209861 | AP234: 0 | AQ234: 0 | AR234: 0 | AS234: 0 | AT234: 0 | AU234: 0 | AV234: 0 | AW234: 0 | AX234: 0
D235: =Translate!E530 -> less | E235: =E$220 -> Transport costs post-fiscal point, after ELT | G235: =Translate!E$603 -> US$ mn | I235: =SUM(K235:AX235) -> 0 | K235: =K220 * K$230 -> 0 | L235: 0 | M235: 0 | N235: 0 | O235: 0 | P235: 0 | Q235: 0 | R235: 0 | S235: 0 | T235: 0 | U235: 0 | V235: 0 | W235: 0 | X235: 0 | Y235: 0 | Z235: 0 | AA235: 0 | AB235: 0 | AC235: 0 | AD235: 0 | AE235: 0 | AF235: 0 | AG235: 0 | AH235: 0 | AI235: 0 | AJ235: 0 | AK235: 0 | AL235: 0 | AM235: 0 | AN235: 0 | AO235: 0 | AP235: 0 | AQ235: 0 | AR235: 0 | AS235: 0 | AT235: 0 | AU235: 0 | AV235: 0 | AW235: 0 | AX235: 0
E236: =Translate!E669 -> Net revenues after ELT | G236: =Translate!E$603 -> US$ mn | I236: =SUM(K236:AX236) -> 57168.54352 | K236: =K234 - K235 -> 0 | L236: 0 | M236: 0 | N236: 0 | O236: 207.4571706 | P236: 1662.331659 | Q236: 3391.156585 | R236: 3458.979717 | S236: 3528.159311 | T236: 3598.722497 | U236: 3670.696947 | V236: 3744.110886 | W236: 3818.993104 | X236: 3895.372966 | Y236: 3973.280425 | Z236: 4052.746034 | AA236: 3348.378773 | AB236: 2766.430542 | AC236: 2285.624914 | AD236: 1888.383304 | AE236: 1560.182286 | AF236: 1289.022605 | AG236: 1064.990476 | AH236: 879.8951311 | AI236: 726.9693574 | AJ236: 600.622083 | AK236: 496.233965 | AL236: 409.9885019 | AM236: 338.7325003 | AN236: 279.8607917 | AO236: 231.2209861 | AP236: 0 | AQ236: 0 | AR236: 0 | AS236: 0 | AT236: 0 | AU236: 0 | AV236: 0 | AW236: 0 | AX236: 0
E238: =E$222 -> Exploration costs, after ELT | G238: =Translate!E$603 -> US$ mn | I238: =SUM(K238:AX238) -> 420 | K238: =K222 * K$230 -> 420 | L238: 0 | M238: 0 | N238: 0 | O238: 0 | P238: 0 | Q238: 0 | R238: 0 | S238: 0 | T238: 0 | U238: 0 | V238: 0 | W238: 0 | X238: 0 | Y238: 0 | Z238: 0 | AA238: 0 | AB238: 0 | AC238: 0 | AD238: 0 | AE238: 0 | AF238: 0 | AG238: 0 | AH238: 0 | AI238: 0 | AJ238: 0 | AK238: 0 | AL238: 0 | AM238: 0 | AN238: 0 | AO238: 0 | AP238: 0 | AQ238: 0 | AR238: 0 | AS238: 0 | AT238: 0 | AU238: 0 | AV238: 0 | AW238: 0 | AX238: 0
E239: =E$223 -> Development costs, after ELT | G239: =Translate!E$603 -> US$ mn | I239: 10455.57228 | K239: =K223 * K$230 -> 0 | L239: 51 | M239: 312.12 | N239: 1273.4496 | O239: 1298.918592 | P239: 2318.569687 | Q239: 1238.778661 | R239: 516.9085504 | S239: 292.9148453 | T239: 298.7731422 | U239: 304.748605 | V239: 310.8435771 | W239: 317.0604486 | X239: 323.4016576 | Y239: 329.8696908 | Z239: 336.4670846 | AA239: 343.1964263 | AB239: 0 | AC239: 0 | AD239: 291.3622345 | AE239: 297.1894792 | AF239: 0 | AG239: 0 | AH239: 0 | AI239: 0 | AJ239: 0 | AK239: 0 | AL239: 0 | AM239: 0 | AN239: 0 | AO239: 0 | AP239: 0 | AQ239: 0 | AR239: 0 | AS239: 0 | AT239: 0 | AU239: 0 | AV239: 0 | AW239: 0 | AX239: 0
E240: =E$224 -> Replacement capital costs, after ELT | G240: =Translate!E$603 -> US$ mn | I240: 0 | K240: =K224 * K$230 -> 0 | L240: 0 | M240: 0 | N240: 0 | O240: 0 | P240: 0 | Q240: 0 | R240: 0 | S240: 0 | T240: 0 | U240: 0 | V240: 0 | W240: 0 | X240: 0 | Y240: 0 | Z240: 0 | AA240: 0 | AB240: 0 | AC240: 0 | AD240: 0 | AE240: 0 | AF240: 0 | AG240: 0 | AH240: 0 | AI240: 0 | AJ240: 0 | AK240: 0 | AL240: 0 | AM240: 0 | AN240: 0 | AO240: 0 | AP240: 0 | AQ240: 0 | AR240: 0 | AS240: 0 | AT240: 0 | AU240: 0 | AV240: 0 | AW240: 0 | AX240: 0
E241: =E$225 -> Operating costs, after ELT | G241: =Translate!E$603 -> US$ mn | I241: 6159.112593 | K241: =K225 * K$230 -> 0 | L241: 0 | M241: 0 | N241: 0 | O241: 54.121608 | P241: 198.7345446 | Q241: 292.802229 | R241: 298.6582736 | S241: 304.6314391 | T241: 310.7240678 | U241: 316.9385492 | V241: 323.2773202 | W241: 329.7428666 | X241: 336.3377239 | Y241: 343.0644784 | Z241: 349.925768 | AA241: 356.9242833 | AB241: 364.062769 | AC241: 214.2369371 | AD241: 203.9535642 | AE241: 178.3136875 | AF241: 168.2389642 | AG241: 154.5979671 | AH241: 149.8054301 | AI241: 144.7593525 | AJ241: 139.4515095 | AK241: 133.8734491 | AL241: 128.0164857 | AM241: 121.8716944 | AN241: 124.3091283 | AO241: 117.738503 | AP241: 0 | AQ241: 0 | AR241: 0 | AS241: 0 | AT241: 0 | AU241: 0 | AV241: 0 | AW241: 0 | AX241: 0
E242: =E$226 -> Decommissioning costs, after ELT | G242: =Translate!E$603 -> US$ mn | I242: 1359.753971 | K242: =K226 * K$230 -> 0 | L242: 0 | M242: 0 | N242: 0 | O242: 0 | P242: 0 | Q242: 0 | R242: 0 | S242: 0 | T242: 0 | U242: 0 | V242: 0 | W242: 0 | X242: 0 | Y242: 0 | Z242: 0 | AA242: 0 | AB242: 0 | AC242: 0 | AD242: 0 | AE242: 0 | AF242: 0 | AG242: 0 | AH242: 0 | AI242: 0 | AJ242: 0 | AK242: 0 | AL242: 426.7216192 | AM242: 0 | AN242: 0 | AO242: 0 | AP242: 461.8972039 | AQ242: 471.135148 | AR242: 0 | AS242: 0 | AT242: 0 | AU242: 0 | AV242: 0 | AW242: 0 | AX242: 0
